Workbook

Sheet 0. Capa
C4: Modelo Econômico-Financeiro Agepar
C6: Cálculo de Tarifa Média de Equilíbrio (P0) da Sanepar
C11: Sumário
C13: Ref | D13: Componentes | E13: Descrição
C14: 1 | D14: P0 | E14: Fluxo de Caixa Descontado. Cálculo da Tarifa em R$/m³
C15: =C14+1 -> 2 | D15: Mercado | E15: Volumes Projetados (m³) para o Período
C16: =C15+1 -> 3 | D16: Outras Receitas | E16: Receitas projetadas e % de compartilhamento por Tipo
C17: 4 | D17: OPEX | E17: Custos Operacionais Projetados Sintéticos
C18: 5 | D18: Base de Remuneração Regulatória | E18: Base de Remuneração Movimentada para o Ciclo
C19: 6 | D19: CAPEX | E19: Investimentos projetados Sintéticos
C20: 7 | D20: Capital de Giro | E20: Projeção da Variação do Capital Circulante Líquido
C21: 8 | D21: Receitas Irrecuperáveis | E21: Curva de Inadimplência
C22: 9 | D22: Ajustes Compensatórios Ordinários | E22: Descasamento de componentes não Gerenciáveis
C23: =C22+1 -> 10 | D23: Ajustes Compensatórios Extraordinários | E23: Compensações financeira de fatores Extraordinários
C24: 11 | D24: Ajuste Compens. IRTs 2022 | E24: Compensações financeira dos reajustes tarifários
C25: =C24+1 -> 12 | D25: Fator X | E25: Determinação e captura da eficiência dos Custos Operacionais

Sheet Oferta (hidden)
B3: Oferta
B5: Volume Produzido de Água com Maringá | N5: Volume Produzido de Água sem Maringá
E6: ** | F6: ** | G6: ** | H6: ** | I6: ** | Q6: ** | R6: ** | S6: ** | T6: ** | U6: **
B7: Descrição | C7: Unidade | D7: Fonte | E7: 2017 | F7: 2018 | G7: 2019 | H7: 2020 | I7: 2021 | J7: 2022 | K7: 2023 | L7: 2024 | N7: Descrição | O7: Unidade | P7: Fonte | Q7: 2017 | R7: 2018 | S7: 2019 | T7: 2020 | U7: 2021 | V7: 2022 | W7: 2023 | X7: 2024
A8: *Média | B8: Índice de Perdas | C8: l/lig/dia | D8: PROTOCOLO 18.311.586 : INFORMAÇÕES 2ª FASE 2ª RTP | E8: 230.4625 | F8: 228.095 | G8: 230.1625 | H8: 228.0533333 | I8: 211.9166667 | J8: 221.3516667 | K8: 223.9383333 | L8: 220.2466667 | N8: Índice de Perdas | O8: l/lig/dia
A9: *Em dezembro | B9: Ligações de água | C9: unidade | D9: PROTOCOLO 18.311.586 : INFORMAÇÕES 2ª FASE 2ª RTP | E9: 3087156 | F9: 3137756 | G9: 3194532 | H9: 3273807 | I9: 3348437 | J9: 3401676 | K9: 3456993 | L9: 3512254 | N9: Ligações de água | O9: unidade | P9: PROTOCOLO 18.311.586 : INFORMAÇÕES 2ª FASE 2ª RTP (realizado) | Q9: 2959960 | R9: 3008446 | S9: 3063461 | T9: 3140207 | U9: 3212634
B10: Volume de Perdas | C10: m3 | N10: Volume de Perdas | O10: m3
B11: Volume Medido | C11: m3 | D11: PROTOCOLO 18.311.586 : INFORMAÇÕES 2ª FASE 2ª RTP | E11: 494851646 | F11: 492349965 | G11: 509873761 | H11: 501095943 | I11: 494762144 | J11: 509784203 | K11: 526505707 | L11: 534936475 | N11: Volume Medido | O11: m3 | P11: PROTOCOLO 18.311.586 : INFORMAÇÕES 2ª FASE 2ª RTP (realizado) | Q11: 472668372 | R11: 470436547 | S11: 487174719 | T11: 478606492 | U11: 472421774
B12: Volume para Usos Especiais | C12: m3 | N12: Volume para Usos Especiais | O12: m3
B13: Volume Produzido de Água | C13: m3 | D13: PROTOCOLO 18.311.586 : INFORMAÇÕES 2ª FASE 2ª RTP | E13: 756184333 | F13: 760841619 | G13: 778606653 | H13: 764917368 | I13: 752414513 | N13: Volume Produzido de Água | O13: m3 | P13: PROTOCOLO 18.311.586 : INFORMAÇÕES 2ª FASE 2ª RTP (realizado) | Q13: 726382900 | R13: 731038127 | S13: 747369971 | T13: 733748749 | U13: 721733055
B16: Volume Tratado de Esgoto com Maringá | N16: Volume Tratado de Esgoto sem Maringá
E17: ** | F17: ** | G17: ** | H17: ** | I17: ** | Q17: ** | R17: ** | S17: ** | T17: ** | U17: **
B18: Descrição | C18: Unidade | D18: Fonte | E18: 2017 | F18: 2018 | G18: 2019 | H18: 2020 | I18: 2021 | J18: 2022 | K18: 2023 | L18: 2024 | N18: Descrição | O18: Unidade | P18: Fonte | Q18: 2017 | R18: 2018 | S18: 2019 | T18: 2020 | U18: 2021 | V18: 2022 | W18: 2023 | X18: 2024
B19: Índice de Tratamento | C19: % | N19: Índice de Tratamento | O19: %
B20: Volume Coletado de Esgoto | C20: m3 | D20: PROTOCOLO 18.311.586 : INFORMAÇÕES 2ª FASE 2ª RTP (realizado) | E20: 355329189 | F20: 362380051 | G20: 382115054 | H20: 377326945 | I20: 375586933 | J20: 391528235 | K20: 412703751 | L20: 427421999 | N20: Volume Coletado de Esgoto | O20: m3 | P20: PROTOCOLO 18.311.586 : INFORMAÇÕES 2ª FASE 2ª RTP (realizado) | Q20: 332595584 | R20: 339238025 | S20: 357229972 | T20: 352344997 | U20: 350280758
B21: Volume Tratado de Esgoto | C21: m3 | D21: PROTOCOLO 18.311.586 : INFORMAÇÕES 2ª FASE 2ª RTP (realizado) | E21: 355312711 | F21: 362380051 | G21: 382115054 | H21: 377326945 | I21: 375586933 | J21: 388175856 | K21: 412703751 | L21: 427421999 | N21: Volume Tratado de Esgoto | O21: m3 | P21: PROTOCOLO 18.311.586 : INFORMAÇÕES 2ª FASE 2ª RTP (realizado) | Q21: 332579106 | R21: 339238025 | S21: 357229972 | T21: 352344997 | U21: 350280758
B24: ** Os anos marcados representam dados já observados

Sheet 1. P0
C5: Cálculo do P0 - Fluxo de Caixa Descontado
C7: ID | D7: Descrição | E7: Fonte | F7: Componentes Fórmula | G7: Valor Presente | H7: Ciclo Tarifário - R$ (Dez/20) x 1000
G8: 2020 | H8: 2021 | I8: =H8+1 -> 2022 | J8: 2023 | K8: 2024
C9: 1 | D9: Volume Faturado (A+E) - (1.000 m³) | F9: VF | G9: =NPV($F$27,H9:K9) -> 2914594.882 | H9: ='2. Mercado'!I8/1000 -> 914051.693 | I9: ='2. Mercado'!J8/1000 -> 943451.1599 | J9: ='2. Mercado'!K8/1000 -> 965028.821 | K9: ='2. Mercado'!L8/1000 -> 986400.364
C10: 2 | D10: (+) Receita Requerida | F10: RRD | G10: =NPV($F$27,H10:K10) -> 14799206.86 | H10: =H9*$F$29 -> 4641207.656 | I10: =I9*$F$29 -> 4790486.994 | J10: =J9*$F$29 -> 4900050.169 | K10: =K9*$F$29 -> 5008566.755
C11: 3 | D11: (+) Outras Receitas | F11: OR | G11: =NPV($F$27,H11:K11) -> 419719.5661 | H11: =SUM('3. Outras Receitas'!R7:R15,'3. Outras Receitas'!R19:R25,'3. Outras Receitas'!R29:R38,'3. Outras Receitas'!R42:R46)/1000 -> 141637.8051 | I11: =SUM('3. Outras Receitas'!S7:S15,'3. Outras Receitas'!S19:S25,'3. Outras Receitas'!S29:S38,'3. Outras Receitas'!S42:S46)/1000 -> 130619.309 | J11: =SUM('3. Outras Receitas'!T7:T15,'3. Outras Receitas'!T19:T25,'3. Outras Receitas'!T29:T38,'3. Outras Receitas'!T42:T46)/1000 -> 136950.3568 | K11: =SUM('3. Outras Receitas'!U7:U15,'3. Outras Receitas'!U19:U25,'3. Outras Receitas'!U29:U38,'3. Outras Receitas'!U42:U46)/1000 -> 136950.3568
C12: =C11+1 -> 4 | D12: (-) Fundos Municipais | F12: FM | G12: =NPV($F$27,H12:K12) -> 287049.6296 | H12: ='AuxOPEXProj (2)'!J74/1000 -> 62938.89162 | I12: ='AuxOPEXProj (2)'!K74/1000 -> 125880.1487 | J12: ='AuxOPEXProj (2)'!M74/1000 -> 94409.52014 | K12: ='AuxOPEXProj (2)'!N74/1000 -> 94409.52014
C13: =C12+1 -> 5 | D13: (-) Despesas Operacionais - OPEX | F13: OPEX | G13: =NPV($F$27,H13:K13) -> 7059787.597 | H13: ='4. OPEX'!H12/1000 -> 2170666.519 | I13: ='4. OPEX'!I12/1000 -> 2269966.212 | J13: ='4. OPEX'!J12/1000 -> 2384852.552 | K13: ='4. OPEX'!K12/1000 -> 2415565.745
C14: =C13+1 -> 6 | D14: (-) PPP e Aluguel de Ativos | F14: PPP | G14: 178889.0144 | H14: ='4. OPEX'!H13/1000 -> 79096.46033 | I14: ='4. OPEX'!I13/1000 -> 70931.13443 | J14: ='4. OPEX'!J13/1000 -> 36890.68816 | K14: ='4. OPEX'!K13/1000 -> 37406.34582
C15: 7 | D15: (-) Uso de Recurso Hídrico e Taxas | F15: URHT | G15: 104728.7138 | H15: ='4. OPEX'!H14/1000 -> 35397.55691 | I15: ='4. OPEX'!I14/1000 -> 35767.65218 | J15: ='4. OPEX'!J14/1000 -> 32269.32752 | K15: ='4. OPEX'!K14/1000 -> 32269.32752
C16: 8 | D16: (-) Receitas Irrecuperáveis | F16: RINC | G16: 62191.66461 | H16: =H10*'8. Receitas Irrecuperáveis'!$D$16 -> 19504.04726 | I16: =I10*'8. Receitas Irrecuperáveis'!$D$16 -> 20131.37348 | J16: =J10*'8. Receitas Irrecuperáveis'!$D$16 -> 20591.7979 | K16: =K10*'8. Receitas Irrecuperáveis'!$D$16 -> 21047.82417
C17: 9 | D17: (-) Investimentos | F17: CAPEX | G17: 3770411.942 | H17: ='6. CAPEX'!D11/1000 -> 1020588.704 | I17: ='6. CAPEX'!E11/1000 -> 682096.0015 | J17: ='6. CAPEX'!F11/1000 -> 1639478.711 | K17: ='6. CAPEX'!G11/1000 -> 1733317.049
C18: 10 | D18: (-) Ajuste Compensatório - Ordinário | F18: AJC | G18: 0 | H18: 0 | I18: 0 | J18: 0 | K18: 0
C19: 11 | D19: (-) Variação do Capital de Giro | F19: VarWK | G19: 51164.00117 | H19: ='7. Capital de Giro'!I24/1000 -> 158152.8202 | I19: ='7. Capital de Giro'!J24/1000 -> 200761.319 | J19: ='7. Capital de Giro'!K24/1000 -> -187671.5886 | K19: ='7. Capital de Giro'!L24/1000 -> -180346.3381
C20: 12 | D20: (-) Base de Capital Inicial | F20: BRL0 | G20: ='5. BRRt'!D6/1000 -> 15610895.83 | H20: 0 | I20: 0 | J20: 0 | K20: 0
C21: 13 | D21: (+) Base de Capital Final | F21: BRLT | G21: =NPV($F$27,H21:K21) -> 11906191.97 | H21: 0 | I21: 0 | J21: 0 | K21: ='5. BRRt'!G12/1000 -> 18385685.4
D23: = Livre Fluxo de Caixa | G23: =-G20 -> -15610895.83 | H23: =H10+H11+H21-H12-H13-H14-H15-H16-H17-H18-H19-H20 -> 1236500.462 | I23: =I10+I11+I21-I12-I13-I14-I15-I16-I17-I18-I19-I20 -> 1515572.461 | J23: 1016179.518 | K23: 19377533.04
D24: = Livre Fluxo de Caixa Descontado | G24: =G23/(1+$F$27)^(G8-$G$8) -> -15610895.83 | H24: =H23/(1+$F$27)^(H8-$G$8) -> 1109219.63 | I24: =I23/(1+$F$27)^(I8-$G$8) -> 1219616.337 | J24: =J23/(1+$F$27)^(J8-$G$8) -> 733567.7482 | K24: =K23/(1+$F$27)^(K8-$G$8) -> 12548492.11
D26: Valor Presente Líquido | F26: =SUM(G24:K24) -> 2.62632966e-06 | G26: =IF(ABS(F26)>0.01,"Calcular P0!","") -> 
C27: =C21+1 -> 14 | D27: WACC Pré | F27: 0.1147480877 | I27: Atingir Meta: Botão iterativo para calcular a receita que zera o VPL do Fluxo
D29: (=) Tarifa Média Máxima - P0 (R$ / m3) | F29: 5.077620546
D30: (-) Fator X | F30: ='12. Fator X'!E32*'1. P0'!F29 -> 0.0040341595 | G30: =IF(ABS(SUM('12. Fator X'!E28:E29))>0.01,"Atualizar Fator X","") -> 
D31: (=) Tarifa Média Máxima - P0 (R$ / m3) com Fator X | F31: =F29-F30 -> 5.073586386
D32: (+/-) Ajuste Compensatório Ordinário | F32: =G32/G9 -> -0.1484599049 | G32: ='9. Ajuste Compens. Ordinário'!E28/1000 -> -432700.479
D33: (=) Tarifa Média Máxima - P0 (R$ / m3) - com AJC | F33: =SUM(F31:F32) -> 4.925126481
D34: (+/-) Ajuste Compensatório Extraordinário | F34: =G34/G9 -> 0.6197904123 | G34: ='10. Ajuste Compens. Extraordin'!G12/1000 -> 1806437.964
D35: (=) Tarifa Média Máxima - P0 (R$ / m3) - com AJCe | F35: =SUM(F33:F34) -> 5.544916894
D36: (+/-) Ajuste Compensatório Ciclo | F36: =G36/G9 -> 0.003935544033 | G36: ='11. Ajuste Compens. IRTs 2022'!I49/1000 -> 11470.5165 | J36: Tarifa Vigente | K36: 5.948786011
D37: (=) Tarifa Média Máxima - P0 (R$ / m3) - Dez/2020 | F37: =SUM(F35:F36) -> 5.548852438 | H37: 2022 | I37: 2023 | J37: IRT 2022 | K37: =(F31*(H38-(H39-1)))+(F32*H38)+(F34*H38)+(F36*H38) -> 6.103090569
G38: Inflação | H38: =Indices!B63/Indices!B51 -> 1.100609827 | I38: =Indices!B75/Indices!B51 -> 1.164281128 | J38: IRT 2023 | K38: =(F31*(I38-(I39-1)))+(F32*I38)+(F34*I38)+(F36*I38) -> 6.452359067
G39: Fator X acumulado | H39: =(1+'12. Fator X'!E32)^('12. Fator X'!H8-'12. Fator X'!G8) -> 1.000794498 | I39: =(1+'12. Fator X'!E32)^('12. Fator X'!I8-'12. Fator X'!G8) -> 1.001589627 | J39: Var. | K39: =K38/K36-1 -> 0.08465139852

Sheet 2. Mercado
C3: Mercado
E4: ** | F4: ** | G4: ** | H4: ** | I4: **
C5: Volume Faturado | D5: Fonte | E5: 2017 | F5: 2018 | G5: 2019 | H5: 2020 | I5: 2021 | J5: 2022 | K5: 2023 | L5: 2024
C6: Água Total | D6: PROTOCOLO 18.311.586-3 : INFORMAÇÕES 2ª FASE 2ª RTP E PROJEÇÕES LMDM | E6: 547584365 | F6: 512581404 | G6: 528467304 | H6: 522062601 | I6: 517596584 | J6: 531078913 | K6: 540290436 | L6: 549282228
C7: Esgoto Total | D7: PROTOCOLO 18.311.586-3 : INFORMAÇÕES 2ª FASE 2ª RTP E PROJEÇÕES LMDM | E7: 393666814 | F7: 378908831 | G7: 399225232 | H7: 396232114 | I7: 396455109 | J7: 412372246.9 | K7: 424738385 | L7: 437118136
C8: Total | E8: =SUM(E6:E7) -> 941251179 | F8: =SUM(F6:F7) -> 891490235 | G8: 927692536 | H8: 918294715 | I8: 914051693 | J8: 943451159.9 | K8: 965028821 | L8: 986400364
C10: ** Projeçoes LMDM e PROTOCOLO 18.311.586 : INFORMAÇÕES 2ª FASE 2ª RTP (realizado)
C12: Volume Água | E12: =F12-1 -> 2017 | F12: 2018 | G12: =H12-1 -> 2019 | H12: 2020 | I12: 2021 | J12: =I12+1 -> 2022 | K12: =J12+1 -> 2023 | L12: 2024
C13: Residencial | E13: 453592422 | F13: 453592422 | G13: 453592422 | H13: 453592422 | I13: 448300631 | J13: 460525287 | K13: 468831880 | L13: 476552050
I14: =I13/H13-1 -> -0.01166640081 | J14: =J13/I13-1 -> 0.02726887975 | K14: 0.01803721367 | L14: 0.01646681962
C15: Não Residencial | E15: 68470179 | F15: 68470179 | G15: 68470179 | H15: 68470179 | I15: 69477934 | J15: 70610105 | K15: 71458556 | L15: 72730177
I16: =I15/H15-1 -> 0.01471815927 | J16: =J15/I15-1 -> 0.01629540395 | K16: =K15/J15-1 -> 0.01201599969 | L16: =L15/K15-1 -> 0.01779522385
C17: Total | E17: =SUM(E15,E13) -> 522062601 | F17: 522062601 | G17: 522062601 | H17: =SUM(H15,H13) -> 522062601 | I17: =SUM(I15,I13) -> 517778565 | J17: 531135392 | K17: 540290436 | L17: 549282227
I18: =I17/H17-1 -> -0.008205981413 | J18: =J17/I17-1 -> 0.02579640778 | K18: =K17/J17-1 -> 0.01723674253 | L18: =L17/K17-1 -> 0.01664251373
C19: Projeções Sanepar | E19: =E17 -> 522062601 | F19: 522062601 | G19: 522062601 | H19: =H17 -> 522062601 | I19: 519126985 | J19: 548051202 | K19: 553474720 | L19: 561193853
I20: =I19/H19-1 -> -0.005623111087 | J20: =J19/I19-1 -> 0.05571703617 | K20: =K19/J19-1 -> 0.00989600603 | L20: =L19/K19-1 -> 0.01394667673
C22: Volume Esgoto | E22: =F22-1 -> 2017 | F22: 2018 | G22: =H22-1 -> 2019 | H22: 2020 | I22: 2021 | J22: =I22+1 -> 2022 | K22: =J22+1 -> 2023 | L22: 2024
C23: Residencial | E23: 342867454 | F23: 342867454 | G23: 342867454 | H23: 342867454 | I23: 342333381 | J23: 356583975 | K23: 368912430 | L23: 380236275
I24: =I23/H23-1 -> -0.001557666071 | J24: =J23/I23-1 -> 0.04162782478 | K24: =K23/J23-1 -> 0.03457377747 | L24: =L23/K23-1 -> 0.03069521133
C25: Não Residencial | E25: 53364660 | F25: 53364660 | G25: 53364660 | H25: 53364660 | I25: 54178950 | J25: 55122083 | K25: 55825955 | L25: 56881861
I26: =I25/H25-1 -> 0.01525897476 | J26: =J25/I25-1 -> 0.01740773861 | K26: =K25/J25-1 -> 0.01276932876 | L26: =L25/K25-1 -> 0.01891424876
C27: Total | E27: =SUM(E25,E23) -> 396232114 | F27: 396232114 | G27: 396232114 | H27: =SUM(H25,H23) -> 396232114 | I27: =SUM(I25,I23) -> 396512331 | J27: 411706058 | K27: 424738385 | L27: 437118136
I28: =I27/H27-1 -> 0.0007072041616 | J28: =J27/I27-1 -> 0.03831842244 | K28: =K27/J27-1 -> 0.03165444556 | L28: =L27/K27-1 -> 0.0291467676
C29: Projeções Sanepar | E29: =E27 -> 396232114 | F29: 396232114 | G29: 396232114 | H29: =H27 -> 396232114 | I29: 399036496 | J29: 428454418 | K29: 440306067 | L29: 450329703
I30: =I29/H29-1 -> 0.007077624203 | J30: =J29/I29-1 -> 0.07372238453 | K30: =K29/J29-1 -> 0.02766139991 | L30: =L29/K29-1 -> 0.02276515531
C32: Volume Total | E32: =F32-1 -> 2017 | F32: 2018 | G32: =H32-1 -> 2019 | H32: 2020 | I32: 2021 | J32: =I32+1 -> 2022 | K32: =J32+1 -> 2023 | L32: =K32+1 -> 2024
C33: Projeções Sanepar | E33: =E19+E29 -> 918294715 | F33: 918294715 | G33: 918294715 | H33: =H19+H29 -> 918294715 | I33: =I19+I29 -> 918163481 | J33: 976505620 | K33: 993780787 | L33: 1011523556

Sheet 3. Outras Receitas
C3: Outras Receitas | O3: Ajuste Compensatório 1o Ciclo BRR/Outras Receittas
C6: SERVIÇOS DE AGUA | E6: 2017 | F6: 2018 | G6: 2019 | H6: 2020 | I6: 2021 | J6: 2022 | K6: 2023 | L6: 2024 | M6: Reversão Para Modicidade | N6: 2017 | O6: 2018 | P6: 2019 | Q6: 2020 | R6: =Q6+1 -> 2021 | S6: =R6+1 -> 2022 | T6: 2023 | U6: 2024 | V6: Reversão 1o Ciclo
C7: 31-121 | D7: Ligações | E7: =Totais!P4 -> 17665823.36 | F7: =Totais!Q4 -> 17547561.86 | G7: =Totais!R4 -> 17865031.57 | H7: =Totais!S4 -> 18403761.45 | I7: =28322415.74/(Indices!$B$63/Indices!$B$51) -> 25733384.38 | J7: =26769424.97/(Indices!$B$75/Indices!$B$51) -> 22992234.71 | K7: =IFERROR(AVERAGE(I7:J7),0) -> 24362809.54 | L7: =K7 -> 24362809.54 | M7: 0.75 | R7: =I7*$M7 -> 19300038.28 | S7: 17244176.03 | T7: 18272107.16 | U7: 18272107.16 | V7: 0.25
C8: 31-122 | D8: Acréscimo por Impontualidade | E8: =Totais!P5 -> 22012888.34 | F8: =Totais!Q5 -> 21758274.76 | G8: =Totais!R5 -> 21846460.07 | H8: =Totais!S5 -> 21623162.39 | I8: =26896347.99/(Indices!$B$63/Indices!$B$51) -> 24437677.48 | J8: =28276032.15/(Indices!$B$75/Indices!$B$51) -> 24286258.24 | K8: 24361967.86 | L8: =K8 -> 24361967.86 | M8: 1 | N8: =E8*$V8 -> 0 | O8: =F8*$V8 -> 0 | P8: =G8*$V8 -> 0 | Q8: =H8*$V8 -> 0 | R8: 24437677.48 | S8: 24286258.24 | T8: 24361967.86 | U8: 24361967.86 | V8: 0
C9: 31-123 | D9: Religações | E9: =Totais!P6 -> 8690027.268 | F9: =Totais!Q6 -> 7618923.221 | G9: =Totais!R6 -> 7826282.68 | H9: =Totais!S6 -> 5194517.937 | I9: =163253.01/(Indices!$B$63/Indices!$B$51) -> 148329.595 | J9: =461987.99/(Indices!$B$75/Indices!$B$51) -> 396801.0635 | K9: 272565.3293 | L9: =K9 -> 272565.3293 | M9: 0.75 | N9: 2172506.817 | O9: 1904730.805 | P9: 1956570.67 | Q9: 1298629.484 | R9: 111247.1963 | S9: 297600.7976 | T9: 204423.997 | U9: 204423.997 | V9: 0.25
C10: 31-124 | D10: Conserto de Hidrômetros | E10: =Totais!P7 -> 8509646.517 | F10: =Totais!Q7 -> 6631541.373 | G10: =Totais!R7 -> 6381665.879 | H10: =Totais!S7 -> 5432754.89 | I10: =4810230.23/(Indices!$B$63/Indices!$B$51) -> 4370513.61 | J10: =4206816.97/(Indices!$B$75/Indices!$B$51) -> 3613231.261 | K10: 3991872.436 | L10: =K10 -> 3991872.436 | M10: 0.75 | R10: 3277885.208 | S10: 2709923.446 | T10: 2993904.327 | U10: 2993904.327 | V10: 0.25
C11: 31-125 | D11: Ampliações | E11: =Totais!P8 -> 1968290.018 | F11: =Totais!Q8 -> 1870578.669 | G11: =Totais!R8 -> 1989103.211 | H11: =Totais!S8 -> 2168727.826 | I11: =3132596.45/(Indices!$B$63/Indices!$B$51) -> 2846237.033 | J11: =2878522.05/(Indices!$B$75/Indices!$B$51) -> 2472359.965 | K11: 2659298.499 | L11: =K11 -> 2659298.499 | M11: 0.75 | R11: 2134677.775 | S11: 1854269.974 | T11: 1994473.874 | U11: 1994473.874 | V11: 0.25
C12: 31-126 | D12: Sanções | E12: =Totais!P9 -> 20880468.71 | F12: =Totais!Q9 -> 20857471.13 | G12: =Totais!R9 -> 21881218.59 | H12: =Totais!S9 -> 7203161.175 | I12: =3857139.07/(Indices!$B$63/Indices!$B$51) -> 3504547.183 | J12: =3310908.5/(Indices!$B$75/Indices!$B$51) -> 2843736.293 | K12: 3174141.738 | L12: =K12 -> 3174141.738 | M12: 1 | N12: 0 | O12: 0 | P12: 0 | Q12: 0 | R12: 3504547.183 | S12: 2843736.293 | T12: 3174141.738 | U12: 3174141.738 | V12: 0
C13: 31-128 | D13: Outros | E13: =Totais!P10 -> 11241519.63 | F13: =Totais!Q10 -> 10806665.87 | G13: =Totais!R10 -> 11147447.24 | H13: =Totais!S10 -> 10318889.63 | I13: =13633607.19/(Indices!$B$63/Indices!$B$51) -> 12387320.97 | J13: =13568302.77/(Indices!$B$75/Indices!$B$51) -> 11653802.88 | K13: 12020561.92 | L13: =K13 -> 12020561.92 | M13: 0.75 | N13: 2810379.908 | O13: 2701666.467 | P13: 2786861.811 | Q13: 2579722.407 | R13: 9290490.724 | S13: 8740352.161 | T13: 9015421.443 | U13: 9015421.443 | V13: 0.25
C14: 31-129 | D14: Devolução de valores (DV) | E14: =Totais!P11 -> -302662.8706 | F14: =Totais!Q11 -> -194671.0287 | G14: =Totais!R11 -> -166849.2352 | H14: =Totais!S11 -> -190001.5066 | I14: =-303262.07/(Indices!$B$63/Indices!$B$51) -> -275540.0347 | J14: =-262095.28/(Indices!$B$75/Indices!$B$51) -> -225113.3971 | K14: -250326.7159 | L14: =K14 -> -250326.7159 | M14: 1 | N14: 0 | O14: 0 | P14: 0 | Q14: 0 | R14: -275540.0347 | S14: -225113.3971 | T14: -250326.7159 | U14: -250326.7159 | V14: 0
D15: Fornecimento de Água Industrial | M15: 0.5 | N15: 0 | O15: 0 | P15: 0 | Q15: 0 | R15: 0 | S15: 0 | T15: 0 | U15: 0 | V15: 0
C18: SERVIÇOS DE ESGOTO | E18: =E6 -> 2017 | F18: =F6 -> 2018 | G18: 2019 | H18: 2020 | I18: 2021 | J18: 2022 | K18: 2023 | L18: 2024 | M18: Reversão Para Modicidade | N18: =N6 -> 2017 | O18: =O6 -> 2018 | P18: 2019 | Q18: 2020 | R18: =Q18+1 -> 2021 | S18: =R18+1 -> 2022 | T18: 2023 | U18: 2024
C19: 31-221 | D19: Ligações | E19: =Totais!P15 -> 14174318.73 | F19: =Totais!Q15 -> 15796555.82 | G19: =Totais!R15 -> 13035960.68 | H19: =Totais!S15 -> 9383705.962 | I19: =10560647.5/(Indices!$B$63/Indices!$B$51) -> 9595269.129 | J19: =5536864.79/(Indices!$B$75/Indices!$B$51) -> 4755608.121 | K19: =IFERROR(AVERAGE(I19:J19),0) -> 7175438.625 | L19: =K19 -> 7175438.625 | M19: 0.75 | R19: =I19*$M19 -> 7196451.847 | S19: 3566706.091 | T19: 5381578.969 | U19: 5381578.969 | V19: 0.25
C20: 31-222 | D20: Acréscimo por impontualidade | E20: =Totais!P16 -> 10613989.75 | F20: =Totais!Q16 -> 10769010.46 | G20: =Totais!R16 -> 11217276.6 | H20: =Totais!S16 -> 11488017.81 | I20: =13911668.32/(Indices!$B$63/Indices!$B$51) -> 12639963.75 | J20: =14747299.02/(Indices!$B$75/Indices!$B$51) -> 12666441.69 | K20: 12653202.72 | L20: =K20 -> 12653202.72 | M20: 1 | N20: =E20*$V20 -> 0 | O20: =F20*$V20 -> 0 | P20: =G20*$V20 -> 0 | Q20: =H20*$V20 -> 0 | R20: 12639963.75 | S20: 12666441.69 | T20: 12653202.72 | U20: 12653202.72 | V20: 0
C21: 31-224 | D21: Conserto de Ramais | E21: =Totais!P17 -> 62297.04992 | F21: =Totais!Q17 -> 97638.01524 | G21: =Totais!R17 -> 78694.54565 | H21: =Totais!S17 -> 67312.36495 | I21: =68542.41/(Indices!$B$63/Indices!$B$51) -> 62276.7563 | J21: =71770.23/(Indices!$B$75/Indices!$B$51) -> 61643.38513 | K21: 61960.07071 | L21: =K21 -> 61960.07071 | M21: 0.75 | N21: 15574.26248 | O21: 24409.50381 | P21: 19673.63641 | Q21: 16828.09124 | R21: 46707.56722 | S21: 46232.53885 | T21: 46470.05304 | U21: 46470.05304 | V21: 0.25
C22: 31-225 | D22: Ampliações | E22: =Totais!P18 -> 1487008.377 | F22: =Totais!Q18 -> 2172759.714 | G22: =Totais!R18 -> 2530969.706 | H22: =Totais!S18 -> 2297623.527 | I22: =3795702.74/(Indices!$B$63/Indices!$B$51) -> 3448726.92 | J22: =3869809.16/(Indices!$B$75/Indices!$B$51) -> 3323775.56 | K22: 3386251.24 | L22: =K22 -> 3386251.24 | M22: 0.75 | R22: 2586545.19 | S22: 2492831.67 | T22: 2539688.43 | U22: 2539688.43 | V22: 0.25
C23: 31-228 | D23: Outros | E23: =Totais!P19 -> 1969328.561 | F23: =Totais!Q19 -> 1996838.481 | G23: =Totais!R19 -> 2121469.041 | H23: =Totais!S19 -> 2017869.238 | I23: =3429819.73/(Indices!$B$63/Indices!$B$51) -> 3116290.301 | J23: =3494013.39/(Indices!$B$75/Indices!$B$51) -> 3001004.916 | K23: 3058647.608 | L23: =K23 -> 3058647.608 | M23: 0.75 | N23: 492332.1403 | O23: 499209.6201 | P23: 530367.2602 | Q23: 504467.3094 | R23: 2337217.726 | S23: 2250753.687 | T23: 2293985.706 | U23: 2293985.706 | V23: 0.25
C24: 31-229 | D24: Devolução de valores (DV) | E24: =Totais!P20 -> 0 | F24: =Totais!Q20 -> 0 | G24: =Totais!R20 -> 0 | H24: =Totais!S20 -> -6366.313741 | J24: =8498.05/(Indices!$B$75/Indices!$B$51) -> 7298.967399 | K24: 7298.967399 | L24: =K24 -> 7298.967399 | M24: 1 | N24: 0 | O24: 0 | P24: 0 | Q24: 0 | R24: 0 | S24: 7298.967399 | T24: 7298.967399 | U24: 7298.967399 | V24: 0
C25: 31-231 | D25: Receitas Vinculadas a ANA | E25: =Totais!P21 -> 0 | F25: =Totais!Q21 -> 5396198.43 | G25: =Totais!R21 -> 1784434.368 | H25: =Totais!S21 -> 0 | I25: - | J25: - | K25: 0 | L25: =K25 -> 0 | M25: 1 | N25: 0 | O25: 0 | P25: 0 | Q25: 0 | R25: 0 | S25: 0 | T25: 0 | U25: 0 | V25: 0
C28: OUTRAS RECEITAS OPERACIONAIS | E28: =E18 -> 2017 | F28: =F18 -> 2018 | G28: 2019 | H28: 2020 | I28: 2021 | J28: 2022 | K28: 2023 | L28: 2024 | M28: Reversão Para Modicidade | N28: 2017 | O28: 2018 | P28: 2019 | Q28: 2020 | R28: =Q28+1 -> 2021 | S28: =R28+1 -> 2022 | T28: 2023 | U28: 2024
C29: 33-111 | D29: Serviços de Laboratório | E29: =Totais!P25 -> 0 | F29: =Totais!Q25 -> 0 | G29: =Totais!R25 -> 0 | H29: =Totais!S25 -> 0 | I29: - | J29: - | K29: =IFERROR(AVERAGE(I29:J29),0) -> 0 | L29: =K29 -> 0 | M29: 0.75 | N29: =E29*$V29 -> 0 | O29: =F29*$V29 -> 0 | P29: =G29*$V29 -> 0 | Q29: =H29*$V29 -> 0 | R29: 0 | S29: 0 | T29: =K29*$M29 -> 0 | U29: 0 | V29: 0.25
C30: 33-112 | D30: Serviços de Manutenção | E30: =Totais!P26 -> 108.4045647 | F30: =Totais!Q26 -> 0 | G30: =Totais!R26 -> 0 | H30: =Totais!S26 -> 0 | I30: - | J30: - | K30: =IFERROR(AVERAGE(I30:J30),0) -> 0 | L30: =K30 -> 0 | M30: 0.75 | N30: =E30*$V30 -> 27.10114117 | O30: =F30*$V30 -> 0 | P30: =G30*$V30 -> 0 | Q30: =H30*$V30 -> 0 | R30: 0 | S30: 0 | T30: 0 | U30: 0 | V30: 0.25
C31: 33-113 | D31: Serviços de Porjeto e Assistência Técnica | E31: =Totais!P27 -> 0 | F31: =Totais!Q27 -> 0 | G31: =Totais!R27 -> 0 | H31: =Totais!S27 -> 0 | I31: - | J31: - | K31: 0 | L31: =K31 -> 0 | M31: 0.75 | N31: 0 | O31: 0 | P31: 0 | Q31: 0 | R31: 0 | S31: 0 | T31: 0 | U31: 0 | V31: 0.25
C32: 33-116 | D32: Serviços Prestados as Prefeituras | E32: =Totais!P28 -> 12767914.13 | F32: =Totais!Q28 -> 14380175.21 | G32: =Totais!R28 -> 15354070.56 | H32: =Totais!S28 -> 16317588.99 | I32: =20914061.3/(Indices!$B$63/Indices!$B$51) -> 19002248.37 | J32: =22026705.48/(Indices!$B$75/Indices!$B$51) -> 18918717.26 | K32: 18960482.82 | L32: =K32 -> 18960482.82 | M32: 0.75 | N32: 3191978.532 | O32: 3595043.802 | P32: 3838517.64 | Q32: 4079397.247 | R32: 14251686.28 | S32: 14189037.94 | T32: 14220362.11 | U32: 14220362.11 | V32: 0.25
C33: 33-117 | D33: Serviços de Carga e Descarga | E33: =Totais!P29 -> 36243.40399 | F33: =Totais!Q29 -> 44371.19851 | G33: =Totais!R29 -> 41744.89829 | H33: =Totais!S29 -> 29657.00924 | I33: =34613.72/(Indices!$B$63/Indices!$B$51) -> 31449.58289 | J33: =35980.67/(Indices!$B$75/Indices!$B$51) -> 30903.76467 | K33: 31176.67378 | L33: =K33 -> 31176.67378 | M33: 0.75 | N33: 9060.850999 | O33: 11092.79963 | P33: 10436.22457 | Q33: 7414.25231 | R33: 23587.18717 | S33: 23177.8235 | T33: 23382.50534 | U33: 23382.50534 | V33: 0.25
C34: 33-118 | D34: Insc. Cadastral e Venda de Elem. E Materiais | E34: =Totais!P30 -> 587.191392 | F34: =Totais!Q30 -> 34.82976676 | G34: =Totais!R30 -> 12.5304013 | H34: =Totais!S30 -> 0 | I34: - | J34: - | K34: 0 | L34: =K34 -> 0 | M34: 0.75 | N34: 146.797848 | O34: 8.707441691 | P34: 3.132600326 | Q34: 0 | R34: 0 | S34: 0 | T34: 0 | U34: 0 | V34: 0.25
C35: 33-212 | D35: Indenização e Ressarcimento de Despesas | E35: =Totais!P31 -> 66272.0556 | F35: =Totais!Q31 -> 166411.0093 | G35: =Totais!R31 -> 189161.7867 | H35: =Totais!S31 -> 1724895.55 | I35: =1005039.28/(Indices!$B$63/Indices!$B$51) -> 913165.8241 | J35: =1052226.03/(Indices!$B$75/Indices!$B$51) -> 903755.9781 | K35: 908460.9011 | L35: =K35 -> 908460.9011 | M35: 1 | N35: 16568.0139 | O35: 41602.75233 | P35: 47290.44667 | Q35: 431223.8875 | R35: 913165.8241 | S35: 903755.9781 | T35: 908460.9011 | U35: 908460.9011 | V35: 0.25
C36: 33-215 | D36: Locação de Imóveis | E36: =Totais!P32 -> 465302.6997 | F36: =Totais!Q32 -> 410014.5689 | G36: =Totais!R32 -> 521227.7713 | H36: =Totais!S32 -> 463256.2988 | I36: =322075.77/(Indices!$B$63/Indices!$B$51) -> 292633.9217 | J36: =376949.08/(Indices!$B$75/Indices!$B$51) -> 323761.2212 | K36: 308197.5714 | L36: =K36 -> 308197.5714 | M36: 1 | N36: 116325.6749 | O36: 102503.6422 | P36: 130306.9428 | Q36: 115814.0747 | R36: 292633.9217 | S36: 323761.2212 | T36: 308197.5714 | U36: 308197.5714 | V36: 0.25
C37: 33-216 | D37: Cessão para exploração de Serviços Financeiros | E37: =Totais!P33 -> 3651125.957 | F37: =Totais!Q33 -> 3657125.51 | G37: =Totais!R33 -> 3508512.365 | H37: =Totais!S33 -> 3357368.314 | I37: =4200000/(Indices!$B$63/Indices!$B$51) -> 3816066.235 | J37: =3666666.7/(Indices!$B$75/Indices!$B$51) -> 3149296.687 | K37: 3482681.461 | L37: =K37 -> 3482681.461 | M37: 0.75 | N37: 912781.4892 | O37: 914281.3776 | P37: 877128.0913 | Q37: 839342.0785 | R37: 2862049.676 | S37: 2361972.515 | T37: 2612011.096 | U37: 2612011.096 | V37: 0.25
C38: 33-219 | D38: Outras Receitas Menores | E38: =Totais!P34 -> 1658494.299 | F38: =Totais!Q34 -> 97170.30372 | G38: =Totais!R34 -> 350023.0856 | H38: =Totais!S34 -> 257809.3632 | I38: =198129.96/(Indices!$B$63/Indices!$B$51) -> 180018.3454 | J38: =1229909.25/(Indices!$B$75/Indices!$B$51) -> 1056367.934 | K38: 618193.1396 | L38: =K38 -> 618193.1396 | M38: 0.75 | N38: 414623.5747 | O38: 24292.57593 | P38: 87505.7714 | Q38: 64452.34079 | R38: 135013.759 | S38: 792275.9503 | T38: 463644.8547 | U38: 463644.8547 | V38: 0.25
C41: OUTRAS RECEITAS OPERACIONAIS - indiretas | E41: 2017 | F41: 2018 | G41: 2019 | H41: 2020 | I41: 2021 | J41: 2022 | K41: 2023 | L41: 2024 | M41: Reversão Para Modicidade | N41: 2017 | O41: 2018 | P41: 2019 | Q41: 2020 | R41: =Q41+1 -> 2021 | S41: =R41+1 -> 2022 | T41: 2023 | U41: 2024
C42: 33-211 | D42: Contribuições e doações particulares | E42: =Totais!P38 -> 19213551.91 | F42: =Totais!Q38 -> 14568451.6 | G42: =Totais!R38 -> 15638681.37 | H42: =Totais!S38 -> 16387840.78 | I42: =34159638.97/(Indices!$B$63/Indices!$B$51) -> 31037010.68 | J42: =35146746.77/(Indices!$B$75/Indices!$B$51) -> 30187508.77 | K42: =IFERROR(AVERAGE(I42:J42),0) -> 30612259.72 | L42: =K42 -> 30612259.72 | M42: 1 | N42: =E42*$V42 -> 0 | O42: =F42*$V42 -> 0 | P42: =G42*$V42 -> 0 | Q42: =H42*$V42 -> 0 | R42: =I42*$M42 -> 31037010.68 | S42: 30187508.77 | T42: 30612259.72 | U42: 30612259.72 | V42: 0
C43: 33-213 | D43: Contribuições e doações de órgãos públicos | E43: =Totais!P39 -> 568273.079 | F43: =Totais!Q39 -> 215163.0349 | G43: =Totais!R39 -> 102523.1754 | H43: =Totais!S39 -> 964563.0836 | I43: =11732.42/(Indices!$B$63/Indices!$B$51) -> 10659.92662 | J43: =55325.08/(Indices!$B$75/Indices!$B$51) -> 47518.66078 | K43: 29089.2937 | L43: =K43 -> 29089.2937 | M43: 1 | N43: =E43*$V43 -> 0 | O43: =F43*$V43 -> 0 | P43: =G43*$V43 -> 0 | Q43: =H43*$V43 -> 0 | R43: 10659.92662 | S43: 47518.66078 | T43: 29089.2937 | U43: 29089.2937 | V43: 0
C44: 33-214 | D44: Ganhos com recuperação de créditos fiscais | E44: =Totais!P40 -> 0 | F44: =Totais!Q40 -> 0 | G44: =Totais!R40 -> 0 | H44: =Totais!S40 -> 0 | I44: - | J44: - | K44: 0 | L44: =K44 -> 0 | M44: 1 | N44: 0 | O44: 0 | P44: 0 | Q44: 0 | R44: 0 | S44: 0 | T44: 0 | U44: 0 | V44: 0
C45: 33-312 | D45: Venda de bens do ativo imobilizado | E45: =Totais!P41 -> 0 | F45: =Totais!Q41 -> 0 | G45: =Totais!R41 -> 0 | H45: =Totais!S41 -> 5279141.925 | I45: =2401238.1/(Indices!$B$63/Indices!$B$51) -> 2181734.199 | J45: - | K45: 2181734.199 | L45: =K45 -> 2181734.199 | M45: 0.75 | N45: 0 | O45: 0 | P45: 0 | Q45: 0 | R45: 1636300.649 | S45: 0 | T45: 1636300.649 | U45: 1636300.649 | V45: 0
C46: 33-313 | D46: Venda de materiais inservíveis | E46: =Totais!P42 -> 8201.988734 | F46: =Totais!Q42 -> 2985075.931 | G46: =Totais!R42 -> 408415.5242 | H46: =Totais!S42 -> 7216498.904 | I46: =5705249.2/(Indices!$B$63/Indices!$B$51) -> 5183716.389 | J46: =4670835/(Indices!$B$75/Indices!$B$51) -> 4011775.924 | K46: 4597746.157 | L46: =K46 -> 4597746.157 | M46: 0.75 | N46: 0 | O46: 0 | P46: 0 | Q46: 0 | R46: 3887787.292 | S46: 3008831.943 | T46: 3448309.617 | U46: 3448309.617 | V46: 0
N47: =SUM(N42:N46)+SUM(N29:N38)+SUM(N19:N25)+SUM(N7:N15) -> 10152305.16 | O47: 9818842.053 | P47: 10284661.63 | Q47: =SUM(Q42:Q46)+SUM(Q29:Q38)+SUM(Q19:Q25)+SUM(Q7:Q15) -> 9937291.173

Sheet 4. OPEX
C3: Custos Operacionais Regulatórios
C5: Descrição | D5: 2017 | E5: =D5+1 -> 2018 | F5: =E5+1 -> 2019 | G5: 2020 | H5: 2021 | I5: 2022 | J5: 2023 | K5: 2024
C6: Pessoal | D6: ='AuxOPEXProj (2)'!F63 -> 1172957836 | E6: ='AuxOPEXProj (2)'!G63 -> 1091185566 | F6: ='AuxOPEXProj (2)'!H63 -> 1117353796 | G6: ='AuxOPEXProj (2)'!I63 -> 1174786345 | H6: ='AuxOPEXProj (2)'!J63 -> 930886442.2 | I6: ='AuxOPEXProj (2)'!K63 -> 1018995748 | J6: ='AuxOPEXProj (2)'!M63 -> 1147240351 | K6: ='AuxOPEXProj (2)'!N63 -> 1156957798
C7: Materiais Gerais | D7: ='AuxOPEXProj (2)'!F64 -> 84517994.38 | E7: ='AuxOPEXProj (2)'!G64 -> 78513071.08 | F7: ='AuxOPEXProj (2)'!H64 -> 87444380.06 | G7: ='AuxOPEXProj (2)'!I64 -> 71400133.2 | H7: ='AuxOPEXProj (2)'!J64 -> 75388739.91 | I7: ='AuxOPEXProj (2)'!K64 -> 83686797.81 | J7: ='AuxOPEXProj (2)'!M64 -> 82904823.9 | K7: ='AuxOPEXProj (2)'!N64 -> 83659310.65
C8: Materiais de Tratamento | D8: ='AuxOPEXProj (2)'!F65 -> 93482371.8 | E8: ='AuxOPEXProj (2)'!G65 -> 86501261.8 | F8: ='AuxOPEXProj (2)'!H65 -> 126753140 | G8: ='AuxOPEXProj (2)'!I65 -> 143969407.8 | H8: ='AuxOPEXProj (2)'!J65 -> 125834145.9 | I8: ='AuxOPEXProj (2)'!K65 -> 161909083.6 | J8: ='AuxOPEXProj (2)'!M65 -> 101190714 | K8: ='AuxOPEXProj (2)'!N65 -> 103200563.7
C9: Serviços de Terceiros | D9: ='AuxOPEXProj (2)'!F66 -> 614135660.4 | E9: ='AuxOPEXProj (2)'!G66 -> 639045197.2 | F9: ='AuxOPEXProj (2)'!H66 -> 639494652.5 | G9: ='AuxOPEXProj (2)'!I66 -> 630003147.5 | H9: ='AuxOPEXProj (2)'!J66 -> 574599806.1 | I9: ='AuxOPEXProj (2)'!K66 -> 581560794.2 | J9: ='AuxOPEXProj (2)'!M66 -> 656436470.2 | K9: ='AuxOPEXProj (2)'!N66 -> 667426392.3
C10: Energia | D10: ='AuxOPEXProj (2)'!F67 -> 430308600.6 | E10: ='AuxOPEXProj (2)'!G67 -> 463921577.2 | F10: ='AuxOPEXProj (2)'!H67 -> 500786033 | G10: ='AuxOPEXProj (2)'!I67 -> 448466281.7 | H10: ='AuxOPEXProj (2)'!J67 -> 508766988.1 | I10: ='AuxOPEXProj (2)'!K67 -> 484657328.9 | J10: ='AuxOPEXProj (2)'!M67 -> 466632709.5 | K10: ='AuxOPEXProj (2)'!N67 -> 474557376.2
C11: Despesas Gerais | D11: ='AuxOPEXProj (2)'!F68 -> -18058066.59 | E11: ='AuxOPEXProj (2)'!G68 -> -30779818.77 | F11: ='AuxOPEXProj (2)'!H68 -> -60861661.27 | G11: ='AuxOPEXProj (2)'!I68 -> -45692341.95 | H11: ='AuxOPEXProj (2)'!J68 -> -44809602.96 | I11: ='AuxOPEXProj (2)'!K68 -> -60843540.41 | J11: ='AuxOPEXProj (2)'!M68 -> -69552516.83 | K11: ='AuxOPEXProj (2)'!N68 -> -70235696.8
C12: OPEX Total | D12: =SUM(D6:D11) -> 2377344396 | E12: =SUM(E6:E11) -> 2328386855 | F12: 2410970340 | G12: 2422932973 | H12: 2170666519 | I12: 2269966212 | J12: 2384852552 | K12: 2415565745
C13: Aluguel de Ativos (Não Gerenciável) | D13: ='AlugueisReal (2)'!E9+'LeasingLitoralRal (2)'!H6 -> 65227231.64 | E13: ='AlugueisReal (2)'!I9+'LeasingLitoralRal (2)'!H7 -> 84686945.76 | F13: ='AlugueisReal (2)'!M9+'LeasingLitoralRal (2)'!H8 -> 100414631.3 | G13: ='AlugueisReal (2)'!Q9+'LeasingLitoralRal (2)'!H9 -> 91561738.28 | H13: ='AlugueisReal (2)'!U9+'LeasingLitoralRal (2)'!H10 -> 79096460.33 | I13: ='AlugueisReal (2)'!Y9+'AluguéisProj (2)'!BC6+'LeasingLitoralRal (2)'!H11 -> 70931134.43 | J13: ='AluguéisProj (2)'!BC7+'LeasingLitoralRal (2)'!H12 -> 36890688.16 | K13: ='AluguéisProj (2)'!BC8+'LeasingLitoralRal (2)'!H13 -> 37406345.82
C14: Uso de Recurso Hídrico e Taxas (Não Gerenciável) | D14: ='Rec Hídricos e Taxas (2)'!DL18 -> 26125896.24 | E14: ='Rec Hídricos e Taxas (2)'!DM18 -> 32119643.37 | F14: ='Rec Hídricos e Taxas (2)'!DN18 -> 29219251.23 | G14: ='Rec Hídricos e Taxas (2)'!DO18 -> 34730778.98 | H14: ='Rec Hídricos e Taxas (2)'!DP18 -> 35397556.91 | I14: ='Rec Hídricos e Taxas (2)'!DQ18 -> 35767652.18 | J14: ='Rec Hídricos e Taxas (2)'!DR18 -> 32269327.52 | K14: ='Rec Hídricos e Taxas (2)'!DS18 -> 32269327.52
C16: Total Custos Operacionais | D16: =D12+D13+D14 -> 2468697524 | E16: 2445193444 | F16: 2540604223 | G16: 2549225491 | H16: 2285160536 | I16: 2376664999 | J16: 2454012567 | K16: 2485241418

Sheet 5. BRRt
C3: Movimentação da Base de Ativos
C5: Descrição | D5: 2021 | E5: 2022 | F5: 2023 | G5: 2024
C6: BRRL (t-1) | D6: =Dados_BAR.29.03.23!D81 -> 1.561089583e+10 | E6: =D12 -> 1.608172784e+10 | F6: =E12 -> 1.619814121e+10 | G6: 1.725730958e+10
C7: % Depreciação | D7: =Dados_BAR.29.03.23!H81 -> 0.02369902298 | E7: =D7 -> 0.02369902298 | F7: =E7 -> 0.02369902298 | G7: 0.02369902298
C8: Depreciação BRRL Inicial | D8: =Dados_BAR.29.03.23!J81 -> 525713041.4 | E8: =D8 -> 525713041.4 | F8: =E8 -> 525713041.4 | G8: 525713041.4
C9: Depreciação BRRL Novos Investimentos | D9: =D11*(D7*0.5) -> 11950175.77 | E9: =(E11*(E7*0.5))+(D11*E7) -> 31887082.22 | F9: =(F11*(F7*0.5))+(E11*F7) -> 35170282.46 | G9: 58689225.84
C10: Depreciação | D10: =D8+D9 -> 537663217.2 | E10: =E9+E8 -> 557600123.7 | F10: =F9+F8 -> 560883323.9 | G10: 584402267.3
C11: Investimentos | D11: ='6. CAPEX'!D11-('6. CAPEX'!D11*(D7*0.5)) -> 1008495227 | E11: ='6. CAPEX'!E11-('6. CAPEX'!E11*(E7*0.5)) -> 674013497.1 | F11: ='6. CAPEX'!F11-('6. CAPEX'!F11*(F7*0.5)) -> 1620051689 | G11: ='6. CAPEX'!G11-('6. CAPEX'!G11*(G7*0.5)) -> 1712778089
C12: BRRLt | D12: =D6-D10+D11 -> 1.608172784e+10 | E12: =E6-E10+E11 -> 1.619814121e+10 | F12: =F6-F10+F11 -> 1.725730958e+10 | G12: 1.83856854e+10

Sheet 6. CAPEX
C3: CAPEX SANEPAR
C5: Com Município de Maringá
D6: Real | E6: Real | F6: Proj. | G6: Proj.
C7: MODALIDADE | D7: 2021 | E7: 2022 | F7: 2023 | G7: 2024
C8: CAPEX PPI - Regulatório | D8: 1123269957 | E8: 794151502.4 | F8: 1974567212 | G8: 2156373212
E9: Inflação Implícita do PPI: | F9: 0.0333 | G9: 0.0319
C10: CAPEX TOTAL | D10: =D8 -> 1123269957 | E10: =E8 -> 794151502.4 | F10: =F8*(1-F9) -> 1908814124 | G10: =G8*(1-G9)*(1-F9) -> 2018068330
C11: Data-Base de dez/2020: | D11: =D10/(Indices!$B$63/Indices!$B$51) -> 1020588704 | E11: =E10/(Indices!$B$75/Indices!$B$51) -> 682096001.5 | F11: =F10/(Indices!$B$75/Indices!$B$51) -> 1639478711 | G11: =G10/(Indices!$B$75/Indices!$B$51) -> 1733317049
C13: Fonte: SANEPAR. Protocolado 18.826.542-1, Anexos 3, 4, 6 e 7.
C28: Obs.: Valores contábeis imobilizados em 2021 e 2022; investimentos do PPI-Regulatório para 2023 e 2024. Considera-se ativos elegíveis e onerosos. Desconsidera-se PPP/leasing e aluguéis de ativos marcados como CPC 06.

Sheet 7. Capital de Giro
C3: Capital Giro | I3: 2020-12-01 | J3: 2020-12-01 | K3: 2020-12-01 | L3: 2020-12-01
D4: Real | E4: Real | F4: Real | G4: Real | H4: Real | I4: Real | J4: Real | K4: Proj | L4: Proj
C5: Descrição | D5: 2016 | E5: =D5+1 -> 2017 | F5: =E5+1 -> 2018 | G5: 2019 | H5: 2020 | I5: =H5+1 -> 2021 | J5: =I5+1 -> 2022 | K5: 2023 | L5: 2024
C7: I - Ativo Circulante | D7: =SUM(D8:D14) -> 1293635000 | E7: =SUM(E8:E14) -> 1233875000 | F7: 1064500000 | G7: 1170700000 | H7: =SUM(H8:H14) -> 1746800000 | I7: =SUM(I8:I14) -> 1870690184 | J7: 2107480694 | K7: 1986255250 | L7: =SUM(L8:L14) -> 1897317184
C8: Disponível | D8: =27675*1000 -> 27675000 | E8: =23799*1000 -> 23799000 | F8: =326600*1000 -> 326600000 | G8: =274100*1000 -> 274100000 | H8: 874300000 | I8: =983100000/(IPCA!$D$65/IPCA!$D$53) -> 893232075.1 | J8: =1207900000/(Indices!$B$75/Indices!$B$51) -> 1037464209 | K8: =J8 -> 1037464209 | L8: =K8 -> 1037464209
C9: Aplicações Financeiras | D9: =610655*1000 -> 610655000 | E9: =510089*1000 -> 510089000
C10: Contas a receber de clientes | D10: =559797*1000 -> 559797000 | E10: =606250*1000 -> 606250000 | F10: =639100*1000 -> 639100000 | G10: =809700*1000 -> 809700000 | H10: 779400000 | I10: =971500000/(IPCA!$D$65/IPCA!$D$53) -> 882692463.6 | J10: =1086200000/(Indices!$B$75/Indices!$B$51) -> 932936190 | K10: =$J$10/$F$28*(SUM('1. P0'!J10:J11)) -> 828250343.9 | L10: =$K$10/$F$28*(SUM('1. P0'!K10:K11)) -> 751152885.9
C11: Estoques de Operação | D11: =36722*1000 -> 36722000 | E11: =36892*1000 -> 36892000 | F11: =39100*1000 -> 39100000 | G11: =46100*1000 -> 46100000 | H11: 53900000 | I11: =57700000/(IPCA!$D$65/IPCA!$D$53) -> 52425481.37 | J11: =76900000/(Indices!$B$75/Indices!$B$51) -> 66049339.91 | K11: =$J$11/SUM($F$29:$F$30)*SUM('4. OPEX'!J7:J8)/1000 -> 49509742.12 | L11: =$K$11/SUM($F$29:$F$30)*SUM('4. OPEX'!K7:K8)/1000 -> 37669134.1
C12: Impostos e Contribuições a Recuperar | D12: 39021000 | E12: 24098000 | F12: 15400000 | G12: 300000 | H12: 6800000 | I12: =11400000/(IPCA!$D$65/IPCA!$D$53) -> 10357894.07 | J12: =38300000/(Indices!$B$75/Indices!$B$51) -> 32895835.09 | K12: =J12 -> 32895835.09 | L12: =K12 -> 32895835.09
C13: Depósitos Vinculados | D13: 9844000 | E13: 5838000 | F13: 6700000 | G13: 2900000 | H13: 4700000 | I13: =14400000/(IPCA!$D$65/IPCA!$D$53) -> 13083655.66 | J13: =23700000/(Indices!$B$75/Indices!$B$51) -> 20355908.4 | K13: =J13 -> 20355908.4 | L13: 20355908.4
C14: Outras Contas a Receber | D14: =9921*1000 -> 9921000 | E14: =26909*1000 -> 26909000 | F14: =37600*1000 -> 37600000 | G14: =37600*1000 -> 37600000 | H14: 27700000 | I14: =20800000/(IPCA!$D$65/IPCA!$D$53) -> 18898613.73 | J14: =20700000/(Indices!$B$75/Indices!$B$51) -> 17779211.13 | K14: =J14 -> 17779211.13 | L14: 17779211.13
C16: II - Passivo Circulante | D16: =SUM(D17:D20) -> 390657000 | E16: 480797000 | F16: 478400000 | G16: 490800000 | H16: 540800000 | I16: 506537363.3 | J16: 542566554.2 | K16: 609012699 | L16: 700420971
C17: Empreiteiros e fornecedores | D17: 133505000 | E17: 182655000 | F17: 190700000 | G17: 214000000 | H17: 209400000 | I17: =269400000/(IPCA!$D$65/IPCA!$D$53) -> 244773391.4 | J17: =297000000/(Indices!$B$75/Indices!$B$51) -> 255093029.3 | K17: =$J$17/SUM($F$29:$F$33)*('4. OPEX'!J16-'4. OPEX'!J13)/1000 -> 307614565.6 | L17: =$K$17/SUM($F$29:$F$33)*('4. OPEX'!K16-'4. OPEX'!K13)/1000 -> 375663329.6
C18: Salários, provisões e contrib. sociais | D18: 157379000 | E18: 176720000 | F18: 151400000 | G18: 119500000 | H18: 181400000 | I18: =117900000/(IPCA!$D$65/IPCA!$D$53) -> 107122430.7 | J18: =140000000/(Indices!$B$75/Indices!$B$51) -> 120245872.4 | K18: =$J$18/1000/$F$35*'4. OPEX'!J6 -> 135379286 | L18: =$K$18/1000/$F$35*'4. OPEX'!K6 -> 153708316.3
C19: Impostos e contribuições a recolher | D19: 63260000 | E19: 66941000 | F19: 68100000 | G19: 100800000 | H19: 72700000 | I19: =84600000/(IPCA!$D$65/IPCA!$D$53) -> 76866477.02 | J19: =102700000/(Indices!$B$75/Indices!$B$51) -> 88208936.39 | K19: =$J$19/1000/SUM($F$29:$F$33,$J$18/1000)*'4. OPEX'!J16 -> 101881960.7 | L19: =$K$19/1000/SUM($F$29:$F$33,$K$18/1000)*'4. OPEX'!K16 -> 118329060.7
C20: Outras obrigações | D20: 36513000 | E20: 54481000 | F20: 68200000 | G20: 56500000 | H20: 77300000 | I20: =85600000/(IPCA!$D$65/IPCA!$D$53) -> 77775064.22 | J20: =92000000/(Indices!$B$75/Indices!$B$51) -> 79018716.14 | K20: =$J$20/1000/SUM($F$29:$F$33,$F$35)*'4. OPEX'!J16 -> 64136886.68 | L20: =$K$20/1000/SUM($F$29:$F$33,$F$35)*'4. OPEX'!K16 -> 52720264.49
C22: III - Capital Circulante Regulatório
C23: Estoque | D23: =D7-D16 -> 902978000 | E23: 753078000 | F23: 586100000 | G23: 679900000 | H23: 1206000000 | I23: 1364152820 | J23: 1564914139 | K23: 1377242551 | L23: 1196896213
C24: Variação | E24: =E23-D23 -> -149900000 | F24: -166978000 | G24: 93800000 | H24: 526100000 | I24: =I23-H23 -> 158152820.2 | J24: =J23-I23 -> 200761319 | K24: -187671588.6 | L24: -180346338.1
C25: WACC | D25: Nominal | E25: =$C$26*E24 -> -19568763.64 | F25: =$C$26*F24 -> -21798218.91 | G25: 12245163.64 | H25: 68679963.64
C26: =P0_Sanepar!B28 -> 0.1305454545 | D26: 2016-12-01 | E26: =E25*(1-'9. Ajuste Compens. Ordinário'!E17) -> -18991989.72 | F26: =F25*(1-'9. Ajuste Compens. Ordinário'!F17) -> -20315198.76 | G26: =G25*(1-'9. Ajuste Compens. Ordinário'!G17) -> 10848906.78 | H26: =H25*(1-'9. Ajuste Compens. Ordinário'!H17) -> 57392358.33
C27: Dados Balanço Patrimonial Sanepar | D27: =H5 -> 2020 | E27: 2021 | F27: 2022
C28: Receita Operacional | D28: 4799655 | E28: 5204412 | F28: 5673647
C29: Despesas Materiais Gerais | D29: ='4. OPEX'!G7/1000 -> 71400.1332 | E29: ='4. OPEX'!H7/1000 -> 75388.73991 | F29: ='4. OPEX'!I7/1000 -> 83686.79781
C30: Despesas Materiais de Tratamento | D30: ='4. OPEX'!G8/1000 -> 143969.4078 | E30: ='4. OPEX'!H8/1000 -> 125834.1459 | F30: ='4. OPEX'!I8/1000 -> 161909.0836
C31: Serviços Terceiros | D31: ='4. OPEX'!G9/1000 -> 630003.1475 | E31: ='4. OPEX'!H9/1000 -> 574599.8061 | F31: ='4. OPEX'!I9/1000 -> 581560.7942
C32: Energia | D32: 442951 | E32: ='4. OPEX'!H10/1000 -> 508766.9881 | F32: ='4. OPEX'!I10/1000 -> 484657.3289
C33: Despesas Gerais e Administrativas | D33: 685521 | E33: 612189 | F33: 692613
C34: Salários, encargos e contribuições sociais | D34: ='4. OPEX'!G6/12/1000 -> 97898.86209 | E34: ='4. OPEX'!H6/12/1000 -> 77573.87018 | F34: ='4. OPEX'!I6/12/1000 -> 84916.31233
C35: Salários, encargos e benefícios | D35: ='4. OPEX'!G6/1000 -> 1174786.345 | E35: ='4. OPEX'!H6/1000 -> 930886.4422 | F35: ='4. OPEX'!I6/1000 -> 1018995.748
C36: Serviços a Pagar | D36: ='4. OPEX'!G9/1000 -> 630003.1475 | E36: ='4. OPEX'!H9/1000 -> 574599.8061 | F36: ='4. OPEX'!I9/1000 -> 581560.7942

Sheet PIS COFINS (hidden)
B2: PIS COFINS
B4: Descrição | D4: 2021 | E4: 2022 | F4: 2023 | G4: 2024
B5: Alíquota Sanepar | D5: 0.069388 | E5: 0.069388 | F5: 0.069388 | G5: 0.069388
B7: Fonte: 2_1_NT1-1aFase2aRTP-P0eFator-X (1)

Sheet 8. Receitas Irrecuperáveis
C3: Receitas Irrecuperáveis
C5: Data | D5: 1º - nov/2021 | E5: 2º - out/2021 | F5: 3º - set/2021 | G5: 4º - ago/21 | H5: 5º - jul/21 | I5: 6º - jun/21 | J5: 7º - mai/21 | K5: 8º - abr/21 | L5: 9º - mar/21 | M5: 10º - fev/21 | N5: 11º - jan/21 | O5: 12º - dez/20 | P5: 13º - nov/20 | Q5: 14º - out/20 | R5: 15º - set/20 | S5: 16º - ago/20 | T5: 17º - jul/20 | U5: 18º - jun/20 | V5: 19º - mai/20 | W5: 20º - abr/20 | X5: 21º - mar/20 | Y5: 22º - fev/20 | Z5: 23º - jan/20 | AA5: 24º - dez/19 | AB5: 25º - nov/19 | AC5: 26º - out/19 | AD5: 27º - set/19 | AE5: 28º - ago/19 | AF5: 29º - jul/19 | AG5: 30º - jun/19 | AH5: 31º - mai/19 | AI5: 32º - abr/19 | AJ5: 33º - mar/19 | AK5: 34º - fev/19 | AL5: 35º - jan/19 | AM5: 36º - dez/18 | AN5: 37º - nov/18 | AO5: 38º - out/18 | AP5: 39º - set/18 | AQ5: 40º - ago/18 | AR5: 41º - jul/18 | AS5: 42º - jun/18 | AT5: 43º - mai/18 | AU5: 44º - abr/18 | AV5: 45º - mar/18 | AW5: 46º - fev/18 | AX5: 47º - jan/18 | AY5: 48º - dez/17 | AZ5: 49º - nov/17 | BA5: 50º - out/17 | BB5: 51º - set/17 | BC5: 52º - ago/17 | BD5: 53º - jul/17 | BE5: 54º - jun/17 | BF5: 55º - mai/17 | BG5: 56º - abr/17 | BH5: 57º - mar/17 | BI5: 58º - fev/17 | BJ5: 59º - jan/17 | BK5: 60º - dez/16
C6: Percentual de Inadimplência | D6: 0.2312753057 | E6: 0.1083956748 | F6: 0.08089105697 | G6: 0.06399284898 | H6: 0.05441942593 | I6: 0.04704012064 | J6: 0.04207084862 | K6: 0.03975217017 | L6: 0.03237042178 | M6: 0.03467032398 | N6: 0.02986702038 | O6: 0.02490673358 | P6: 0.02411702176 | Q6: 0.01988376474 | R6: 0.02026835802 | S6: 0.01737709958 | T6: 0.0163698751 | U6: 0.01674041654 | V6: 0.01506280208 | W6: 0.01468131351 | X6: 0.01323339723 | Y6: 0.01291575066 | Z6: 0.01033528441 | AA6: 0.007048089657 | AB6: 0.007523419679 | AC6: 0.006871089307 | AD6: 0.006843609148 | AE6: 0.006473153187 | AF6: 0.006266909306 | AG6: 0.006327094721 | AH6: 0.006003118341 | AI6: 0.006166780979 | AJ6: 0.006518443929 | AK6: 0.006593551291 | AL6: 0.005708846327 | AM6: 0.005450401863 | AN6: 0.005930233408 | AO6: 0.005803264131 | AP6: 0.00611427372 | AQ6: 0.00549440055 | AR6: 0.005338027949 | AS6: 0.006088993743 | AT6: 0.004379342436 | AU6: 0.004704951183 | AV6: 0.004558347397 | AW6: 0.005437703579 | AX6: 0.004572766814 | AY6: 0.004236440598 | AZ6: 0.004732802037 | BA6: 0.004308382649 | BB6: 0.004322388335 | BC6: 0.004220595206 | BD6: 0.004174745375 | BE6: 0.00427102805 | BF6: 0.004089004815 | BG6: 0.0043271083 | BH6: 0.004187540008 | BI6: 0.004406766618 | BJ6: 0.003798680194 | BK6: 0.003589334916
C7: Média Móvel 12 meses | D7: =AVERAGE(D6:O6) -> 0.0658043293 | E7: 0.04854113897 | F7: 0.04116514646 | G7: 0.03611325488 | H7: 0.0322286091 | I7: 0.0290578132 | J7: 0.02653283785 | K7: 0.02428216731 | L7: 0.02219292925 | M7: 0.02059817721 | N7: 0.0187852961 | O7: 0.01715765143 | P7: 0.01566943111 | Q7: 0.01428663093 | R7: 0.01320224131 | S7: 0.01208351224 | T7: 0.01117485004 | U7: 0.01033293623 | V7: 0.009465159408 | W7: 0.008710185763 | X7: 0.008000641386 | Y7: 0.007441061944 | Z7: 0.006914211996 | AA7: 0.006528675489 | AB7: 0.00639553484 | AC7: 0.006262769317 | AD7: 0.006173783886 | AE7: 0.006113005934 | AF7: 0.006031443214 | AG7: 0.005954036434 | AH7: 0.005934194686 | AI7: 0.005798880027 | AJ7: =AVERAGE(AJ6:AU6) -> 0.005677060878 | AK7: 0.0055137195 | AL7: 0.005417398857 | AM7: 0.005322725564 | AN7: 0.005221562126 | AO7: 0.005121776178 | AP7: 0.004997202721 | AQ7: 0.004847878939 | AR7: 0.004741728494 | AS7: 0.004644788279 | AT7: 0.004493291138 | AU7: 0.004469096337 | AV7: 0.00443760943 | AW7: 0.004406708814 | AX7: 0.0043207974 | AY7: 0.004256290182 | AZ7: 0.004202364709
C8: DP | D8: =_xlfn.STDEV.S(D6:O6) -> 0.05736685626 | E8: 0.02519287936 | F8: 0.01800835493 | G8: 0.01388124248 | H8: 0.01172512413 | I8: 0.0102277858 | J8: 0.009058057685 | K8: 0.008156861174 | L8: 0.006956714505 | M8: 0.006595643842 | N8: 0.005223057294 | O8: 0.004440423413 | P8: 0.004597116975 | Q8: 0.004311911702 | R8: 0.004411451508 | S8: 0.004151160729 | T8: 0.00407987909 | U8: 0.003950757324 | V8: 0.003537434107 | W8: 0.00318319655 | X8: 0.002632545359 | Y8: 0.002073444026 | Z8: 0.001156250947 | AA8: 0.0004928200797 | AB8: 0.0005520007977 | AC8: 0.0004353279528 | AD8: 0.0004079533857 | AE8: 0.0003491852436 | AF8: 0.0003710391461 | AG8: 0.0004120733894 | AH8: 0.0003979682389 | AI8: 0.0005981228421 | AJ8: =_xlfn.STDEV.S(AJ6:AU6) -> 0.0006618507536 | AK8: 0.0006770215631 | AL8: 0.0005854563018 | AM8: 0.0006245911511 | AN8: 0.0006962340556 | AO8: 0.0006707760144 | AP8: 0.0006715183424 | AQ8: 0.0005954571554 | AR8: 0.0005831373724 | AS8: 0.0005715743092 | AT8: 0.0003531957715 | AU8: 0.0003711968659 | AV8: 0.0003653509193 | AW8: 0.0003698639945 | AX8: 0.0001792087822 | AY8: 0.000215840278 | AZ8: 0.0002895132471
C10: Período | D10: Nov/21 a Dez/20 | E10: Nov/20 a Dez/19 | F10: Nov/19 a Dez/18 | G10: Nov/18 a Dez/17 | H10: Nov/17 a Dez/16
C11: Média | D11: =AVERAGE(D6:O6) -> 0.0658043293 | E11: =AVERAGE(P6:AA6) -> 0.01566943111 | F11: =AVERAGE(AB6:AM6) -> 0.00639553484 | G11: =AVERAGE(AN6:AY6) -> 0.005221562126 | H11: =AVERAGE(AZ6:BK6) -> 0.004202364709
C12: Desvio Padrão | D12: =_xlfn.STDEV.P(D6:O6) -> 0.05492458327 | E12: =_xlfn.STDEV.P(P6:AA6) -> 0.004401404409 | F12: =_xlfn.STDEV.P(AB6:AM6) -> 0.0005285005272 | G12: =_xlfn.STDEV.P(AN6:AY6) -> 0.0006665933582 | H12: =_xlfn.STDEV.P(AZ6:BK6) -> 0.0002771878308
C14: Diferenças | D14: - | E14: =E6-D6 -> -0.1228796308 | F14: =F6-E6 -> -0.02750461788 | G14: -0.01689820799 | H14: -0.009573423051 | I14: -0.007379305291 | J14: -0.004969272021 | K14: -0.002318678452 | L14: -0.007381748387 | M14: 0.002299902196 | N14: -0.004803303596 | O14: -0.004960286801 | P14: -0.0007897118274 | Q14: -0.004233257016 | R14: 0.0003845932774 | S14: -0.002891258441 | T14: -0.001007224477 | U14: 0.0003705414421 | V14: -0.001677614459 | W14: -0.0003814885766 | X14: -0.001447916272 | Y14: -0.0003176465729 | Z14: -0.002580466252 | AA14: -0.003287194752 | AB14: 0.000475330022 | AC14: -0.000652330372 | AD14: -2.748015861e-05 | AE14: -0.0003704559616 | AF14: -0.0002062438803 | AG14: 6.018541488e-05 | AH14: -0.0003239763804 | AI14: 0.0001636626379 | AJ14: 0.0003516629499 | AK14: 7.510736272e-05 | AL14: -0.0008847049639 | AM14: -0.0002584444647 | AN14: 0.0004798315448 | AO14: -0.0001269692761 | AP14: 0.0003110095884 | AQ14: -0.0006198731694 | AR14: -0.000156372601 | AS14: 0.0007509657935 | AT14: -0.001709651307 | AU14: 0.0003256087465 | AV14: -0.0001466037857 | AW14: 0.0008793561825 | AX14: -0.0008649367659 | AY14: -0.0003363262154 | AZ14: 0.0004963614386 | BA14: -0.0004244193879 | BB14: 1.400568658e-05 | BC14: -0.0001017931297 | BD14: -4.584983044e-05 | BE14: 9.628267501e-05 | BF14: -0.0001820232352 | BG14: 0.0002381034844 | BH14: -0.0001395682913 | BI14: 0.0002192266096 | BJ14: -0.0006080864243 | BK14: -0.0002093452778
C16: Taxa Regulatória | D16: =H11 -> 0.004202364709

Sheet 9. Ajuste Compens. Ordinário
C3: Ajustes Compensatórios Ordinários
D5: Projetado (1ª RTP) | I5: Real
C6: Componente | D6: Fonte | E6: 2017 | F6: 2018 | G6: 2019 | H6: 2020 | I6: Fonte | J6: 2017 | K6: 2018 | L6: 2019 | M6: 2020
C7: Volume Faturado (A+E) - (1.000 m³) | D7: RTP Agepar | E7: =P0_Sanepar!B6 -> 876133319 | F7: =P0_Sanepar!C6 -> 891641308 | G7: =P0_Sanepar!D6 -> 908541650 | H7: =P0_Sanepar!E6 -> 926046961 | I7: Sanepar | J7: ='2. Mercado'!E8 -> 941251179 | K7: ='2. Mercado'!F8 -> 891490235 | L7: ='2. Mercado'!G8 -> 927692536 | M7: ='2. Mercado'!H8 -> 918294715
C8: (+) Outras Receitas | D8: RTP Agepar | E8: =P0_Sanepar!B7 -> 19928993 | F8: =P0_Sanepar!C7 -> 20105369.47 | G8: =P0_Sanepar!D7 -> 20295910 | H8: =P0_Sanepar!E7 -> 20491435.56 | I8: Sanepar | J8: ='3. Outras Receitas'!N47 -> 10152305.16 | K8: ='3. Outras Receitas'!O47 -> 9818842.053 | L8: ='3. Outras Receitas'!P47 -> 10284661.63 | M8: ='3. Outras Receitas'!Q47 -> 9937291.173
C9: (-) PPP e Locação de Ativos | D9: RTP Agepar | I9: Sanepar | J9: ='AlugueisReal (2)'!E7 -> 47867453.3 | K9: ='AlugueisReal (2)'!I7 -> 49750079.33 | L9: ='AlugueisReal (2)'!M7 -> 60098814.38 | M9: ='AlugueisReal (2)'!Q7 -> 55482578.88
C10: (-) Leasing Litoral | D10: RTP Agepar | I10: Sanepar | J10: =TRANSPOSE('LeasingLitoralRal (2)'!E6:E9) -> 9551496 | K10: 27815259.17 | L10: 34883502.72 | M10: 36079159.4
C11: (-) Receitas Irrecuperáveis | D11: RTP Agepar | E11: =P0_Sanepar!B29 -> 32421440.07 | F11: =P0_Sanepar!C29 -> 32141941.08 | G11: =P0_Sanepar!D29 -> 32682479.83 | H11: =P0_Sanepar!E29 -> 33180735.98 | I11: Sanepar | J11: ='9.1 P0 - Ajuste Compensat.'!E31 -> 30827886.68 | K11: ='9.1 P0 - Ajuste Compensat.'!F31 -> 31204518.69 | L11: ='9.1 P0 - Ajuste Compensat.'!G31 -> 31593842.16 | M11: ='9.1 P0 - Ajuste Compensat.'!H31 -> 32302703.35
C12: (-) Investimentos¹ | D12: RTP Agepar | E12: =P0_Sanepar!B19 -> 846158110 | F12: =P0_Sanepar!C19 -> 731784990 | G12: =P0_Sanepar!D19 -> 565398990 | H12: =P0_Sanepar!E19 -> 626761990 | I12: Sanepar | J12: =Dados_BAR.29.03.23!C70-Dados_BAR.29.03.23!C69 -> 593996599.1 | K12: =Dados_BAR.29.03.23!C71-Dados_BAR.29.03.23!C70 -> 450656878.7 | L12: =Dados_BAR.29.03.23!C72-Dados_BAR.29.03.23!C71 -> 477937859.5 | M12: =Dados_BAR.29.03.23!C73-Dados_BAR.29.03.23!C72 -> 651122934
C13: (-) Variação do Capital de Giro | D13: RTP Agepar | E13: =P0_Sanepar!B18*P0_Sanepar!B28 -> 25835960.07 | F13: =P0_Sanepar!C18*P0_Sanepar!C28 -> 26293269.22 | G13: =P0_Sanepar!D18*P0_Sanepar!D28 -> 26791636.94 | H13: =P0_Sanepar!E18*P0_Sanepar!E28 -> 27307844.35 | I13: Sanepar | J13: ='7. Capital de Giro'!E26 -> -18991989.72 | K13: ='7. Capital de Giro'!F26 -> -20315198.76 | L13: ='7. Capital de Giro'!G26 -> 10848906.78 | M13: ='7. Capital de Giro'!H26 -> 57392358.33
C14: (-) Base de Capital Inicial | D14: RTP Agepar | E14: =P0_Sanepar!B24 -> 1.424393445e+10 | I14: Sanepar | J14: ='9.1 P0 - Ajuste Compensat.'!E26 -> 1.301364546e+10
C15: (+) Base de Capital Final | D15: RTP Agepar | H15: =P0_Sanepar!E24 -> 1.376999488e+10 | I15: Sanepar | M15: ='9.1 P0 - Ajuste Compensat.'!H26 -> 1.340738217e+10
C16: Obs.: Investimentos consideram os valores inclusos na BAR Bruta e dedução dos ativos virtuais referentes a cada ano.
C17: IPCA Acumulado (dez/2020) | E17: =Indices!B15/Indices!$B$3-1 -> 0.0294742132 | F17: =Indices!B27/Indices!$B$3-1 -> 0.06803400549 | G17: =Indices!B39/Indices!$B$3-1 -> 0.1140251691 | H17: =Indices!B51/Indices!$B$3-1 -> 0.1643507758
C18: IPCA Ano a Ano (dez/2020) - X | E18: =E17-E21 -> 0.0294742132 | F18: =Indices!B27/Indices!$B$15-1-F21 -> 0.02977329011 | G18: =Indices!B39/Indices!$B$27-1-G21 -> 0.03531997344 | H18: =Indices!B51/Indices!$B$39-1-H21 -> 0.0374325727
C19: IPCA Acumulado (dez/2020) - Fator X | E19: =(1+E18) -> 1.029474213 | F19: =E19*(1+F18) -> 1.060125048 | G19: =F19*(1+G18) -> 1.097568636 | H19: 1.138653454
C20: IPCA Acumulado (dez/2020) - Fator X | E20: =E19-1 -> 0.0294742132 | F20: =F19-1 -> 0.06012504762 | G20: 0.09756863614 | H20: 0.1386534539
C21: Fator X | E21: 0 | F21: =(1+E21)*'Fator X'!$B$46 -> 0.007682521591 | G21: =(1+F21)*'Fator X'!$B$46 -> 0.007741542729 | H21: =(1+G21)*'Fator X'!$B$46 -> 0.00774199616
C22: Receita Autorizada no Ciclo 2016 | E22: =P0_San_T*P0_Sanepar!B6*(1+E20) -> 4054378220 | F22: =P0_San_T*P0_Sanepar!C6*(1+F20) -> 4248991545 | G22: =P0_San_T*P0_Sanepar!D6*(1+G20) -> 4482446559 | H22: =P0_San_T*P0_Sanepar!E6*(1+H20) -> 4739834411
C23: Receita Com Ajustes Compensatórios | E23: ='9.1 P0 - Ajuste Compensat.'!E8*'9.1 P0 - Ajuste Compensat.'!P0_San_T*(1+E20) -> 3981317102 | F23: ='9.1 P0 - Ajuste Compensat.'!F8*'9.1 P0 - Ajuste Compensat.'!P0_San_T*(1+F20) -> 4172423436 | G23: ='9.1 P0 - Ajuste Compensat.'!G8*'9.1 P0 - Ajuste Compensat.'!P0_San_T*(1+G20) -> 4401671517 | H23: ='9.1 P0 - Ajuste Compensat.'!H8*'9.1 P0 - Ajuste Compensat.'!P0_San_T*(1+H20) -> 4654421165
C24: Diferença | E24: =E23-E22 -> -73061117.75 | F24: =F23-F22 -> -76568108.52 | G24: -80775041.58 | H24: -85413245.63
C25: Diferença em dez/2020 (IPCA) | E25: =E24*(Indices!B51/Indices!B15) -> -82633219.99 | F25: =F24*(Indices!B51/Indices!B27) -> -83473125.48 | G25: =G24*(Indices!B51/Indices!B39) -> -84424019.26 | H25: =H24*(Indices!B51/Indices!B51) -> -85413245.63
C26: Diferença em dez/2020 (WACC) | E26: =E25*(1+'9.1 P0 - Ajuste Compensat.'!E30)^('9. Ajuste Compens. Ordinário'!$H$6-'9. Ajuste Compens. Ordinário'!E6+0.5) -> -126958790.1 | F26: =F25*(1+'9.1 P0 - Ajuste Compensat.'!F30)^('9. Ajuste Compens. Ordinário'!$H$6-'9. Ajuste Compens. Ordinário'!F6+0.5) -> -113440137.9 | G26: =G25*(1+'9.1 P0 - Ajuste Compensat.'!G30)^('9. Ajuste Compens. Ordinário'!$H$6-'9. Ajuste Compens. Ordinário'!G6+0.5) -> -101484114.5 | H26: =H25*(1+'9.1 P0 - Ajuste Compensat.'!H30)^('9. Ajuste Compens. Ordinário'!$H$6-'9. Ajuste Compens. Ordinário'!H6+0.5) -> -90817436.54
C28: Ajuste Compensatórios Total (dez/2020) | E28: =SUM(E26:H26) -> -432700479

Sheet 9.1 P0 - Ajuste Compensat.
C1: Data Base | D1: 2016-12-01 | Z1: 2 | AA1: 3 | AB1: 4 | AC1: 5 | AD1: 6 | AE1: 7
C2: PLANILHA 1º CICLO RTP
C4: AJUSTES | D4: TOTAL | J4: TOTAL SANEPAR | Q4: TOTAL SANEPAR | Y4: TOTAL SANEPAR | Z4: C | AA4: F | AB4: C | AC4: 72 | AD4: 73 | AE4: 77
D6: ÁGUA+ESGOTO | E6: =R6 -> 2017 | F6: =E6+1 -> 2018 | G6: =F6+1 -> 2019 | H6: =G6+1 -> 2020 | J6: ÁGUA | K6: ='Aj. Comp. Ordinário>>>'!$D$19 -> 2017 | L6: =K6+1 -> 2018 | M6: =L6+1 -> 2019 | N6: 2020 | O6: 2021 | Q6: ESGOTO | R6: =K6 -> 2017 | S6: =R6+1 -> 2018 | T6: =S6+1 -> 2019 | U6: =T6+1 -> 2020 | V6: =U6+1 -> 2021
D7: P0 (Tarifa B) | E7: 3.833543256 | F7: =IF(F6>ano_fim,"",$E7) -> 3.833543256 | G7: =IF(G6>ano_fim,"",$E7) -> 3.833543256 | H7: =IF(H6>ano_fim,"",$E7) -> 3.833543256 | J7: P0 (Tarifa B) | K7: 3.877620741 | L7: =IF(L6>ano_fim,"",$K7) -> 3.877620741 | M7: =IF(M6>ano_fim,"",$K7) -> 3.877620741 | N7: =IF(N6>ano_fim,"",$K7) -> 3.877620741 | O7: =IF(O6>ano_fim,"",$K7) ->  | Q7: P0 (Tarifa B) | R7: 3.939917698 | S7: =IF(L6>ano_fim,"",$R7) -> 3.939917698 | T7: =IF(M6>ano_fim,"",$R7) -> 3.939917698 | U7: =IF(N6>ano_fim,"",$R7) -> 3.939917698 | V7: =IF(O6>ano_fim,"",$R7) -> 
D8: Mercado | E8: 1008813601 | F8: 1026670096 | G8: 1046129799 | H8: 1066286088 | J8: Mercado | K8: =IF(K6>ano_fim,"",INDIRECT("Dados_Entrada!"&Z$9&$AC$4)) -> 592490119 | L8: =IF(L6>ano_fim,"",INDIRECT("Dados_Entrada!"&AA$9&$AC$4)) -> 597489812 | M8: =IF(M6>ano_fim,"",INDIRECT("Dados_Entrada!"&AB$9&$AC$4)) -> 603636114 | N8: =IF(N6>ano_fim,"",INDIRECT("Dados_Entrada!"&AC$9&$AC$4)) -> 609843880 | O8: =IF(O6>ano_fim,"",INDIRECT("Dados_Entrada!"&AD$9&$AC$4)) ->  | Q8: Mercado | R8: =IF(R6>ano_fim,"",INDIRECT("Dados_Entrada!"&Z$10&$AC$4)) -> 416323482 | S8: =IF(S6>ano_fim,"",INDIRECT("Dados_Entrada!"&AA$10&$AC$4)) -> 429180284 | T8: =IF(T6>ano_fim,"",INDIRECT("Dados_Entrada!"&AB$10&$AC$4)) -> 442493685 | U8: =IF(U6>ano_fim,"",INDIRECT("Dados_Entrada!"&AC$10&$AC$4)) -> 456442208 | V8: =IF(V6>ano_fim,"",INDIRECT("Dados_Entrada!"&AD$10&$AC$4)) ->  | Z8: 2017 | AA8: 2018 | AB8: 2019 | AC8: 2020 | AD8: 2021
C9: AJUSTADO | D9: Outras Receitas | E9: ='9. Ajuste Compens. Ordinário'!J8 -> 10152305.16 | F9: ='9. Ajuste Compens. Ordinário'!K8 -> 9818842.053 | G9: ='9. Ajuste Compens. Ordinário'!L8 -> 10284661.63 | H9: ='9. Ajuste Compens. Ordinário'!M8 -> 9937291.173 | J9: Outras Receitas | K9: =Dados_Entrada!C68*OR -> 13708415.75 | L9: =IF(L6>ano_fim,"",K9*((((L8/K8)-1)/2)+1)) -> 13766254.58 | M9: =IF(M6>ano_fim,"",L9*((((M8/L8)-1)/2)+1)) -> 13837060.44 | N9: =IF(N6>ano_fim,"",M9*((((N8/M8)-1)/2)+1)) -> 13908210.28 | O9: =IF(O6>ano_fim,"",N9*((((O8/N8)-1)/2)+1)) ->  | Q9: Outras Receitas | R9: =Dados_Entrada!F68*OR -> 6220577.25 | S9: =IF(S6>ano_fim,"",R9*((((S8/R8)-1)/2)+1)) -> 6316628.438 | T9: =IF(T6>ano_fim,"",S9*((((T8/S8)-1)/2)+1)) -> 6414601.027 | U9: =IF(U6>ano_fim,"",T9*((((U8/T8)-1)/2)+1)) -> 6515703.272 | V9: =IF(V6>ano_fim,"",U9*((((V8/U8)-1)/2)+1)) ->  | X9: =VLOOKUP(CONCATENATE("Total ",D9," (R$)"),Dados_Entrada!$B$3:$M$69,1,0) -> Total Outras Receitas (R$) | Y9: Água | Z9: D | AA9: E | AB9: F | AC9: G | AD9: H
D10: Receita | E10: =IF(E6>ano_fim,"",E$7*E8+E9) -> 3877482882 | F10: =IF(F6>ano_fim,"",F$7*F8+F9) -> 3945603065 | G10: =IF(G6>ano_fim,"",G$7*G8+G9) -> 4020668497 | H10: =IF(H6>ano_fim,"",H$7*H8+H9) -> 4097591133 | J10: Receita | K10: =IF(K6>ano_fim,"",K$7*K8+K9) -> 2311160390 | L10: =IF(L6>ano_fim,"",L$7*L8+L9) -> 2330605142 | M10: =IF(M6>ano_fim,"",M$7*M8+M9) -> 2354508976 | N10: =IF(N6>ano_fim,"",N$7*N8+N9) -> 2378651488 | O10: =IF(O6>ano_fim,"",O$7*O8+O9) ->  | Q10: Receita | R10: =IF(R6>ano_fim,"",R$7*R8+R9) -> 1646500832 | S10: =IF(S6>ano_fim,"",S$7*S8+S9) -> 1697251625 | T10: =IF(T6>ano_fim,"",T$7*T8+T9) -> 1749803302 | U10: =IF(U6>ano_fim,"",U$7*U8+U9) -> 1804860437 | V10: =IF(V6>ano_fim,"",V$7*V8+V9) ->  | Y10: Esgoto | Z10: L | AA10: M | AB10: N | AC10: O | AD10: P
D11: Custo Operacional | E11: =(Dados_Entrada!C53+Dados_Entrada!F53)*(E8/(Dados_Entrada!C72+Dados_Entrada!K72)) -> 1676237734 | F11: =IF(F6>ano_fim,"",E11*(F8/E8)) -> 1705907964 | G11: =IF(G6>ano_fim,"",F11*(G8/F8)) -> 1738242072 | H11: =IF(H6>ano_fim,"",G11*(H8/G8)) -> 1771733623 | J11: Custo Operacional | K11: =Dados_Entrada!C53*(K8/Dados_Entrada!C72) -> 1059428579 | L11: =IF(L6>ano_fim,"",K11*(L8/K8)) -> 1068368504 | M11: =IF(M6>ano_fim,"",L11*(M8/L8)) -> 1079358676 | N11: =IF(N6>ano_fim,"",M11*(N8/M8)) -> 1090458751 | O11: =IF(O6>ano_fim,"",N11*(O8/N8)) ->  | Q11: Custo Operacional | R11: =Dados_Entrada!F53*(R8/Dados_Entrada!K72) -> 616524830 | S11: =IF(S6>ano_fim,"",R11*(S8/R8)) -> 635564202.1 | T11: =IF(T6>ano_fim,"",S11*(T8/S8)) -> 655279742.2 | U11: =IF(U6>ano_fim,"",T11*(U8/T8)) -> 675935821.3 | V11: =IF(V6>ano_fim,"",U11*(V8/U8)) ->  | X11: =VLOOKUP(CONCATENATE("Total ",D11," (R$), P0"),Dados_Entrada!$B$3:$M$69,1,0) -> Total Custo Operacional (R$), P0
D12: Leasing | E12: =+'4. OPEX'!D13*(1-'9. Ajuste Compens. Ordinário'!H17) -> 54507085.51 | F12: =+'4. OPEX'!E13*(1-'9. Ajuste Compens. Ordinário'!H17) -> 70768580.52 | G12: =+'4. OPEX'!F13*(1-'9. Ajuste Compens. Ordinário'!H17) -> 83911408.71 | H12: =+'4. OPEX'!G13 -> 91561738.28 | J12: Ativos Imobilizados | K12: =Dados_Entrada!C33+(0.5*K21) -> 1.307187615e+10 | L12: =IF(L6>ano_fim,"",K12+(0.5*K21)+(0.5*L21)) -> 1.351824228e+10 | M12: =IF(M6>ano_fim,"",L12+(0.5*L21)+(0.5*M21)) -> 1.391760741e+10 | N12: =IF(N6>ano_fim,"",M12+(0.5*M21)+(0.5*N21)) -> 1.42947221e+10 | O12: =IF(O6>ano_fim,"",N12+(0.5*N21)+(0.5*O21)) ->  | Q12: Ativos Imobilizados | R12: =Dados_Entrada!F33+(0.5*R21) -> 9669627076 | S12: =IF(S6>ano_fim,"",R12+(0.5*R21)+(0.5*S21)) -> 1.00122325e+10 | T12: =IF(T6>ano_fim,"",S12+(0.5*S21)+(0.5*T21)) -> 1.026145936e+10 | U12: =IF(U6>ano_fim,"",T12+(0.5*T21)+(0.5*U21)) -> 1.048042515e+10 | V12: =IF(V6>ano_fim,"",U12+(0.5*U21)+(0.5*V21)) ->  | X12: =VLOOKUP(D12,Dados_Entrada!$B$3:$M$69,1,0) -> 
D13: Terrenos (Água) | J13: Terrenos (Água) | K13: =(INDIRECT("Dados_Entrada!"&$Z$4&$X13)*(K12/Dados_Entrada!C33)) -> 1044376602 | L13: =IF(L6>ano_fim,"",K13*(L$12/K$12)) -> 1080038991 | M13: 1111946240 | N13: 1142075791 | Q13: Terrenos (Esgoto) | R13: =(INDIRECT("Dados_Entrada!"&$AA$4&$X13)*(R12/Dados_Entrada!F33)) -> 358849544.1 | S13: =IF(S6>ano_fim,"",R13*(S$12/R$12)) -> 371563974.4 | T13: 380813032.7 | U13: 388939072.7 | X13: 35
D14: Reserva Operacional Móvel (Água) | J14: Reserva Operacional Móvel (Água) | K14: =INDIRECT("Dados_Entrada!"&$Z$4&$X14)*(K12/Dados_Entrada!C33) -> 27020587.79 | L14: 27943261.41 | M14: 28768780.29 | N14: 29548305.78 | Q14: Reserva Operacional Móvel (Esgoto) | R14: =INDIRECT("Dados_Entrada!"&$AA$4&$X14)*(R12/Dados_Entrada!F33) -> 825202.9179 | S14: 854440.7561 | T14: 875709.6975 | U14: 894396.1694 | X14: 36
D15: Terrenos Não Onerosos | J15: Terrenos Não Onerosos | K15: =94969527.6694722*(K12/Dados_Entrada!C33) -> 96731330.89 | L15: =IF(L6>ano_fim,"",K15*(L$12/K$12)) -> 100034421.4 | M15: =IF(M6>ano_fim,"",L15*(M$12/L$12)) -> 102989706.5 | N15: =IF(N6>ano_fim,"",M15*(N$12/M$12)) -> 105780339.3 | Q15: Terrenos Não Onerosos | R15: =23798246.2288889*(R12/Dados_Entrada!F33) -> 24262427.14 | S15: =IF(S6>ano_fim,"",R15*(S$12/R$12)) -> 25122071.36 | T15: =IF(T6>ano_fim,"",S15*(T$12/S$12)) -> 25747415.9 | U15: =IF(U6>ano_fim,"",T15*(U$12/T$12)) -> 26296831.27
D16: Não Onerosos Brutos | J16: Não Onerosos Brutos | K16: =INDIRECT("Dados_Entrada!"&$Z$4&$X16) -> 1140369053 | L16: =IF(L6>ano_fim,"",K16) -> 1140369053 | M16: =IF(M6>ano_fim,"",L16) -> 1140369053 | N16: =IF(N6>ano_fim,"",M16) -> 1140369053 | O16: =IF(O6>ano_fim,"",N16) ->  | Q16: Não Onerosos Brutos | R16: =INDIRECT("Dados_Entrada!"&$AA$4&$X16) -> 804083258 | S16: =IF(S6>ano_fim,"",R16) -> 804083258 | T16: =IF(T6>ano_fim,"",S16) -> 804083258 | U16: =IF(U6>ano_fim,"",T16) -> 804083258 | V16: =IF(V6>ano_fim,"",U16) ->  | X16: 37
D17: Depreciação Não Onerosos | J17: Depreciação Não Onerosos | K17: =IF(K6>ano_fim,"",K16*K28) -> 26422309.55 | L17: =IF(L6>ano_fim,"",L16*L28) -> 26422309.55 | M17: =IF(M6>ano_fim,"",M16*M28) -> 26422309.55 | N17: =IF(N6>ano_fim,"",N16*N28) -> 26422309.55 | O17: =IF(O6>ano_fim,"",O16*O28) ->  | Q17: Depreciação Não Onerosos | R17: =IF(R6>ano_fim,"",R16*R28) -> 17705914.49 | S17: =IF(S6>ano_fim,"",S16*S28) -> 17705914.49 | T17: =IF(T6>ano_fim,"",T16*T28) -> 17705914.49 | U17: =IF(U6>ano_fim,"",U16*U28) -> 17705914.49 | V17: =IF(V6>ano_fim,"",V16*V28) -> 
D18: Obras em Andamento | J18: Obras em Andamento | K18: =Dados_Entrada!C41*(K21/Dados_Entrada!C77) -> 528940772 | L18: 0 | M18: =IF(M6>ano_fim,"",L18*(M$21/L$21)) -> 0 | N18: =IF(N6>ano_fim,"",M18*(N$21/M$21)) -> 0 | O18: =IF(O6>ano_fim,"",N18*(O$21/N$21)) ->  | Q18: Obras em Andamento | R18: =Dados_Entrada!F41*(R21/Dados_Entrada!K77) -> 479275674.8 | S18: 0 | T18: =IF(T6>ano_fim,"",S18*(T$21/S$21)) -> 0 | U18: =IF(U6>ano_fim,"",T18*(U$21/T$21)) -> 0 | V18: =IF(V6>ano_fim,"",U18*(V$21/U$21)) -> 
D19: Ativos Imobilizados a Serem Incorporados | J19: Ativos Imobilizados a Serem Incorporados | K19: =Dados_Entrada!C42*(K21/Dados_Entrada!C77) -> 91730270.03 | L19: =IF(L6>ano_fim,"",K19*(L$21/K$21)) -> 80248858.74 | M19: =IF(M6>ano_fim,"",L19*(M$21/L$21)) -> 73621389.15 | N19: =IF(N6>ano_fim,"",M19*(N$21/M$21)) -> 71676051.47 | O19: =IF(O6>ano_fim,"",N19*(O$21/N$21)) ->  | Q19: Ativos Imobilizados a Serem Incorporados | R19: =Dados_Entrada!F42*(R21/Dados_Entrada!K77) -> 5379906.103 | S19: =IF(S6>ano_fim,"",R19*(S$21/R$21)) -> 4583461.803 | T19: =IF(T6>ano_fim,"",S19*(T$21/S$21)) -> 2664347.936 | U19: =IF(U6>ano_fim,"",T19*(U$21/T$21)) -> 3703434.563 | V19: =IF(V6>ano_fim,"",U19*(V$21/U$21)) -> 
C20: AJUSTADO | D20: Capital de Giro | E20: ='9. Ajuste Compens. Ordinário'!J13 -> -18991989.72 | F20: ='9. Ajuste Compens. Ordinário'!K13 -> -20315198.76 | G20: ='9. Ajuste Compens. Ordinário'!L13 -> 10848906.78 | H20: ='9. Ajuste Compens. Ordinário'!M13 -> 57392358.33 | J20: Capital de Giro | K20: =Dados_Entrada!C43*(K8/Dados_Entrada!C72) -> 146771579.7 | L20: =IF(L6>ano_fim,"",K20*(L$8/K$8)) -> 148010103.1 | M20: =IF(M6>ano_fim,"",L20*(M$8/L$8)) -> 149532664.3 | N20: =IF(N6>ano_fim,"",M20*(N$8/M$8)) -> 151070451.3 | O20: =IF(O6>ano_fim,"",N20*(O$8/N$8)) ->  | Q20: Capital de Giro | R20: =Dados_Entrada!F43*(R8/Dados_Entrada!K72) -> 81057970.93 | S20: =IF(S6>ano_fim,"",R20*(S$8/R$8)) -> 83561183.76 | T20: =IF(T6>ano_fim,"",S20*(T$8/S$8)) -> 86153296.19 | U20: =IF(U6>ano_fim,"",T20*(U$8/T$8)) -> 88869066.54 | V20: =IF(V6>ano_fim,"",U20*(V$8/U$8)) -> 
C21: AJUSTADO | D21: Investimentos | E21: 598124407.6 | F21: 478806068.7 | G21: 521852497 | H21: 741491632.6 | J21: Investimentos | K21: =IF(K6>ano_fim,"",INDIRECT("Dados_Entrada!"&Z$9&$AE$4)) -> 476165753.1 | L21: =IF(L6>ano_fim,"",INDIRECT("Dados_Entrada!"&AA$9&$AE$4)) -> 416566508 | M21: =IF(M6>ano_fim,"",INDIRECT("Dados_Entrada!"&AB$9&$AE$4)) -> 382163752.5 | N21: =IF(N6>ano_fim,"",INDIRECT("Dados_Entrada!"&AC$9&$AE$4)) -> 372065633.5 | O21: =IF(O6>ano_fim,"",INDIRECT("Dados_Entrada!"&AD$9&$AE$4)) ->  | Q21: Investimentos | R21: =IF(R6>ano_fim,"",INDIRECT("Dados_Entrada!"&Z$10&$AE$4)) -> 369992356.9 | S21: =IF(S6>ano_fim,"",INDIRECT("Dados_Entrada!"&AA$10&$AE$4)) -> 315218482 | T21: =IF(T6>ano_fim,"",INDIRECT("Dados_Entrada!"&AB$10&$AE$4)) -> 183235237.5 | U21: =IF(U6>ano_fim,"",INDIRECT("Dados_Entrada!"&AC$10&$AE$4)) -> 254696356.5 | V21: =IF(V6>ano_fim,"",INDIRECT("Dados_Entrada!"&AD$10&$AE$4)) -> 
D22: Depreciação Acumulada | J22: Depreciação Acumulada | K22: =Dados_Entrada!C38 -> 5145852276 | L22: =IF(L6>ano_fim,"",K22+K23-K17) -> 5422304862 | M22: =IF(M6>ano_fim,"",L22+L23-L17) -> 5709099735 | N22: =IF(N6>ano_fim,"",M22+M23-M17) -> 6005147884 | O22: =IF(O6>ano_fim,"",N22+N23-N17) ->  | Q22: Depreciação Acumulada | R22: =Dados_Entrada!F38 -> 2711509064 | S22: =IF(S6>ano_fim,"",R22+R23-R17) -> 2906728352 | T22: =IF(T6>ano_fim,"",S22+S23-S17) -> 3109491811 | U22: =IF(U6>ano_fim,"",T22+T23-T17) -> 3317743246 | V22: =IF(V6>ano_fim,"",U22+U23-U17) -> 
D23: Depreciação Anual | J23: Depreciação Anual | K23: =IF(K6>ano_fim,"",K28*K12) -> 302874895.5 | L23: =IF(L6>ano_fim,"",L28*L12) -> 313217182.5 | M23: =IF(M6>ano_fim,"",M28*M12) -> 322470458.1 | N23: =IF(N6>ano_fim,"",N28*N12) -> 331208191.8 | O23: =IF(O6>ano_fim,"",O28*O12) ->  | Q23: Depreciação Anual | R23: =IF(R6>ano_fim,"",R28*R12) -> 212925202.1 | S23: =IF(S6>ano_fim,"",S28*S12) -> 220469373.9 | T23: =IF(T6>ano_fim,"",T28*T12) -> 225957349.7 | U23: =IF(U6>ano_fim,"",U28*U12) -> 230778976.8 | V23: =IF(V6>ano_fim,"",V28*V12) -> 
C24: AJUSTADO | D24: BRR Bruta | J24: BRR Bruta | K24: =IF(K6>ano_fim,"",K12) -> 1.307187615e+10 | L24: =IF(L6>ano_fim,"",L12) -> 1.351824228e+10 | M24: =IF(M6>ano_fim,"",M12) -> 1.391760741e+10 | N24: =IF(N6>ano_fim,"",N12) -> 1.42947221e+10 | O24: =IF(O6>ano_fim,"",O12) ->  | Q24: BRR Bruta | R24: =IF(R6>ano_fim,"",R12) -> 9669627076 | S24: =IF(S6>ano_fim,"",S12) -> 1.00122325e+10 | T24: =IF(T6>ano_fim,"",T12) -> 1.026145936e+10 | U24: =IF(U6>ano_fim,"",U12) -> 1.048042515e+10 | V24: =IF(V6>ano_fim,"",V12) -> 
D25: BRR (QRR) | J25: BRR (QRR) | K25: =K24-K13-K14-K15 -> 1.190374763e+10 | L25: =L24-L13-L14-L15 -> 1.23102256e+10 | M25: =M24-M13-M14-M15 -> 1.267390268e+10 | N25: =N24-N13-N14-N15 -> 1.301731766e+10 | Q25: BRR (QRR) | R25: =R24-R13-R14-R15 -> 9285689902 | S25: =S24-S13-S14-S15 -> 9614692009 | T25: 9854023197 | U25: 1.006429485e+10
C26: AJUSTADO | D26: BRR Líquida | E26: =Dados_BAR.29.03.23!D28 -> 1.301364546e+10 | F26: =Dados_BAR.29.03.23!D29 -> 1.302344372e+10 | G26: =Dados_BAR.29.03.23!D30 -> 1.309520107e+10 | H26: =Dados_BAR.29.03.23!D31 -> 1.340738217e+10 | J26: BRR Líquida | K26: =IF(K6>ano_fim,"",K12-K16-K22+K18+K19+K20) -> 7553097437 | L26: =IF(L6>ano_fim,"",L12-L16-L22+L18+L19+L20) -> 7183827322 | M26: =IF(M6>ano_fim,"",M12-M16-M22+M18+M19+M20) -> 7291292671 | N26: =IF(N6>ano_fim,"",N12-N16-N22+N18+N19+N20) -> 7371951665 | O26: =IF(O6>ano_fim,"",O12-O16-O22+O18+O19+O20) ->  | Q26: BRR Líquida | R26: =IF(R6>ano_fim,"",R12-R16-R22+R18+R19+R20) -> 6719748306 | S26: =IF(S6>ano_fim,"",S12-S16-S22+S18+S19+S20) -> 6389565532 | T26: =IF(T6>ano_fim,"",T12-T16-T22+T18+T19+T20) -> 6436701931 | U26: =IF(U6>ano_fim,"",U12-U16-U22+U18+U19+U20) -> 6451171149 | V26: =IF(V6>ano_fim,"",V12-V16-V22+V18+V19+V20) -> 
C27: AJUSTADO | D27: Quota de Reintegração Regulatória | E27: =Dados_BAR.29.03.23!J28 -> 421498780.9 | F27: =Dados_BAR.29.03.23!J29 -> 434095264.5 | G27: =Dados_BAR.29.03.23!J30 -> 436892890.8 | H27: =Dados_BAR.29.03.23!J31 -> 451507442.9 | J27: Quota de Reintegração Regulatória | K27: =IF(K6>ano_fim,"",K25*K28) -> 275809400.1 | L27: =IF(L6>ano_fim,"",L25*L28) -> 285227480.1 | M27: =IF(M6>ano_fim,"",M25*M28) -> 293653864.7 | N27: =IF(N6>ano_fim,"",N25*N28) -> 301610777.4 | O27: =IF(O6>ano_fim,"",O24*O28) ->  | Q27: Quota de Reintegração Regulatória | R27: =IF(R6>ano_fim,"",R25*R28) -> 204470904.9 | S27: =IF(S6>ano_fim,"",S25*S28) -> 211715531.8 | T27: =IF(T6>ano_fim,"",T25*T28) -> 216985604.9 | U27: =IF(U6>ano_fim,"",U25*U28) -> 221615787 | V27: =IF(V6>ano_fim,"",V24*V28) -> 
D28: Taxa de depreciação | E28: =Dados_Entrada!C21 -> 0.02265201417 | F28: =IF(F6>ano_fim,"",E28) -> 0.02265201417 | G28: =IF(G6>ano_fim,"",F28) -> 0.02265201417 | H28: =IF(H6>ano_fim,"",G28) -> 0.02265201417 | J28: Taxa de depreciação | K28: =Dados_Entrada!C17 -> 0.02316996368 | L28: =IF(L6>ano_fim,"",K28) -> 0.02316996368 | M28: =IF(M6>ano_fim,"",L28) -> 0.02316996368 | N28: =IF(N6>ano_fim,"",M28) -> 0.02316996368 | O28: =IF(O6>ano_fim,"",N28) ->  | Q28: Taxa de depreciação | R28: =Dados_Entrada!C19 -> 0.02202000143 | S28: =IF(S6>ano_fim,"",R28) -> 0.02202000143 | T28: =IF(T6>ano_fim,"",S28) -> 0.02202000143 | U28: =IF(U6>ano_fim,"",T28) -> 0.02202000143 | V28: =IF(V6>ano_fim,"",U28) -> 
D29: =IF(Ajuste_IR="Sim","Remuneração de Capital Líquida","Remuneração de Capital Bruta") -> Remuneração de Capital Bruta | E29: =IF(E6>ano_fim,"",E30*E26) -> 1698872262 | F29: =IF(F6>ano_fim,"",F30*F26) -> 1700151380 | G29: =IF(G6>ano_fim,"",G30*G26) -> 1709518976 | H29: =IF(H6>ano_fim,"",H30*H26) -> 1750272799 | J29: =IF(Ajuste_IR="Sim","Remuneração de Capital Líquida","Remuneração de Capital Bruta") -> Remuneração de Capital Bruta | K29: =IF(K6>ano_fim,"",K30*K26) -> 986022538.2 | L29: =IF(L6>ano_fim,"",L30*L26) -> 937816003.1 | M29: =IF(M6>ano_fim,"",M30*M26) -> 951845115.9 | N29: =IF(N6>ano_fim,"",N30*N26) -> 962374781 | O29: =IF(O6>ano_fim,"",O30*O26) ->  | Q29: =IF(Ajuste_IR="Sim","Remuneração de Capital Líquida","Remuneração de Capital Bruta") -> Remuneração de Capital Bruta | R29: =IF(R6>ano_fim,"",R30*R26) -> 877232597.1 | S29: =IF(S6>ano_fim,"",S30*S26) -> 834128736.7 | T29: =IF(T6>ano_fim,"",T30*T26) -> 840282179.3 | U29: =IF(U6>ano_fim,"",U30*U26) -> 842171070.1 | V29: =IF(V6>ano_fim,"",V30*V26) -> 
D30: =IF(Ajuste_IR="Sim","WACC Líquido","WACC Bruto (Imposto de Renda)") -> WACC Bruto (Imposto de Renda) | E30: =Dados_Entrada!C5 -> 0.1305454545 | F30: =IF(F6>ano_fim,"",E30) -> 0.1305454545 | G30: =IF(G6>ano_fim,"",F30) -> 0.1305454545 | H30: =IF(H6>ano_fim,"",G30) -> 0.1305454545 | J30: =IF(Ajuste_IR="Sim","WACC Líquido","WACC Bruto (Imposto de Renda)") -> WACC Bruto (Imposto de Renda) | K30: =Dados_Entrada!C5 -> 0.1305454545 | L30: =IF(L6>ano_fim,"",K30) -> 0.1305454545 | M30: =IF(M6>ano_fim,"",L30) -> 0.1305454545 | N30: =IF(N6>ano_fim,"",M30) -> 0.1305454545 | O30: =IF(O6>ano_fim,"",N30) ->  | Q30: =IF(Ajuste_IR="Sim","WACC Líquido","WACC Bruto (Imposto de Renda)") -> WACC Bruto (Imposto de Renda) | R30: =Dados_Entrada!C5 -> 0.1305454545 | S30: =IF(S6>ano_fim,"",R30) -> 0.1305454545 | T30: =IF(T6>ano_fim,"",S30) -> 0.1305454545 | U30: =IF(U6>ano_fim,"",T30) -> 0.1305454545 | V30: =IF(V6>ano_fim,"",U30) -> 
C31: AJUSTADO | D31: Receitas Irrecuperáveis | E31: =IF(E6>ano_fim,"",E32*E33) -> 30827886.68 | F31: =IF(F6>ano_fim,"",F32*F33) -> 31204518.69 | G31: =IF(G6>ano_fim,"",G32*G33) -> 31593842.16 | H31: =IF(H6>ano_fim,"",H32*H33) -> 32302703.35 | J31: Receitas Irrecuperáveis | K31: =IF(K6>ano_fim,"",K32*K33) -> 19684379.32 | L31: =IF(L6>ano_fim,"",L32*L33) -> 19497231.71 | M31: =IF(M6>ano_fim,"",M32*M33) -> 19768354.52 | N31: =IF(N6>ano_fim,"",N32*N33) -> 20012223.62 | O31: =IF(O6>ano_fim,"",O32*O33) ->  | Q31: Receitas Irrecuperáveis | R31: =IF(R6>ano_fim,"",R32*R33) -> 12674965.99 | S31: =IF(S6>ano_fim,"",S32*S33) -> 12571456.42 | T31: =IF(T6>ano_fim,"",T32*T33) -> 12811235.09 | U31: =IF(U6>ano_fim,"",U32*U33) -> 13023513.16 | V31: =IF(V6>ano_fim,"",V32*V33) -> 
D32: Base Cálculo Receitas Irrecuperáveis | E32: =IF(E6>ano_fim,"",IF(Ajuste_IR="Sim",(E11+E27+E29+E36+E35)/(1-E33-E34),(E11+E27+E29+E35)/(1-E33-E34))) -> 4670891921 | F32: =IF(F6>ano_fim,"",IF(Ajuste_IR="Sim",(F11+F27+F29+F36+F35)/(1-F33-F34),(F11+F27+F29+F35)/(1-F33-F34))) -> 4727957378 | G32: =IF(G6>ano_fim,"",IF(Ajuste_IR="Sim",(G11+G27+G29+G36+G35)/(1-G33-G34),(G11+G27+G29+G35)/(1-G33-G34))) -> 4786945782 | H32: =IF(H6>ano_fim,"",IF(Ajuste_IR="Sim",(H11+H27+H29+H36+H35)/(1-H33-H34),(H11+H27+H29+H35)/(1-H33-H34))) -> 4894348992 | J32: Base Cálculo Receitas Irrecuperáveis | K32: =IF(K6>ano_fim,"",IF(Ajuste_IR="Sim",(K11+K27+K29+K36+K35)/(1-K33-K34),(K11+K27+K29+K35)/(1-K33-K34))) -> 2982481715 | L32: =IF(L6>ano_fim,"",IF(Ajuste_IR="Sim",(L11+L27+L29+L36+L35)/(1-L33-L34),(L11+L27+L29+L35)/(1-L33-L34))) -> 2954126017 | M32: =IF(M6>ano_fim,"",IF(Ajuste_IR="Sim",(M11+M27+M29+M36+M35)/(1-M33-M34),(M11+M27+M29+M35)/(1-M33-M34))) -> 2995205230 | N32: =IF(N6>ano_fim,"",IF(Ajuste_IR="Sim",(N11+N27+N29+N36+N35)/(1-N33-N34),(N11+N27+N29+N35)/(1-N33-N34))) -> 3032155093 | O32: =IF(O6>ano_fim,"",IF(Ajuste_IR="Sim",(O11+O27+O29+O36+O35)/(1-O33-O34),(O11+O27+O29+O35)/(1-O33-O34))) ->  | Q32: Base Cálculo Receitas Irrecuperáveis | R32: =IF(R6>ano_fim,"",IF(Ajuste_IR="Sim",(R11+R27+R29+R36+R35)/(1-R33-R34),(R11+R27+R29+R35)/(1-R33-R34))) -> 1920449393 | S32: =IF(S6>ano_fim,"",IF(Ajuste_IR="Sim",(S11+S27+S29+S36+S35)/(1-S33-S34),(S11+S27+S29+S35)/(1-S33-S34))) -> 1904766124 | T32: =IF(T6>ano_fim,"",IF(Ajuste_IR="Sim",(T11+T27+T29+T36+T35)/(1-T33-T34),(T11+T27+T29+T35)/(1-T33-T34))) -> 1941096226 | U32: =IF(U6>ano_fim,"",IF(Ajuste_IR="Sim",(U11+U27+U29+U36+U35)/(1-U33-U34),(U11+U27+U29+U35)/(1-U33-U34))) -> 1973259570 | V32: =IF(V6>ano_fim,"",IF(Ajuste_IR="Sim",(V11+V27+V29+V36+V35)/(1-V33-V34),(V11+V27+V29+V35)/(1-V33-V34))) -> 
D33: Taxa de Inadimplência | E33: =Dados_Entrada!C14 -> 0.0066 | F33: =IF(F6>ano_fim,"",E33) -> 0.0066 | G33: =IF(G6>ano_fim,"",F33) -> 0.0066 | H33: =IF(H6>ano_fim,"",G33) -> 0.0066 | J33: Taxa de Inadimplência | K33: =Dados_Entrada!C12 -> 0.0066 | L33: =IF(L6>ano_fim,"",K33) -> 0.0066 | M33: =IF(M6>ano_fim,"",L33) -> 0.0066 | N33: =IF(N6>ano_fim,"",M33) -> 0.0066 | O33: =IF(O6>ano_fim,"",N33) ->  | Q33: Taxa de Inadimplência | R33: =Dados_Entrada!C12 -> 0.0066 | S33: =IF(S6>ano_fim,"",R33) -> 0.0066 | T33: =IF(T6>ano_fim,"",S33) -> 0.0066 | U33: =IF(U6>ano_fim,"",T33) -> 0.0066 | V33: =IF(V6>ano_fim,"",U33) -> 
D34: % PASEP/COFINS (alíquotas efetivas) | E34: =Dados_Entrada!C8 -> 0.06975652333 | F34: =IF(F6>ano_fim,"",E34) -> 0.06975652333 | G34: =IF(G6>ano_fim,"",F34) -> 0.06975652333 | H34: =IF(H6>ano_fim,"",G34) -> 0.06975652333 | J34: % PASEP/COFINS (alíquotas efetivas) | K34: =Dados_Entrada!C8 -> 0.06975652333 | L34: =IF(L6>ano_fim,"",K34) -> 0.06975652333 | M34: =IF(M6>ano_fim,"",L34) -> 0.06975652333 | N34: =IF(N6>ano_fim,"",M34) -> 0.06975652333 | O34: =IF(O6>ano_fim,"",N34) ->  | Q34: % PASEP/COFINS (alíquotas efetivas) | R34: =Dados_Entrada!C8 -> 0.06975652333 | S34: =IF(S6>ano_fim,"",R34) -> 0.06975652333 | T34: =IF(T6>ano_fim,"",S34) -> 0.06975652333 | U34: =IF(U6>ano_fim,"",T34) -> 0.06975652333 | V34: =IF(V6>ano_fim,"",U34) -> 
D35: VPA | E35: =(Dados_Entrada!C62+Dados_Entrada!F62)*(E8/(Dados_Entrada!C72+Dados_Entrada!K72)) -> 517630075.6 | F35: =IF(F6>ano_fim,"",E35*(F$8/E$8)) -> 526792381.5 | G35: =IF(G6>ano_fim,"",F35*(G$8/F$8)) -> 536777305.9 | H35: =IF(H6>ano_fim,"",G35*(H$8/G$8)) -> 547119654 | J35: VPA | K35: =Dados_Entrada!C62 -> 433489263.5 | L35: =IF(L6>ano_fim,"",K35*(L$8/K$8)) -> 437147237.1 | M35: =IF(M6>ano_fim,"",L35*(M$8/L$8)) -> 441644115.4 | N35: =IF(N6>ano_fim,"",M35*(N$8/M$8)) -> 446185963.1 | O35: =IF(O6>ano_fim,"",N35*(O$8/N$8)) ->  | Q35: VPA | R35: =Dados_Entrada!F62 -> 75582222.04 | S35: =IF(S6>ano_fim,"",R35*(S$8/R$8)) -> 77916334.11 | T35: =IF(T6>ano_fim,"",S35*(T$8/S$8)) -> 80333340.29 | U35: =IF(U6>ano_fim,"",T35*(U$8/T$8)) -> 82865650.88 | V35: =IF(V6>ano_fim,"",U35*(V$8/U$8)) -> 
D36: IR Remuneração de Capital | E36: =IF(E6>ano_fim,"",IF(Ajuste_IR="Sim",INDIRECT("Dados_Entrada!"&$AB$4&$X36)*(E29/(1-INDIRECT("Dados_Entrada!"&$AB$4&$X36))),"")) ->  | F36: =IF(F6>ano_fim,"",IF(Ajuste_IR="Sim",INDIRECT("Dados_Entrada!"&$AB$4&$X36)*(F29/(1-INDIRECT("Dados_Entrada!"&$AB$4&$X36))),"")) ->  | G36: =IF(G6>ano_fim,"",IF(Ajuste_IR="Sim",INDIRECT("Dados_Entrada!"&$AB$4&$X36)*(G29/(1-INDIRECT("Dados_Entrada!"&$AB$4&$X36))),"")) ->  | H36: =IF(H6>ano_fim,"",IF(Ajuste_IR="Sim",INDIRECT("Dados_Entrada!"&$AB$4&$X36)*(H29/(1-INDIRECT("Dados_Entrada!"&$AB$4&$X36))),"")) ->  | J36: IR Remuneração de Capital | K36: =IF(K6>ano_fim,"",IF(Ajuste_IR="Sim",INDIRECT("Dados_Entrada!"&$AB$4&$X36)*(K29/(1-INDIRECT("Dados_Entrada!"&$AB$4&$X36))),"")) ->  | L36: =IF(L6>ano_fim,"",IF(Ajuste_IR="Sim",INDIRECT("Dados_Entrada!"&$AB$4&$X36)*(L29/(1-INDIRECT("Dados_Entrada!"&$AB$4&$X36))),"")) ->  | M36: =IF(M6>ano_fim,"",IF(Ajuste_IR="Sim",INDIRECT("Dados_Entrada!"&$AB$4&$X36)*(M29/(1-INDIRECT("Dados_Entrada!"&$AB$4&$X36))),"")) ->  | N36: =IF(N6>ano_fim,"",IF(Ajuste_IR="Sim",INDIRECT("Dados_Entrada!"&$AB$4&$X36)*(N29/(1-INDIRECT("Dados_Entrada!"&$AB$4&$X36))),"")) ->  | O36: =IF(O6>ano_fim,"",IF(Ajuste_IR="Sim",INDIRECT("Dados_Entrada!"&$AB$4&$X36)*(O29/(1-INDIRECT("Dados_Entrada!"&$AB$4&$X36))),"")) ->  | Q36: IR Remuneração de Capital | R36: =IF(R6>ano_fim,"",IF(Ajuste_IR="Sim",INDIRECT("Dados_Entrada!"&$AB$4&$X36)*(R29/(1-INDIRECT("Dados_Entrada!"&$AB$4&$X36))),"")) ->  | S36: =IF(S6>ano_fim,"",IF(Ajuste_IR="Sim",INDIRECT("Dados_Entrada!"&$AB$4&$X36)*(S29/(1-INDIRECT("Dados_Entrada!"&$AB$4&$X36))),"")) ->  | T36: =IF(T6>ano_fim,"",IF(Ajuste_IR="Sim",INDIRECT("Dados_Entrada!"&$AB$4&$X36)*(T29/(1-INDIRECT("Dados_Entrada!"&$AB$4&$X36))),"")) ->  | U36: =IF(U6>ano_fim,"",IF(Ajuste_IR="Sim",INDIRECT("Dados_Entrada!"&$AB$4&$X36)*(U29/(1-INDIRECT("Dados_Entrada!"&$AB$4&$X36))),"")) ->  | V36: =IF(V6>ano_fim,"",IF(Ajuste_IR="Sim",INDIRECT("Dados_Entrada!"&$AB$4&$X36)*(V29/(1-INDIRECT("Dados_Entrada!"&$AB$4&$X36))),"")) -> 
D37: IR (Dep. Regulatória - Dep. Contábil) | E37: =IF(E6>ano_fim,"",IF(Ajuste_IR="Sim",(E23-E40)*INDIRECT("Dados_Entrada!"&$AB$4&$X37),"")) ->  | F37: =IF(F6>ano_fim,"",IF(Ajuste_IR="Sim",(F23-F40)*INDIRECT("Dados_Entrada!"&$AB$4&$X37),"")) ->  | G37: =IF(G6>ano_fim,"",IF(Ajuste_IR="Sim",(G23-G40)*INDIRECT("Dados_Entrada!"&$AB$4&$X37),"")) ->  | H37: =IF(H6>ano_fim,"",IF(Ajuste_IR="Sim",(H23-H40)*INDIRECT("Dados_Entrada!"&$AB$4&$X37),"")) ->  | J37: IR (Dep. Regulatória - Dep. Contábil) | K37: =IF(K6>ano_fim,"",IF(Ajuste_IR="Sim",(K23-K40)*INDIRECT("Dados_Entrada!"&$AB$4&$X37),"")) ->  | L37: =IF(L6>ano_fim,"",IF(Ajuste_IR="Sim",(L23-L40)*INDIRECT("Dados_Entrada!"&$AB$4&$X37),"")) ->  | M37: =IF(M6>ano_fim,"",IF(Ajuste_IR="Sim",(M23-M40)*INDIRECT("Dados_Entrada!"&$AB$4&$X37),"")) ->  | N37: =IF(N6>ano_fim,"",IF(Ajuste_IR="Sim",(N23-N40)*INDIRECT("Dados_Entrada!"&$AB$4&$X37),"")) ->  | O37: =IF(O6>ano_fim,"",IF(Ajuste_IR="Sim",(O23-O40)*INDIRECT("Dados_Entrada!"&$AB$4&$X37),"")) ->  | Q37: IR (Dep. Regulatória - Dep. Contábil) | R37: =IF(R6>ano_fim,"",IF(Ajuste_IR="Sim",(R23-R40)*INDIRECT("Dados_Entrada!"&$AB$4&$X37),"")) ->  | S37: =IF(S6>ano_fim,"",IF(Ajuste_IR="Sim",(S23-S40)*INDIRECT("Dados_Entrada!"&$AB$4&$X37),"")) ->  | T37: =IF(T6>ano_fim,"",IF(Ajuste_IR="Sim",(T23-T40)*INDIRECT("Dados_Entrada!"&$AB$4&$X37),"")) ->  | U37: =IF(U6>ano_fim,"",IF(Ajuste_IR="Sim",(U23-U40)*INDIRECT("Dados_Entrada!"&$AB$4&$X37),"")) ->  | V37: =IF(V6>ano_fim,"",IF(Ajuste_IR="Sim",(V23-V40)*INDIRECT("Dados_Entrada!"&$AB$4&$X37),"")) -> 
D38: Base Contábil | E38: =IF(Ajuste_IR="Sim",(INDIRECT("Dados_Entrada!"&$Z$4&$X38)+INDIRECT("Dados_Entrada!"&$AA$4&$X38))+(0.5*E21),"") ->  | F38: =IF(F6>ano_fim,"",IF(Ajuste_IR="Sim",E38+(0.5*E21)+(0.5*F21),"")) ->  | G38: =IF(G6>ano_fim,"",IF(Ajuste_IR="Sim",F38+(0.5*F21)+(0.5*G21),"")) ->  | H38: =IF(H6>ano_fim,"",IF(Ajuste_IR="Sim",G38+(0.5*G21)+(0.5*H21),"")) ->  | J38: Base Contábil | K38: =IF(Ajuste_IR="Sim",INDIRECT("Dados_Entrada!"&$Z$4&$X38)+(0.5*K21),"") ->  | L38: =IF(L6>ano_fim,"",IF(Ajuste_IR="Sim",K38+(0.5*K21)+(0.5*L21),"")) ->  | M38: =IF(M6>ano_fim,"",IF(Ajuste_IR="Sim",L38+(0.5*L21)+(0.5*M21),"")) ->  | N38: =IF(N6>ano_fim,"",IF(Ajuste_IR="Sim",M38+(0.5*M21)+(0.5*N21),"")) ->  | O38: =IF(O6>ano_fim,"",IF(Ajuste_IR="Sim",N38+(0.5*N21)+(0.5*O21),"")) ->  | Q38: Base Contábil | R38: =IF(Ajuste_IR="Sim",INDIRECT("Dados_Entrada!"&$AA$4&$X38)+(0.5*R21),"") ->  | S38: =IF(S6>ano_fim,"",IF(Ajuste_IR="Sim",R38+(0.5*R21)+(0.5*S21),"")) ->  | T38: =IF(T6>ano_fim,"",IF(Ajuste_IR="Sim",S38+(0.5*S21)+(0.5*T21),"")) ->  | U38: =IF(U6>ano_fim,"",IF(Ajuste_IR="Sim",T38+(0.5*T21)+(0.5*U21),"")) ->  | V38: =IF(V6>ano_fim,"",IF(Ajuste_IR="Sim",U38+(0.5*U21)+(0.5*V21),"")) -> 
D39: Taxa de depreciação contábil | E39: =IF(Ajuste_IR="Sim",INDIRECT("Dados_Entrada!"&$AB$4&($X39+IF(D6="ÁGUA",0,IF(D6="ESGOTO",2,4)))),"") ->  | F39: =IF(F6>ano_fim,"",IF(Ajuste_IR="Sim",E39,"")) ->  | G39: =IF(G6>ano_fim,"",IF(Ajuste_IR="Sim",F39,"")) ->  | H39: =IF(H6>ano_fim,"",IF(Ajuste_IR="Sim",G39,"")) ->  | J39: Taxa de depreciação contábil | K39: =IF(Ajuste_IR="Sim",INDIRECT("Dados_Entrada!"&$AB$4&($X39+IF(J6="ÁGUA",0,IF(J6="ESGOTO",2,4)))),"") ->  | L39: =IF(L6>ano_fim,"",IF(Ajuste_IR="Sim",K39,"")) ->  | M39: =IF(M6>ano_fim,"",IF(Ajuste_IR="Sim",L39,"")) ->  | N39: =IF(N6>ano_fim,"",IF(Ajuste_IR="Sim",M39,"")) ->  | O39: =IF(O6>ano_fim,"",IF(Ajuste_IR="Sim",N39,"")) ->  | Q39: Taxa de depreciação contábil | R39: =IF(Ajuste_IR="Sim",INDIRECT("Dados_Entrada!"&$AB$4&($X39+IF(Q6="ÁGUA",0,IF(Q6="ESGOTO",2,4)))),"") ->  | S39: =IF(S6>ano_fim,"",IF(Ajuste_IR="Sim",R39,"")) ->  | T39: =IF(T6>ano_fim,"",IF(Ajuste_IR="Sim",S39,"")) ->  | U39: =IF(U6>ano_fim,"",IF(Ajuste_IR="Sim",T39,"")) ->  | V39: =IF(V6>ano_fim,"",IF(Ajuste_IR="Sim",U39,"")) -> 
D40: Depreciação Contábil | E40: =IF(E6>ano_fim,"",IF(Ajuste_IR="Sim",E39*E38,"")) ->  | F40: =IF(F6>ano_fim,"",IF(Ajuste_IR="Sim",F39*F38,"")) ->  | G40: =IF(G6>ano_fim,"",IF(Ajuste_IR="Sim",G39*G38,"")) ->  | H40: =IF(H6>ano_fim,"",IF(Ajuste_IR="Sim",H39*H38,"")) ->  | J40: Depreciação Contábil | K40: =IF(K6>ano_fim,"",IF(Ajuste_IR="Sim",K39*K38,"")) ->  | L40: =IF(L6>ano_fim,"",IF(Ajuste_IR="Sim",L39*L38,"")) ->  | M40: =IF(M6>ano_fim,"",IF(Ajuste_IR="Sim",M39*M38,"")) ->  | N40: =IF(N6>ano_fim,"",IF(Ajuste_IR="Sim",N39*N38,"")) ->  | O40: =IF(O6>ano_fim,"",IF(Ajuste_IR="Sim",O39*O38,"")) ->  | Q40: Depreciação Contábil | R40: =IF(R6>ano_fim,"",IF(Ajuste_IR="Sim",R39*R38,"")) ->  | S40: =IF(S6>ano_fim,"",IF(Ajuste_IR="Sim",S39*S38,"")) ->  | T40: =IF(T6>ano_fim,"",IF(Ajuste_IR="Sim",T39*T38,"")) ->  | U40: =IF(U6>ano_fim,"",IF(Ajuste_IR="Sim",U39*U38,"")) ->  | V40: =IF(V6>ano_fim,"",IF(Ajuste_IR="Sim",V39*V38,"")) -> 
D41: Despesa | E41: =IF(E6>ano_fim,"",IF(Ajuste_IR="Sim",E11+E29+E27+E31+E20+E12,E11+E29+E27+E31+E20+E12)) -> 3862951760 | F41: =IF(F6>ano_fim,"",IF(Ajuste_IR="Sim",F11+F29+F27+F31+F20+F12,F11+F29+F27+F31+F20+F12)) -> 3921812509 | G41: =IF(G6>ano_fim,"",IF(Ajuste_IR="Sim",G11+G29+G27+G31+G20+G12,G11+G29+G27+G31+G20+G12)) -> 4011008096 | H41: =IF(H6>ano_fim,"",IF(Ajuste_IR="Sim",H11+H29+H27+H31+H20+H12,H11+H29+H27+H31+H20+H12)) -> 4154770665 | J41: Despesa | K41: =IF(K6>ano_fim,"",IF(Ajuste_IR="Sim",K11+K29+K27+K31+K36+K37,K11+K29+K27+K31)) -> 2340944896 | L41: =IF(L6>ano_fim,"",IF(Ajuste_IR="Sim",L11+L29+L27+L31+L36+L37,L11+L29+L27+L31)) -> 2310909219 | M41: =IF(M6>ano_fim,"",IF(Ajuste_IR="Sim",M11+M29+M27+M31+M36+M37,M11+M29+M27+M31)) -> 2344626011 | N41: =IF(N6>ano_fim,"",IF(Ajuste_IR="Sim",N11+N29+N27+N31+N36+N37,N11+N29+N27+N31)) -> 2374456533 | O41: =IF(O6>ano_fim,"",IF(Ajuste_IR="Sim",O11+O29+O27+O31+O36+O37,O11+O29+O27+O31)) ->  | Q41: Despesa | R41: =IF(R6>ano_fim,"",IF(Ajuste_IR="Sim",R11+R29+R27+R31+R36+R37,R11+R29+R27+R31)) -> 1710903298 | S41: =IF(S6>ano_fim,"",IF(Ajuste_IR="Sim",S11+S29+S27+S31+S36+S37,S11+S29+S27+S31)) -> 1693979927 | T41: =IF(T6>ano_fim,"",IF(Ajuste_IR="Sim",T11+T29+T27+T31+T36+T37,T11+T29+T27+T31)) -> 1725358761 | U41: =IF(U6>ano_fim,"",IF(Ajuste_IR="Sim",U11+U29+U27+U31+U36+U37,U11+U29+U27+U31)) -> 1752746192 | V41: =IF(V6>ano_fim,"",IF(Ajuste_IR="Sim",V11+V29+V27+V31+V36+V37,V11+V29+V27+V31)) -> 
D43: VPL Receita | E43: =NPV(Dados_Entrada!$C$4,E10:H10) -> 1.299620354e+10 | J43: VPL Receita | K43: =NPV(Dados_Entrada!$C$4,K10:O10) -> 7649862944 | Q43: VPL Receita | R43: =NPV(Dados_Entrada!$C$4,R10:V10) -> 5616890051
D44: VPL Despesa | E44: =NPV(Dados_Entrada!$C$4,E41:H41) -> 1.299620354e+10 | J44: VPL Despesa | K44: =NPV(Dados_Entrada!$C$4,K41:O41) -> 7649862944 | Q44: VPL Despesa | R44: =NPV(Dados_Entrada!$C$4,R41:V41) -> 5616890051
D45: Diferença | E45: =ROUND(E43-E44,2) -> 0 | J45: Diferença | K45: =ROUND(K43-K44,2) -> 0 | Q45: Diferença | R45: =ROUND(R43-R44,2) -> 0
E48: SANEPAR
D49: Tarifa P0 Água
D50: Tarifa P0 Esgoto
D51: Tarifa P0 Água+Esgoto | E51: =E7 -> 3.833543256
D53: Equilíbrio: | E53: =IF(AND(vpl_San_A=0,vpl_San_E=0,vpl_San_T=0),"OK!","Erro!") -> OK!

Sheet 10. Ajuste Compens. Extraordin
C3: Extraordinários
G4: Para P0
F5: 2020-10-01 | G5: 2020-12-01
C6: Intercorrência | D6: Índices de Correção do Saldo | E6: Fonte | F6: Saldo em 10/2020 (R$) | G6: Saldo em 12/2020 (R$)
C7: Diferimento do reposicionamento na 1ª RTP | D7: Taxa Selic | E7: Planilha de cálculo da Informação Técnica 27/2022-CES/DRE (IRT 2022)¹ | G7: 1582553875
C8: Suspensão do IRT 2020 | D8: IPCA e WACC | E8: Planilha de cálculo da Informação Técnica 27/2022-CES/DRE (IRT 2022)¹ | G8: 146234932.9
C9: Mudança do indexador no IRT de 2020 | D9: IPCA e WACC | E9: Planilha de cálculo da Informação Técnica 27/2022-CES/DRE (IRT 2022)¹ | G9: 30733268.76
C10: (-) Compensação de Outras Receitas | D10: IPCA | E10: Ajustado (3. Outras Receitas)
C11: Recomposição dos custos da Parcela A | D11: IPCA | E11: Planilha de cálculo da Informação Técnica 27/2022-CES/DRE (IRT 2022)¹ | G11: 46915887.26
C12: Total Compensações | F12: =SUM(F7:F11) -> 0 | G12: =SUM(G7:G11) -> 1806437964
C13: ¹ - https://www.documentador.pr.gov.br/documentador/pub.do?action=d&uuid=@gtf-escriba-agepar@4c82a5c2-e443-4b6d-ad71-10d321d6304e

Sheet 11. Ajuste Compens. IRTs 2022
A1: Resultado IRT - 2022
F3: Não aplicado | I3: Cálculo deliberado na Reunião Extraordinária do Conselho Diretor 13/2022-RECD (13/04/2022)
A4: COMPONENTES TARIFÁRIOS | D4: TARIFA 2ª RTP 2021 (1ª FASE) | E4: TARIFA % | F4: TARIFA 2022 - Com reajuste da Parcela B | G4: TARIFA % - Com reajuste da Parcela B | H4: IMPACTO IRT 2022 - Com reajuste da Parcela B | I4: TARIFA 2022 - Manutenção Parcela B 1a Fase 2a RTP | J4: TARIFA % - Manutenção Parcela B 1a Fase 2a RTP | K4: IMPACTO IRT 2022 -Manutenção Parcela B 1a Fase 2a RTP
A5: TA - Parcela A (Custos não gerenciáveis) | D5: 0.779 | E5: 0.1374502249 | F5: 0.8848357174 | G5: 0.1392371384 | H5: 0.01867412473 | I5: 0.8848357174 | J5: 0.1487422334 | K5: 0.01867412473
C6: Energia Elétrica | D6: 0.486 | E6: 0.0857520017 | F6: 0.6223101612 | G6: 0.09792629787 | H6: 0.02405117114 | I6: 0.6223101612 | J6: 0.1046112871 | K6: 0.02405117114
C7: Produtos Químicos | D7: 0.156 | E7: 0.02752533388 | F7: 0.1535625006 | G7: 0.02416448922 | H7: -0.0004300832272 | I7: 0.1535625006 | J7: 0.02581409053 | K7: -0.0004300832272
C8: Encargos | D8: 0.137 | E8: 0.02417288937 | F8: 0.1089630556 | G8: 0.01714635129 | H8: -0.004946963183 | I8: 0.1089630556 | J8: 0.0183168558 | K8: -0.004946963183
A10: TB - Parcela B (Custos gerenciáveis) | D10: 4.453378506 | E10: 0.785773912 | F10: 4.859475451 | G10: 0.7646837062 | H10: 0.07165355115 | I10: 4.453378506 | J10: 0.7486197181 | K10: 0
C11: Custos Operacionais + Remuneração de Capital + Quota de Reintegração + Inadimplência - Outras Receitas | D11: 4.453378506 | E11: 0.785773912 | F11: 4.859475451 | G11: 0.7646837062 | H11: 0.07165355115 | I11: 4.453378506 | J11: 0.7486197181 | K11: 0
A13: TF - Parcela F - CVA (conta de variação da parcela A) | D13: 0 | E13: 0 | F13: 0.1120140298 | G13: 0.01762645049 | H13: 0.01976425365 | I13: 0.1120140298 | J13: 0.01882972922 | K13: 0.01976425365
C14: Energia Elétrica | D14: 0 | E14: 0 | F14: 0.1300650392 | G14: 0.02046694488 | H14: 0.02294925403 | I14: 0.1300650392 | J14: 0.02186413143 | K14: 0.02294925403
C15: Produtos Químicos | D15: 0 | E15: 0 | F15: 0.008189287076 | G15: 0.001288660567 | H15: 0.001444954237 | I15: 0.008189287076 | J15: 0.001376631646 | K15: 0.001444954237
C16: Encargos | D16: 0 | E16: 0 | F16: -0.02624029646 | G16: -0.004129154958 | H16: -0.004629954623 | I16: -0.02624029646 | J16: -0.00441103385 | K16: -0.004629954623
A18: Parcelas de Compensações | D18: 0.4351276787 | E18: 0.07677586305 | F18: 0.4985577575 | G18: 0.07845270494 | H18: 0.01119188523 | I18: 0.4985577575 | J18: 0.0838083193 | K18: 0.01119188523
B19: Compensações Indexadas à Selic | D19: 0.4587722091 | E19: 0.08094780916 | F19: 0.5276358535 | G19: 0.08302841408 | H19: 0.01215060772 | I19: 0.5276358535 | J19: 0.08869639158 | K19: 0.01215060772
C20: Diferimento 1ª RTP | D20: 0.4587722091 | E20: 0.08094780916 | F20: 0.5276358535 | G20: 0.08302841408 | H20: 0.01215060772 | I20: 0.5276358535 | J20: 0.08869639158 | K20: 0.01215060772
B22: Compensações Indexadas ao IPCA | D22: 0.01198296581 | E22: 0.002114327788 | F22: 0.01340392402 | G22: 0.002109232241 | H22: 0.0002507201853 | I22: 0.01340392402 | J22: 0.002253220067 | K22: 0.0002507201853
C23: CVA 2020 | D23: 0.01198296581 | E23: 0.002114327788 | F23: 0.01340392402 | G23: 0.002109232241 | H23: 0.0002507201853 | I23: 0.01340392402 | J23: 0.002253220067 | K23: 0.0002507201853
B25: Compensações Indexadas ao WACC | D25: -0.0356274962 | E25: -0.006286273898 | F25: -0.04248202003 | G25: -0.00668494138 | H25: -0.001209442674 | I25: -0.04248202003 | J25: -0.00714129235 | K25: -0.001209442674
C26: Suspensão IRT 2020 | D26: 0.05412355849 | E26: 0.009549801397 | F26: 0.06752942592 | G26: 0.0106263839 | H26: 0.002365390878 | I26: 0.06752942592 | J26: 0.01135179947 | K26: 0.002365390878
C27: Substituição IGP-M por IPCA IRT 2020 | D27: 0.01561228602 | E27: 0.002754701188 | F27: 0.01868994605 | G27: 0.002941037023 | H27: 0.0005430360247 | I27: 0.01868994605 | J27: 0.003141808432 | K27: 0.0005430360247
C28: Compensação IRPJ e CSLL (1º Ciclo Tarifário) | D28: -0.1053633407 | E28: -0.01859077648 | F28: -0.128701392 | G28: -0.0202523623 | H28: -0.004117869576 | I28: -0.128701392 | J28: -0.02163490026 | K28: -0.004117869576
A30: TOTAL | D30: 5.667506185 | E30: 1 | F30: 6.354882955 | G30: 1 | H30: 0.1212838148 | I30: 5.948786011 | J30: 1 | K30: 0.04963026361
H32: p0 em valores de dez/2021 | I32: ='1. P0'!F35*(1-'12. Fator X'!$E$32) -> 5.540511468 | J32: =I32/D30-1 -> -0.02240751272
H33: p0 em valores de dez/2022 | I33: =I32*Indices!B63/Indices!B51*(1-'12. Fator X'!$E$32) -> 6.093096568 | J33: =I33/I30-1 -> 0.02425882471
H35: Volumes
H36: jan/2021 a dez/2021 | I36: =SUM(ProjeçõesEsgoto!B15:B26,ProjeçõesÁgua!B15:B26) -> 914051693
H37: jan/2022 a dez/2022 | I37: =SUM(ProjeçõesEsgoto!B27:B38,ProjeçõesÁgua!B27:B38) -> 943451159.9
H39: Receita Auferida até dez/2021 | I39: =D30*I36 -> 5180393624
H40: Receita Requerida até dez/2021 | I40: =I32*I36 -> 5064313888
H41: Ajuste Compensatório (dez/2021) | I41: =I40-I39 -> -116079736
H42: Valores em dez/20 | I42: =I41*Indices!B51/Indices!B63 -> -105468562.2
H44: Receita Auferida jan a dez 2022 | I44: =I30*I37 -> 5612389062
H45: Receita Requerida jan a dez 2022 | I45: =I33*I37 -> 5748539025
H46: Ajuste Compensatório (dez/2022) | I46: =I45-I44 -> 136149962.5
H47: Valores em dez/20 | I47: =I46*(Indices!B51/Indices!B75) -> 116939078.7
H49: Ajuste Total dez/20 | I49: =(I42+I47) -> 11470516.5

Sheet 12. Fator X
C3: Fator X
D5: Redução do Opex | E5: -0.00175
C7: ID | D7: Descrição | E7: Componentes Fórmula | F7: Valor Presente | G7: Ciclo Tarifário - R$ (Dez/20) x 1000
F8: 2020 | G8: 2021 | H8: =G8+1 -> 2022 | I8: 2023 | J8: 2024
C9: 1 | D9: Volume Faturado (A+E) - (1.000 m³) | E9: VF | G9: ='1. P0'!H9 -> 914051.693 | H9: ='1. P0'!I9 -> 943451.1599 | I9: ='1. P0'!J9 -> 965028.821 | J9: ='1. P0'!K9 -> 986400.364
C10: 2 | D10: (+) Receita Requerida | E10: RRD | F10: =NPV($E$30,G10:J10) -> 14769467.62 | G10: =G9*$E$31 -> 4631881.076 | H10: =H9*$E$31 -> 4780860.434 | I10: 4890203.441 | J10: 4998501.961
C11: 3 | D11: (+) Outras Receitas | E11: OR | F11: 419719.5661 | G11: ='1. P0'!H11 -> 141637.8051 | H11: ='1. P0'!I11 -> 130619.309 | I11: ='1. P0'!J11 -> 136950.3568 | J11: ='1. P0'!K11 -> 136950.3568
C12: =C11+1 -> 4 | D12: (-) Fundos Municipais | E12: FM | F12: 287049.6296 | G12: ='1. P0'!H12 -> 62938.89162 | H12: ='1. P0'!I12 -> 125880.1487 | I12: ='1. P0'!J12 -> 94409.52014 | J12: ='1. P0'!K12 -> 94409.52014
C13: =C12+1 -> 5 | D13: (-) Despesas Operacionais - OPEX | E13: OPEX | F13: 7030048.357 | G13: ='1. P0'!H13*((1+$E$5)^(G8-$F$8)) -> 2166867.853 | H13: ='1. P0'!I13*((1+$E$5)^(H8-$F$8)) -> 2262028.282 | I13: ='1. P0'!J13*((1+$E$5)^(I8-$F$8)) -> 2372353.974 | J13: ='1. P0'!K13*((1+$E$5)^(J8-$F$8)) -> 2398701.119
C14: 6 | D14: (-) PPP e Locação de Ativos | E14: PPP | F14: 178889.0144 | G14: ='1. P0'!H14 -> 79096.46033 | H14: ='1. P0'!I14 -> 70931.13443 | I14: ='1. P0'!J14 -> 36890.68816 | J14: ='1. P0'!K14 -> 37406.34582
C15: 7 | D15: (-) Uso de Recurso Hídrico e Taxas | E15: URHT | F15: 104728.7138 | G15: ='1. P0'!H15 -> 35397.55691 | H15: ='1. P0'!I15 -> 35767.65218 | I15: ='1. P0'!J15 -> 32269.32752 | J15: ='1. P0'!K15 -> 32269.32752
C16: 8 | D16: (-) Receitas Irrecuperáveis | E16: RINC | F16: 62191.66461 | G16: ='1. P0'!H16 -> 19504.04726 | H16: ='1. P0'!I16 -> 20131.37348 | I16: ='1. P0'!J16 -> 20591.7979 | J16: ='1. P0'!K16 -> 21047.82417
C17: 9 | D17: (-) Investimentos | E17: CAPEX | F17: 3770411.942 | G17: ='1. P0'!H17 -> 1020588.704 | H17: ='1. P0'!I17 -> 682096.0015 | I17: ='1. P0'!J17 -> 1639478.711 | J17: ='1. P0'!K17 -> 1733317.049
C18: 10 | D18: (-) Variação do Capital de Giro | E18: VarWK | F18: 51164.00117 | G18: ='1. P0'!H19 -> 158152.8202 | H18: ='1. P0'!I19 -> 200761.319 | I18: ='1. P0'!J19 -> -187671.5886 | J18: ='1. P0'!K19 -> -180346.3381
C19: 11 | D19: (-) Base de Capital Inicial | E19: BRL0 | F19: ='5. BRRt'!D6/1000 -> 15610895.83 | G19: ='1. P0'!H20 -> 0 | H19: ='1. P0'!I20 -> 0 | I19: ='1. P0'!J20 -> 0 | J19: ='1. P0'!K20 -> 0
C20: 12 | D20: (+) Base de Capital Final | E20: BRLT | F20: =NPV($E$30,G20:J20) -> 11906191.97 | G20: ='1. P0'!H21 -> 0 | H20: ='1. P0'!I21 -> 0 | I20: ='1. P0'!J21 -> 0 | J20: ='1. P0'!K21 -> 18385685.4
D22: = Livre Fluxo de Caixa | F22: =-F19 -> -15610895.83 | G22: =SUM('12. Fator X'!G10:G11,'12. Fator X'!G20)-SUM('12. Fator X'!G12:G19) -> 1230972.548 | H22: =SUM('12. Fator X'!H10:H11,'12. Fator X'!H20)-SUM('12. Fator X'!H12:H19) -> 1513883.832 | I22: =SUM('12. Fator X'!I10:I11,'12. Fator X'!I20)-SUM('12. Fator X'!I12:I19) -> 1018831.367 | J22: =SUM('12. Fator X'!J10:J11,'12. Fator X'!J20)-SUM('12. Fator X'!J12:J19) -> 19384332.87
D23: = Livre Fluxo de Caixa Descontado | F23: =F22/(1+$E$30)^(F8-$F$8) -> -15610895.83 | G23: =G22/(1+$E$30)^(G8-$F$8) -> 1104260.74 | H23: =H22/(1+$E$30)^(H8-$F$8) -> 1218257.458 | I23: =I22/(1+$E$30)^(I8-$F$8) -> 735482.0865 | J23: =J22/(1+$E$30)^(J8-$F$8) -> 12552895.54
E25: Receita Eficiente | G25: =G10/((1+$E$38)^(G8-$F$8)) -> 4631881.076 | H25: =H10/((1+$E$38)^(H8-$F$8)) -> 4780860.434 | I25: =I10/((1+$E$38)^(I8-$F$8)) -> 4890203.441 | J25: =J10/((1+$E$38)^(J8-$F$8)) -> 4998501.961
E26: Receita sem eficiência | G26: ='1. P0'!H10*((1-$E$32)^(G8-$F$8))/((1+$E$38)^(G8-$F$8)) -> 4637520.226 | H26: ='1. P0'!I10*((1-$E$32)^(H8-$F$8))/((1+$E$38)^(H8-$F$8)) -> 4782877.953 | I26: ='1. P0'!J10*((1-$E$32)^(I8-$F$8))/((1+$E$38)^(I8-$F$8)) -> 4888380.205 | J26: ='1. P0'!K10*((1-$E$32)^(J8-$F$8))/((1+$E$38)^(J8-$F$8)) -> 4992668.528
D28: Receita Fator X | E28: =SUM(G25:J25)-SUM(G26:J26) -> 6.347894669e-06
D29: Valor Presente Líquido | E29: =SUM(F23:J23) -> 0 | H29: Atingir Meta: Botão iterativo para calcular a receita que zera o VPL do Fluxo e na sequência determina o Fator X
C30: =C20+1 -> 13 | D30: WACC Pré | E30: 0.1147480877
D31: Tarifa Média Máxima - P0 (R$ / m3) | E31: 5.067416987
D32: Fator X % | E32: 0.0007944980259

Sheet Suporte>>>

Sheet Opex>

Sheet Perdas SANEPAR
F1: ANTES DA CP | G1: DEPOIS DA CP (FINAL)
A2: Sigla do Prestador | B2: Ano de Referência | C2: IN013 - Índice de perdas faturamento | D2: IN049 - Índice de perdas na distribuição | E2: IN050 - Índice bruto de perdas lineares | F2: IN051 - Índice de perdas por ligação | G2: IN051 - Índice de perdas por ligação
A3: SANEPAR | B3: 2020 | C3: 31.37 | D3: 34.12 | E3: 12.15 | F3: 219.86 | G3: =G4*H5 -> 226.3428057
A4: SANEPAR | B4: 2019 | C4: 31.85 | D4: 34.25 | E4: 13.31 | F4: 229.8 | G4: 229.8
A5: SANEPAR | B5: 2018 | C5: 32.32 | D5: 34.99 | E5: 13.59 | F5: 233.31 | G5: 233.31 | H5: =G4/G5 -> 0.9849556384 | I5: =H5-1 -> -0.01504436158
A6: SANEPAR | B6: 2017 | C6: 27.24 | D6: 34.24 | E6: 13.54 | F6: 230.99 | G6: 230.99
C8: IN013 - Índice de perdas faturamento | D8: IN049 - Índice de perdas na distribuição | E8: IN050 - Índice bruto de perdas lineares
A9: Média 17 - 20 | C9: =AVERAGE(C3:C6) -> 30.695 | D9: =AVERAGE(D3:D6) -> 34.4 | E9: =AVERAGE(E3:E6) -> 13.1475 | F9: =AVERAGE(F3:F6) -> 228.49 | G9: =AVERAGE(G3:G6) -> 230.1107014
A10: Variação % do melhor resultado em relação à média | C10: =(C6-C9)/C9 -> -0.1125590487 | D10: =(D3-D9)/D9 -> -0.008139534884 | E10: =(E3-E9)/E9 -> -0.07586993725 | F10: =(F3-F9)/F9 -> -0.03776970546 | G10: =(G3-G9)/G9 -> -0.01637427419
A11: CAGR | C11: =(C10+1)^(1/3)-1 -> -0.03902264203 | D11: =(D10+1)^(1/3)-1 -> -0.0027205731 | E11: -0.02595796472 | F11: -0.01275181953 | G11: =(G10+1)^(1/4)-1 -> -0.004118947328
G15: Projeção de Perdas no Volume Produzido
F16: 21 | G16: =G9*(1+$G$11) -> 229.1628876
F17: 22 | G17: =G16*(1+$G$11) -> 228.2189777
F18: 23 | G18: =G17*(1+$G$11) -> 227.2789558
F19: 24 | G19: 226.3428057
G20: =AVERAGE(G16:G19) -> 227.7509067
G21: =G20/G9-1 -> -0.01025504128
G22: =G19/G9-1 -> -0.01637427419

Sheet AlugueisReal (2)
A1: Análises | B1: 2017 | F1: 2018 | J1: 2019 | N1: 2020 | R1: 2021 | V1: até 09/2022
B2: Administrativo | C2: Comercial | D2: Operacional (Água e Esgoto) | E2: Total | F2: Administrativo | G2: Comercial | H2: Operacional (Água e Esgoto) | I2: Total | J2: Administrativo | K2: Comercial | L2: Operacional (Água e Esgoto) | M2: Total | N2: Administrativo | O2: Comercial | P2: Operacional (Água e Esgoto) | Q2: Total | R2: Administrativo | S2: Comercial | T2: Operacional (Água e Esgoto) | U2: Total | V2: Administrativo | W2: Comercial | X2: Operacional (Água e Esgoto) | Y2: Total
A3: 312 - Locações de bens móveis | B3: 32538317.74 | C3: 162712.73 | D3: 2947514.12 | E3: =SUM(B3:D3) -> 35648544.59 | F3: 27372358.45 | G3: 1744739.78 | H3: 7796628.24 | I3: =SUM(F3:H3) -> 36913726.47 | J3: 2229414.38 | K3: 114757.21 | L3: 1899521.48 | M3: =SUM(J3:L3) -> 4243693.07 | N3: 1719040.2 | O3: 111175.37 | P3: 2012279.81 | Q3: =SUM(N3:P3) -> 3842495.38 | R3: 2203204.89 | S3: 1134363.56 | T3: 2165408.6 | U3: 5502977.05 | V3: 1560694.29 | W3: 729879.1 | X3: 1964289.89 | Y3: =SUM(V3:X3) -> 4254863.28
A4: 319 - Aluguéis de imóveis | B4: 10237315.58 | C4: 1352201.76 | D4: 629391.37 | E4: =SUM(B4:D4) -> 12218908.71 | F4: 10593906.87 | G4: 1486862.47 | H4: 755583.52 | I4: =SUM(F4:H4) -> 12836352.86 | J4: 226839.23 | K4: 2844.74 | L4: 0 | M4: =SUM(J4:L4) -> 229683.97 | N4: 406244.15 | O4: 13549.09 | P4: 0 | Q4: =SUM(N4:P4) -> 419793.24 | R4: 321783.11 | S4: 14044.57 | T4: 0 | U4: 335827.68 | V4: 222280.12 | W4: 251.75 | X4: 0 | Y4: =SUM(V4:X4) -> 222531.87
A5: 504 - Amort. Direito de Uso Arrendamento | B5: 0 | C5: 0 | D5: 0 | E5: =SUM(B5:D5) -> 0 | F5: 0 | G5: 0 | H5: 0 | I5: =SUM(F5:H5) -> 0 | J5: 33157317.63 | K5: 8025519.78 | L5: 7174141.83 | M5: =SUM(J5:L5) -> 48356979.24 | N5: 30962623.7 | O5: 7692651.62 | P5: 7333204.69 | Q5: =SUM(N5:P5) -> 45988480.01 | R5: 30467610.26 | S5: 6167471.94 | T5: 7825684.37 | U5: 44460766.57 | V5: 26048372.84 | W5: 3361668.7 | X5: 6026606.75 | Y5: =SUM(V5:X5) -> 35436648.29
A6: 911 - Juros e Atual. Mon. Arrend Mercantil - CPC06 | B6: 0 | C6: 0 | D6: 0 | E6: =SUM(B6:D6) -> 0 | F6: 0 | G6: 0 | H6: 0 | I6: =SUM(F6:H6) -> 0 | J6: 7268458.1 | K6: 0 | L6: 0 | M6: 7268458.1 | N6: 5231810.25 | O6: 0 | P6: 0 | Q6: =SUM(N6:P6) -> 5231810.25 | R6: 1822.71 | U6: 1822.71 | V6: 2015834.64 | Y6: =SUM(V6:X6) -> 2015834.64
A7: Total | B7: =SUM(B3:B4) -> 42775633.32 | C7: =SUM(C3:C4) -> 1514914.49 | D7: =SUM(D3:D4) -> 3576905.49 | E7: =SUM(B7:D7) -> 47867453.3 | F7: =SUM(F3:F4) -> 37966265.32 | G7: =SUM(G3:G4) -> 3231602.25 | H7: =SUM(H3:H4) -> 8552211.76 | I7: =SUM(I3:I4) -> 49750079.33 | J7: =SUM(J3:J6) -> 42882029.34 | K7: =SUM(K3:K6) -> 8143121.73 | L7: =SUM(L3:L6) -> 9073663.31 | M7: =SUM(M3:M6) -> 60098814.38 | N7: =SUM(N5:N6) -> 36194433.95 | O7: =SUM(O5:O6) -> 7692651.62 | P7: =SUM(P5:P6) -> 7333204.69 | Q7: =SUM(Q3:Q6) -> 55482578.88 | R7: 32994420.97 | S7: 7315880.07 | T7: 9991092.97 | U7: 50301394.01 | V7: =SUM(V3:V6) -> 29847181.89 | W7: 4091799.55 | X7: 7990896.64 | Y7: 41929878.08
A8: Índice | E8: 1.1359879 | I8: 1.0918143 | M8: 1.0571929 | Q8: 1 | U8: =1+0.1154688 -> 1.1154688 | Y8: =1+0.1799969 -> 1.1799969
A9: Total Atualizado | E9: =E8*E7 -> 54376847.75 | I9: =I8*I7 -> 54317848.04 | M9: =M8*M7 -> 63536039.86 | Q9: =Q7*Q8 -> 55482578.88 | U9: =U7/U8 -> 45094397.99 | Y9: =Y7/Y8 -> 35533888.33

Sheet AluguéisProj (2)
N1: PROJEÇÃO MENSAL DE VALORES | O1: =SUBTOTAL(9,O3:O140) -> 3424309.861 | P1: =SUBTOTAL(9,P3:P140) -> 3366217.306 | Q1: =SUBTOTAL(9,Q3:Q140) -> 3435295.878 | R1: 3437067.413 | S1: 3384052.394 | T1: 3487565.714 | U1: 3576514.509 | V1: 3511185.725 | W1: 3512685.326 | X1: 3337531.637 | Y1: 3585053.751 | Z1: 4437923.606 | AA1: 4448449.997 | AB1: 4452761.514 | AC1: 4471495.227 | AD1: 4481022.29 | AE1: 4493898.939 | AF1: 4514554.366 | AG1: 4524390.226 | AH1: 4536517.792 | AI1: 4543032.125 | AJ1: 4542007.405 | AK1: 4548711.102 | AL1: 4558252.784 | AM1: 4567648.143 | AN1: 4571574.71 | AO1: 4528694.785 | AP1: 4537217.534 | AQ1: 4560193.407 | AR1: 4574237.494 | AS1: 4557300.098 | AT1: 4567655.865
A2: CONTRATO | B2: OS/OF | C2: TIPO | D2: ADITIVO | E2: REC. | F2: LOCALIDADE | G2: OBJETO DO CONTRATO | H2: VR CONTRATO | I2: INIC.EXEC. | J2: TERM.EXEC. | K2: TEMPO | L2: PASSIVEIS DE RENOVAÇÃO | M2: GERÊNCIA | N2: 2022-04-01 | O2: 2022-05-01 | P2: 2022-06-01 | Q2: 2022-07-01 | R2: 2022-08-01 | S2: 2022-09-01 | T2: 2022-10-01 | U2: 2022-11-01 | V2: 2022-12-01 | W2: 2023-01-01 | X2: 2023-02-01 | Y2: 2023-03-01 | Z2: 2023-04-01 | AA2: 2023-05-01 | AB2: 2023-06-01 | AC2: 2023-07-01 | AD2: 2023-08-01 | AE2: 2023-09-01 | AF2: 2023-10-01 | AG2: 2023-11-01 | AH2: 2023-12-01 | AI2: 2024-01-01 | AJ2: 2024-02-01 | AK2: 2024-03-01 | AL2: 2024-04-01 | AM2: 2024-05-01 | AN2: 2024-06-01 | AO2: 2024-07-01 | AP2: 2024-08-01 | AQ2: 2024-09-01 | AR2: 2024-10-01 | AS2: 2024-11-01 | AT2: 2024-12-01
B3: 42300/2022 | C3: CL | D3: N | E3: 319 | F3: APUCARANA | G3: CONTRATACAO DE LOCACAO DE IMOVEL COM 424,68M DE AREA PARA A | H3: 184500 | I3: 2022-12-01 | J3: 2023-11-30 | K3: 364 | L3: SIM | M3: GGPINF | N3: 700 | O3: 700 | P3: 700 | Q3: =(700)*111% -> 777 | R3: =(700)*111% -> 777 | S3: 777 | T3: 777 | U3: 15375 | V3: 777 | W3: 777 | X3: 777 | Y3: 777 | Z3: 777 | AA3: 777 | AB3: 777 | AC3: =AB3*111% -> 862.47 | AD3: 862.47 | AE3: 862.47 | AF3: 862.47 | AG3: 862.47 | AH3: 862.47 | AI3: 862.47 | AJ3: 862.47 | AK3: 862.47 | AL3: 862.47 | AM3: 862.47 | AN3: 862.47 | AO3: =AN3*111% -> 957.3417 | AP3: 957.3417 | AQ3: 957.3417 | AR3: 957.3417 | AS3: 957.3417 | AT3: 957.3417
B4: 1182913/17 | C4: CL | D4: C | E4: 319 | F4: ARAPONGAS | G4: ATENDIMENTO CLIENTES, COORD. COMERCIAL GCND, R. CONDOR 916 | H4: 55800 | I4: 2022-01-01 | J4: 2022-12-31 | K4: 364 | L4: SIM | M4: GGPINF | N4: 2456.8 | O4: 2456.8 | P4: 2456.8 | Q4: =P4*111% -> 2727.048 | R4: 2727.048 | S4: 2727.048 | T4: 2727.048 | U4: 4500 | V4: 2727.048 | W4: 2727.048 | X4: 2727.048 | Y4: 2727.048 | Z4: 2727.048 | AA4: 2727.048 | AB4: 2727.048 | AC4: 2727.048 | AD4: 2727.048 | AE4: 2727.048 | AF4: 2727.048 | AG4: =AF4*111% -> 3027.02328 | AH4: 3027.02328 | AI4: 3027.02328 | AJ4: 3027.02328 | AK4: 3027.02328 | AL4: 3027.02328 | AM4: 3027.02328 | AN4: 3027.02328 | AO4: 3027.02328 | AP4: 3027.02328 | AQ4: 3027.02328 | AR4: 3027.02328 | AS4: =AR4*111% -> 3359.995841 | AT4: 3359.995841
B5: 49892/2022 | C5: CL | D5: C | E5: 319 | F5: ARAPONGAS | G5: LOCACAO IMOVEL R. DRONGO 966 GERNCIA GRAR | H5: 42300 | I5: 2022-09-01 | J5: 2023-08-31 | K5: 364 | L5: SIM | M5: GGPINF | N5: 604 | O5: 604 | P5: 604 | Q5: 604 | R5: =Q5*111% -> 670.44 | S5: 670.44 | T5: 670.44 | U5: 3400 | V5: 670.44 | W5: 670.44 | X5: 670.44 | Y5: 670.44 | Z5: 670.44 | AA5: 670.44 | AB5: 670.44 | AC5: 670.44 | AD5: =AC5*111% -> 744.1884 | AE5: 744.1884 | AF5: 744.1884 | AG5: 744.1884 | AH5: 744.1884 | AI5: 744.1884 | AJ5: 744.1884 | AK5: 744.1884 | AL5: 744.1884 | AM5: 744.1884 | AN5: 744.1884 | AO5: 744.1884 | AP5: =AO5*111% -> 826.049124 | AQ5: 826.049124 | AR5: 826.049124 | AS5: 826.049124 | AT5: 826.049124
B6: 10624/2022 | C6: CL | D6: N | E6: 319 | F6: ARAUCARIA | G6: LOCACAO BARRACAO ARAUCARIA GRCTS | H6: 84000 | I6: 2022-10-01 | J6: 2023-09-30 | K6: 364 | L6: SIM | M6: GGPINF | N6: 970 | O6: 970 | P6: =O6*111% -> 1076.7 | Q6: 1076.7 | R6: 1076.7 | S6: 1076.7 | T6: 1076.7 | U6: 7000 | V6: 1076.7 | W6: 1076.7 | X6: 1076.7 | Y6: 1076.7 | Z6: 1076.7 | AA6: 1076.7 | AB6: 0 | AC6: 0 | AD6: 0 | AE6: 0 | AF6: 0 | AG6: 0 | AH6: 0 | AI6: 0 | AJ6: 0 | AK6: 0 | AL6: 0 | AM6: 0 | AN6: 0 | AO6: 0 | AP6: 0 | AQ6: 0 | AR6: 0 | AS6: 0 | AT6: 0
B7: 46355/2021 | C7: CL | D7: O | E7: 319 | F7: BELA VISTA | G7: LOCACAO DE IMOVEL NA RUA TEREZINHA SALOMAO DE ARAUJO, N 367 | H7: 10800 | I7: 2021-11-30 | J7: 2022-11-30 | K7: 365 | L7: SIM | M7: GGPINF | N7: 900 | O7: 900 | P7: 900 | Q7: 900 | R7: 900 | S7: 900 | T7: 900 | U7: 900 | V7: =U7*111% -> 999 | W7: 999 | X7: 999 | Y7: 999 | Z7: 999 | AA7: 999 | AB7: 999 | AC7: 999 | AD7: 999 | AE7: 999 | AF7: 999 | AG7: 999 | AH7: =AG7*111% -> 1108.89 | AI7: 1108.89 | AJ7: 1108.89 | AK7: 1108.89 | AL7: 1108.89 | AM7: 1108.89 | AN7: 1108.89 | AO7: 1108.89 | AP7: 1108.89 | AQ7: 1108.89 | AR7: 1108.89 | AS7: 1108.89 | AT7: =AS7*111% -> 1230.8679
B8: 30123/2018 | C8: CL | D8: N | E8: 319 | F8: BRAGANEY | G8: CONTRATO DE LOCACAO DE IMOVEL EM BARAGANEY | H8: 10100 | I8: 2022-02-01 | J8: 2023-01-31 | K8: 365 | L8: SIM | M8: GGPINF | N8: 1200 | O8: 1200 | P8: 1200 | Q8: =P8*111% -> 1332 | R8: 1332 | S8: 1332 | T8: 1332 | U8: 800 | V8: 1332 | W8: 1332 | X8: 1332 | Y8: 1332 | Z8: 1332 | AA8: 1332 | AB8: 1332 | AC8: =AB8*111% -> 1478.52 | AD8: 1478.52 | AE8: 1478.52 | AF8: 1478.52 | AG8: 1478.52 | AH8: 1478.52 | AI8: 1478.52 | AJ8: 1478.52 | AK8: 1478.52 | AL8: 1478.52 | AM8: 1478.52 | AN8: 1478.52 | AO8: =AN8*111% -> 1641.1572 | AP8: 1641.1572 | AQ8: 1641.1572 | AR8: 1641.1572 | AS8: 1641.1572 | AT8: 1641.1572
B9: 38891/2020 | C9: CL | D9: C | E9: 319 | F9: BRASILANDI | G9: LOCACAO DE IMOVEL PARA ATEND PUBLICO BRASILANDIA | H9: 10395 | I9: 2022-02-01 | J9: 2023-01-31 | K9: 364 | L9: SIM | M9: GGPINF | N9: 3626.07 | O9: 3626.07 | P9: 3626.07 | Q9: 3626.07 | R9: 3626.07 | S9: 3626.07 | T9: 3626.07 | U9: 866.25 | V9: 3626.07 | W9: 3626.07 | X9: 3626.07 | Y9: 3626.07 | Z9: 3626.07 | AA9: 3626.07 | AB9: =3626.07*110% -> 3988.677 | AC9: 3988.677 | AD9: 3988.677 | AE9: 3988.677 | AF9: 3988.677 | AG9: 3988.677 | AH9: 3988.677 | AI9: 3988.677 | AJ9: 3988.677 | AK9: 3988.677 | AL9: 3988.677 | AM9: 3988.677 | AN9: =AM9*111% -> 4427.43147 | AO9: 4427.43147 | AP9: 4427.43147 | AQ9: 4427.43147 | AR9: 4427.43147 | AS9: 4427.43147 | AT9: 4427.43147
C10: CL | D10: N | E10: 319 | F10: CAMPINA GR | G10: LOCACAO DE IMOVEL UTILIZADO COMO ATENDIMENTO AO CLIENTE | H10: 77600.01 | I10: 2022-10-10 | J10: 2024-10-09 | K10: 364 | L10: SIM | M10: GGPINF | N10: 1245 | O10: 1245 | P10: 1245 | Q10: 1245 | R10: 1245 | S10: 1245 | T10: 1245 | U10: 3200 | V10: =U10*111% -> 3552 | W10: 1381.95 | X10: 1381.95 | Y10: 1381.95 | Z10: 1381.95 | AA10: 1381.95 | AB10: 1381.95 | AC10: 1381.95 | AD10: 1381.95 | AE10: 1381.95 | AF10: 1381.95 | AG10: 1381.95 | AH10: =AG10*111% -> 1533.9645 | AI10: 1533.9645 | AJ10: 1533.9645 | AK10: 1533.9645 | AL10: 1533.9645 | AM10: 1533.9645 | AN10: 1533.9645 | AO10: 1533.9645 | AP10: 1533.9645 | AQ10: 1533.9645 | AR10: 1533.9645 | AS10: 1533.9645 | AT10: =AS10*111% -> 1702.700595
B11: 30596/2018 | C11: CL | D11: N | E11: 319 | F11: CAMPO LARG | G11: RENOVACAO DO CONTRATO DE LOCACAO 30.596 | H11: 208881 | I11: 2020-06-01 | J11: 2023-05-31 | K11: 1095 | L11: SIM | M11: GGPINF | N11: 5802.25 | O11: 5802.25 | P11: 5802.25 | Q11: =P11*111% -> 6440.4975 | R11: 6440.4975 | S11: 6440.4975 | T11: 6440.4975 | U11: 5802.25 | V11: 6440.4975 | W11: 6440.4975 | X11: 6440.4975 | Y11: 6440.4975 | Z11: 6440.4975 | AA11: 6440.4975 | AB11: 6440.4975 | AC11: =AB11*111% -> 7148.952225 | AD11: 7148.952225 | AE11: 7148.952225 | AF11: 7148.952225 | AG11: 7148.952225 | AH11: 7148.952225 | AI11: 7148.952225 | AJ11: 7148.952225 | AK11: 7148.952225 | AL11: 7148.952225 | AM11: 7148.952225 | AN11: 7148.952225 | AO11: 7148.952225 | AP11: =AO11*111% -> 7935.33697 | AQ11: 7935.33697 | AR11: 7935.33697 | AS11: 7935.33697 | AT11: 7935.33697
B12: 31847/2018 | C12: CL | D12: N | E12: 319 | F12: CAMPO LARG | G12: LOCACAO IMOVEL ENVASE | H12: 132485.46 | I12: 2021-10-01 | J12: 2023-09-30 | K12: 729 | L12: SIM | M12: GGPINF | N12: 5375.1 | O12: 5375.1 | P12: 5375.1 | Q12: 5375.1 | R12: 5375.1 | S12: 5375.1 | T12: =S12*111% -> 5966.361 | U12: 5375.1 | V12: 5966.361 | W12: 5966.361 | X12: 5966.361 | Y12: 5966.361 | Z12: 5966.361 | AA12: 5966.361 | AB12: 5966.361 | AC12: 5966.361 | AD12: 5966.361 | AE12: 5966.361 | AF12: =AE12*111% -> 6622.66071 | AG12: 6622.66071 | AH12: 6622.66071 | AI12: 6622.66071 | AJ12: 6622.66071 | AK12: 6622.66071 | AL12: 6622.66071 | AM12: 6622.66071 | AN12: 6622.66071 | AO12: 6622.66071 | AP12: 6622.66071 | AQ12: 6622.66071 | AR12: =AQ12*111% -> 7351.153388 | AS12: 7351.153388 | AT12: 7351.153388
B13: 44715/2021 | C13: CL | D13: O | E13: 319 | F13: CAPANEMA | G13: LOCACAO DE UMA SALA COMERCIAL PARA ATENDIMENTO AOS CLIENTES | H13: 54297.56 | I13: 2021-08-20 | J13: 2025-08-19 | K13: 1460 | L13: SIM | M13: GGPINF | N13: 1100 | O13: 1100 | P13: 1100 | Q13: 1100 | R13: 1100 | S13: =R13*111% -> 1221 | T13: 1221 | U13: 1210.88 | V13: 1221 | W13: 1221 | X13: 1221 | Y13: 1221 | Z13: 1221 | AA13: 1221 | AB13: 1221 | AC13: 1221 | AD13: 1221 | AE13: =AD13*111% -> 1355.31 | AF13: 1355.31 | AG13: 1355.31 | AH13: 1355.31 | AI13: 1355.31 | AJ13: 1355.31 | AK13: 1355.31 | AL13: 1355.31 | AM13: 1355.31 | AN13: 1355.31 | AO13: 1355.31 | AP13: 1355.31 | AQ13: =AP13*111% -> 1504.3941 | AR13: 1504.3941 | AS13: 1504.3941 | AT13: 1504.3941
B14: 48513/2022 | C14: OF | D14: N | E14: 319 | F14: CASCAVEL | G14: CONTRATO DE LOCACAO ESTACIONAM VEICULOS DA SANEPA | H14: 118800 | I14: 2022-08-01 | J14: 2027-08-01 | K14: 364 | L14: SIM | M14: GGPINF | N14: 6405.6 | O14: 6405.6 | P14: 6405.6 | Q14: 6405.6 | R14: =Q14-111% -> 6404.49 | S14: 6404.49 | T14: 6404.49 | U14: 1850 | V14: 6404.49 | W14: 6404.49 | X14: 6404.49 | Y14: 6404.49 | Z14: 6404.49 | AA14: 6404.49 | AB14: 6404.49 | AC14: 6404.49 | AD14: =AC14*111% -> 7108.9839 | AE14: 7108.9839 | AF14: 7108.9839 | AG14: 7108.9839 | AH14: 7108.9839 | AI14: 7108.9839 | AJ14: 7108.9839 | AK14: 7108.9839 | AL14: 7108.9839 | AM14: 7108.9839 | AN14: 7108.9839 | AO14: 7108.9839 | AP14: =AO14*111% -> 7890.972129 | AQ14: 7890.972129 | AR14: 7890.972129 | AS14: 7890.972129 | AT14: 7890.972129
B15: 39385/2020 | C15: CL | D15: R | E15: 319 | F15: CASCAVEL | G15: LOCACAO DAS SALAS ADMINISTRATIVAS DO ED. FUSAN EM CASCAVEL | H15: 150884.16 | I15: 2020-03-31 | J15: 2025-03-31 | K15: 1460 | L15: SIM | M15: GGPINF | N15: =H15/5 -> 30176.832 | O15: 30176.832 | P15: 30176.832 | Q15: 30176.832 | R15: 30176.832 | S15: 30176.832 | T15: 30176.832 | U15: 54119.78 | V15: 30176.832 | W15: 30176.832 | X15: 30176.832 | Y15: 30176.832 | Z15: =Y15*111% -> 33496.28352 | AA15: 33496.28352 | AB15: 33496.28352 | AC15: 33496.28352 | AD15: 33496.28352 | AE15: 33496.28352 | AF15: 33496.28352 | AG15: 33496.28352 | AH15: 33496.28352 | AI15: 33496.28352 | AJ15: 33496.28352 | AK15: 33496.28352 | AL15: =AK15*111% -> 37180.87471 | AM15: 37180.87471 | AN15: 37180.87471 | AO15: 37180.87471 | AP15: 37180.87471 | AQ15: 37180.87471 | AR15: 37180.87471 | AS15: 37180.87471 | AT15: 37180.87471
B16: 361997 | C16: OF | D16: O | E16: 312 | F16: CASCAVEL | G16: LOCACAO DE 01 HUM CONTEINER 40 PES STANDARD 40 X 8 X8 6 | H16: 10020 | I16: 2022-03-11 | J16: 2023-03-11 | K16: 365 | L16: SIM | M16: GGPINF | N16: 835 | O16: 835 | P16: 835 | Q16: 835 | R16: 835 | S16: 835 | T16: 835 | U16: 835 | V16: 835 | W16: 835 | X16: 835 | Y16: 835 | Z16: 0 | AA16: 0 | AB16: 0 | AC16: 0 | AD16: 0 | AE16: 0 | AF16: 0 | AG16: 0 | AH16: 0 | AI16: 0 | AJ16: 0 | AK16: 0 | AL16: 0 | AM16: 0 | AN16: 0 | AO16: 0 | AP16: 0 | AQ16: 0 | AR16: 0 | AS16: 0 | AT16: 0
B17: 49538/2022 | C17: CL | D17: N | E17: 319 | F17: CASCAVEL | G17: CONTRATO DE ALUGUEL ESTACIONAMENTO 7 DE SETEMBRO | H17: 210000 | I17: 2022-08-01 | J17: 2027-07-31 | K17: 364 | L17: SIM | M17: GGPINF | N17: 2750 | O17: 2750 | P17: 2750 | Q17: 2750 | R17: =Q17*111% -> 3052.5 | S17: 3052.5 | T17: 3052.5 | U17: 3500 | V17: 3052.5 | W17: 3052.5 | X17: 3052.5 | Y17: 3052.5 | Z17: 3052.5 | AA17: 3052.5 | AB17: 3052.5 | AC17: 3052.5 | AD17: =AC17*111% -> 3388.275 | AE17: 3388.275 | AF17: 3388.275 | AG17: 3388.275 | AH17: 3388.275 | AI17: 3388.275 | AJ17: 3388.275 | AK17: 3388.275 | AL17: 3388.275 | AM17: 3388.275 | AN17: 3388.275 | AO17: 3388.275 | AP17: =AO17*111% -> 3760.98525 | AQ17: 3760.98525 | AR17: 3760.98525 | AS17: 3760.98525 | AT17: 3760.98525
B18: 361142 | C18: OF | D18: O | E18: 312 | F18: CASCAVEL | G18: LOCACAO DE CAMINHAO TIPO MUNCK PARA USO NO AMBITO DA GERENCI | H18: 8700 | I18: 2022-02-17 | J18: 2023-02-17 | K18: 365 | L18: SIM | M18: GGPINF | N18: 725 | O18: 725 | P18: 725 | Q18: 725 | R18: 725 | S18: 725 | T18: 725 | U18: 725 | V18: 725 | W18: 725 | X18: 725 | Y18: 0 | Z18: 0 | AA18: 0 | AB18: 0 | AC18: 0 | AD18: 0 | AE18: 0 | AF18: 0 | AG18: 0 | AH18: 0 | AI18: 0 | AJ18: 0 | AK18: 0 | AL18: 0 | AM18: 0 | AN18: 0 | AO18: 0 | AP18: 0 | AQ18: 0 | AR18: 0 | AS18: 0 | AT18: 0
B19: 49755/2022 | C19: CL | D19: C | E19: 319 | F19: CASCAVEL | G19: RENOVACAO CONTRATO ALUGUEL IMOVEL AV. TANCREDO NEVES 1723 | H19: 340342.63 | I19: 2022-09-01 | J19: 2023-08-01 | K19: 365 | L19: SIM | M19: GGPINF | N19: 25156.95 | O19: 25156.95 | P19: 25156.95 | Q19: 25156.95 | R19: 25156.95 | S19: 25156.95 | T19: =S19*111% -> 27924.2145 | U19: 27000 | V19: =U19*111% -> 29970 | W19: 33266.7 | X19: 36926.037 | Y19: 40987.90107 | Z19: 45496.57019 | AA19: =Z19*111% -> 50501.19291 | AB19: 56056.32413 | AC19: 62222.51978 | AD19: 69066.99696 | AE19: =AD19*111% -> 76664.36662 | AF19: 88010.34674 | AG19: 88010.34674 | AH19: 88010.34674 | AI19: 88010.34674 | AJ19: 88010.34674 | AK19: 88010.34674 | AL19: 88010.34674 | AM19: 88010.34674 | AN19: 88010.34674 | AO19: 88010.34674 | AP19: 88010.34674 | AQ19: =AP19*111% -> 97691.48489 | AR19: 97691.48489 | AS19: 97691.48489 | AT19: 97691.48489
B20: 30716/2018 | C20: CL | D20: N | E20: 319 | F20: CASCAVEL | G20: CONTRATO DE LOCACAO DE IMOVEL ATENDIM. REGIAO NORTE | H20: 23680 | I20: 2022-06-01 | J20: 2023-05-31 | K20: 365 | L20: SIM | M20: GGPINF | N20: 1973 | O20: 1973 | P20: 1973 | Q20: 1973 | R20: 1973 | S20: 1973 | T20: 1973 | U20: 1890 | V20: 1973 | W20: 1973 | X20: 1973 | Y20: 1973 | Z20: 1973 | AA20: 1973 | AB20: =AA20*111% -> 2190.03 | AC20: 2190.03 | AD20: 2190.03 | AE20: 2190.03 | AF20: 2190.03 | AG20: 2190.03 | AH20: 2190.03 | AI20: 2190.03 | AJ20: 2190.03 | AK20: 2190.03 | AL20: 2190.03 | AM20: 2190.03 | AN20: =AM20*111% -> 2430.9333 | AO20: 2430.9333 | AP20: 2430.9333 | AQ20: 2430.9333 | AR20: 2430.9333 | AS20: 2430.9333 | AT20: 2430.9333
B21: 34826/2019 | C21: CL | D21: C | E21: 319 | F21: COLOMBO | G21: LOCACAO DE IMOVEL A SER UTILIZADO COMO ESCRITORIO PARA AS | H21: 36054.79 | I21: 2022-05-01 | J21: 2023-04-30 | K21: 364 | L21: SIM | M21: GGPINF | N21: 2600 | O21: 2860 | P21: 2860 | Q21: 2860 | R21: 2860 | S21: 2860 | T21: 2860 | U21: 2860 | V21: 2860 | W21: 2860 | X21: 2860 | Y21: 2860 | Z21: 2860 | AA21: =Z21*111% -> 3174.6 | AB21: 3174.6 | AC21: 3174.6 | AD21: 3174.6 | AE21: 3174.6 | AF21: 3174.6 | AG21: 3174.6 | AH21: 3174.6 | AI21: 3174.6 | AJ21: 3174.6 | AK21: 3174.6 | AL21: 3174.6 | AM21: =AL21*111% -> 3523.806 | AN21: 3523.806 | AO21: 3523.806 | AP21: 3523.806 | AQ21: 3523.806 | AR21: 3523.806 | AS21: 3523.806 | AT21: 3523.806
B22: 30985/2018 | C22: CL | D22: C | E22: 319 | F22: COLOMBO | G22: LOCACAO DE IMOVEL A SER UTILIZADO COMO BASE OPERACIONAL | H22: 36938.97 | I22: 2022-07-01 | J22: 2023-06-30 | K22: 364 | L22: SIM | M22: GGPINF | N22: 2818.25 | O22: 2818.25 | P22: 2818.25 | Q22: 2818.25 | R22: =Q22*111% -> 3128.2575 | S22: 3128.2575 | T22: 3128.2575 | U22: 2860 | V22: 3128.2575 | W22: 3128.2575 | X22: 3128.2575 | Y22: 3128.2575 | Z22: 3128.2575 | AA22: 3128.2575 | AB22: 3128.2575 | AC22: 3128.2575 | AD22: =AC22*111% -> 3472.365825 | AE22: 3472.365825 | AF22: 3472.365825 | AG22: 3472.365825 | AH22: 3472.365825 | AI22: 3472.365825 | AJ22: 3472.365825 | AK22: 3472.365825 | AL22: 3472.365825 | AM22: 3472.365825 | AN22: 3472.365825 | AO22: 3472.365825 | AP22: =AO22*111% -> 3854.326066 | AQ22: 3854.326066 | AR22: 3854.326066 | AS22: 3854.326066 | AT22: 3854.326066
B23: 1218763/2018 | C23: CL | D23: N | E23: 319 | F23: COLOMBO | G23: LOCACAO DE IMOVEL A SER UTILZADO COMO ESCRITORIO ATENDIMENT | H23: 155230.8 | I23: 2021-03-15 | J23: 2023-03-14 | K23: 729 | L23: SIM | M23: GGPINF | N23: 6409.2 | O23: 6409.2 | P23: 6409.2 | Q23: =P23*111% -> 7114.212 | R23: 7114.212 | S23: 7114.212 | T23: 7114.212 | U23: 6409.2 | V23: 7114.212 | W23: 7114.212 | X23: 7114.212 | Y23: 7114.212 | Z23: 7114.212 | AA23: 7114.212 | AB23: 7114.212 | AC23: =AB23*111% -> 7896.77532 | AD23: 7896.77532 | AE23: 7896.77532 | AF23: 7896.77532 | AG23: 7896.77532 | AH23: 7896.77532 | AI23: 7896.77532 | AJ23: 7896.77532 | AK23: 7896.77532 | AL23: 7896.77532 | AM23: 7896.77532 | AN23: 7896.77532 | AO23: =AN23*111% -> 8765.420605 | AP23: 8765.420605 | AQ23: 8765.420605 | AR23: 8765.420605 | AS23: 8765.420605 | AT23: 8765.420605
B24: 50346/2022 | C24: CL | D24: N | E24: 319 | F24: COLOMBO | G24: LOCACAO DE IMOVEL A SER UTILZADO COMO ESCRITORIO ATENDIMENT | H24: 147780 | I24: 2022-10-01 | J24: 2025-09-30 | K24: 730 | L24: SIM | M24: GGPINF | U24: 3715
B25: 292149/2018 | C25: CL | D25: O | E25: 319 | F25: CORONEL DO | G25: LOCACAO DE IMOVEL COMERCIAL PARA O SISTEMA DE CORONEL DOMIN | H25: 42000 | I25: 2018-06-01 | J25: 2023-06-01 | K25: 1826 | L25: SIM | M25: GGPINF | N25: 700 | O25: 700 | P25: =O25*111% -> 777 | Q25: 777 | R25: 777 | S25: 777 | T25: 777 | U25: 700 | V25: 777 | W25: 777 | X25: 777 | Y25: 777 | Z25: 777 | AA25: 777 | AB25: =AA25*111% -> 862.47 | AC25: 862.47 | AD25: 862.47 | AE25: 862.47 | AF25: 862.47 | AG25: 862.47 | AH25: 862.47 | AI25: 862.47 | AJ25: 862.47 | AK25: 862.47 | AL25: 862.47 | AM25: 862.47 | AN25: =AM25*111% -> 957.3417 | AO25: 957.3417 | AP25: 957.3417 | AQ25: 957.3417 | AR25: 957.3417 | AS25: 957.3417 | AT25: 957.3417
B26: 39528/2020 | C26: CL | D26: O | E26: 319 | F26: CORUMBATAI | G26: LOCACAO DE IMOVEL PARA SER UTILIZADO PELA SANEPAR COMO ESCRI | H26: 36000 | I26: 2020-04-13 | J26: 2023-04-13 | K26: 1095 | L26: SIM | M26: GGPINF | N26: 1000 | O26: 1147.7 | P26: 1147.7 | Q26: 1147.7 | R26: 1147.7 | S26: 1147.7 | T26: 1147.7 | U26: 1147.7 | V26: 1147.7 | W26: 1147.7 | X26: 1147.7 | Y26: 1147.7 | Z26: 1147.7 | AA26: =Z26*111% -> 1273.947 | AB26: 1273.947 | AC26: 1273.947 | AD26: 1273.947 | AE26: 1273.947 | AF26: 1273.947 | AG26: 1273.947 | AH26: 1273.947 | AI26: 1273.947 | AJ26: 1273.947 | AK26: 1273.947 | AL26: 1273.947 | AM26: =AL26*111% -> 1414.08117 | AN26: 1414.08117 | AO26: 1414.08117 | AP26: 1414.08117 | AQ26: 1414.08117 | AR26: 1414.08117 | AS26: 1414.08117 | AT26: 1414.08117
B27: 352831 | C27: OF | D27: N | E27: 312 | F27: CURITIBA | G27: SERV LOCACAO VEICULOS | H27: 4682564.39 | I27: 2021-09-22 | J27: 2023-03-25 | K27: 549 | L27: SIM | M27: GGPINF | N27: 258960 | O27: 267592 | P27: 258960 | Q27: 267592 | R27: 267592 | S27: 258960 | T27: 267592 | U27: 258960 | V27: 267592 | W27: 267592 | X27: 241696 | Y27: 267592
B28: 352832 | C28: OF | D28: N | E28: 312 | F28: CURITIBA | G28: SERV LOCACAO VEICULOS | H28: 235068.49 | I28: 2021-09-22 | J28: 2023-03-25 | K28: 549 | L28: SIM | M28: GGPINF | N28: 59900 | O28: 61896.66667 | P28: 59900 | Q28: 61896.66667 | R28: 61896.66667 | S28: 59900 | T28: 61896.66667 | U28: 59900 | V28: 61896.66667 | W28: 61896.66667 | X28: 55906.66667 | Y28: 61896.66667
B29: 368787 | C29: OF | D29: O | E29: 312 | F29: CURITIBA | G29: SERV LOCACAO VEICULOS | H29: 27000999 | I29: 2023-03-25 | J29: 2025-10-27 | K29: 1095 | L29: SIM | M29: GGPINF | Z29: 739753.4 | AA29: 739753.4 | AB29: 739753.4 | AC29: 739753.4 | AD29: 739753.4 | AE29: 739753.4 | AF29: 739753.4 | AG29: 739753.4 | AH29: 739753.4 | AI29: 739753.4 | AJ29: 739753.4 | AK29: 739753.4 | AL29: 739753.4 | AM29: 739753.4 | AN29: 739753.4 | AO29: 739753.4 | AP29: 739753.4 | AQ29: 739753.4 | AR29: 739753.4 | AS29: 739753.4 | AT29: 739753.4
B30: 347015 | C30: OF | D30: N | E30: 312 | F30: CURITIBA | G30: SERV DE LOCACAO DE VEICULOS | H30: 15790460.4 | I30: 2021-03-26 | J30: 2023-03-25 | K30: 729 | L30: SIM | M30: GGPINF | N30: 658678.88 | O30: 680634.8427 | P30: 658678.88 | Q30: 680634.8427 | R30: 680634.8427 | S30: 658678.88 | T30: 680634.8427 | U30: 658678.88 | V30: 680634.8427 | W30: 680634.8427 | X30: 614766.9547 | Y30: 680634.8427
B31: 347016 | C31: OF | D31: N | E31: 312 | F31: CURITIBA | G31: SERV DE LOCACAO DE VEICULOS | H31: 13484575.2 | I31: 2021-03-26 | J31: 2023-03-25 | K31: 729 | L31: SIM | M31: GGPINF | N31: 571868.97 | O31: 590931.269 | P31: 571868.97 | Q31: 590931.269 | R31: 590931.269 | S31: 571868.97 | T31: 590931.269 | U31: 571868.97 | V31: 590931.269 | W31: 590931.269 | X31: 533744.372 | Y31: 590931.269
B32: 352619 | C32: OF | D32: R | E32: 312 | F32: CURITIBA | G32: SERV DE LOCACAO DE VEICULOS | H32: 612720 | I32: 2021-03-26 | J32: 2023-03-25 | K32: 729 | L32: SIM | M32: GGPINF | N32: 26018.79 | O32: 26886.083 | P32: 26018.79 | Q32: 26886.083 | R32: 26886.083 | S32: 26018.79 | T32: 26886.083 | U32: 26018.79 | V32: 26886.083 | W32: 26886.083 | X32: 24284.204 | Y32: 26886.083
B33: 352620 | C33: OF | D33: R | E33: 312 | F33: CURITIBA | G33: SERV DE LOCACAO DE VEICULOS | H33: 523202.4 | I33: 2021-03-26 | J33: 2023-03-25 | K33: 729 | L33: SIM | M33: GGPINF | N33: 22079.24 | O33: 22815.21467 | P33: 22079.24 | Q33: 22815.21467 | R33: 22815.21467 | S33: 22079.24 | T33: 22815.21467 | U33: 22079.24 | V33: 22815.21467 | W33: 22815.21467 | X33: 20607.29067 | Y33: 22815.21467
B34: 346176 | C34: OF | D34: O | E34: 312 | F34: CURITIBA | G34: SERV DE LOCACAO DE VEICULOS | H34: 2054999.52 | I34: 2021-05-24 | J34: 2024-05-23 | K34: 1095 | L34: SIM | M34: GGPINF | N34: 58178.01 | O34: 60117.277 | P34: 58178.01 | Q34: 60117.277 | R34: 60117.277 | S34: 58178.01 | T34: 60117.277 | U34: 58178.01 | V34: 60117.277 | W34: 60117.277 | X34: 54299.476 | Y34: 60117.277 | Z34: 58178.01 | AA34: 60117.277 | AB34: 58178.01 | AC34: 60117.277 | AD34: 60117.277 | AE34: 58178.01 | AF34: 60117.277 | AG34: 58178.01 | AH34: 60117.277 | AI34: 60117.277 | AJ34: 56238.743 | AK34: 60117.277 | AL34: 58178.01 | AM34: 60117.277 | AN34: 58178.01
B35: 362539 | C35: OF | D35: R | E35: 312 | F35: CURITIBA | G35: SERV DE LOCACAO DE VEICULOS | H35: 981965.55 | I35: 2022-01-29 | J35: 2023-03-25 | K35: 420 | L35: SIM | M35: GGPINF | N35: 72311.21 | O35: 74721.58367 | P35: 72311.21 | Q35: 74721.58367 | R35: 74721.58367 | S35: 72311.21 | T35: 74721.58367 | U35: 72311.21 | V35: 74721.58367 | W35: 74721.58367 | X35: 67490.46267 | Y35: 74721.58367
B36: 362540 | C36: OF | D36: R | E36: 312 | F36: CURITIBA | G36: SERV DE LOCACAO DE VEICULOS | H36: 838548.26 | I36: 2022-01-29 | J36: 2023-03-25 | K36: 420 | L36: SIM | M36: GGPINF | N36: 61739.3 | O36: 63797.27667 | P36: 61739.3 | Q36: 63797.27667 | R36: 63797.27667 | S36: 61739.3 | T36: 63797.27667 | U36: 61739.3 | V36: 63797.27667 | W36: 63797.27667 | X36: 57623.34667 | Y36: 63797.27667
B37: 369939 | C37: OF | D37: R | E37: 312 | F37: CURITIBA | G37: SERV. DE LOCACAO DE VEICULOS | H37: 838309.2 | I37: 2022-09-16 | J37: 2024-09-14 | K37: 730 | L37: SIM | M37: GGPINF | T37: 34451 | U37: 34451 | V37: 34451 | W37: 34451 | X37: 34451 | Y37: 34451 | Z37: 34451 | AA37: 34451 | AB37: 34451 | AC37: 34451 | AD37: 34451 | AE37: 34451 | AF37: 34451 | AG37: 34451 | AH37: 34451 | AI37: 34451 | AJ37: 34451 | AK37: 34451 | AL37: 34451 | AM37: 34451 | AN37: 34451 | AO37: 34451 | AP37: 34451 | AQ37: 34451 | AR37: 34451
B38: 368785 | C38: OF | D38: O | E38: 312 | F38: CURITIBA | G38: SERV. DE LOCACAO DE VEICULOS | H38: 33949999.8 | I38: 2023-03-25 | J38: 2025-10-27 | K38: 1095 | L38: SIM | M38: GGPINF | Z38: 930136.98 | AA38: 930136.98 | AB38: 930136.98 | AC38: 930136.98 | AD38: 930136.98 | AE38: 930136.98 | AF38: 930136.98 | AG38: 930136.98 | AH38: 930136.98 | AI38: 930136.98 | AJ38: 930136.98 | AK38: 930136.98 | AL38: 930136.98 | AM38: 930136.98 | AN38: 930136.98 | AO38: 930136.98 | AP38: 930136.98 | AQ38: 930136.98 | AR38: 930136.98 | AS38: 930136.98 | AT38: 930136.98
B39: 368786 | C39: OF | D39: O | E39: 312 | F39: CURITIBA | G39: SERV. DE LOCACAO DE VEICULOS | H39: 35179971.84 | I39: 2023-03-25 | J39: 2025-10-27 | K39: 1095 | L39: SIM | M39: GGPINF | Z39: 963834.84 | AA39: 963834.84 | AB39: 963834.84 | AC39: 963834.84 | AD39: 963834.84 | AE39: 963834.84 | AF39: 963834.84 | AG39: 963834.84 | AH39: 963834.84 | AI39: 963834.84 | AJ39: 963834.84 | AK39: 963834.84 | AL39: 963834.84 | AM39: 963834.84 | AN39: 963834.84 | AO39: 963834.84 | AP39: 963834.84 | AQ39: 963834.84 | AR39: 963834.84 | AS39: 963834.84 | AT39: 963834.84
B40: 50098/2022 | C40: CL | D40: O | E40: 319 | F40: CURITIBA | G40: LOCACAO DE BARRACAO PARA ARMAZENAMENTO DE EQUIPAMENTOS ELET | H40: 1539000 | I40: 2022-09-15 | J40: 2027-09-16 | K40: 1825 | L40: SIM | M40: GGPINF | N40: 18192.69 | O40: 18192.69 | P40: 18192.69 | Q40: 18192.69 | R40: 18192.69 | S40: 18192.69 | T40: =S40*111% -> 20193.8859 | U40: 25650 | V40: 20193.8859 | W40: 20193.8859 | X40: 20193.8859 | Y40: 20193.8859 | Z40: 20193.8859 | AA40: 20193.8859 | AB40: 20193.8859 | AC40: 20193.8859 | AD40: 20193.8859 | AE40: 20193.8859 | AF40: =AE40*111% -> 22415.21335 | AG40: 22415.21335 | AH40: 22415.21335 | AI40: 22415.21335 | AJ40: 22415.21335 | AK40: 22415.21335 | AL40: 22415.21335 | AM40: 22415.21335 | AN40: 22415.21335 | AO40: 22415.21335 | AP40: 22415.21335 | AQ40: 22415.21335 | AR40: =AQ40*111% -> 24880.88682 | AS40: 24880.88682 | AT40: 24880.88682
B41: 49/2019 | C41: CL | D41: O | E41: 319 | F41: CURITIBA | G41: LOC.ESP.INST.TOTEM TERM.AUTOATENDIMENTO PUB.TERM.CENTENARIO | H41: 5721 | I41: 2019-06-03 | J41: 2024-06-02 | K41: 1826 | L41: SIM | M41: GGPINF | N41: =6313.56*111% -> 7008.0516 | O41: 7008.0516 | P41: 7008.0516 | Q41: 7008.0516 | R41: 7008.0516 | S41: 7008.0516 | T41: 7008.0516 | U41: 109.74 | V41: 7008.0516 | W41: 7008.0516 | X41: 7008.0516 | Y41: 7008.0516 | Z41: =Y41*111% -> 7778.937276 | AA41: 7778.937276 | AB41: 7778.937276 | AC41: 7778.937276 | AD41: 7778.937276 | AE41: 7778.937276 | AF41: 7778.937276 | AG41: 7778.937276 | AH41: 7778.937276 | AI41: 7778.937276 | AJ41: 7778.937276 | AK41: 7778.937276 | AL41: =AK41*111% -> 8634.620376 | AM41: 8634.620376 | AN41: 8634.620376 | AO41: 8634.620376 | AP41: 8634.620376 | AQ41: 8634.620376 | AR41: 8634.620376 | AS41: 8634.620376 | AT41: 8634.620376
B42: 350136 | C42: OF | D42: C | E42: 319 | F42: CURITIBA | G42: LOCACAO IMOVEL ATEND CARMO GCML | H42: 44080.68 | I42: 2022-06-01 | J42: 2023-05-31 | K42: 364 | L42: SIM | M42: GGPINF | N42: 3673.39 | O42: 3673.39 | P42: =O42*111% -> 4077.4629 | Q42: 4077.4629 | R42: 4077.4629 | S42: 4077.4629 | T42: 4077.4629 | U42: 4104.31 | V42: 4077.4629 | W42: 4077.4629 | X42: 4077.4629 | Y42: 4077.4629 | Z42: 4077.4629 | AA42: 4077.4629 | AB42: =AA42*111% -> 4525.983819 | AC42: 4525.983819 | AD42: 4525.983819 | AE42: 4525.983819 | AF42: 4525.983819 | AG42: 4525.983819 | AH42: 4525.983819 | AI42: 4525.983819 | AJ42: 4525.983819 | AK42: 4525.983819 | AL42: 4525.983819 | AM42: 4525.983819 | AN42: =AM42*111% -> 5023.842039 | AO42: 5023.842039 | AP42: 5023.842039 | AQ42: 5023.842039 | AR42: 5023.842039 | AS42: 5023.842039 | AT42: 5023.842039
B43: 335840 | C43: OF | D43: C | E43: 319 | F43: CURITIBA | G43: LOCACAO IMOVEL ATENDIMENTO CIDADANIA MATRIZ PC RUI BARBOSA | H43: 425727 | I43: 2020-05-15 | J43: 2025-05-14 | K43: 1825 | L43: SIM | M43: GGPINF | N43: =8450.52*111% -> 9380.0772 | O43: 9380.0772 | P43: 9380.0772 | Q43: 9380.0772 | R43: 9380.0772 | S43: 9380.0772 | T43: 9380.0772 | U43: 8450.52 | V43: 9380.0772 | W43: 9380.0772 | X43: 9380.0772 | Y43: 9380.0772 | Z43: =Y43*111% -> 10411.88569 | AA43: 10411.88569 | AB43: 10411.88569 | AC43: 10411.88569 | AD43: 10411.88569 | AE43: 10411.88569 | AF43: 10411.88569 | AG43: 10411.88569 | AH43: 10411.88569 | AI43: 10411.88569 | AJ43: 10411.88569 | AK43: 10411.88569 | AL43: =AK43*111% -> 11557.19312 | AM43: 11557.19312 | AN43: 11557.19312 | AO43: 11557.19312 | AP43: 11557.19312 | AQ43: 11557.19312 | AR43: 11557.19312 | AS43: 11557.19312 | AT43: 11557.19312
B44: 2017-06-01 | C44: CL | D44: O | E44: 319 | F44: CURITIBA | G44: LOCACAO IMOVEL ATENDIMENTO RUA DA CIDADANIA DO CAJURU | H44: 178094.4 | I44: 2022-06-01 | J44: 2023-05-31 | K44: 1825 | L44: SIM | M44: GGPINF | N44: =2968.24*111% -> 3294.7464 | O44: 3294.7464 | P44: 3294.7464 | Q44: 3294.7464 | R44: 3294.7464 | S44: 3294.7464 | T44: 3294.7464 | U44: 3328.33 | V44: 3294.7464 | W44: 3294.7464 | X44: 3294.7464 | Y44: 3294.7464 | Z44: =Y44*111% -> 3657.168504 | AA44: 3657.168504 | AB44: 3657.168504 | AC44: 3657.168504 | AD44: 3657.168504 | AE44: 3657.168504 | AF44: 3657.168504 | AG44: 3657.168504 | AH44: 3657.168504 | AI44: 3657.168504 | AJ44: 3657.168504 | AK44: 3657.168504 | AL44: =AK44*111% -> 4059.457039 | AM44: 4059.457039 | AN44: 4059.457039 | AO44: 4059.457039 | AP44: 4059.457039 | AQ44: 4059.457039 | AR44: 4059.457039 | AS44: 4059.457039 | AT44: 4059.457039
B45: 306398/2018 | C45: OS | D45: O | E45: 319 | F45: CURITIBA | G45: PERMISSAO DE USO RUA DA CIDADANIA SANTA FELICIDADE | H45: 153296.4 | I45: 2018-11-01 | J45: 2023-10-31 | K45: 1825 | L45: SIM | M45: GGPINF | N45: =3440.4*111% -> 3818.844 | O45: 3818.844 | P45: 3818.844 | Q45: 3818.844 | R45: 3818.844 | S45: 3818.844 | T45: 3818.844 | U45: 3440.4 | V45: 3818.844 | W45: 3818.844 | X45: 3818.844 | Y45: 3818.844 | Z45: =Y45*111% -> 4238.91684 | AA45: 4238.91684 | AB45: 4238.91684 | AC45: 4238.91684 | AD45: 4238.91684 | AE45: 4238.91684 | AF45: 4238.91684 | AG45: 4238.91684 | AH45: 4238.91684 | AI45: 4238.91684 | AJ45: 4238.91684 | AK45: 4238.91684 | AL45: =AK45*111% -> 4705.197692 | AM45: 4705.197692 | AN45: 4705.197692 | AO45: 4705.197692 | AP45: 4705.197692 | AQ45: 4705.197692 | AR45: 4705.197692 | AS45: 4705.197692 | AT45: 4705.197692
B46: 348496 | C46: OF | D46: C | E46: 319 | F46: CURITIBA | G46: POSTO AVANCADO ATENDIMENTO PUBLICO CIDADANIA TATUQUARA | H46: 84606.6 | I46: 2019-02-11 | J46: 2024-02-11 | K46: 1825 | L46: SIM | M46: GGPINF | N46: 1410.11 | O46: 1410.11 | P46: =O46*111% -> 1565.2221 | Q46: 1565.2221 | R46: 1565.2221 | S46: 1565.2221 | T46: 1565.2221 | U46: 2986.36 | V46: 1565.2221 | W46: 1565.2221 | X46: 1565.2221 | Y46: 1565.2221 | Z46: 1565.2221 | AA46: 1565.2221 | AB46: =AA46*111% -> 1737.396531 | AC46: 1737.396531 | AD46: 1737.396531 | AE46: 1737.396531 | AF46: 1737.396531 | AG46: 1737.396531 | AH46: 1737.396531 | AI46: 1737.396531 | AJ46: 1737.396531 | AK46: 1737.396531 | AL46: 1737.396531 | AM46: 1737.396531 | AN46: =AM46*111% -> 1928.510149 | AO46: 1928.510149 | AP46: 1928.510149 | AQ46: 1928.510149 | AR46: 1928.510149 | AS46: 1928.510149 | AT46: 1928.510149
B47: 360123 | C47: OF | D47: R | E47: 319 | F47: CURITIBA | G47: POSTO AVANCADOATENDIMENTO PUBLICO CIDADANIA PINHEIRINHO | H47: 247590.6 | I47: 2022-10-05 | J47: 2027-10-04 | K47: 364 | L47: SIM | M47: GGPINF | N47: =3952.57*111% -> 4387.3527 | O47: 4387.3527 | P47: 4387.3527 | Q47: 4387.3527 | R47: 4387.3527 | S47: 4387.3527 | T47: 4387.3527 | U47: 4126.51 | V47: 4387.3527 | W47: 4387.3527 | X47: 4387.3527 | Y47: 4387.3527 | Z47: =Y47*111% -> 4869.961497 | AA47: 4869.961497 | AB47: 4869.961497 | AC47: 4869.961497 | AD47: 4869.961497 | AE47: 4869.961497 | AF47: 4869.961497 | AG47: 4869.961497 | AH47: 4869.961497 | AI47: 4869.961497 | AJ47: 4869.961497 | AK47: 4869.961497 | AL47: =AK47*111% -> 5405.657262 | AM47: 5405.657262 | AN47: 5405.657262 | AO47: 5405.657262 | AP47: 5405.657262 | AQ47: 5405.657262 | AR47: 5405.657262 | AS47: 5405.657262 | AT47: 5405.657262
B48: 351088 | C48: OF | D48: C | E48: 319 | F48: CURITIBA | G48: TERMO DE OUTORGA PERMISSAO DE USO 76 2000 CIDADANIA B VISTA | H48: 30396.48 | I48: 2022-06-01 | J48: 2023-05-31 | K48: 364 | L48: SIM | M48: GGPINF | N48: =2533.04*111% -> 2811.6744 | O48: 2811.6744 | P48: 2811.6744 | Q48: 2811.6744 | R48: 2811.6744 | S48: 2811.6744 | T48: 2811.6744 | U48: 2830.18 | V48: 2811.6744 | W48: 2811.6744 | X48: 2811.6744 | Y48: 2811.6744 | Z48: =Y48*111% -> 3120.958584 | AA48: 3120.958584 | AB48: 3120.958584 | AC48: 3120.958584 | AD48: 3120.958584 | AE48: 3120.958584 | AF48: 3120.958584 | AG48: 3120.958584 | AH48: 3120.958584 | AI48: 3120.958584 | AJ48: 3120.958584 | AK48: 3120.958584 | AL48: =AK48*111% -> 3464.264028 | AM48: 3464.264028 | AN48: 3464.264028 | AO48: 3464.264028 | AP48: 3464.264028 | AQ48: 3464.264028 | AR48: 3464.264028 | AS48: 3464.264028 | AT48: 3464.264028
B49: 348551 | C49: OF | D49: R | E49: 319 | F49: CURITIBA | G49: TERMO OUTORGA DE PERMISSAO DE USO CIDADANIA FAZENDINHA | H49: 11711.04 | I49: 2020-02-12 | J49: 2024-02-11 | K49: 1460 | L49: SIM | M49: GGPINF | N49: =3881.33*111% -> 4308.2763 | O49: 4308.2763 | P49: 4308.2763 | Q49: 4308.2763 | R49: 4308.2763 | S49: 4308.2763 | T49: 4308.2763 | U49: 3881.33 | V49: 4308.2763 | W49: 4308.2763 | X49: 4308.2763 | Y49: 4308.2763 | Z49: =Y49*111% -> 4782.186693 | AA49: 4782.186693 | AB49: 4782.186693 | AC49: 4782.186693 | AD49: 4782.186693 | AE49: 4782.186693 | AF49: 4782.186693 | AG49: 4782.186693 | AH49: 4782.186693 | AI49: 4782.186693 | AJ49: 4782.186693 | AK49: 4782.186693 | AL49: =AK49*111% -> 5308.227229 | AM49: 5308.227229 | AN49: 5308.227229 | AO49: 5308.227229 | AP49: 5308.227229 | AQ49: 5308.227229 | AR49: 5308.227229 | AS49: 5308.227229 | AT49: 5308.227229
B50: 333603 | C50: OF | D50: N | E50: 312 | F50: CURITIBA | G50: SERV LOCACAO DE TOTENS AUTOATENDIMENTO | H50: 2224514.47 | I50: 2020-04-02 | J50: 2022-04-01 | K50: 729 | L50: SIM | M50: GPDC | N50: 92688.1 | O50: 96448.95 | P50: 96882.54 | Q50: 96458.05 | R50: 96448.63 | S50: 96588.23 | T50: 96585.67 | U50: 96590.95 | V50: 96610.22 | W50: =1192606.66/12 -> 99383.88833 | X50: =1192606.66/12 -> 99383.88833 | Y50: 99383.88833 | Z50: 99383.88833 | AA50: 99383.88833 | AB50: 99383.88833 | AC50: 99383.88833 | AD50: 99383.88833 | AE50: 99383.88833 | AF50: =1192606.66/12 -> 99383.88833 | AG50: 99383.88833 | AH50: 99383.88833 | AI50: =1228384.86/12 -> 102365.405 | AJ50: =1228384.86/12 -> 102365.405 | AK50: 102365.405 | AL50: 102365.405 | AM50: 102365.405 | AN50: 102365.405 | AO50: 102365.405 | AP50: 102365.405 | AQ50: 102365.405 | AR50: 102365.405 | AS50: 102365.405 | AT50: 102365.405
B51: 347407 | C51: OF | D51: R | E51: 312 | F51: CURITIBA | G51: SERV LOCACAO DE TOTENS AUTOATENDIMENTO | H51: 60139.97 | I51: 2021-01-09 | J51: 2022-04-01 | K51: 447 | L51: SIM | M51: GPDC
B52: 38827/2020 | C52: CL | D52: C | E52: 319 | F52: ESPERANCA | G52: LOCACAO DE IMOVEL PARA ATENDIMENTO DE ESPERANCA NOVA | H52: 7920 | I52: 2022-02-01 | J52: 2023-01-31 | K52: 364 | L52: SIM | M52: GGPINF | N52: 660 | O52: 660 | P52: 660 | Q52: 660 | R52: 660 | S52: 660 | T52: 660 | U52: 660 | V52: 660 | W52: 660 | X52: =W52*111% -> 732.6 | Y52: 732.6 | Z52: 732.6 | AA52: 732.6 | AB52: 732.6 | AC52: 732.6 | AD52: 732.6 | AE52: 732.6 | AF52: 732.6 | AG52: 732.6 | AH52: 732.6 | AI52: 732.6 | AJ52: =AI52*111% -> 813.186 | AK52: 813.186 | AL52: 813.186 | AM52: 813.186 | AN52: 813.186 | AO52: 813.186 | AP52: 813.186 | AQ52: 813.186 | AR52: 813.186 | AS52: 813.186 | AT52: 813.186
B53: 1177349/2018 | C53: CL | D53: C | E53: 319 | F53: ESPIGAO AL | G53: LOCACAO DE SALA COMERCIAL PARA ATENDIMENTO AO CLIENTE | H53: 11010.92 | I53: 2022-01-15 | J53: 2023-01-14 | K53: 364 | L53: SIM | M53: GGPINF | N53: 798.31 | O53: 798.31 | P53: 798.31 | Q53: 798.31 | R53: 798.31 | S53: 798.31 | T53: 798.31 | U53: 798.31 | V53: 798.31 | W53: 798.31 | X53: =W53*111% -> 886.1241 | Y53: 886.1241 | Z53: 886.1241 | AA53: 886.1241 | AB53: 886.1241 | AC53: 886.1241 | AD53: 886.1241 | AE53: 886.1241 | AF53: 886.1241 | AG53: 886.1241 | AH53: 886.1241 | AI53: 886.1241 | AJ53: =AI53*111% -> 983.597751 | AK53: 983.597751 | AL53: 983.597751 | AM53: 983.597751 | AN53: 983.597751 | AO53: 983.597751 | AP53: 983.597751 | AQ53: 983.597751 | AR53: 983.597751 | AS53: 983.597751 | AT53: 983.597751
B54: 1210098/2018 | C54: CL | D54: N | E54: 319 | F54: FAROL | G54: PRORROG PRAZO LOC IMOV UTIL SANEPAR ESCRITORIO ATEND ALMOX | H54: 19200 | I54: 2021-04-03 | J54: 2023-04-03 | K54: 730 | L54: SIM | M54: GGPINF | N54: 800 | O54: 880 | P54: 880 | Q54: 880 | R54: 880 | S54: 880 | T54: 880 | U54: 880 | V54: 880 | W54: 880 | X54: 880 | Y54: 880 | Z54: 880 | AA54: =Z54*111% -> 976.8 | AB54: 976.8 | AC54: 976.8 | AD54: 976.8 | AE54: 976.8 | AF54: 976.8 | AG54: 976.8 | AH54: 976.8 | AI54: 976.8 | AJ54: 976.8 | AK54: 976.8 | AL54: 976.8 | AM54: =AL54*111% -> 1084.248 | AN54: 1084.248 | AO54: 1084.248 | AP54: 1084.248 | AQ54: 1084.248 | AR54: 1084.248 | AS54: 1084.248 | AT54: 1084.248
B55: 31459/2018 | C55: CL | D55: N | E55: 319 | F55: FAZENDA RI | G55: LOCACAO BARRACAO COMERCIAL COM 591M2 | H55: 102696 | I55: 2022-08-01 | J55: 2023-07-31 | K55: 364 | L55: SIM | M55: GGPINF | N55: 7250 | O55: 7250 | P55: 7250 | Q55: 7250 | R55: =Q55*111% -> 8047.5 | S55: 8047.5 | T55: 8047.5 | U55: 7975 | V55: 8047.5 | W55: 8047.5 | X55: 8047.5 | Y55: 8047.5 | Z55: 8047.5 | AA55: 8047.5 | AB55: 8047.5 | AC55: 8047.5 | AD55: =AC55*111% -> 8932.725 | AE55: 8932.725 | AF55: 8932.725 | AG55: 8932.725 | AH55: 8932.725 | AI55: 8932.725 | AJ55: 8932.725 | AK55: 8932.725 | AL55: 8932.725 | AM55: 8932.725 | AN55: 8932.725 | AO55: 8932.725 | AP55: =AO55*111% -> 9915.32475 | AQ55: 9915.32475 | AR55: 9915.32475 | AS55: 9915.32475 | AT55: 9915.32475
B56: 352076 | C56: OF | D56: N | E56: 319 | F56: FOZ DO IGU | G56: PRIMEIRO TERMO ADITIVO AO CONTRATO JD JE 0048 20 | H56: 30830.34 | I56: 2021-07-02 | J56: 2022-07-01 | K56: 364 | L56: SIM | M56: GGPINF | N56: 2569.2 | O56: 2569.2 | P56: 2569.2 | Q56: =P56*111% -> 2851.812 | R56: 2851.812 | S56: 2851.812 | T56: 2851.812 | U56: 2851.812 | V56: 2851.812 | W56: 2851.812 | X56: 2851.812 | Y56: 2851.812 | Z56: 2851.812 | AA56: 2851.812 | AB56: 2851.812 | AC56: =AB56*111% -> 3165.51132 | AD56: 3165.51132 | AE56: 3165.51132 | AF56: 3165.51132 | AG56: 3165.51132 | AH56: 3165.51132 | AI56: 3165.51132 | AJ56: 3165.51132 | AK56: 3165.51132 | AL56: 3165.51132 | AM56: 3165.51132 | AN56: 3165.51132 | AO56: =AN56*111% -> 3513.717565 | AP56: 3513.717565 | AQ56: 3513.717565 | AR56: 3513.717565 | AS56: 3513.717565 | AT56: 3513.717565
B57: 346549 | C57: OF | D57: R | E57: 319 | F57: FOZ DO IGU | G57: REAJUSTE DO CONTRATO JD JE 0048 20 REF. JAN 2021 A JUN 2021 | H57: 727.32 | I57: 2021-07-02 | J57: 2022-07-01 | K57: 364 | L57: SIM | M57: GGPINF | N57: 60.61 | O57: 60.61 | P57: 60.61 | Q57: 67.2771 | R57: 67.2771 | S57: 67.2771 | T57: 67.2771 | U57: 67.2771 | V57: 67.2771 | W57: 67.2771 | X57: 67.2771 | Y57: 67.2771 | Z57: 67.2771 | AA57: 67.2771 | AB57: 67.2771 | AC57: 74.677581 | AD57: 74.677581 | AE57: 74.677581 | AF57: 74.677581 | AG57: 74.677581 | AH57: 74.677581 | AI57: 74.677581 | AJ57: 74.677581 | AK57: 74.677581 | AL57: 74.677581 | AM57: 74.677581 | AN57: 74.677581 | AO57: 82.89211491 | AP57: 82.89211491 | AQ57: 82.89211491 | AR57: 82.89211491 | AS57: 82.89211491 | AT57: 82.89211491
B58: 48564/2022 | C58: CL | D58: N | E58: 319 | F58: FOZ DO IGU | G58: LOCAÇÃO DE IMÓVEL ESTRUTURA GRFI | H58: 344894.4 | I58: 2022-07-01 | J58: 2023-06-30 | K58: 364 | L58: SIM | M58: GGPINF | N58: 23000 | O58: 23000 | P58: 23000 | Q58: =P58*111% -> 25530 | R58: 25530 | S58: 25530 | T58: 25530 | U58: 26707 | V58: 25530 | W58: 25530 | X58: 25530 | Y58: 25530 | Z58: 25530 | AA58: 25530 | AB58: 25530 | AC58: =AB58*111% -> 28338.3 | AD58: 28338.3 | AE58: 28338.3 | AF58: 28338.3 | AG58: 28338.3 | AH58: 28338.3 | AI58: 28338.3 | AJ58: 28338.3 | AK58: 28338.3 | AL58: 28338.3 | AM58: 28338.3 | AN58: 28338.3 | AO58: =AN58*111% -> 31455.513 | AP58: 31455.513 | AQ58: 31455.513 | AR58: 31455.513 | AS58: 31455.513 | AT58: 31455.513
B59: 30106/2018 | C59: CL | D59: N | E59: 319 | F59: FRANCISCO | G59: 1 TERMO ADITIVO AO CONTRATO DE LOCACAO 30103 2018 SEDE | H59: 516000 | I59: 2021-06-01 | J59: 2023-05-31 | K59: 730 | L59: SIM | M59: GGPINF | N59: 21000 | O59: 21000 | P59: 21000 | Q59: 21000 | R59: 21000 | S59: =R59*111% -> 23310 | T59: 23310 | U59: 21000 | V59: 23310 | W59: 23310 | X59: 23310 | Y59: 23310 | Z59: 23310 | AA59: 23310 | AB59: 23310 | AC59: 23310 | AD59: 23310 | AE59: =AD59*111% -> 25874.1 | AF59: 25874.1 | AG59: 25874.1 | AH59: 25874.1 | AI59: 25874.1 | AJ59: 25874.1 | AK59: 25874.1 | AL59: 25874.1 | AM59: 25874.1 | AN59: 25874.1 | AO59: 25874.1 | AP59: 25874.1 | AQ59: =AP59*111% -> 28720.251 | AR59: 28720.251 | AS59: 28720.251 | AT59: 28720.251
B60: 45012/2021 | C60: CL | D60: O | E60: 319 | F60: FRANCISCO | G60: LOCACAO DE IMOVEL PARA A COORDENACAO DE REDES | H60: 166652 | I60: 2021-09-01 | J60: 2023-08-31 | K60: 730 | L60: SIM | M60: GGPINF | N60: 6700 | O60: 6700 | P60: 6700 | Q60: 6700 | R60: 6700 | S60: =R60*111% -> 7437 | T60: 7437 | U60: 6700 | V60: 7437 | W60: 7437 | X60: 7437 | Y60: 7437 | Z60: 7437 | AA60: 7437 | AB60: 7437 | AC60: 7437 | AD60: 7437 | AE60: =AD60*111% -> 8255.07 | AF60: 8255.07 | AG60: 8255.07 | AH60: 8255.07 | AI60: 8255.07 | AJ60: 8255.07 | AK60: 8255.07 | AL60: 8255.07 | AM60: 8255.07 | AN60: 8255.07 | AO60: 8255.07 | AP60: 8255.07 | AQ60: =AP60*111% -> 9163.1277 | AR60: 9163.1277 | AS60: 9163.1277 | AT60: 9163.1277
B61: 49644/2022 | C61: CL | D61: C | E61: 319 | F61: GOIOXIM | G61: LOCACAO DE SALA COMERCIAL ATENDIMENTO AO CLIENTE GOIOXIM | H61: 10212 | I61: 2022-07-18 | J61: 2023-07-17 | K61: 364 | L61: SIM | M61: GGPINF | N61: 598.34 | O61: 598.34 | P61: 598.34 | Q61: 598.34 | R61: =Q61*111% -> 664.1574 | S61: 664.1574 | T61: 664.1574 | U61: 650 | V61: 664.1574 | W61: 664.1574 | X61: 664.1574 | Y61: 664.1574 | Z61: 664.1574 | AA61: 664.1574 | AB61: 664.1574 | AC61: 664.1574 | AD61: =AC61*111% -> 737.214714 | AE61: 737.214714 | AF61: 737.214714 | AG61: 737.214714 | AH61: 737.214714 | AI61: 737.214714 | AJ61: 737.214714 | AK61: 737.214714 | AL61: 737.214714 | AM61: 737.214714 | AN61: 737.214714 | AO61: 737.214714 | AP61: =AO61*111% -> 818.3083325 | AQ61: 818.3083325 | AR61: 818.3083325 | AS61: 818.3083325 | AT61: 818.3083325
B62: 30285/2018 | C62: CL | D62: N | E62: 319 | F62: GUAPIRAMA | G62: LOCACAO DE SALA COMERCIAL COM BANHEIRO E ACESSIBILIDADE | H62: 6000 | I62: 2022-06-01 | J62: 2023-05-31 | K62: 364 | L62: SIM | M62: GGPINF | N62: 500 | O62: 500 | P62: 500 | Q62: 500 | R62: 500 | S62: 500 | T62: 500 | U62: 500 | V62: 500 | W62: 500 | X62: 500 | Y62: 500 | Z62: 500 | AA62: 500 | AB62: =AA62*111% -> 555 | AC62: 555 | AD62: 555 | AE62: 555 | AF62: 555 | AG62: 555 | AH62: 555 | AI62: 555 | AJ62: 555 | AK62: 555 | AL62: 555 | AM62: 555 | AN62: =AM62*111% -> 616.05 | AO62: 616.05 | AP62: 616.05 | AQ62: 616.05 | AR62: 616.05 | AS62: 616.05 | AT62: 616.05
B63: 31713/2018 | C63: CL | D63: N | E63: 319 | F63: IBEMA | G63: ALUGUEL ESCRITORIO ATENDIMENTO IBEMA | H63: 10800 | I63: 2022-09-01 | J63: 2023-08-31 | K63: 364 | L63: SIM | M63: GGPINF | N63: 840 | O63: 840 | P63: 840 | Q63: 840 | R63: 840 | S63: =R63*111% -> 932.4 | T63: 932.4 | U63: 900 | V63: 932.4 | W63: 932.4 | X63: 932.4 | Y63: 932.4 | Z63: 932.4 | AA63: 932.4 | AB63: 932.4 | AC63: 932.4 | AD63: 932.4 | AE63: =AD63*111% -> 1034.964 | AF63: 1034.964 | AG63: 1034.964 | AH63: 1034.964 | AI63: 1034.964 | AJ63: 1034.964 | AK63: 1034.964 | AL63: 1034.964 | AM63: 1034.964 | AN63: 1034.964 | AO63: 1034.964 | AP63: 1034.964 | AQ63: =AP63*111% -> 1148.81004 | AR63: 1148.81004 | AS63: 1148.81004 | AT63: 1148.81004
B64: 30574/2018 | C64: CL | D64: N | E64: 319 | F64: IGUATU | G64: CONTRATO DE LOCACAO DE IMOVEL EM IGUATU | H64: 8800 | I64: 2022-06-01 | J64: 2023-05-31 | K64: 365 | L64: SIM | M64: GGPINF | N64: 700 | O64: 700 | P64: 700 | Q64: =P64*111% -> 777 | R64: 777 | S64: 777 | T64: 777 | U64: 700 | V64: 777 | W64: 777 | X64: 777 | Y64: 777 | Z64: 777 | AA64: 777 | AB64: 777 | AC64: =AB64*111% -> 862.47 | AD64: 862.47 | AE64: 862.47 | AF64: 862.47 | AG64: 862.47 | AH64: 862.47 | AI64: 862.47 | AJ64: 862.47 | AK64: 862.47 | AL64: 862.47 | AM64: 862.47 | AN64: 862.47 | AO64: =AN64*111% -> 957.3417 | AP64: 957.3417 | AQ64: 957.3417 | AR64: 957.3417 | AS64: 957.3417 | AT64: 957.3417
B65: 1211345/2018 | C65: CL | D65: C | E65: 319 | F65: INACIO MAR | G65: LOCACAO IMOVEL PARA CENTRAL DE RELACIONAMENTO | H65: 16100 | I65: 2022-04-01 | J65: 2023-03-31 | K65: 364 | L65: SIM | M65: GGPINF | N65: 1300 | O65: 1300 | P65: 1300 | Q65: 1300 | R65: 1300 | S65: 1300 | T65: 1300 | U65: 1300 | V65: 1300 | W65: 1300 | X65: 1300 | Y65: 1300 | Z65: =Y65*111% -> 1443 | AA65: 1443 | AB65: 1443 | AC65: 1443 | AD65: 1443 | AE65: 1443 | AF65: 1443 | AG65: 1443 | AH65: 1443 | AI65: 1443 | AJ65: 1443 | AK65: 1443 | AL65: =AK65*111% -> 1601.73 | AM65: 1601.73 | AN65: 1601.73 | AO65: 1601.73 | AP65: 1601.73 | AQ65: 1601.73 | AR65: 1601.73 | AS65: 1601.73 | AT65: 1601.73
B66: 29847/2018 | C66: CL | D66: C | E66: 319 | F66: IRATI | G66: LOCACAO DE IMOVEL PARA ATIVIDADES DO ESCRITORIO ADMINISTRAT | H66: 43712.8 | I66: 2022-06-01 | J66: 2023-05-31 | K66: 364 | L66: SIM | M66: GGPINF | N66: 3534.4 | O66: 3534.4 | P66: =O66*111% -> 3923.184 | Q66: 3923.184 | R66: 3923.184 | S66: 3923.184 | T66: 3923.184 | U66: 3534.4 | V66: 3923.184 | W66: 3923.184 | X66: 3923.184 | Y66: 3923.184 | Z66: 3923.184 | AA66: 3923.184 | AB66: =AA66*111% -> 4354.73424 | AC66: 4354.73424 | AD66: 4354.73424 | AE66: 4354.73424 | AF66: 4354.73424 | AG66: 4354.73424 | AH66: 4354.73424 | AI66: 4354.73424 | AJ66: 4354.73424 | AK66: 4354.73424 | AL66: 4354.73424 | AM66: 4354.73424 | AN66: =AM66*111% -> 4833.755006 | AO66: 4833.755006 | AP66: 4833.755006 | AQ66: 4833.755006 | AR66: 4833.755006 | AS66: 4833.755006 | AT66: 4833.755006
B67: 36774/2019 | C67: CL | D67: N | E67: 319 | F67: ITAIPULAND | G67: 2O. TA DO CLI 36774 | H67: 22200 | I67: 2022-09-01 | J67: 2023-08-31 | K67: 729 | L67: SIM | M67: GGPINF | N67: 1374 | O67: 1374 | P67: 1374 | Q67: 1374 | R67: 1374 | S67: 1374 | T67: =S67*111% -> 1525.14 | U67: 1850 | V67: 1525.14 | W67: 1525.14 | X67: 1525.14 | Y67: 1525.14 | Z67: 1525.14 | AA67: 1525.14 | AB67: 1525.14 | AC67: 1525.14 | AD67: 1525.14 | AE67: 1525.14 | AF67: =AE67*111% -> 1692.9054 | AG67: 1692.9054 | AH67: 1692.9054 | AI67: 1692.9054 | AJ67: 1692.9054 | AK67: 1692.9054 | AL67: 1692.9054 | AM67: 1692.9054 | AN67: 1692.9054 | AO67: 1692.9054 | AP67: 1692.9054 | AQ67: 1692.9054 | AR67: =AQ67*111% -> 1879.124994 | AS67: 1879.124994 | AT67: 1879.124994
B68: 1146715/2017 | C68: CL | D68: C | E68: 319 | F68: IVATE | G68: LOCACAO DE IMOVEL | H68: 9474.48 | I68: 2022-01-01 | J68: 2023-12-31 | K68: 365 | L68: SIM | M68: GGPINF | N68: 789.54 | O68: 789.54 | P68: 789.54 | Q68: 789.54 | R68: 789.54 | S68: 789.54 | T68: 789.54 | U68: 789.54 | V68: 789.54 | W68: =V68*111% -> 876.3894 | X68: 876.3894 | Y68: 876.3894 | Z68: 876.3894 | AA68: 876.3894 | AB68: 876.3894 | AC68: 876.3894 | AD68: 876.3894 | AE68: 876.3894 | AF68: 876.3894 | AG68: 876.3894 | AH68: 876.3894 | AI68: =AH68*111% -> 972.792234 | AJ68: 972.792234 | AK68: 972.792234 | AL68: 972.792234 | AM68: 972.792234 | AN68: 972.792234 | AO68: 972.792234 | AP68: 972.792234 | AQ68: 972.792234 | AR68: 972.792234 | AS68: 972.792234 | AT68: 972.792234
B69: 32035/2018 | C69: CL | D69: O | E69: 319 | F69: JANDAIA DO | G69: LOCACAO DE AREA RURAL MEDINDO 10.408,70 M PARA EXPLORACAO DE | H69: 151008 | I69: 2018-10-01 | J69: 2023-09-30 | K69: 1825 | L69: SIM | M69: GGPINF | N69: 2516.8 | O69: 2516.8 | P69: 2516.8 | Q69: 2516.8 | R69: 2516.8 | S69: 2516.8 | T69: =S69*111% -> 2793.648 | U69: 2516.8 | V69: 2793.648 | W69: 2793.648 | X69: 2793.648 | Y69: 2793.648 | Z69: 2793.648 | AA69: 2793.648 | AB69: 2793.648 | AC69: 2793.648 | AD69: 2793.648 | AE69: 2793.648 | AF69: =AE69*111% -> 3100.94928 | AG69: 3100.94928 | AH69: 3100.94928 | AI69: 3100.94928 | AJ69: 3100.94928 | AK69: 3100.94928 | AL69: 3100.94928 | AM69: 3100.94928 | AN69: 3100.94928 | AO69: 3100.94928 | AP69: 3100.94928 | AQ69: 3100.94928 | AR69: =AQ69*111% -> 3442.053701 | AS69: 3442.053701 | AT69: 3442.053701
B70: 1176139/2017 | C70: CL | D70: C | E70: 319 | F70: LARANJAL | G70: LOCACAO SALA COMERCIAL PARA ATENDIMENTO AO CLIENTE | H70: 11651.84 | I70: 2021-12-01 | J70: 2022-11-30 | K70: 364 | L70: SIM | M70: GGPINF | N70: 703.25 | O70: 703.25 | P70: 703.25 | Q70: 703.25 | R70: 703.25 | S70: 703.25 | T70: 703.25 | U70: 703.25 | V70: =U70*111% -> 780.6075 | W70: 780.6075 | X70: 780.6075 | Y70: 780.6075 | Z70: 780.6075 | AA70: 780.6075 | AB70: 780.6075 | AC70: 780.6075 | AD70: 780.6075 | AE70: 780.6075 | AF70: 780.6075 | AG70: 780.6075 | AH70: =AG70*111% -> 866.474325 | AI70: 866.474325 | AJ70: 866.474325 | AK70: 866.474325 | AL70: 866.474325 | AM70: 866.474325 | AN70: 866.474325 | AO70: 866.474325 | AP70: 866.474325 | AQ70: 866.474325 | AR70: 866.474325 | AS70: 866.474325 | AT70: =AS70*111% -> 961.7865008
B71: 49501/2022 | C71: CL | D71: N | E71: 319 | F71: LINDOESTE | G71: CONTRATO DE ALUGUEL ESCRITORIO LINDOESTE | H71: 66943.94 | I71: 2022-08-01 | J71: 2027-07-31 | K71: 364 | L71: SIM | M71: GGPINF | N71: 1300 | O71: 1300 | P71: 1300 | Q71: 1300 | R71: =Q71*111% -> 1443 | S71: 1443 | T71: 1443 | U71: 1000 | V71: 1443 | W71: 1443 | X71: 1443 | Y71: 1443 | Z71: 1443 | AA71: 1443 | AB71: 1443 | AC71: 1443 | AD71: =AC71*111% -> 1601.73 | AE71: 1601.73 | AF71: 1601.73 | AG71: 1601.73 | AH71: 1601.73 | AI71: 1601.73 | AJ71: 1601.73 | AK71: 1601.73 | AL71: 1601.73 | AM71: 1601.73 | AN71: 1601.73 | AO71: 1601.73 | AP71: =AO71*111% -> 1777.9203 | AQ71: 1777.9203 | AR71: 1777.9203 | AS71: 1777.9203 | AT71: 1777.9203
B72: 32990/2018 | C72: CL | D72: R | E72: 319 | F72: LONDRINA | G72: PRIMEIRO TERMO ADITIVO PARA OS 305254, LOCACAO SEDE GEMND | H72: 1037000 | I72: 2021-12-01 | J72: 2023-11-30 | K72: 729 | L72: SIM | M72: GGPINF | N72: 40786 | O72: 40786 | P72: 40786 | Q72: 40786 | R72: 40786 | S72: 40786 | T72: 40786 | U72: 43445.25 | V72: =U72*111% -> 48224.2275 | W72: 45272.46 | X72: 45272.46 | Y72: 45272.46 | Z72: 45272.46 | AA72: 45272.46 | AB72: 45272.46 | AC72: 45272.46 | AD72: 45272.46 | AE72: 45272.46 | AF72: 45272.46 | AG72: 45272.46 | AH72: =AG72*111% -> 50252.4306 | AI72: 50252.4306 | AJ72: 50252.4306 | AK72: 50252.4306 | AL72: 50252.4306 | AM72: 50252.4306 | AN72: 50252.4306 | AO72: 50252.4306 | AP72: 50252.4306 | AQ72: 50252.4306 | AR72: 50252.4306 | AS72: 50252.4306 | AT72: =AS72*111% -> 55780.19797
B73: 32053/2018 | C73: CL | D73: O | E73: 319 | F73: LONDRINA | G73: LOCACAO DE IMOVEL NA AVENIDA SAUL ELKIND, 3341 LOJA 01, PAR | H73: 208959.84 | I73: 2018-10-01 | J73: 2023-10-01 | K73: 1826 | L73: SIM | M73: GGPINF | N73: 4291.48 | O73: 4291.48 | P73: 4291.48 | Q73: 4291.48 | R73: 4291.48 | S73: 4291.48 | T73: 4291.48 | U73: 4660 | V73: 4763.5428 | W73: 4763.5428 | X73: 4763.5428 | Y73: 4763.5428 | Z73: 4763.5428 | AA73: 4763.5428 | AB73: 4763.5428 | AC73: 4763.5428 | AD73: 4763.5428 | AE73: 4763.5428 | AF73: 4763.5428 | AG73: =AF73*111% -> 5287.532508 | AH73: 5287.532508 | AI73: 5287.532508 | AJ73: 5287.532508 | AK73: 5287.532508 | AL73: 5287.532508 | AM73: 5287.532508 | AN73: 5287.532508 | AO73: 5287.532508 | AP73: 5287.532508 | AQ73: 5287.532508 | AR73: 5287.532508 | AS73: =AR73*111% -> 5869.161084 | AT73: 5869.161084
B74: 40167/2020 | C74: CL | D74: O | E74: 319 | F74: LONDRINA | G74: CONTRATACAO DE LOCACAO DE IMOVEL PARA UTILIZACAO DA ESTRUTU | H74: 851721.48 | I74: 2020-07-01 | J74: 2024-06-30 | K74: 1460 | L74: SIM | M74: GGPINF | N74: 17000 | O74: 17000 | P74: 17000 | Q74: =P74*111% -> 18870 | R74: 18870 | S74: 18870 | T74: 18870 | U74: 18822.4 | V74: 18870 | W74: 18870 | X74: 18870 | Y74: 18870 | Z74: 18870 | AA74: 18870 | AB74: 18870 | AC74: =AB74*111% -> 20945.7 | AD74: 20945.7 | AE74: 20945.7 | AF74: 20945.7 | AG74: 20945.7 | AH74: 20945.7 | AI74: 20945.7 | AJ74: 20945.7 | AK74: 20945.7 | AL74: 20945.7 | AM74: 20945.7 | AN74: 20945.7 | AO74: =AN74*111% -> 23249.727 | AP74: 23249.727 | AQ74: 23249.727 | AR74: 23249.727 | AS74: 23249.727 | AT74: 23249.727
B75: 30452/2018 | C75: CL | D75: C | E75: 319 | F75: LONDRINA | G75: CONTRATO DE LOCACAO DO CD LONDRINA | H75: 637263 | I75: 2021-06-03 | J75: 2023-06-02 | K75: 729 | L75: SIM | M75: GGPINF | N75: 25000 | O75: 25000 | P75: 25000 | Q75: =P75*111% -> 27750 | R75: 27750 | S75: 27750 | T75: 27750 | U75: 25000 | V75: 27750 | W75: 27750 | X75: 27750 | Y75: 27750 | Z75: 27750 | AA75: 27750 | AB75: 27750 | AC75: =AB75*111% -> 30802.5 | AD75: 30802.5 | AE75: 30802.5 | AF75: 30802.5 | AG75: 30802.5 | AH75: 30802.5 | AI75: 30802.5 | AJ75: 30802.5 | AK75: 30802.5 | AL75: 30802.5 | AM75: 30802.5 | AN75: 30802.5 | AO75: =AN75*111% -> 34190.775 | AP75: 34190.775 | AQ75: 34190.775 | AR75: 34190.775 | AS75: 34190.775 | AT75: 34190.775
C76: CL | D76: N | E76: 319 | F76: LONDRINA | G76: CONTRATO DE LOCAÇÃO DE IMÓVEL - ATEND. SERGIPE | H76: 648000 | I76: 2022-10-01 | J76: 2025-09-30 | K76: 1095 | L76: SIM | M76: GGPINF | U76: 18000
C77: CL | D77: C | E77: 319 | F77: LONDRINA | G77: CONTRATO DE LOCAÇÃO DE IMÓVEL - GPOND 4º PAV | H77: =1251360+51950 -> 1303310 | I77: 2022-11-20 | J77: 2025-11-19 | K77: 1095 | L77: SIM | M77: GGPINF | U77: 29000
C78: CL | D78: C | E78: 319 | F78: LONDRINA | G78: CONTRATO DE LOCAÇÃO DE IMÓVEL - GIDLD 1º PAV | H78: =1251360+51950 -> 1303310 | I78: 2022-11-20 | J78: 2025-11-19 | K78: 1095 | L78: SIM | M78: GGPINF | U78: 29000
B79: 50609/2022 | C79: CL | D79: N | E79: 319 | F79: MALLET | G79: LOCACAO DE IMOVEL PARA ATENDIMENTO AO CLIENTE EM MALLET | H79: 15974.4 | I79: 2022-09-01 | J79: 2023-08-31 | K79: 729 | L79: SIM | M79: GGPINF | N79: 1167.72 | O79: 1167.72 | P79: 1167.72 | Q79: 1167.72 | R79: 1167.72 | S79: =R79*111% -> 1296.1692 | T79: 1296.1692 | U79: 1331.2 | V79: 1296.1692 | W79: 1296.1692 | X79: 1296.1692 | Y79: 1296.1692 | Z79: 1296.1692 | AA79: 1296.1692 | AB79: 1296.1692 | AC79: 1296.1692 | AD79: 1296.1692 | AE79: =AD79*111% -> 1438.747812 | AF79: 1438.747812 | AG79: 1438.747812 | AH79: 1438.747812 | AI79: 1438.747812 | AJ79: 1438.747812 | AK79: 1438.747812 | AL79: 1438.747812 | AM79: 1438.747812 | AN79: 1438.747812 | AO79: 1438.747812 | AP79: 1438.747812 | AQ79: =AP79*111% -> 1597.010071 | AR79: 1597.010071 | AS79: 1597.010071 | AT79: 1597.010071
B80: 50719/2022 | C80: CL | D80: N | E80: 319 | F80: MANGUEIRIN | G80: LOCACAO DE IMOVEL COMERCIAL PARA ATENDIMENTO AO PUBLICO | H80: 49970 | I80: 2022-11-15 | J80: 2025-11-14 | K80: 1095 | L80: SIM | M80: GGPINF | N80: 1300 | O80: 1300 | P80: 1300 | Q80: 1300 | R80: 1300 | S80: 1300 | T80: 1300 | U80: 1350 | V80: =U80*111% -> 1498.5 | W80: 1443 | X80: 1443 | Y80: 1443 | Z80: 1443 | AA80: 1443 | AB80: 1443 | AC80: 1443 | AD80: 1443 | AE80: 1443 | AF80: 1443 | AG80: 1443 | AH80: =AG80*111% -> 1601.73 | AI80: 1601.73 | AJ80: 1601.73 | AK80: 1601.73 | AL80: 1601.73 | AM80: 1601.73 | AN80: 1601.73 | AO80: 1601.73 | AP80: 1601.73 | AQ80: 1601.73 | AR80: 1601.73 | AS80: 1601.73 | AT80: =AS80*111% -> 1777.9203
B81: 32860/2018 | C81: CL | D81: N | E81: 319 | F81: MARINGA | G81: LOCACAO DE IMOVEL ATENDIMENTO PERSONALIZADO | H81: 366060 | I81: 2021-11-02 | J81: 2023-11-01 | K81: 729 | L81: SIM | M81: GGPINF | N81: 14777.5 | O81: 14777.5 | P81: 14777.5 | Q81: 14777.5 | R81: 14777.5 | S81: 14777.5 | T81: 14777.5 | U81: 14777.5 | V81: 16403.025 | W81: 16403.025 | X81: 16403.025 | Y81: 16403.025 | Z81: 16403.025 | AA81: 16403.025 | AB81: 16403.025 | AC81: 16403.025 | AD81: 16403.025 | AE81: 16403.025 | AF81: 16403.025 | AG81: =AF81*111% -> 18207.35775 | AH81: 18207.35775 | AI81: 18207.35775 | AJ81: 18207.35775 | AK81: 18207.35775 | AL81: 18207.35775 | AM81: 18207.35775 | AN81: 18207.35775 | AO81: 18207.35775 | AP81: 18207.35775 | AQ81: 18207.35775 | AR81: 18207.35775 | AS81: =AR81*111% -> 20210.1671 | AT81: =AS81*111% -> 22433.28548
B82: 354680 | C82: OF | D82: R | E82: 319 | F82: MARINGA | G82: LOCACAO IMOVEL ATENDIM CLIENTES MARINGA | H82: 36879.27 | I82: 2019-11-01 | J82: 2023-10-31 | K82: 1460 | L82: SIM | M82: GGPINF
B83: 50003/2022 | C83: CL | D83: N | E83: 319 | F83: MARINGA | G83: LOCACAO DE IMÓVEL P ATENDER COOR. AGUA E ESGOTO | H83: 118547.53 | I83: 2022-10-01 | J83: 2024-09-30 | K83: 364 | L83: SIM | M83: GGPINF | N83: 4000 | O83: 4000 | P83: 4000 | Q83: 4000 | R83: 4000 | S83: 4000 | T83: =S83*111% -> 4440 | U83: 4500 | V83: 4440 | W83: 4440 | X83: 4440 | Y83: 4440 | Z83: 4440 | AA83: 4440 | AB83: 4440 | AC83: 4440 | AD83: 4440 | AE83: 4440 | AF83: =AE83*111% -> 4928.4 | AG83: 4928.4 | AH83: 4928.4 | AI83: 4928.4 | AJ83: 4928.4 | AK83: 4928.4 | AL83: 4928.4 | AM83: 4928.4 | AN83: 4928.4 | AO83: 4928.4 | AP83: 4928.4 | AQ83: 4928.4 | AR83: =AQ83*111% -> 5470.524 | AS83: 5470.524 | AT83: 5470.524
B84: 355693 | C84: OF | D84: O | E84: 312 | F84: FOZ DO IGU | G84: SERV LOCACAO DE GRUPO GERADOR DE ENERGIA | H84: 95600 | I84: 2021-11-04 | J84: 2023-11-04 | K84: 730 | L84: SIM | M84: GDOP | N84: 3983.33 | O84: 3983.33 | P84: 3983.33 | Q84: 3983.33 | R84: 3983.33 | S84: 3983.33 | T84: 3983.33 | U84: 3983.33 | V84: 3983.33 | W84: 3983.33 | X84: 3983.33 | Y84: 3983.33 | Z84: 3983.33 | AA84: 3983.33 | AB84: 3983.33 | AC84: 3983.33 | AD84: 3983.33 | AE84: 3983.33 | AF84: 3983.33 | AG84: 3983.33 | AH84: 4779.996 | AI84: 4779.996 | AJ84: 4779.996 | AK84: 4779.996 | AL84: 4779.996 | AM84: 4779.996 | AN84: 4779.996 | AO84: 4779.996 | AP84: 4779.996 | AQ84: 4779.996 | AR84: 4779.996 | AS84: 4779.996 | AT84: 4779.996
B85: 31896/2018 | C85: CL | D85: N | E85: 319 | F85: MARINGA | G85: LOCACAO DE IMOVEL PARA A SEDE DA GEMNO | H85: 1320000 | I85: 2021-10-01 | J85: 2023-09-30 | K85: 730 | L85: SIM | M85: GGPINF | N85: 55000 | O85: 55000 | P85: 55000 | Q85: 55000 | R85: 55000 | S85: 55000 | T85: 55000 | U85: 59274.5 | V85: 61050 | W85: 61050 | X85: 61050 | Y85: 61050 | Z85: 61050 | AA85: 61050 | AB85: 61050 | AC85: 61050 | AD85: 61050 | AE85: 61050 | AF85: 61050 | AG85: =AF85*111% -> 67765.5 | AH85: 67765.5 | AI85: 67765.5 | AJ85: 67765.5 | AK85: 67765.5 | AL85: 67765.5 | AM85: 67765.5 | AN85: 67765.5 | AO85: 67765.5 | AP85: 67765.5 | AQ85: 67765.5 | AR85: 67765.5 | AS85: =AR85*111% -> 75219.705 | AT85: 75219.705
B86: 50457/2022 | C86: CL | D86: C | E86: 319 | F86: MARINGA | G86: RENOVACAO DE PRAZO TERCEIRO TA DO CL 1112673 2017 | H86: 790000 | I86: 2022-10-01 | J86: 2024-09-30 | K86: 364 | L86: SIM | M86: GGPINF | N86: 27000 | O86: 27000 | P86: 27000 | Q86: 27000 | R86: 27000 | S86: 27000 | T86: =S86*111% -> 29970 | U86: 30825 | V86: 29970 | W86: 29970 | X86: 29970 | Y86: 29970 | Z86: 29970 | AA86: 29970 | AB86: 29970 | AC86: 29970 | AD86: 29970 | AE86: 29970 | AF86: =AE86*111% -> 33266.7 | AG86: 33266.7 | AH86: 33266.7 | AI86: 33266.7 | AJ86: 33266.7 | AK86: 33266.7 | AL86: 33266.7 | AM86: 33266.7 | AN86: 33266.7 | AO86: 33266.7 | AP86: 33266.7 | AQ86: 33266.7 | AR86: =AQ86*111% -> 36926.037 | AS86: 36926.037 | AT86: 36926.037
B87: 49963/2022 | C87: CL | D87: N | E87: 319 | F87: MARIOPOLIS | G87: LOCACAO DE IMOVEL COMERCIAL ATENDIMENTO AO CLIENTE | H87: 49965 | I87: 2022-09-01 | J87: 2027-08-31 | K87: 729 | L87: SIM | M87: GGPINF | N87: 808 | O87: 808 | P87: 808 | Q87: 808 | R87: 808 | S87: =R87*111% -> 896.88 | T87: 896.88 | U87: 808 | V87: 896.88 | W87: 896.88 | X87: 896.88 | Y87: 896.88 | Z87: 896.88 | AA87: 896.88 | AB87: 896.88 | AC87: 896.88 | AD87: 896.88 | AE87: =AD87*111% -> 995.5368 | AF87: 995.5368 | AG87: 995.5368 | AH87: 995.5368 | AI87: 995.5368 | AJ87: 995.5368 | AK87: 995.5368 | AL87: 995.5368 | AM87: 995.5368 | AN87: 995.5368 | AO87: 995.5368 | AP87: 995.5368 | AQ87: =AP87*111% -> 1105.045848 | AR87: 1105.045848 | AS87: 1105.045848 | AT87: 1105.045848
B88: 50219/2022 | C88: CL | D88: O | E88: 319 | F88: MATINHOS | G88: CONTRATACAO DE LOCACAO DE IMOVEL PARA SEDE DE MATINHOS | H88: 747245.2 | I88: 2022-09-01 | J88: 2025-08-31 | K88: 456 | L88: SIM | M88: GGPINF | N88: 20676.51 | O88: 20676.51 | P88: 20676.51 | Q88: 20676.51 | R88: 20676.51 | S88: =R88*111% -> 22950.9261 | T88: 22950.9261 | U88: 20100 | V88: 22950.9261 | W88: 22950.9261 | X88: 22950.9261 | Y88: 22950.9261 | Z88: 22950.9261 | AA88: 22950.9261 | AB88: 22950.9261 | AC88: 22950.9261 | AD88: 22950.9261 | AE88: =AD88*111% -> 25475.52797 | AF88: 25475.52797 | AG88: 25475.52797 | AH88: 25475.52797 | AI88: 25475.52797 | AJ88: 25475.52797 | AK88: 25475.52797 | AL88: 25475.52797 | AM88: 25475.52797 | AN88: 25475.52797 | AO88: 25475.52797 | AP88: 25475.52797 | AQ88: =AP88*111% -> 28277.83605 | AR88: 28277.83605 | AS88: 28277.83605 | AT88: 28277.83605
B89: 50620/2022 | C89: CL | D89: N | E89: 319 | F89: NOVA ALIAN | G89: ALUGUEL DE IMOVEIS | H89: 25550 | I89: 2022-10-11 | J89: 2027-10-10 | K89: 364 | L89: SIM | M89: GGPINF | N89: 420 | O89: 420 | P89: 420 | Q89: 420 | R89: 420 | S89: 420 | T89: 420 | U89: 420 | V89: 466.2 | W89: 466.2 | X89: 466.2 | Y89: 466.2 | Z89: 466.2 | AA89: 466.2 | AB89: 466.2 | AC89: 466.2 | AD89: 466.2 | AE89: 466.2 | AF89: 466.2 | AG89: =AF89*111% -> 517.482 | AH89: 517.482 | AI89: 517.482 | AJ89: 517.482 | AK89: 517.482 | AL89: 517.482 | AM89: 517.482 | AN89: 517.482 | AO89: 517.482 | AP89: 517.482 | AQ89: 517.482 | AR89: 517.482 | AS89: =AR89*111% -> 574.40502 | AT89: 574.40502
B90: 40121/200 | C90: CL | D90: O | E90: 319 | F90: NOVA ESPER | G90: LOCACAO DE UMA SALA PARA ATENDIMENTO AO PUBLICO, NA CIDADE D | H90: 28800 | I90: 2020-06-15 | J90: 2023-06-15 | K90: 1095 | L90: SIM | M90: GGPINF | N90: 850 | O90: 850 | P90: 850 | Q90: =P90*111% -> 943.5 | R90: 943.5 | S90: 943.5 | T90: 943.5 | U90: 850 | V90: 943.5 | W90: 943.5 | X90: 943.5 | Y90: 943.5 | Z90: 943.5 | AA90: 943.5 | AB90: 943.5 | AC90: =AB90*111% -> 1047.285 | AD90: 1047.285 | AE90: 1047.285 | AF90: 1047.285 | AG90: 1047.285 | AH90: 1047.285 | AI90: 1047.285 | AJ90: 1047.285 | AK90: 1047.285 | AL90: 1047.285 | AM90: 1047.285 | AN90: 1047.285 | AO90: =AN90*111% -> 1162.48635 | AP90: 1162.48635 | AQ90: 1162.48635 | AR90: 1162.48635 | AS90: 1162.48635 | AT90: 1162.48635
B91: 49251/2022 | C91: CL | D91: N | E91: 319 | F91: NOVA SANTA | G91: LOCACAO DE IMOVEL NO MUNICIPIO DE NOVA SANTA ROSA | H91: 45920 | I91: 2022-08-01 | J91: 2025-07-31 | K91: 730 | L91: SIM | M91: GGPINF | N91: 540.76 | O91: 0 | P91: 0 | Q91: 0 | R91: 0 | S91: 0 | T91: 0 | U91: 1220 | V91: 0 | W91: 0 | X91: 0 | Y91: 0 | Z91: 0 | AA91: 0 | AB91: 0 | AC91: 0 | AD91: 0 | AE91: 0 | AF91: 0 | AG91: 0 | AH91: 0 | AI91: 0 | AJ91: 0 | AK91: 0 | AL91: 0 | AM91: 0 | AN91: 0 | AO91: 0 | AP91: 0 | AQ91: 0 | AR91: 0 | AS91: 0 | AT91: 0
B92: 36056/2019 | C92: CL | D92: O | E92: 319 | F92: ORTIGUEIRA | G92: LOCACAO DE IMOVEL PARA ESTRUTURA DAS COORDENACOES E ATENDIM | H92: 92613.35 | I92: 2019-07-01 | J92: 2024-06-29 | K92: 1825 | L92: SIM | M92: GGPINF | N92: 1950 | O92: 1950 | P92: 1950 | Q92: =P92*111% -> 2164.5 | R92: 2164.5 | S92: 2164.5 | T92: 2164.5 | U92: 2155.92 | V92: 2164.5 | W92: 2164.5 | X92: 2164.5 | Y92: 2164.5 | Z92: 2164.5 | AA92: 2164.5 | AB92: 2164.5 | AC92: =AB92*111% -> 2402.595 | AD92: 2402.595 | AE92: 2402.595 | AF92: 2402.595 | AG92: 2402.595 | AH92: 2402.595 | AI92: 2402.595 | AJ92: 2402.595 | AK92: 2402.595 | AL92: 2402.595 | AM92: 2402.595 | AN92: 2402.595 | AO92: =AN92*111% -> 2666.88045 | AP92: 2666.88045 | AQ92: 2666.88045 | AR92: 2666.88045 | AS92: 2666.88045 | AT92: 2666.88045
B93: 48390/2022 | C93: CL | D93: N | E93: 319 | F93: PALMAS | G93: LOCAÇÃO DE IMÓVEL PARA ATENDIMENTO | H93: 154420 | I93: 2022-05-31 | J93: 2027-05-31 | L93: SIM | M93: GGPINF | U93: 2500
B94: 33528/2018 | C94: CL | D94: N | E94: 319 | F94: PATO BRANC | G94: LOCACAO DE BARRACAO PARA ARMAZENAMENTO DE MATERIAIS, NA CID | H94: 354502.31 | I94: 2018-12-17 | J94: 2023-12-16 | K94: 1825 | L94: SIM | M94: GGPINF | N94: 7109.07 | O94: 7109.07 | P94: 7109.07 | Q94: 7109.07 | R94: 7109.07 | S94: 7109.07 | T94: 7109.07 | U94: 7109.07 | V94: 7109.07 | W94: =V94*111% -> 7891.0677 | X94: 7891.0677 | Y94: 7891.0677 | Z94: 7891.0677 | AA94: 7891.0677 | AB94: 7891.0677 | AC94: 7891.0677 | AD94: 7891.0677 | AE94: 7891.0677 | AF94: 7891.0677 | AG94: 7891.0677 | AH94: 7891.0677 | AI94: =AH94*111% -> 8759.085147 | AJ94: 8759.085147 | AK94: 8759.085147 | AL94: 8759.085147 | AM94: 8759.085147 | AN94: 8759.085147 | AO94: 8759.085147 | AP94: 8759.085147 | AQ94: 8759.085147 | AR94: 8759.085147 | AS94: 8759.085147 | AT94: 8759.085147
B95: 1202547/2018 | C95: CL | D95: N | E95: 319 | F95: PEROBAL | G95: LOCAÇÃO DE IMÓVEL | H95: 11616 | I95: 2022-04-01 | J95: 2023-03-31 | L95: SIM | M95: GGPINF | U95: 968
B96: 1173866/2017 | C96: CL | D96: N | E96: 319 | F96: PEROLA D O | G96: 2 TA RENOVACAO | H96: 25200 | I96: 2022-12-01 | J96: 2025-11-30 | K96: 729 | L96: SIM | M96: GGPINF | N96: 700 | O96: 700 | P96: 700 | Q96: 700 | R96: 700 | S96: 700 | T96: 700 | U96: 700 | V96: =U96*111% -> 777 | W96: 777 | X96: 777 | Y96: 777 | Z96: 777 | AA96: 777 | AB96: 777 | AC96: 777 | AD96: 777 | AE96: 777 | AF96: 777 | AG96: 777 | AH96: =AG96*111% -> 862.47 | AI96: 862.47 | AJ96: 862.47 | AK96: 862.47 | AL96: 862.47 | AM96: 862.47 | AN96: 862.47 | AO96: 862.47 | AP96: 862.47 | AQ96: 862.47 | AR96: 862.47 | AS96: 862.47 | AT96: =AS96*111% -> 957.3417
B97: 38975/2020 | C97: CL | D97: N | E97: 319 | F97: PINHAIS | G97: RENOVACAO DE LOCACAO DE IMOVEL USO CD PINHAIS PQ | H97: 854434.3 | I97: 2022-02-20 | J97: 2024-02-19 | K97: 820 | L97: SIM | M97: GGPINF | N97: 27770 | O97: 27770 | P97: 27770 | Q97: 27770 | R97: 27770 | S97: 27770 | T97: 27770 | U97: 27770 | V97: 27770 | W97: 27770 | X97: 27770 | Y97: =X97*111% -> 30824.7 | Z97: 30824.7 | AA97: 30824.7 | AB97: 30824.7 | AC97: 30824.7 | AD97: 30824.7 | AE97: 30824.7 | AF97: 30824.7 | AG97: 30824.7 | AH97: 30824.7 | AI97: 30824.7 | AJ97: 30824.7 | AK97: =AJ97+111% -> 30825.81 | AL97: 30825.81 | AM97: 30825.81 | AN97: 30825.81 | AO97: 30825.81 | AP97: 30825.81 | AQ97: 30825.81 | AR97: 30825.81 | AS97: 30825.81 | AT97: 30825.81
B98: 1145900/2017 | C98: CL | D98: C | E98: 319 | F98: PINHAIS | G98: LOCACAO DE IMOVEL PARA COORD. DE CLIENTES E ESCRITORIO BASE | H98: 593029.6 | I98: 2022-12-01 | J98: 2027-11-30 | K98: 1825 | L98: SIM | M98: GGPINF | N98: 9211.58 | O98: 9211.58 | P98: 9211.58 | Q98: 9211.58 | R98: 9211.58 | S98: 9211.58 | T98: 9211.58 | U98: 9672.16 | V98: =U98*111% -> 10736.0976 | W98: 10224.8538 | X98: 10224.8538 | Y98: 10224.8538 | Z98: 10224.8538 | AA98: 10224.8538 | AB98: 10224.8538 | AC98: 10224.8538 | AD98: 10224.8538 | AE98: 10224.8538 | AF98: 10224.8538 | AG98: 10224.8538 | AH98: =AG98*111% -> 11349.58772 | AI98: 11349.58772 | AJ98: 11349.58772 | AK98: 11349.58772 | AL98: 11349.58772 | AM98: 11349.58772 | AN98: 11349.58772 | AO98: 11349.58772 | AP98: 11349.58772 | AQ98: 11349.58772 | AR98: 11349.58772 | AS98: 11349.58772 | AT98: =AS98*111% -> 12598.04237
B99: 29499/2018 | C99: CL | D99: C | E99: 319 | F99: PINHALAO | G99: LOCACAO DE IMOVEL SALA COM BANHEIRO | H99: 9000 | I99: 2022-04-01 | J99: 2023-04-01 | K99: 365 | L99: SIM | M99: GGPINF | N99: 750 | O99: 750 | P99: 750 | Q99: 750 | R99: 750 | S99: 750 | T99: 750 | U99: 750 | V99: 750 | W99: 750 | X99: 750 | Y99: 750 | Z99: =Y99*111% -> 832.5 | AA99: 832.5 | AB99: 832.5 | AC99: 832.5 | AD99: 832.5 | AE99: 832.5 | AF99: 832.5 | AG99: 832.5 | AH99: 832.5 | AI99: 832.5 | AJ99: 832.5 | AK99: 832.5 | AL99: =AK99*111% -> 924.075 | AM99: 924.075 | AN99: 924.075 | AO99: 924.075 | AP99: 924.075 | AQ99: 924.075 | AR99: 924.075 | AS99: 924.075 | AT99: 924.075
B100: 50649/2022 | C100: CL | D100: C | E100: 319 | F100: PITANGA | G100: LOCACAO SALA COMERCIAL ATENDIMENTO AO CLIENTE PITANGA | H100: 35287.72 | I100: 2022-11-01 | J100: 2023-10-31 | K100: 364 | L100: SIM | M100: GGPINF | N100: 2456.8 | O100: 2456.8 | P100: 2456.8 | Q100: 2456.8 | R100: 2456.8 | S100: 2456.8 | T100: 2456.8 | U100: 2700 | V100: 2727.048 | W100: 2727.048 | X100: 2727.048 | Y100: 2727.048 | Z100: 2727.048 | AA100: 2727.048 | AB100: 2727.048 | AC100: 2727.048 | AD100: 2727.048 | AE100: 2727.048 | AF100: 2727.048 | AG100: =AF100*111% -> 3027.02328 | AH100: 3027.02328 | AI100: 3027.02328 | AJ100: 3027.02328 | AK100: 3027.02328 | AL100: 3027.02328 | AM100: 3027.02328 | AN100: 3027.02328 | AO100: 3027.02328 | AP100: 3027.02328 | AQ100: 3027.02328 | AR100: 3027.02328 | AS100: =AR100*111% -> 3359.995841 | AT100: 3359.995841
B101: 48016/2022 | C101: CL | D101: N | E101: 319 | F101: PONTA GROS | G101: RENOVACAO DO CONTRATO DE LOCACAO GEMSD | H101: 575080.7 | I101: 2022-05-01 | J101: 2024-04-30 | K101: 729 | L101: SIM | M101: GGPINF | N101: 18500 | O101: 23000 | P101: 23000 | Q101: 23000 | R101: 23000 | S101: 23000 | T101: 23000 | U101: 23000 | V101: 23000 | W101: 23000 | X101: 23000 | Y101: 23000 | Z101: 23000 | AA101: =Z101*111% -> 25530 | AB101: 25530 | AC101: 25530 | AD101: 25530 | AE101: 25530 | AF101: 25530 | AG101: 25530 | AH101: 25530 | AI101: 25530 | AJ101: 25530 | AK101: 25530 | AL101: 25530 | AM101: =AL101*111% -> 28338.3 | AN101: 28338.3 | AO101: 28338.3 | AP101: 28338.3 | AQ101: 28338.3 | AR101: 28338.3 | AS101: 28338.3 | AT101: 28338.3
B102: 48725/2022 | C102: CL | D102: N | E102: 319 | F102: PONTA GROS | G102: CONTRATO DE LOCACAO DE IMOVEL | H102: 1240112.83 | I102: 2022-07-01 | J102: 2027-06-30 | K102: 1825 | L102: SIM | M102: GGPINF | N102: 1077.5 | O102: 1077.5 | P102: 1077.5 | Q102: 1077.5 | R102: 1077.5 | S102: 1077.5 | T102: 1077.5 | U102: 20000 | Z102: 1196.025 | AA102: 1196.025 | AB102: 1196.025 | AC102: 1196.025 | AD102: 1196.025 | AE102: 1196.025 | AF102: 1196.025 | AG102: 1196.025 | AH102: 1196.025 | AI102: 1196.025 | AJ102: =AI102*111% -> 1327.58775 | AK102: 1327.58775 | AL102: 1327.58775 | AM102: 1327.58775 | AN102: 1327.58775 | AO102: 1327.58775 | AP102: 1327.58775 | AQ102: 1327.58775 | AR102: 1327.58775 | AS102: 1327.58775 | AT102: 1327.58775
B103: 1171038/2017 | C103: CL | D103: N | E103: 319 | F103: PONTAL DO | G103: CONTRATACAO LOCACAO DE IMOVEL PONTAL DO PARANA | H103: 157570.56 | I103: 2019-12-11 | J103: 2022-12-10 | K103: 1095 | L103: SIM | M103: GGPINF | N103: 5159.99 | O103: 5159.99 | P103: 5159.99 | Q103: 5159.99 | R103: 5159.99 | S103: 5159.99 | T103: 5159.99 | U103: 5159.99 | V103: =U103*111% -> 5727.5889 | W103: 5727.5889 | X103: 5727.5889 | Y103: 5727.5889 | Z103: 5727.5889 | AA103: 5727.5889 | AB103: 5727.5889 | AC103: 5727.5889 | AD103: 5727.5889 | AE103: 5727.5889 | AF103: 5727.5889 | AG103: 5727.5889 | AH103: =AG103*111% -> 6357.623679 | AI103: 6357.623679 | AJ103: 6357.623679 | AK103: 6357.623679 | AL103: 6357.623679 | AM103: 6357.623679 | AN103: 6357.623679 | AO103: 6357.623679 | AP103: 6357.623679 | AQ103: 6357.623679 | AR103: 6357.623679 | AS103: 6357.623679 | AT103: =AS103*111% -> 7056.962284
B104: 33674/2018 | C104: CL | D104: N | E104: 319 | F104: PRUDENTOPO | G104: LOCACAO IMOVEL PARA ATIVIDADES DA CENTRAL DE RELACIONAMENTO | H104: 29659 | I104: 2022-12-13 | J104: 2023-12-12 | K104: 364 | L104: SIM | M104: GGPINF | N104: 2263.15 | O104: 2263.15 | P104: 2263.15 | Q104: 2263.15 | R104: 2263.15 | S104: 2263.15 | T104: 2263.15 | U104: 2263.15 | V104: 2263.15 | W104: =V104*111% -> 2512.0965 | X104: 2512.0965 | Y104: 2512.0965 | Z104: 2512.0965 | AA104: 2512.0965 | AB104: 2512.0965 | AC104: 2512.0965 | AD104: 2512.0965 | AE104: 2512.0965 | AF104: 2512.0965 | AG104: 2512.0965 | AH104: 2512.0965 | AI104: =AH104*111% -> 2788.427115 | AJ104: 2788.427115 | AK104: 2788.427115 | AL104: 2788.427115 | AM104: 2788.427115 | AN104: 2788.427115 | AO104: 2788.427115 | AP104: 2788.427115 | AQ104: 2788.427115 | AR104: 2788.427115 | AS104: 2788.427115 | AT104: 2788.427115
B105: 35798/2019 | C105: CL | D105: C | E105: 319 | F105: QUEDAS DO | G105: LOCACAO DE SALA COMERCIAL PARA ATENDIMENTO AO CLIENTE E SUPO | H105: 17000 | I105: 2022-07-01 | J105: 2023-06-30 | K105: 1095 | L105: SIM | M105: GGPINF | N105: 1200 | O105: 1200 | P105: 1200 | Q105: =P105*111% -> 1332 | R105: 1332 | S105: 1332 | T105: 1332 | U105: 1350 | V105: 1332 | W105: 1332 | X105: 1332 | Y105: 1332 | Z105: 1332 | AA105: 1332 | AB105: 1332 | AC105: =AB105*111% -> 1478.52 | AD105: 1478.52 | AE105: 1478.52 | AF105: 1478.52 | AG105: 1478.52 | AH105: 1478.52 | AI105: 1478.52 | AJ105: 1478.52 | AK105: 1478.52 | AL105: 1478.52 | AM105: 1478.52 | AN105: 1478.52 | AO105: =AN105*111% -> 1641.1572 | AP105: 1641.1572 | AQ105: 1641.1572 | AR105: 1641.1572 | AS105: 1641.1572 | AT105: 1641.1572
B106: 30553/2018 | C106: CL | D106: O | E106: 319 | F106: RESERVA | G106: LOCACAO IMOVEL SISTEMA RESERVA | H106: 108000 | I106: 2018-05-01 | J106: 2023-04-30 | K106: 1825 | L106: SIM | M106: GGPINF | N106: 1800 | O106: =N106*111% -> 1998 | P106: 1998 | Q106: 1998 | R106: 1998 | S106: 1998 | T106: 1998 | U106: 1800 | V106: 1998 | W106: 1998 | X106: 1998 | Y106: 1998 | Z106: 1998 | AA106: =Z106*111% -> 2217.78 | AB106: 2217.78 | AC106: 2217.78 | AD106: 2217.78 | AE106: 2217.78 | AF106: 2217.78 | AG106: 2217.78 | AH106: 2217.78 | AI106: 2217.78 | AJ106: 2217.78 | AK106: 2217.78 | AL106: 2217.78 | AM106: =AL106*111% -> 2461.7358 | AN106: 2461.7358 | AO106: 2461.7358 | AP106: 2461.7358 | AQ106: 2461.7358 | AR106: 2461.7358 | AS106: 2461.7358 | AT106: 2461.7358
B107: 50610/2022 | C107: CL | D107: N | E107: 319 | F107: RIO AZUL | G107: LOCACAO DE IMOVEL PARA ATENDIMENTO AO PUBLICO EM RIO AZUL | H107: 17862.84 | I107: 2022-09-15 | J107: 2023-09-14 | K107: 364 | L107: SIM | M107: GGPINF | N107: 1353.25 | O107: 1353.25 | P107: 1353.25 | Q107: 1353.25 | R107: 1353.25 | S107: 1353.25 | T107: =S107*111% -> 1502.1075 | U107: 1488.57 | V107: 1502.1075 | W107: 1502.1075 | X107: 1502.1075 | Y107: 1502.1075 | Z107: 1502.1075 | AA107: 1502.1075 | AB107: 1502.1075 | AC107: 1502.1075 | AD107: 1502.1075 | AE107: 1502.1075 | AF107: =AE107*111% -> 1667.339325 | AG107: 1667.339325 | AH107: 1667.339325 | AI107: 1667.339325 | AJ107: 1667.339325 | AK107: 1667.339325 | AL107: 1667.339325 | AM107: 1667.339325 | AN107: 1667.339325 | AO107: 1667.339325 | AP107: 1667.339325 | AQ107: 1667.339325 | AR107: =AQ107*111% -> 1850.746651 | AS107: 1850.746651 | AT107: 1850.746651
B108: 39627/2020 | C108: CL | D108: C | E108: 319 | F108: RIO BRANCO | G108: LOCACAO DE IMOVEL A SER UTILIZADO COMO ESCRITORIO DE RBS. | H108: 28999.92 | I108: 2022-04-11 | J108: 2023-04-10 | K108: 364 | L108: SIM | M108: GGPINF | N108: 2416.66 | O108: =N108*111% -> 2682.4926 | P108: 2682.4926 | Q108: 2682.4926 | R108: 2682.4926 | S108: 2682.4926 | T108: 2682.4926 | U108: 2416.66 | V108: 2682.4926 | W108: 2682.4926 | X108: 2682.4926 | Y108: 2682.4926 | Z108: 2682.4926 | AA108: =Z108*111% -> 2977.566786 | AB108: 2977.566786 | AC108: 2977.566786 | AD108: 2977.566786 | AE108: 2977.566786 | AF108: 2977.566786 | AG108: 2977.566786 | AH108: 2977.566786 | AI108: 2977.566786 | AJ108: 2977.566786 | AK108: 2977.566786 | AL108: 2977.566786 | AM108: =AL108*111% -> 3305.099132 | AN108: 3305.099132 | AO108: 3305.099132 | AP108: 3305.099132 | AQ108: 3305.099132 | AR108: 3305.099132 | AS108: 3305.099132 | AT108: 3305.099132
B109: 48715/2022 | C109: CL | D109: N | E109: 319 | F109: SABAUDIA | G109: LOCAÇÃO DE IMÓVEL - POÇO | H109: 20900 | I109: 2022-08-01 | J109: 2023-07-31 | K109: 364 | L109: SIM | M109: GGPINF | U109: 1700
B110: 30770/2018 | C110: CL | D110: C | E110: 319 | F110: SANTA MARI | G110: LOCACAO DE SALA COMERCIAL PARA ATENDIMENTO AO CLIENTE | H110: 10846 | I110: 2022-07-01 | J110: 2023-06-30 | K110: 364 | L110: SIM | M110: GGPINF | N110: 604.2 | O110: 604.2 | P110: 604.2 | Q110: =P110*111% -> 670.662 | R110: 670.662 | S110: 670.662 | T110: 670.662 | U110: 692.72 | V110: 670.662 | W110: 670.662 | X110: 670.662 | Y110: 670.662 | Z110: 670.662 | AA110: 670.662 | AB110: 670.662 | AC110: =AB110*111% -> 744.43482 | AD110: 744.43482 | AE110: 744.43482 | AF110: 744.43482 | AG110: 744.43482 | AH110: 744.43482 | AI110: 744.43482 | AJ110: 744.43482 | AK110: 744.43482 | AL110: 744.43482 | AM110: 744.43482 | AN110: 744.43482 | AO110: =AN110*111% -> 826.3226502 | AP110: 826.3226502 | AQ110: 826.3226502 | AR110: 826.3226502 | AS110: 826.3226502 | AT110: 826.3226502
B111: 1178712/2017 | C111: CL | D111: C | E111: 319 | F111: SANTO ANTÔNIO DA PLATINA | G111: LOCAÇÃO DE IMÓVEL - MANDADO | H111: 9240 | I111: 2022-01-01 | J111: 2022-12-31 | K111: 365 | L111: SIM | M111: GGPINF | U111: 770
B112: 346048 | C112: OF | D112: O | E112: 312 | F112: SAO JOAO | G112: LOCACAO DE CONTEINER ESCRITORIO LABORATORIO PARA ETE DE SAO | H112: 24720 | I112: 2021-03-08 | J112: 2023-03-08 | K112: 730 | L112: SIM | M112: GGPINF | N112: 1030 | O112: 1030 | P112: 1030 | Q112: 1030 | R112: 1030 | S112: 1030 | T112: 1030 | U112: 1030 | V112: 1030 | W112: 1030 | X112: 1030 | Y112: 1030 | Z112: 0 | AA112: 0 | AB112: 0 | AC112: 0 | AD112: 0 | AE112: 0 | AF112: 0 | AG112: 0 | AH112: 0 | AI112: 0 | AJ112: 0 | AK112: 0 | AL112: 0 | AM112: 0 | AN112: 0 | AO112: 0 | AP112: 0 | AQ112: 0 | AR112: 0 | AS112: 0 | AT112: 0
B113: 31463/2018 | C113: CL | D113: C | E113: 319 | F113: SAO JORGE | G113: LOCACAO DE IMOVEL PARA ATENDIMENTO AO PUBLICO | H113: 11616 | I113: 2022-08-01 | J113: 2023-07-31 | K113: 365 | L113: SIM | M113: GGPINF | N113: 880 | O113: 880 | P113: 880 | Q113: 880 | R113: =Q113*111% -> 976.8 | S113: 976.8 | T113: 976.8 | U113: 968 | V113: 976.8 | W113: 976.8 | X113: 976.8 | Y113: 976.8 | Z113: 976.8 | AA113: 976.8 | AB113: 976.8 | AC113: 976.8 | AD113: =AC113*111% -> 1084.248 | AE113: 1084.248 | AF113: 1084.248 | AG113: 1084.248 | AH113: 1084.248 | AI113: 1084.248 | AJ113: 1084.248 | AK113: 1084.248 | AL113: 1084.248 | AM113: 1084.248 | AN113: 1084.248 | AO113: 1084.248 | AP113: =AO113*111% -> 1203.51528 | AQ113: 1203.51528 | AR113: 1203.51528 | AS113: 1203.51528 | AT113: 1203.51528
B114: 1209967/2018 | C114: CL | D114: C | E114: 319 | F114: SENGÉS | G114: LOCAÇÃO DE IMÓVEL PARA ATENDIMENTO | H114: 43712.8 | I114: 2022-03-01 | J114: 2023-02-28 | K114: 365 | L114: SIM | M114: GGPINF | U114: 3245.93
B115: 50195/2022 | C115: CL | D115: O | E115: 319 | F115: TAMARANA | G115: LOCACAO DE IMOVEL COMERCIAL, EM ALVENARIA, COM AREA CONSTRU | H115: 42000 | I115: 2022-10-01 | J115: 2027-09-30 | K115: 1825 | L115: SIM | M115: GGPINF | N115: 550 | O115: 550 | P115: 550 | Q115: 550 | R115: 550 | S115: 550 | T115: =S115*111% -> 610.5 | U115: 700 | V115: 610.5 | W115: 610.5 | X115: 610.5 | Y115: 610.5 | Z115: 610.5 | AA115: 610.5 | AB115: 610.5 | AC115: 610.5 | AD115: 610.5 | AE115: 610.5 | AF115: =AE115*111% -> 677.655 | AG115: 677.655 | AH115: 677.655 | AI115: 677.655 | AJ115: 677.655 | AK115: 677.655 | AL115: 677.655 | AM115: 677.655 | AN115: 677.655 | AO115: 677.655 | AP115: 677.655 | AQ115: 677.655 | AR115: =AQ115*111% -> 752.19705 | AS115: 752.19705 | AT115: 752.19705
B116: 1211801/2018 | C116: CL | D116: C | E116: 319 | F116: TEIXEIRA S | G116: LOACACAO IMOVEL PARA CENTRAL DE RELACIONAMENTO COM CLIENTE | H116: 15600 | I116: 2022-04-01 | J116: 2023-03-31 | K116: 365 | L116: SIM | M116: GGPINF | N116: 1120 | O116: 1120 | P116: 1120 | Q116: 1120 | R116: 1120 | S116: 1120 | T116: 1120 | U116: 1300 | V116: 1120 | W116: 1120 | X116: 1120 | Y116: 1120 | Z116: =Y116*111% -> 1243.2 | AA116: 1243.2 | AB116: 1243.2 | AC116: 1243.2 | AD116: 1243.2 | AE116: 1243.2 | AF116: 1243.2 | AG116: 1243.2 | AH116: 1243.2 | AI116: 1243.2 | AJ116: 1243.2 | AK116: 1243.2 | AL116: =AK116*111% -> 1379.952 | AM116: 1379.952 | AN116: 1379.952 | AO116: 1379.952 | AP116: 1379.952 | AQ116: 1379.952 | AR116: 1379.952 | AS116: 1379.952 | AT116: 1379.952
B117: 31914/2018 | C117: CL | D117: O | E117: 319 | F117: TELEMACO B | G117: LOCACAO DE IMOVEL PARA ESTRUTURA DA GERENCIA REGIONAL, COOR | H117: 730731.93 | I117: 2018-11-01 | J117: 2023-10-31 | K117: 1825 | L117: SIM | M117: GGPINF | N117: 15235.8 | O117: 15235.8 | P117: 15235.8 | Q117: 15235.8 | R117: 15235.8 | S117: 15235.8 | T117: 15235.8 | U117: 16229.17 | V117: 16911.738 | W117: 16911.738 | X117: 16911.738 | Y117: 16911.738 | Z117: 16911.738 | AA117: 16911.738 | AB117: 16911.738 | AC117: 16911.738 | AD117: 16911.738 | AE117: 16911.738 | AF117: 16911.738 | AG117: =AF117*111% -> 18772.02918 | AH117: =AG117*111% -> 20836.95239 | AI117: =AH117*111% -> 23129.01715 | AJ117: 25673.20904 | AK117: 28497.26203 | AL117: 31631.96086 | AM117: 35111.47655 | AN117: 38973.73897 | AO117: 43260.85026 | AP117: 48019.54379 | AQ117: 53301.6936 | AR117: 59164.8799 | AS117: =AR117*111% -> 65673.01669 | AT117: 65673.01669
B118: 45643/2021 | C118: CL | D118: O | E118: 319 | F118: TIJUCAS DO | G118: LOCACAO DE IMOVEL PARA ESCRITORIO DA COORD. DE MANUTENCAO E | H118: 44020 | I118: 2021-11-01 | J118: 2023-11-01 | K118: 730 | L118: SIM | M118: GGPINF | N118: 1800 | O118: 1800 | P118: 1800 | Q118: 1800 | R118: 1800 | S118: 1800 | T118: 1800 | U118: 1800 | V118: 1998 | W118: 1998 | X118: 1998 | Y118: 1998 | Z118: 1998 | AA118: 1998 | AB118: 1998 | AC118: 1998 | AD118: 1998 | AE118: 1998 | AF118: 1998 | AG118: =AF118*111% -> 2217.78 | AH118: 2217.78 | AI118: 2217.78 | AJ118: 2217.78 | AK118: 2217.78 | AL118: 2217.78 | AM118: 2217.78 | AN118: 2217.78 | AO118: 2217.78 | AP118: 2217.78 | AQ118: 2217.78 | AR118: 2217.78 | AS118: =AR118*111% -> 2461.7358 | AT118: 2461.7358
B119: 49782/2022 | C119: CL | D119: C | E119: 319 | F119: TURVO | G119: LOCACAO DE SALA COMERCIAL P ATEND. AO CLIENTE EM TURVO | H119: 20830.64 | I119: 2022-08-18 | J119: 2023-08-17 | K119: 364 | L119: SIM | M119: GGPINF | N119: 1327.72 | O119: 1327.72 | P119: 1327.72 | Q119: 1327.72 | R119: 1327.72 | S119: =R119*111% -> 1473.7692 | T119: 1473.7692 | U119: 1447.22 | V119: 1473.7692 | W119: 1473.7692 | X119: 1473.7692 | Y119: 1473.7692 | Z119: 1473.7692 | AA119: 1473.7692 | AB119: 1473.7692 | AC119: 1473.7692 | AD119: 1473.7692 | AE119: =AD119*111% -> 1635.883812 | AF119: 1635.883812 | AG119: 1635.883812 | AH119: 1635.883812 | AI119: 1635.883812 | AJ119: 1635.883812 | AK119: 1635.883812 | AL119: 1635.883812 | AM119: 1635.883812 | AN119: 1635.883812 | AO119: 1635.883812 | AP119: 1635.883812 | AQ119: =AP119*111% -> 1815.831031 | AR119: 1815.831031 | AS119: 1815.831031 | AT119: 1815.831031
B120: 49741/2022 | C120: CL | D120: N | E120: 319 | F120: UNIAO DA V | G120: LOCACAO IMOVEL PARA SEDE DA GERENCIA GRUV | H120: 81740 | I120: 2022-08-01 | J120: 2023-07-31 | K120: 364 | L120: SIM | M120: GGPINF | N120: 5500 | O120: 5500 | P120: 5500 | Q120: 5500 | R120: 5500 | S120: =R120*111% -> 6105 | T120: 6105 | U120: 6270 | V120: 6105 | W120: 6105 | X120: 6105 | Y120: 6105 | Z120: 6105 | AA120: 6105 | AB120: 6105 | AC120: 6105 | AD120: 6105 | AE120: =AD120*111% -> 6776.55 | AF120: 6776.55 | AG120: 6776.55 | AH120: 6776.55 | AI120: 6776.55 | AJ120: 6776.55 | AK120: 6776.55 | AL120: 6776.55 | AM120: 6776.55 | AN120: 6776.55 | AO120: 6776.55 | AP120: 6776.55 | AQ120: =AP120*111% -> 7521.9705 | AR120: 7521.9705 | AS120: 7521.9705 | AT120: 7521.9705
B121: 348550 | C121: OF | D121: O | E121: 312 | F121: VERE | G121: LOCACAO DE CONTAINER PARA TRATAMENTO DE AGUA NO SISTEMA DE V | H121: 12000 | I121: 2021-05-14 | J121: 2023-05-14 | K121: 730 | L121: SIM | M121: GGPINF | N121: 1000 | O121: 1000 | P121: 1000 | Q121: 1000 | R121: 1000 | S121: 1000 | T121: 1000 | U121: 1000 | V121: 1000 | W121: 1000 | X121: 1000 | Y121: 1000 | Z121: 0 | AA121: 0 | AB121: 0 | AC121: 0 | AD121: 0 | AE121: 0 | AF121: 0 | AG121: 0 | AH121: 0 | AI121: 0 | AJ121: 0 | AK121: 0 | AL121: 0 | AM121: 0 | AN121: 0 | AO121: 0 | AP121: 0 | AQ121: 0 | AR121: 0 | AS121: 0 | AT121: 0
A122: 29360 | C122: Original | E122: 312 | F122: CURITIBA | G122: SERV DE LOCACAO DE MICROCOMPUTADORES | H122: 13271257.68 | I122: 2018-02-22 | J122: 2023-02-21 | K122: 1825 | L122: NÃO | M122: GTIN | N122: 243804.19 | O122: 243804.19 | P122: 243804.19 | Q122: 243804.19 | R122: 243804.19 | S122: 243804.19 | T122: 243804.19 | U122: 243804.19 | V122: 243804.19 | W122: 243804.19 | X122: 243804.19 | Y122: 305961.3 | Z122: 305961.3 | AA122: 305961.3 | AB122: 305961.3 | AC122: 305961.3 | AD122: 305961.3 | AE122: 305961.3 | AF122: 305961.3 | AG122: 305961.3 | AH122: 305961.3 | AI122: 305961.3 | AJ122: 305961.3 | AK122: 305961.3 | AL122: 305961.3 | AM122: 305961.3 | AN122: 305961.3 | AO122: 305961.3 | AP122: 305961.3 | AQ122: 305961.3 | AR122: 305961.3 | AS122: 305961.3 | AT122: 305961.3
B123: 289863 | C123: Original | H123: 8400000
B124: 318121 | C124: Reajuste | H124: 243456.16
B125: 329438 | C125: Complemento | H125: 1254393.9
B126: 354365 | C126: Reajuste | H126: 193579.42
B127: 354368 | C127: Reajuste | H127: 41018.68
B128: 354370 | C128: Reajuste | H128: 167214
B129: 354371 | C129: Reajuste | H129: 45941.01
B130: 329437 | C130: Renovação | H130: 2715980.8
B131: 354369 | C131: Reajuste | H131: 88812.57
B132: 354372 | C132: Reajuste | H132: 120861.14
A133: 45349 | C133: Original | E133: 312 | F133: CURITIBA | G133: SERV DE LOCACAO DE MICROCOMPUTADORES | H133: 14689500 | I133: 2021-09-22 | J133: 2026-09-21 | K133: 1825 | L133: NÃO | M133: GTIN | N133: 244825 | O133: 244825 | P133: 244825 | Q133: 244825 | R133: 244825 | S133: 244825 | T133: 244825 | U133: 244825 | V133: 244825 | W133: 244825 | X133: 244825 | Y133: 244825 | Z133: 244825 | AA133: 244825 | AB133: 244825 | AC133: 244825 | AD133: 244825 | AE133: 244825 | AF133: 244825 | AG133: 244825 | AH133: 244825 | AI133: 244825 | AJ133: 244825 | AK133: 244825 | AL133: 244825 | AM133: 244825 | AN133: 244825 | AO133: 244825 | AP133: 244825 | AQ133: 244825 | AR133: 244825 | AS133: 244825 | AT133: 244825
B134: 354618 | C134: Original | H134: 14689500
A135: 31272 | C135: Original | E135: 312 | F135: CURITIBA | G135: SERV LOCACAO DE TABLETS | H135: 4858920 | I135: 2018-07-02 | J135: 2022-07-01 | K135: 1460 | L135: SIM | M135: GTIN | N135: 93753 | O135: 93753 | P135: 93753 | Q135: 93753 | R135: 93753 | S135: 93753 | T135: 93753 | U135: 93753 | V135: 93753 | W135: 93753 | X135: 93753 | Y135: 93753 | Z135: 93753 | AA135: 93753 | AB135: 93753 | AC135: 93753 | AD135: 93753 | AE135: 93753 | AF135: 93753 | AG135: 93753 | AH135: 93753 | AI135: 93753 | AJ135: 93753 | AK135: 93753 | AL135: 93753 | AM135: 93753 | AN135: 93753 | AO135: 93753 | AP135: 93753 | AQ135: 93753 | AR135: 93753 | AS135: 93753 | AT135: 93753
B136: 297606 | C136: Original | H136: 2608848
B137: 337294 | C137: Renovação | H137: 2250072
A138: 44495 | C138: Original | E138: 312 | F138: CURITIBA | G138: SERV LOCACAO DE NOTEBOOKS | H138: 11909975 | I138: 2021-08-13 | J138: 2026-08-12 | K138: 1825 | L138: NÃO | M138: GTIN | N138: 207130 | O138: 207130 | P138: 207130 | Q138: 207130 | R138: 207130 | S138: 207130 | T138: 207130 | U138: 207130 | V138: 207130 | W138: 207130 | X138: 207130 | Y138: 207130 | Z138: 207130 | AA138: 207130 | AB138: 207130 | AC138: 207130 | AD138: 207130 | AE138: 207130 | AF138: 207130 | AG138: 207130 | AH138: 207130 | AI138: 207130 | AJ138: 207130 | AK138: 207130 | AL138: 207130 | AM138: 207130 | AN138: 207130 | AO138: 207130 | AP138: 207130 | AQ138: 207130 | AR138: 207130 | AS138: 207130 | AT138: 207130
B139: 351515 | C139: Original | H139: 11909975
A140: 45412 | C140: Original | E140: 312 | F140: CURITIBA | G140: SERV SOLUCAO DE IMPRESSAO, COPIA E DIGITALIZAÇÃO | H140: 16168672 | I140: 2021-10-01 | J140: 2025-09-10 | K140: 1440 | L140: SIM | M140: GTIN | N140: 112870 | O140: 112870 | P140: 112870 | Q140: 112870 | R140: 112870 | S140: 112870 | T140: 112870 | U140: 112870 | V140: 112870 | W140: 112870 | X140: 112870 | Y140: 112870 | Z140: 112870 | AA140: 112870 | AB140: 112870 | AC140: 112870 | AD140: 112870 | AE140: 112870 | AF140: 112870 | AG140: 112870 | AH140: 112870 | AI140: 112870 | AJ140: 112870 | AK140: 112870 | AL140: 112870 | AM140: 112870 | AN140: 112870 | AO140: 112870 | AP140: 112870 | AQ140: 112870 | AR140: 112870 | AS140: 112870 | AT140: 112870

Sheet LeasingLitoralRal (2)
B2: Quadro de Desembolsos e Projeções de Pagamentos relacionadas ao Leasing Litoral, SLP - Saneamento Litoral Paraná S/A
B4: SLP - DEMONSTRATIVO ANUAL
B5: ANO | C5: JUROS R$ | D5: PRINCIPAL R$ | E5: PAGAMENTO R$ | F5: PROJ IPC-FIPE APLICADO* | G5: Índice | H5: Valor Atualizado
B6: 2017 | C6: 8536232.44 | D6: 1015263.56 | E6: 9551496 | G6: 1.1359879 | H6: =G6*E6 -> 10850383.88
B7: =B6+1 -> 2018 | C7: 24342344.94 | D7: 3472914.23 | E7: 27815259.17 | G7: 1.0918143 | H7: =G7*E7 -> 30369097.72
B8: 2019 | C8: 28706425.93 | D8: 6177076.79 | E8: 34883502.72 | G8: 1.0571929 | H8: 36878591.4
B9: 2020 | C9: 29065051.76 | D9: 7014107.64 | E9: 36079159.4 | G9: 1 | H9: 36079159.4
B10: 2021 | C10: 29817071.31 | D10: 8111168.37 | E10: 37928239.68 | G10: 1.1154688 | H10: =E10/G10 -> 34002062.34
B11: 2022 | C11: 31922771.5 | D11: 9845869.162 | E11: 41768640.66 | G11: 1.1799969 | H11: =E11/G11 -> 35397246.09
B12: 2023 | C12: 33644214.14 | D12: 11769326.02 | E12: 45413540.16 | F12: 0.051033 | G12: =G11+F12 -> 1.2310299 | H12: =E12/G12 -> 36890688.16
B13: 2024 | C13: 33973222.96 | D13: 13595301.09 | E13: 47568524.05 | F13: 0.04064 | G13: =G12+F13 -> 1.2716699 | H13: =E13/G13 -> 37406345.82
B14: TOTAL | C14: =SUM(C6:C13) -> 220007335 | D14: =SUM(D6:D13) -> 61001026.86 | E14: 281008361.8
B15: * Projeções retiradas da Expectativa de Mercado do Banco Central de 25/11/2022
B16: Desembolsos efetuados entre o período de 2017 a set/2022.
B17: Projeções de desembolsos para o período de out/2022 a 2024.

Sheet AuxOPEXSaneparOriginal (2)
D2: 2017 | AB2: 2018 | AI2: 2019 | AP2: 2020 | AW2: 2021 | BD2: até 09/2022
B3: a) Custos de pessoal (salário e outros benefícios) e o número de empregados próprios; | D3: Água | I3: Esgoto | N3: Despesa | AB3: Água | AD3: Esgoto | AF3: Despesa | AI3: Água | AK3: Esgoto | AM3: Despesa | AP3: Água | AR3: Esgoto | AT3: Despesa | AW3: Água | AY3: Esgoto | BA3: Despesa | BD3: Água | BF3: Esgoto | BH3: Despesa
A4: Classificação | D4: Produção | E4: Distribuição | F4: Total Água | G4: Blcte por conta análise | H4: Diferença | I4: Coleta | J4: Tratamento | K4: Total Esgoto | L4: Blcte por conta análise | M4: Diferença | N4: Comercial | O4: Blcte por conta análise | P4: Diferença | Q4: Administrativa | R4: Blcte por conta análise - Conta 43 | S4: Blcte por conta análise - Conta 44 | T4: Blcte por conta análise - Conta 45 | U4: Diferença | V4: Outros | W4: Blcte por conta análise - Conta 46 | X4: Blcte por conta análise - Conta 47 | Y4: Blcte por conta análise - Conta 48 | Z4: Blcte por conta análise - Conta 49 | AA4: Diferença | AB4: Produção | AC4: Distribuição | AD4: Coleta | AE4: Tratamento | AF4: Comercial | AG4: Administrativa | AH4: Outros | AI4: Produção | AJ4: Distribuição | AK4: Coleta | AL4: Tratamento | AM4: Comercial | AN4: Administrativa | AO4: Outros | AP4: Produção | AQ4: Distribuição | AR4: Coleta | AS4: Tratamento | AT4: Comercial | AU4: Administrativa | AV4: Outros | AW4: Produção | AX4: Distribuição | AY4: Coleta | AZ4: Tratamento | BA4: Comercial | BB4: Administrativa | BC4: Outros | BD4: Produção | BE4: Distribuição | BF4: Coleta | BG4: Tratamento | BH4: Comercial | BI4: Administrativa | BJ4: Outros
B5: Salários | D5: =SUM(D6:D10) -> 55762661.42 | E5: =SUM(E6:E10) -> 53084635.05 | F5: =SUM(D5:E5) -> 108847296.5 | G5: =SUM(G6:G11) -> 109383691.4 | H5: =F5-G5 -> -536394.93 | I5: 14083163.82 | J5: 22749188.06 | K5: =J5+I5 -> 36832351.88 | L5: =SUM(L6:L10) -> 36832351.88 | M5: =K5-L5 -> 0 | N5: =SUM(N6:N10) -> 41685432.02 | O5: =SUM(O6:O10) -> 41685432.02 | P5: =N5-O5 -> 0 | Q5: 238031426.2 | R5: =SUM(R6:R10) -> 46172404.04 | S5: =SUM(S6:S10) -> 83226262.62 | T5: =SUM(T6:T10) -> 110198808.7 | U5: =Q5-R5-S5-T5 -> -1566049.12 | V5: 0 | W5: 0 | X5: 0 | Y5: 0 | Z5: 0 | AA5: =V5-W5-X5-Y5-Z5 -> 0 | AB5: =SUM(AB6:AB10) -> 56995368.74 | AC5: =SUM(AC6:AC10) -> 54470963.76 | AD5: 15055915.09 | AE5: 24671153.97 | AF5: =SUM(AF6:AF10) -> 45365329.17 | AG5: =SUM(AG6:AG10) -> 240259537.3 | AH5: =SUM(AH6:AH10) -> 0 | AI5: =SUM(AI6:AI10) -> 60984202.01 | AJ5: =SUM(AJ6:AJ10) -> 57262258.27 | AK5: 17164155.65 | AL5: 28329026.91 | AM5: =SUM(AM6:AM10) -> 48688731.24 | AN5: =SUM(AN6:AN10) -> 245530486.7 | AO5: =SUM(AO6:AO10) -> 0 | AP5: =SUM(AP6:AP10) -> 59473576.53 | AQ5: =SUM(AQ6:AQ10) -> 55863553.91 | AR5: 19333074.67 | AS5: 30678215.76 | AT5: =SUM(AT6:AT10) -> 51200205.01 | AU5: =SUM(AU6:AU10) -> 246397754.2 | AV5: =SUM(AV6:AV10) -> 0 | AW5: 59215038.93 | AX5: 52722855.59 | AY5: 21687585.96 | AZ5: 32098683.18 | BA5: 44799476.75 | BB5: 228146228.8 | BC5: 0 | BD5: =SUM(BD6:BD10) -> 49235459.77 | BE5: =SUM(BE6:BE10) -> 42997220.74 | BF5: 18306682.8 | BG5: 27253019.97 | BH5: =SUM(BH6:BH10) -> 35969411.79 | BI5: =SUM(BI6:BI10) -> 187690367.1 | BJ5: =SUM(BJ6:BJ10) -> 0
A6: Pessoal | B6: 101 | C6: ORDENADOS E SALARIOS-H NORMAIS | D6: 46198792.12 | E6: 45201137.94 | F6: =SUM(D6:E6) -> 91399930.06 | G6: 91882842.75 | H6: =F6-G6 -> -482912.69 | I6: 12058295.49 | J6: 20071931.16 | K6: =J6+I6 -> 32130226.65 | L6: 32130226.65 | M6: =K6-L6 -> 0 | N6: 39619841.84 | O6: 39619841.84 | P6: =N6-O6 -> 0 | Q6: 189250727.9 | R6: 26047117.26 | S6: 73450795.88 | T6: 90996707.98 | U6: =Q6-R6-S6-T6 -> -1243893.18 | V6: 0 | W6: 0 | X6: 0 | Y6: 0 | Z6: 0 | AA6: =V6-W6-X6-Y6-Z6 -> 0 | AB6: 46800239.61 | AC6: 45754567.62 | AD6: 12563835.94 | AE6: 21586030.92 | AF6: 42979420.2 | AG6: 193407439.5 | AH6: 0 | AI6: 49660279.69 | AJ6: 48027551.55 | AK6: 14156864.14 | AL6: 24452573.35 | AM6: 46122557.16 | AN6: 203678580.9 | AO6: 0 | AP6: 48294139.42 | AQ6: 47232823.75 | AR6: 15970959.26 | AS6: 26624387.27 | AT6: 47572278.41 | AU6: 204867162.6 | AV6: 0 | AW6: 47451241.67 | AX6: 44633426.5 | AY6: 17734096.37 | AZ6: 27239257.42 | BA6: 40243544.22 | BB6: 185529742 | BC6: 0 | BD6: 38928850.6 | BE6: 36115873.35 | BF6: 14754099.6 | BG6: 22956913.99 | BH6: 32252408.11 | BI6: 152836398.9 | BJ6: 0
A7: Pessoal | B7: 102 | C7: ORDENADOS E SALARIOS-H EXTRAS | D7: 7802176.4 | E7: 5152226.32 | F7: 12954402.72 | G7: 13007884.96 | H7: -53482.24 | I7: 1516677.25 | J7: 1914030.27 | K7: 3430707.52 | L7: 3430707.52 | M7: 0 | N7: 979638 | O7: 979638 | P7: 0 | Q7: 3148150.37 | R7: 352376.19 | S7: 965834.46 | T7: 1830340.5 | U7: =Q7-R7-S7-T7 -> -400.78 | V7: 0 | W7: 0 | X7: 0 | Y7: 0 | Z7: 0 | AA7: 0 | AB7: 8338061.34 | AC7: 5612786.95 | AD7: 1754307.49 | AE7: 2205643.99 | AF7: 1203493.47 | AG7: 3480799.94 | AH7: 0 | AI7: 9312223.36 | AJ7: 6214233.31 | AK7: 2131305.17 | AL7: 2771769.55 | AM7: 1206679.61 | AN7: 3535832.1 | AO7: 0 | AP7: 9040672.5 | AQ7: 5527160.06 | AR7: 2375328.22 | AS7: 2811416.46 | AT7: 1009806.96 | AU7: 3182584.02 | AV7: 0 | AW7: 9263532.27 | AX7: 4703145.45 | AY7: 2614065.05 | AZ7: 3233058.97 | BA7: 913742.88 | BB7: 3926049.99 | BC7: 0 | BD7: 8037601.74 | BE7: 3915895.87 | BF7: 2360103.08 | BG7: 2845929.92 | BH7: 832791.23 | BI7: 3775379.56 | BJ7: 0
A8: Pessoal | B8: 105 | C8: GRAT FUNCAO E CARGOS COMISSAO | D8: 442877.21 | E8: 852461.42 | F8: 1295338.63 | G8: 1295338.63 | H8: 0 | I8: 20896.45 | J8: 229118.9 | K8: 250015.35 | L8: 250015.35 | M8: 0 | N8: 980114.49 | O8: 980114.49 | P8: 0 | Q8: 32268683.13 | R8: 11866175.89 | S8: 6085370.03 | T8: 14638892.37 | U8: -321755.16 | V8: 0 | W8: 0 | X8: 0 | Y8: 0 | Z8: 0 | AA8: 0 | AB8: 500496.16 | AC8: 1104501.35 | AD8: 146150.29 | AE8: 291799.38 | AF8: 1074126.42 | AG8: 30059150.4 | AH8: 0 | AI8: 601727.31 | AJ8: 773809.5 | AK8: 219192.16 | AL8: 360099.61 | AM8: 1252285.49 | AN8: 25315213.38 | AO8: 0 | AP8: 585816.19 | AQ8: 778872.8 | AR8: 244394.22 | AS8: 319531.74 | AT8: 2481922.54 | AU8: 24453433.27 | AW8: 679871.73 | AX8: 708948.16 | AY8: 469320.42 | AZ8: 457295.71 | BA8: 3478391.4 | BB8: 23281718.7 | BC8: 0 | BD8: 545100.97 | BE8: 609798.32 | BF8: 307983.4 | BG8: 345048.78 | BH8: 2812268.45 | BI8: 18198888
A9: Pessoal | B9: 106 | C9: REMUNERACAO DE DIRETORES | D9: 0 | E9: 0 | F9: 0 | G9: 0 | H9: 0 | I9: 0 | J9: 0 | K9: 0 | L9: 0 | M9: 0 | N9: 0 | O9: 0 | P9: 0 | Q9: 7861857.95 | R9: 7861857.95 | S9: 0 | T9: 0 | U9: -9.313225746e-10 | V9: 0 | W9: 0 | X9: 0 | Y9: 0 | Z9: 0 | AA9: 0 | AB9: 0 | AC9: 0 | AD9: 0 | AE9: 0 | AF9: 0 | AG9: 7486624.1 | AH9: 0 | AI9: 0 | AJ9: 0 | AK9: 0 | AL9: 0 | AM9: 0 | AN9: 6844805.32 | AO9: 0 | AP9: 0 | AQ9: 0 | AR9: 0 | AS9: 0 | AT9: 0 | AU9: 7262801.01 | BB9: 7492915.92 | BC9: 0 | BI9: 5700832.51
A10: Pessoal | B10: 111 | C10: SOBREAVISO | D10: 1318815.69 | E10: 1878809.37 | F10: 3197625.06 | G10: 3197625.06 | H10: 0 | I10: 487294.63 | J10: 534107.73 | K10: 1021402.36 | L10: 1021402.36 | M10: 0 | N10: 105837.69 | O10: 105837.69 | P10: 0 | Q10: 5502006.84 | R10: 44876.75 | S10: 2724262.25 | T10: 2732867.84 | U10: 0 | V10: 0 | W10: 0 | X10: 0 | Y10: 0 | Z10: 0 | AA10: 0 | AB10: 1356571.63 | AC10: 1999107.84 | AD10: 591621.37 | AE10: 587679.68 | AF10: 108289.08 | AG10: 5825523.33 | AH10: 0 | AI10: 1409971.65 | AJ10: 2246663.91 | AK10: 656794.18 | AL10: 744584.4 | AM10: 107208.98 | AN10: 6156055.06 | AO10: 0 | AP10: 1552948.42 | AQ10: 2324697.3 | AR10: 742392.97 | AS10: 922880.29 | AT10: 136197.1 | AU10: 6631773.31 | AW10: 1820393.26 | AX10: 2677335.48 | AY10: 870104.12 | AZ10: 1169071.08 | BA10: 163798.25 | BB10: 7915802.22 | BC10: 0 | BD10: 1723906.46 | BE10: 2355653.2 | BF10: 884496.72 | BG10: 1105127.28 | BH10: 71944 | BI10: 7178868.19
B12: Outros Benefícios | D12: =SUM(D13:D28) -> 90325879.73 | E12: =SUM(E13:E27) -> 81523981.4 | F12: 171849861.1 | G12: =SUM(G13:G28) -> 172526005.5 | H12: =F12-G12 -> -676144.37 | I12: 22670205.86 | J12: 36278583.67 | K12: 58948789.53 | L12: =SUM(L13:L28) -> 58948789.53 | M12: 0 | N12: =SUM(N13:N27) -> 73793396.22 | O12: =SUM(O13:O28) -> 73793396.22 | P12: 0 | Q12: 332921329.4 | R12: =SUM(R13:R28) -> 77434229.5 | S12: =SUM(S13:S28) -> 114754052.5 | T12: =SUM(T13:T28) -> 143154492.1 | U12: =Q12-R12-S12-T12 -> -2421444.7 | V12: =SUM(V13:V28) -> 69681416.52 | W12: =SUM(W13:W28) -> 0 | X12: 0 | Y12: 0 | Z12: 0 | AA12: 69681416.52 | AB12: =SUM(AB13:AB28) -> 82613339.35 | AC12: =SUM(AC13:AC27) -> 74285445.49 | AD12: 21456759.83 | AE12: 35091903.71 | AF12: =SUM(AF13:AF27) -> 71908522.82 | AG12: =SUM(AG13:AG27) -> 308720993.5 | AH12: =SUM(AH13:AH28) -> 134245852.3 | AI12: =SUM(AI13:AI28) -> 88413898.38 | AJ12: =SUM(AJ13:AJ27) -> 77954228.25 | AK12: 24855287.68 | AL12: 39088568.85 | AM12: =SUM(AM13:AM27) -> 78357813.06 | AN12: =SUM(AN13:AN27) -> 323724698.5 | AO12: =SUM(AO13:AO28) -> 76626581.34 | AP12: =SUM(AP13:AP28) -> 98128427.66 | AQ12: =SUM(AQ13:AQ27) -> 90233197.02 | AR12: 32441339.52 | AS12: 47888637.64 | AT12: =SUM(AT13:AT27) -> 96110158.4 | AU12: =SUM(AU13:AU27) -> 381268017 | AV12: =SUM(AV13:AV28) -> 74421871.99 | AW12: 90132927.73 | AX12: 76762887.49 | AY12: 32796298.63 | AZ12: 48838413.79 | BA12: 72670428.05 | BB12: 312029771.8 | BC12: 80196649.94 | BD12: =SUM(BD13:BD28) -> 88518610.16 | BE12: =SUM(BE13:BE27) -> 71295641.44 | BF12: 28711846.09 | BG12: 42356975.2 | BH12: =SUM(BH13:BH27) -> 62005189.38 | BI12: =SUM(BI13:BI27) -> 273406781 | BJ12: =SUM(BJ13:BJ28) -> 54519436.69
A13: Pessoal | B13: 103 | C13: AJUDAS DE CUSTO | D13: 295997.54 | E13: 246174.99 | F13: 542172.53 | G13: 542172.53 | H13: =F13-G13 -> 0 | I13: 75834.23 | J13: 58757.02 | K13: 134591.25 | L13: 134591.25 | M13: 0 | N13: 483775.41 | O13: 483775.41 | P13: 0 | Q13: 770968.38 | R13: 247692 | S13: 222650.04 | T13: 323117.44 | U13: =Q13-R13-S13-T13 -> -22491.1 | W13: 0 | X13: 0 | Y13: 0 | Z13: 0 | AA13: 0 | AB13: 198617.95 | AC13: 207460.05 | AD13: 131250.78 | AE13: 59370.56 | AF13: 471485.48 | AG13: 885108.68 | AI13: 648651.83 | AJ13: 695444.89 | AK13: 338493.61 | AL13: 354214.45 | AM13: 918828.67 | AN13: 969272.25 | AP13: 1467553.78 | AQ13: 1469092.34 | AR13: 701856.24 | AS13: 820865.31 | AT13: 1219108.37 | AU13: 1261246.67 | AW13: 1917789.48 | AX13: 1395515.18 | AY13: 769361.1 | AZ13: 904261.74 | BA13: 733663.88 | BB13: 1277283.45 | BD13: 1603825.88 | BE13: 1183406.3 | BF13: 656983.32 | BG13: 793282.87 | BH13: 547207.2 | BI13: 1549507.06
A14: Pessoal | B14: 107 | C14: LICENCA MAT E PATER INC FISCAL | D14: 80784.15 | E14: 84456.13 | F14: 165240.28 | G14: 165240.28 | H14: 0 | I14: 13265.77 | J14: 15437.62 | K14: 28703.39 | L14: 28703.39 | M14: 0 | N14: 127651.4 | O14: 127651.4 | P14: 0 | Q14: 545657.87 | R14: 108064.83 | S14: 219243.27 | T14: 248701.5 | U14: -30351.73 | W14: 0 | X14: 0 | Y14: 0 | Z14: 0 | AA14: 0 | AB14: 67909.35 | AC14: 106946.93 | AD14: 12251.33 | AE14: 30442.99 | AF14: 113596.84 | AG14: 579934.99 | AI14: 89961.97 | AJ14: 54027.81 | AK14: 14397.71 | AL14: 32019.1 | AM14: 152893.78 | AN14: 375135.62 | AP14: 47401.62 | AQ14: 85372.83 | AR14: 24640.53 | AS14: 43182.89 | AT14: 96341.58 | AU14: 467510.9 | AW14: 94098.72 | AX14: 34034.46 | AY14: 15005.48 | AZ14: 33727.16 | BA14: 90149.75 | BB14: 545487.77 | BD14: 77079 | BE14: 46903.58 | BF14: 17135.99 | BG14: 47123.63 | BH14: 57188.67 | BI14: 326720.53
A15: Pessoal | B15: 108 | C15: FERIAS E SUAS GRATIFICACOES | D15: 8336643.76 | E15: 7943435.69 | F15: 16280079.45 | G15: 16357995.24 | H15: -77915.79 | I15: 2103743.02 | J15: 3445754.45 | K15: 5549497.47 | L15: 5549497.47 | M15: 0 | N15: 6692430.37 | O15: 6692430.37 | P15: 0 | Q15: 33714250.67 | R15: 5838746.88 | S15: 12047858.74 | T15: 16079761.25 | U15: -252116.2 | W15: 0 | X15: 0 | Y15: 0 | Z15: 0 | AA15: 0 | AB15: 7428666.11 | AC15: 7229142.81 | AD15: 2003649.85 | AE15: 3230958.01 | AF15: 6564972.14 | AG15: 30023301.56 | AI15: 7505273.99 | AJ15: 7157894.6 | AK15: 2128816.54 | AL15: 3481671.69 | AM15: 6690228.42 | AN15: 29392088.24 | AP15: 6775528.14 | AQ15: 6602954.06 | AR15: 2352184.12 | AS15: 3528948.37 | AT15: 6640071.3 | AU15: 26938304.51 | AW15: 8435719.78 | AX15: 7487558.07 | AY15: 3169003.16 | AZ15: 4547397.49 | BA15: 6872704.94 | BB15: 31118639.19 | BD15: 7660147.61 | BE15: 6694608.36 | BF15: 2830826.95 | BG15: 4226495.82 | BH15: 5962252.41 | BI15: 28094701.02
A16: Pessoal | B16: 109 | C16: ABONO DE FERIAS | D16: 1435418.98 | E16: 1194471.47 | F16: 2629890.45 | G16: 2644285.3 | H16: -14394.85 | I16: 318548.82 | J16: 643158.36 | K16: 961707.18 | L16: 961707.18 | M16: 0 | N16: 941171.59 | O16: 941171.59 | P16: 0 | Q16: 5183370.03 | R16: 919346.85 | S16: 1593456.77 | T16: 2706958.01 | U16: -36391.6 | W16: 0 | X16: 0 | Y16: 0 | Z16: 0 | AA16: 0 | AB16: 1063725.22 | AC16: 805551.25 | AD16: 244237.19 | AE16: 518264.04 | AF16: 734264.01 | AG16: 3765321.03 | AI16: 1845765.76 | AJ16: 1336385.12 | AK16: 460827.51 | AL16: 863126.96 | AM16: 1142904.55 | AN16: 6108176.17 | AP16: 2252039.19 | AQ16: 1947110.66 | AR16: 665153.78 | AS16: 1242016.45 | AT16: 1497533.85 | AU16: 8157203.71 | AW16: 2454389.26 | AX16: 1815387.38 | AY16: 753089.44 | AZ16: 1366786.55 | BA16: 1661860.88 | BB16: 8891236.83 | BD16: 2191730.76 | BE16: 1660499.29 | BF16: 761603.74 | BG16: 1274974.8 | BH16: 1352656.99 | BI16: 7337831.95
A17: Pessoal | B17: 110 | C17: 13 SALARIO | D17: 4917641.29 | E17: 4763501.99 | F17: 9681143.28 | G17: 9728116.6 | H17: -46973.32 | I17: 1262018.51 | J17: 2043578.46 | K17: 3305596.97 | L17: 3305596.97 | M17: 0 | N17: 3810953.15 | O17: 3810953.15 | P17: 0 | Q17: 20870459.92 | R17: 3441596.83 | S17: 7581856.48 | T17: 9998859.32 | U17: -151852.71 | W17: 0 | X17: 0 | Y17: 0 | Z17: 0 | AA17: 0 | AB17: 5069542.3 | AC17: 4917679.87 | AD17: 1351693.46 | AE17: 2227596.92 | AF17: 4143375.05 | AG17: 20950242.68 | AI17: 5322273.7 | AJ17: 5052694.51 | AK17: 1511824.33 | AL17: 2508135.58 | AM17: 4425281.2 | AN17: 21558551.03 | AP17: 5188945.96 | AQ17: 4965884.24 | AR17: 1750831.76 | AS17: 2734662.48 | AT17: 4692439.67 | AU17: 21524800.12 | AW17: 5304059.9 | AX17: 4750610.46 | AY17: 1947182.56 | AZ17: 2926747.99 | BA17: 4198513.22 | BB17: 20421661.8 | BD17: 4505348.1 | BE17: 3970560.26 | BF17: 1677065.7 | BG17: 2526060.04 | BH17: 3457564.77 | BI17: 17282604.95
A18: Pessoal | B18: 151 | C18: PREVIDENCIA SOCIAL | D18: 24281455.63 | E18: 19735942.4 | F18: 44017398.03 | G18: 44216158.04 | H18: -198760.01 | I18: 6163874.98 | J18: 10025685.98 | K18: 16189560.96 | L18: 16189560.96 | M18: 0 | N18: 15799118.8 | O18: 15799118.8 | P18: 0 | Q18: 87041886.66 | R18: 15951092.09 | S18: 30843915.94 | T18: 40866594.84 | U18: -619716.21 | W18: 0 | X18: 0 | Y18: 0 | Z18: 0 | AA18: 0 | AB18: 24201723.73 | AC18: 19734444.6 | AD18: 6470428.48 | AE18: 10574560.69 | AF18: 16763858.18 | AG18: 85683392.88 | AI18: 25658138.32 | AJ18: 20443633.25 | AK18: 7263307.32 | AL18: 12048230.65 | AM18: 17780043.49 | AN18: 87540286.85 | AP18: 21020643.37 | AQ18: 20271137.15 | AR18: 7336273.7 | AS18: 11953594.76 | AT18: 18230493.6 | AU18: 85811383.95 | AW18: 21909630.08 | AX18: 19802587.19 | AY18: 8436708.62 | AZ18: 12810689.3 | BA18: 16730862.05 | BB18: 83800128.71 | BD18: 18458933.06 | BE18: 16303663.56 | BF18: 7194815.07 | BG18: 10938025.27 | BH18: 13578931.99 | BI18: 69122473.73
A19: Pessoal | B19: 152 | C19: PROGRAMA INCENTIVO A EDUCACAO | D19: 1853 | E19: 1055 | F19: 2908 | G19: 2908 | H19: 0 | I19: 0 | J19: 1199.17 | K19: 1199.17 | L19: 1199.17 | M19: 0 | N19: 3900.6 | O19: 3900.6 | P19: 0 | Q19: 4153.47 | R19: 1012.05 | S19: 0 | T19: 3141.42 | U19: 0 | W19: 0 | X19: 0 | Y19: 0 | Z19: 0 | AA19: 0 | AB19: 778.9 | AC19: 0 | AD19: 0 | AE19: 808 | AF19: 3565.68 | AG19: 682826.7 | AT19: 0 | AU19: 0
A20: Pessoal | B20: 153 | C20: FGTS | D20: 5527851.82 | E20: 5273043.89 | F20: 10800895.71 | G20: 10853876.54 | H20: -52980.83 | I20: 1392621.07 | J20: 2253033.18 | K20: 3645654.25 | L20: 3645654.25 | M20: 0 | N20: 4221946.02 | O20: 4221946.02 | P20: 0 | Q20: 23413268.48 | R20: 4453192.04 | S20: 8224909.74 | T20: 10900399.06 | U20: -165232.36 | W20: 0 | X20: 0 | Y20: 0 | Z20: 0 | AA20: 0 | AB20: 5594241.74 | AC20: 5360264.83 | AD20: 1484253.09 | AE20: 2422193.28 | AF20: 4557786.15 | AG20: 23362918.42 | AI20: 5980110.02 | AJ20: 5615279.59 | AK20: 1688825.17 | AL20: 2780124.17 | AM20: 4880945.86 | AN20: 24208934.59 | AP20: 5768668.28 | AQ20: 5455852.85 | AR20: 1899339.26 | AS20: 3003784.75 | AT20: 5044662.82 | AU20: 23589193.49 | AW20: 5949782.49 | AX20: 5292744.86 | AY20: 2181108.86 | AZ20: 3226685.08 | BA20: 4590491.8 | BB20: 22799963.7 | BD20: 5031384.18 | BE20: 4376412.54 | BF20: 1865184 | BG20: 2778944.91 | BH20: 3731935.75 | BI20: 19015693.21
A21: Pessoal | B21: 154 | C21: ASSISTENCIA MEDICA EMPREGADOS | D21: 7294258.06 | E21: 6960007.61 | F21: 14254265.67 | G21: 14291693.03 | H21: -37427.36 | I21: 1977706.95 | J21: 2887048.76 | K21: 4864755.71 | L21: 4864755.71 | M21: 0 | N21: 6592580.34 | O21: 6592580.34 | P21: 0 | Q21: 34341422.11 | R21: 20932792.6 | S21: 5922785.68 | T21: 7553275.63 | U21: -67431.8 | W21: 0 | X21: 0 | Y21: 0 | Z21: 0 | AA21: 0 | AB21: 7522120.76 | AC21: 7030827.4 | AD21: 2099957.68 | AE21: 3078034.26 | AF21: 7273679.07 | AG21: 37770504.25 | AI21: 8176683.22 | AJ21: 7515498.77 | AK21: 2416390.86 | AL21: 3497479.97 | AM21: 8184791.2 | AN21: 39281097.59 | AP21: 8654405.55 | AQ21: 7994648.63 | AR21: 2920641.19 | AS21: 3930138.6 | AT21: 8423679.15 | AU21: 41958895.68 | AW21: 9117826.89 | AX21: 7684372.38 | AY21: 3442016.02 | AZ21: 4404891.47 | BA21: 7488353.1 | BB21: 46817538.98 | BD21: 7397032.47 | BE21: 6170594.96 | BF21: 2889432.53 | BG21: 3714474.53 | BH21: 5882885.78 | BI21: 37568359.3
A22: Pessoal | B22: 155 | C22: ABONO, INDENIZ E AVISOS PREVIOS | D22: 18114838.79 | E22: 16288409.15 | F22: 34403247.94 | G22: 34521744.58 | H22: -118496.64 | I22: 4194913.46 | J22: 6709772.5 | K22: 10904685.96 | L22: 10904685.96 | M22: 0 | N22: 14116098.36 | O22: 14116098.36 | P22: 0 | Q22: 58423119.6 | R22: 9154346.49 | S22: 24137425.49 | T22: 25858075.67 | U22: -726728.05 | W22: 0 | X22: 0 | Y22: 0 | Z22: 0 | AA22: 0 | AB22: 11521946.03 | AC22: 10138009.54 | AD22: 2232058.98 | AE22: 4372817.96 | AF22: 8668428.61 | AG22: 37479451.67 | AI22: 11850094.86 | AJ22: 10571775.63 | AK22: 2930028.73 | AL22: 3881461 | AM22: 9856792.68 | AN22: 47741459.06 | AP22: 26136722.41 | AQ22: 22136275.58 | AR22: 7786369.64 | AS22: 10521744.24 | AT22: 26893536.84 | AU22: 109599936.1 | AW22: 12811856.6 | AX22: 9782214.66 | AY22: 3736352.55 | AZ22: 7265720.56 | BA22: 9584231.58 | BB22: 33841039.06 | BD22: 23754593.92 | BE22: 15747950.61 | BF22: 3884056.99 | BG22: 6549349.59 | BH22: 10454123.19 | BI22: 39003687.86
A23: Pessoal | B23: 156 | C23: ASSISTENCIA SOCIAL EMPREGADOS | D23: 1369040.29 | E23: 1406364.12 | F23: 2775404.41 | G23: 2779531.4 | H23: -4126.99 | I23: 393837.24 | J23: 660939.55 | K23: 1054776.79 | L23: 1054776.79 | M23: 0 | N23: 1675355.74 | O23: 1675355.74 | P23: 0 | Q23: 6460143.71 | R23: 2686792.44 | S23: 2053591.61 | T23: 1725124.08 | U23: -5364.42 | W23: 0 | X23: 0 | Y23: 0 | Z23: 0 | AA23: 0 | AB23: 1382477.49 | AC23: 1373222.48 | AD23: 445386.3 | AE23: 698377.87 | AF23: 1927722.98 | AG23: 6508470.11 | AI23: 1683437.44 | AJ23: 1587291.5 | AK23: 508962.65 | AL23: 838869.39 | AM23: 2183262.04 | AN23: 5169681.94 | AP23: 1210259.18 | AQ23: 1241682.29 | AR23: 383358.72 | AS23: 676794.67 | AT23: 1739413.97 | AU23: 3659552.75 | AW23: 1690939.88 | AX23: 1470172.04 | AY23: 598527.96 | AZ23: 1024449.42 | BA23: 1830739.49 | BB23: 4816235.23 | BD23: 1115891.89 | BE23: 1264617.02 | BF23: 508699.56 | BG23: 843985.83 | BH23: 2102016.9 | BI23: 7011206
A24: Pessoal | B24: 157 | C24: PROGR ALIMENTACAO TRABALHADOR | D24: 14339784.51 | E24: 13680901.6 | F24: 28020686.11 | G24: 28107362.47 | H24: -86676.36 | I24: 3707251.42 | J24: 5764971.91 | K24: 9472223.33 | L24: 9472223.33 | M24: 0 | N24: 16160293.9 | O24: 16160293.9 | P24: -2.235174179e-08 | Q24: 40450332.51 | R24: 8285600.93 | S24: 14190317.09 | T24: 18134604.22 | U24: -160189.73 | W24: 0 | X24: 0 | Y24: 0 | Z24: 0 | AA24: 0 | AB24: 14119621.91 | AC24: 13259401.18 | AD24: 3815763.02 | AE24: 5914682.57 | AF24: 17135313.49 | AG24: 38453840.54 | AI24: 14868924.96 | AJ24: 13576124.83 | AK24: 4263186.93 | AL24: 6549644.25 | AM24: 18276153.53 | AN24: 38472570.07 | AP24: 15244328.55 | AQ24: 13962814.99 | AR24: 5149366.26 | AS24: 7163033.08 | AT24: 17630877.55 | AU24: 37845765.36 | AW24: 16056770.47 | AX24: 13430957.75 | AY24: 6148647.01 | AZ24: 7908855.33 | BA24: 15371459.59 | BB24: 37365504.26 | BD24: 13087132.26 | BE24: 10900696.06 | BF24: 5149591.95 | BG24: 6641761.67 | BH24: 12190280.85 | BI24: 30691902.52
A25: Pessoal | B25: 158 | C25: FORMACAO PROF DE EMPREGADOS | D25: 240428.91 | E25: 145262.62 | F25: 385691.53 | G25: 385691.53 | H25: 0 | I25: 49085.2 | J25: 94176.04 | K25: 143261.24 | L25: 143261.24 | M25: 0 | N25: 103329.15 | O25: 103329.15 | P25: 0 | Q25: 3502693.61 | R25: 1162740.66 | S25: 1646416.45 | T25: 749478.66 | U25: -55942.16 | W25: 0 | X25: 0 | Y25: 0 | Z25: 0 | AA25: 0 | AB25: 308358.88 | AC25: 287466.06 | AD25: 99487.85 | AE25: 153271.8 | AF25: 216730.05 | AG25: 4021202.74 | AI25: 351735.77 | AJ25: 214306.53 | AK25: 81746.28 | AL25: 143348.93 | AM25: 107560.99 | AN25: 3509719.84 | AP25: 12025.99 | AQ25: 56407.14 | AR25: 45314.03 | AS25: 8433.06 | AT25: 94127.26 | AU25: 1144573.67 | AW25: 19261.21 | AX25: 33145.63 | AY25: 34034.45 | AZ25: 21861.34 | BA25: 166855.93 | BB25: 1635870.39 | BD25: 222516.11 | BE25: 40337.28 | BF25: 30406.06 | BG25: 127191.79 | BH25: 124517.4 | BI25: 1852538.27
A26: Pessoal | B26: 159 | C26: PREVIDENCIA PRIVADA | D26: 3977212.06 | E26: 3621484.02 | F26: 7598696.08 | G26: 7637088.3 | H26: -38392.22 | I26: 961215.68 | J26: 1614113.75 | K26: 2575329.43 | L26: 2575329.43 | M26: 0 | N26: 2784188.26 | O26: 2784188.26 | P26: 0 | Q26: 17407364.8 | R26: 4181086.48 | S26: 5745887.65 | T26: 7602579.4 | U26: -122188.73 | W26: 0 | X26: 0 | Y26: 0 | Z26: 0 | AA26: 0 | AB26: 4027636.26 | AC26: 3695747.32 | AD26: 1022918.74 | AE26: 1761455.98 | AF26: 3032569.1 | AG26: 17930766.72 | AI26: 4324743.92 | AJ26: 3946887.53 | AK26: 1190280.82 | AL26: 2044932.76 | AM26: 3294166.44 | AN26: 18646081.97 | AP26: 4265798.59 | AQ26: 3909418.25 | AR26: 1355256.68 | AS26: 2213090.54 | AT26: 3552771.8 | AU26: 18933476.46 | AW26: 4306044.22 | AX26: 3703229.52 | AY26: 1506342.6 | AZ26: 2357221.03 | BA26: 3159779.81 | BB26: 18493196.94 | BD26: 3346688.55 | BE26: 2851643.24 | BF26: 1191581.52 | BG26: 1860957.84 | BH26: 2408659.93 | BI26: 14278806.59
A27: Pessoal | B27: 160 | C27: VALE TRANSPORTE | D27: 112670.94 | E27: 179470.72 | F27: 292141.66 | G27: 292141.66 | H27: 0 | I27: 56289.51 | J27: 60956.92 | K27: 117246.43 | L27: 117246.43 | M27: 0 | N27: 280603.13 | O27: 280603.13 | P27: 0 | Q27: 792237.53 | R27: 70126.33 | S27: 323737.53 | T27: 403821.57 | U27: -5447.9 | W27: 0 | X27: 0 | Y27: 0 | Z27: 0 | AA27: 0 | AB27: 105972.72 | AC27: 139281.17 | AD27: 43423.08 | AE27: 49068.78 | AF27: 301175.99 | AG27: 623710.52 | AI27: 108102.62 | AJ27: 186983.69 | AK27: 58199.22 | AL27: 65309.95 | AM27: 463960.21 | AN27: 751643.26 | AP27: 84107.05 | AQ27: 134546.01 | AR27: 70753.61 | AS27: 48348.44 | AT27: 355100.64 | AU27: 376173.71 | AW27: 64758.75 | AX27: 80357.91 | AY27: 58918.82 | AZ27: 39119.33 | BA27: 190762.03 | BB27: 205985.53 | BD27: 66306.37 | BE27: 83748.38 | BF27: 54462.71 | BG27: 34346.61 | BH27: 154967.55 | BI27: 270748.01
A28: Pessoal | B28: PPR | C28: PROGRAMA PARTICIPAÇÃO NOS RESULTADOS | F28: 0 | G28: 0 | H28: 0 | K28: 0 | L28: 0 | M28: 0 | O28: 0 | P28: 0 | R28: 0 | S28: 0 | T28: 0 | U28: 0 | V28: 69681416.52 | W28: 0 | X28: 0 | Y28: 0 | Z28: 0 | AA28: 69681416.52 | AH28: 134245852.3 | AO28: 76626581.34 | AP28: 0 | AV28: 74421871.99 | BC28: 80196649.94 | BJ28: 54519436.69
B30: b) Custos com material de tratamento (por serviço, água esgoto); | D30: =SUM(D31) -> 57622392.39 | E30: =SUM(E31) -> 36086.32 | F30: 57658478.71 | G30: =SUM(G31) -> 58556968.37 | H30: =F30-G30 -> -898489.66 | I30: 107582.53 | J30: 24525635.53 | K30: 24633218.06 | L30: =SUM(L31) -> 24633218.06 | M30: 0 | N30: =SUM(N31) -> 0 | O30: =SUM(O31) -> 0 | P30: 0 | Q30: 0 | R30: =SUM(R31) -> 0 | S30: =SUM(S31) -> 0 | T30: =SUM(T31) -> 0 | U30: =Q30-R30-S30-T30 -> 0 | V30: 0 | W30: 0 | X30: 0 | Y30: 0 | Z30: 0 | AA30: 0 | AB30: =SUM(AB31) -> 50760938.78 | AC30: =SUM(AC31) -> 8337.02 | AD30: 157582.54 | AE30: 28300224.32 | AF30: =SUM(AF31) -> 0 | AG30: =SUM(AG31) -> 0 | AH30: 0 | AI30: =SUM(AI31) -> 66964635.62 | AJ30: =SUM(AJ31) -> 80237.88 | AK30: 236482.95 | AL30: 52614586.81 | AM30: =SUM(AM31) -> 0 | AN30: =SUM(AN31) -> 0 | AO30: 0 | AP30: =SUM(AP31) -> 78418793.84 | AQ30: =SUM(AQ31) -> 41751.92 | AR30: 180432.59 | AS30: 65328429.48 | AT30: =SUM(AT31) -> 0 | AU30: =SUM(AU31) -> 0 | AV30: 0 | AW30: 79664367.59 | AX30: 29541.73 | AY30: 127280 | AZ30: 60542874.38 | BA30: 0 | BB30: 0 | BC30: 0 | BD30: =SUM(BD31) -> 85934871.6 | BE30: =SUM(BE31) -> 22168.84 | BF30: 215723.24 | BG30: 57116398.89 | BH30: =SUM(BH31) -> 0 | BI30: =SUM(BI31) -> 0 | BJ30: 0
A31: Materiais de Tratamento | B31: 207 | C31: MATERIAL DE TRATAMENTO | D31: 57622392.39 | E31: 36086.32 | F31: 57658478.71 | G31: 58556968.37 | H31: =F31-G31 -> -898489.66 | I31: 107582.53 | J31: 24525635.53 | K31: 24633218.06 | L31: 24633218.06 | M31: 0 | N31: 0 | O31: 0 | P31: 0 | Q31: 0 | R31: 0 | S31: 0 | T31: 0 | U31: =Q31-R31-S31-T31 -> 0 | W31: 0 | X31: 0 | Y31: 0 | Z31: 0 | AA31: 0 | AB31: 50760938.78 | AC31: 8337.02 | AD31: 157582.54 | AE31: 28300224.32 | AF31: 0 | AG31: 0 | AI31: 66964635.62 | AJ31: 80237.88 | AK31: 236482.95 | AL31: 52614586.81 | AM31: 0 | AN31: 0 | AP31: 78418793.84 | AQ31: 41751.92 | AR31: 180432.59 | AS31: 65328429.48 | AT31: 0 | AU31: 0 | AW31: 79664367.59 | AX31: 29541.73 | AY31: 127280 | AZ31: 60542874.38 | BC31: 0 | BD31: 85934871.6 | BE31: 22168.84 | BF31: 215723.24 | BG31: 57116398.89
B33: c) Custos com energia elétrica; | D33: =SUM(D34) -> 242549323.8 | E33: =SUM(E34) -> 91557240.7 | F33: 334106564.5 | G33: =SUM(G34) -> 334697994.2 | H33: =F33-G33 -> -591429.8 | I33: 2305067.33 | J33: 34151964.24 | K33: 36457031.57 | L33: =SUM(L34) -> 36457031.57 | M33: 0 | N33: =SUM(N34) -> 867179.17 | O33: =SUM(O34) -> 867179.17 | P33: 0 | Q33: 7366041.72 | R33: =SUM(R34) -> 4110556.91 | S33: =SUM(S34) -> 1792889.48 | T33: =SUM(T34) -> 1478438.84 | U33: =Q33-R33-S33-T33 -> -15843.51 | V33: 0 | W33: 0 | X33: 0 | Y33: 0 | Z33: 0 | AA33: 0 | AB33: =SUM(AB34) -> 271236784.8 | AC33: =SUM(AC34) -> 104133357.9 | AD33: 2817761.26 | AE33: 39461534.26 | AF33: =SUM(AF34) -> 985134.12 | AG33: =SUM(AG34) -> 6274294.69 | AH33: 0 | AI33: =SUM(AI34) -> 301899204.1 | AJ33: =SUM(AJ34) -> 114107987.7 | AK33: 3297758.45 | AL33: 47480491.96 | AM33: =SUM(AM34) -> 1121822.65 | AN33: =SUM(AN34) -> 5786829.19 | AO33: 0 | AP33: =SUM(AP34) -> 284941913.7 | AQ33: =SUM(AQ34) -> 108368957.3 | AR33: 3076099.2 | AS33: 45767816.86 | AT33: =SUM(AT34) -> 1080999.79 | AU33: =SUM(AU34) -> 5230494.86 | AV33: 0 | AW33: 355913566.9 | AX33: 126848392 | AY33: 3855755.59 | AZ33: 60147145.69 | BA33: 1381476.96 | BB33: 19367364.5 | BC33: 0 | BD33: =SUM(BD34) -> 274975579.8 | BE33: =SUM(BE34) -> 100608028.3 | BF33: 3037021.08 | BG33: 47472279.96 | BH33: =SUM(BH34) -> 799444.58 | BI33: =SUM(BI34) -> 2028255.57 | BJ33: 0
A34: Energia | B34: 310 | C34: ENERGIA ELÉTRICA | D34: 242549323.8 | E34: 91557240.7 | F34: 334106564.5 | G34: 334697994.2 | H34: =F34-G34 -> -591429.8 | I34: 2305067.33 | J34: 34151964.24 | K34: 36457031.57 | L34: 36457031.57 | M34: 0 | N34: 867179.17 | O34: 867179.17 | P34: 0 | Q34: 7366041.72 | R34: 4110556.91 | S34: 1792889.48 | T34: 1478438.84 | U34: =Q34-R34-S34-T34 -> -15843.51 | W34: 0 | X34: 0 | Y34: 0 | Z34: 0 | AA34: 0 | AB34: 271236784.8 | AC34: 104133357.9 | AD34: 2817761.26 | AE34: 39461534.26 | AF34: 985134.12 | AG34: 6274294.69 | AI34: 301899204.1 | AJ34: 114107987.7 | AK34: 3297758.45 | AL34: 47480491.96 | AM34: 1121822.65 | AN34: 5786829.19 | AP34: 284941913.7 | AQ34: 108368957.3 | AR34: 3076099.2 | AS34: 45767816.86 | AT34: 1080999.79 | AU34: 5230494.86 | AW34: 355913566.9 | AX34: 126848392 | AY34: 3855755.59 | AZ34: 60147145.69 | BA34: 1381476.96 | BB34: 19367364.5 | BD34: 274975579.8 | BE34: 100608028.3 | BF34: 3037021.08 | BG34: 47472279.96 | BH34: 799444.58 | BI34: 2028255.57
B36: d) Custos com outros materiais; | D36: =SUM(D37:D50) -> 7525558.86 | E36: =SUM(E37:E50) -> 13840846.9 | F36: 21366405.76 | G36: =SUM(G37:G50) -> 21404426.81 | H36: =F36-G36 -> -38021.05 | I36: 5454387.41 | J36: 4404683.85 | K36: 9859071.26 | L36: =SUM(L37:L50) -> 9859071.26 | M36: 0 | N36: =SUM(N37:N50) -> 3932175.75 | O36: =SUM(O37:O50) -> 3932175.75 | P36: 0 | Q36: 39242782.64 | R36: =SUM(R37:R50) -> 1930383.59 | S36: =SUM(S37:S50) -> 7606436.38 | T36: =SUM(T37:T50) -> 29756808.97 | U36: =Q36-R36-S36-T36 -> -50846.3 | V36: 0 | W36: 0 | X36: 0 | Y36: 0 | Z36: 0 | AA36: 0 | AB36: =SUM(AB37:AB50) -> 6709552.68 | AC36: =SUM(AC37:AC50) -> 12317882.37 | AD36: 5679968.87 | AE36: 3573793.26 | AF36: =SUM(AF37:AF50) -> 3615439.14 | AG36: =SUM(AG37:AG50) -> 40014009.18 | AH36: 0 | AI36: =SUM(AI37:AI50) -> 7107081.16 | AJ36: =SUM(AJ37:AJ50) -> 12044579.15 | AK36: 5733438.39 | AL36: 4672289.2 | AM36: =SUM(AM37:AM50) -> 4178852.48 | AN36: =SUM(AN37:AN50) -> 48977500.94 | AO36: 0 | AP36: =SUM(AP37:AP50) -> 7467431.26 | AQ36: =SUM(AQ37:AQ50) -> 9505461.81 | AR36: 5354005.63 | AS36: 6013064.91 | AT36: =SUM(AT37:AT50) -> 3167068.3 | AU36: =SUM(AU37:AU50) -> 39893101.29 | AV36: 0 | AW36: 9050546.48 | AX36: 12695059.33 | AY36: 7758030.1 | AZ36: 6890969.92 | BA36: 2756336.46 | BB36: 44942844.95 | BC36: 0 | BD36: =SUM(BD37:BD50) -> 6170269.82 | BE36: =SUM(BE37:BE50) -> 9755027.42 | BF36: 6524082.34 | BG36: 7282109.35 | BH36: =SUM(BH37:BH50) -> 3114315.05 | BI36: =SUM(BI37:BI50) -> 41216817.51 | BJ36: 0
A37: Materiais Gerais | B37: 201 | C37: MAT EXPEDIENTE, USO E CONSUMO | D37: 104147.9 | E37: 40793.23 | F37: 144941.13 | G37: 146346.77 | H37: =F37-G37 -> -1405.64 | I37: 7132.63 | J37: 38796.4 | K37: 45929.03 | L37: 45929.03 | M37: 0 | N37: 1266573.37 | O37: 1266573.37 | P37: 0 | Q37: 4112166.47 | R37: 583844.85 | S37: 2003390.72 | T37: 1528924.72 | U37: =Q37-R37-S37-T37 -> -3993.82 | W37: 0 | X37: 0 | Y37: 0 | Z37: 0 | AA37: 0 | AB37: 130334.76 | AC37: 64908.56 | AD37: 9257.51 | AE37: 54334.5 | AF37: 1399015.11 | AG37: 3257059.17 | AI37: 161752.53 | AJ37: 92690.15 | AK37: 5751.11 | AL37: 30949.03 | AM37: 1688654.58 | AN37: 2912142.11 | AP37: 97389.73 | AQ37: 65962.78 | AR37: 5773.82 | AS37: 33954.7 | AT37: 1882848.62 | AU37: 2227469.91 | AW37: 1667058.32 | AX37: 63512.17 | AY37: 18013.71 | AZ37: 32671.97 | BA37: 1828596.71 | BB37: 1516687.49 | BD37: 594794.96 | BE37: 27945.97 | BF37: 4411.23 | BG37: 22435.71 | BH37: 2073990.65 | BI37: 2945088.32
A38: Materiais Gerais | B38: 202 | C38: MATERIAL DE OPER DE SISTEMAS | D38: 3490314.75 | E38: 47450.05 | F38: 3537764.8 | G38: 3540618.81 | H38: -2854.01 | I38: 0 | J38: 2986499.37 | K38: 2986499.37 | L38: 2986499.37 | M38: 0 | N38: 0 | O38: 0 | P38: 0 | Q38: 9574.71 | R38: 9574.71 | S38: 0 | T38: 0 | U38: 0 | W38: 0 | X38: 0 | Y38: 0 | Z38: 0 | AA38: 0 | AB38: 2557331.44 | AC38: 143133.3 | AD38: 0 | AE38: 2094024.82 | AF38: 0 | AG38: 7550.19 | AI38: 2640913.21 | AJ38: 289536.59 | AK38: 0 | AL38: 2938008.92 | AM38: 0 | AN38: 3014.49 | AP38: 2714399.25 | AQ38: 80415.07 | AR38: 0 | AS38: 3807648.62 | AT38: 0 | AU38: 29721.74 | AW38: 2522855.81 | AX38: 30296.34 | AZ38: 4188991.76 | BB38: 4426.08 | BD38: 1483053.9 | BE38: 89072.65 | BG38: 5057746.3 | BI38: 59.64
A39: Materiais Gerais | B39: 203 | C39: MAT CONSERV E MANUT BENS ADMIN | D39: 0 | E39: 0 | F39: 0 | G39: 0 | H39: 0 | I39: 0 | J39: 0 | K39: 0 | L39: 0 | M39: 0 | N39: 153288.62 | O39: 153288.62 | P39: 0 | Q39: 1670993.56 | R39: 286077.11 | S39: 970126.38 | T39: 418838.43 | U39: -4048.36 | W39: 0 | X39: 0 | Y39: 0 | Z39: 0 | AA39: 0 | AB39: 0 | AC39: 0 | AD39: 0 | AE39: 0 | AF39: 165014 | AG39: 1126663.94 | AI39: 0 | AJ39: 0 | AK39: 0 | AL39: 0 | AM39: 221775.78 | AN39: 3584074.33 | AP39: 0 | AQ39: 0 | AR39: 0 | AS39: 0 | AT39: 83420.67 | AU39: 1051716.84 | BA39: 78134.11 | BB39: 1862177.8 | BH39: 69323.56 | BI39: 932885.53
A40: Materiais Gerais | B40: 204 | C40: MATERIAL DE LIMPEZA E HIGIENE | D40: 105711.93 | E40: 10298.87 | F40: 116010.8 | G40: 118443.48 | H40: -2432.68 | I40: 1589.73 | J40: 71671.36 | K40: 73261.09 | L40: 73261.09 | M40: 0 | N40: 19082.72 | O40: 19082.72 | P40: 0 | Q40: 917387.76 | R40: 310529.47 | S40: 209807.9 | T40: 400485.41 | U40: -3435.02 | W40: 0 | X40: 0 | Y40: 0 | Z40: 0 | AA40: 0 | AB40: 122709.45 | AC40: 7919.48 | AD40: 5713.84 | AE40: 72831.08 | AF40: 28040.95 | AG40: 923695.15 | AI40: 122714.21 | AJ40: 10497.38 | AK40: 22 | AL40: 83348.82 | AM40: 18886.28 | AN40: 957126.83 | AP40: 111744.55 | AQ40: 16416.44 | AR40: 3706.45 | AS40: 109346.32 | AT40: 24074.15 | AU40: 1011924.68 | AW40: 113240.36 | AX40: 7783.91 | AY40: 12236 | AZ40: 89580.45 | BA40: 11091.18 | BB40: 809577.86 | BD40: 159805.18 | BE40: 25364.3 | BF40: 116697 | BG40: 72799.76 | BH40: 34077.51 | BI40: 1708806.41
A41: Materiais Gerais | B41: 205 | C41: MATERIAL MANUT ELETROMECANICA | D41: 0 | E41: 0 | F41: 0 | G41: 0 | H41: 0 | I41: 0 | J41: 0 | K41: 0 | L41: 0 | M41: 0 | N41: 0 | O41: 0 | P41: 0 | Q41: 15130123.79 | R41: 0 | S41: 0 | T41: 15130123.79 | U41: 0 | W41: 0 | X41: 0 | Y41: 0 | Z41: 0 | AA41: 0 | AB41: 0 | AC41: 0 | AD41: 0 | AE41: 0 | AF41: 0 | AG41: 16552288.52 | AI41: 0 | AJ41: 0 | AK41: 0 | AL41: 0 | AM41: 0 | AN41: 22942791.92 | AP41: 0 | AQ41: 0 | AR41: 0 | AS41: 0 | AT41: 0 | AU41: 18107906.08 | BB41: 19697888.74 | BI41: 17401254.2
A42: Materiais Gerais | B42: 206 | C42: MATERIAL DE LABORATORIO | D42: 2228376.7 | E42: 74711.89 | F42: 2303088.59 | G42: 2332586.99 | H42: -29498.4 | I42: 0 | J42: 638646.17 | K42: 638646.17 | L42: 638646.17 | M42: 0 | N42: 0 | O42: 0 | P42: 0 | Q42: 3369777.46 | R42: 62790.49 | S42: 3032608.08 | T42: 274804.21 | U42: -425.32 | W42: 0 | X42: 0 | Y42: 0 | Z42: 0 | AA42: 0 | AB42: 2204626.19 | AC42: 54642.7 | AD42: 0 | AE42: 665602.52 | AF42: 0 | AG42: 3121353.45 | AI42: 2680102.66 | AJ42: 73709.83 | AK42: 0 | AL42: 920123.56 | AM42: 0 | AN42: 4152267.89 | AP42: 2767628.41 | AQ42: 86651.59 | AR42: 0 | AS42: 1112177.81 | AT42: 0 | AU42: 3849233.6 | AW42: 2816255.39 | AX42: 87194.05 | AZ42: 1151000.61 | BB42: 4597964.16 | BD42: 2117529.76 | BE42: 40713.35 | BG42: 989481.72 | BI42: 3867091.14
A43: Materiais Gerais | B43: 208 | C43: MATERIAL MANUT DE HIDROMETROS | D43: 0 | E43: 0 | F43: 0 | G43: 0 | H43: 0 | I43: 0 | J43: 0 | K43: 0 | L43: 0 | M43: 0 | N43: 0 | O43: 0 | P43: 0 | Q43: 83026.23 | R43: 0 | S43: 83026.23 | T43: 0 | U43: 0 | W43: 0 | X43: 0 | Y43: 0 | Z43: 0 | AA43: 0 | AB43: 0 | AC43: 0 | AD43: 0 | AE43: 0 | AF43: 0 | AG43: 7412.88 | AI43: 0 | AJ43: 0 | AK43: 0 | AL43: 0 | AM43: 0 | AN43: 8035.53
A44: Materiais Gerais | B44: 209 | C44: MATERIAL CORTES E RELIGACOES | D44: 0 | E44: 0 | F44: 0 | G44: 0 | H44: 0 | I44: 0 | J44: 0 | K44: 0 | L44: 0 | M44: 0 | N44: 1155820.85 | O44: 1155820.85 | P44: 0 | Q44: 0 | R44: 0 | S44: 0 | T44: 0 | U44: 0 | W44: 0 | X44: 0 | Y44: 0 | Z44: 0 | AA44: 0 | AB44: 0 | AC44: 0 | AD44: 0 | AE44: 0 | AF44: 1226362.32 | AG44: 0 | AI44: 0 | AJ44: 0 | AK44: 0 | AL44: 0 | AM44: 1260098.09 | AN44: 0 | AP44: 0 | AQ44: 0 | AR44: 0 | AS44: 0 | AT44: 505607.01 | AU44: 0 | BA44: 63453.69 | BH44: 107289.41
A45: Materiais Gerais | B45: 210 | C45: FERRAMENTAS PERECIVEIS | D45: 53217.97 | E45: 221240.88 | F45: 274458.85 | G45: 274458.85 | H45: 0 | I45: 113416.02 | J45: 52467.33 | K45: 165883.35 | L45: 165883.35 | M45: 0 | N45: 16328.02 | O45: 16328.02 | P45: 0 | Q45: 269703.95 | R45: 5548.59 | S45: 9387.5 | T45: 254868.48 | U45: -100.62 | W45: 0 | X45: 0 | Y45: 0 | Z45: 0 | AA45: 0 | AB45: 143592.32 | AC45: 327990.38 | AD45: 57308.21 | AE45: 49457.13 | AF45: 11412.9 | AG45: 254081.81 | AI45: 53539.29 | AJ45: 276694.3 | AK45: 39190.67 | AL45: 52810.64 | AM45: 3310.98 | AN45: 239335.94 | AP45: 92738.91 | AQ45: 259712.45 | AR45: 114163.18 | AS45: 43703.57 | AT45: 671.23 | AU45: 171632.71 | AW45: 37288.57 | AX45: 275727.54 | AY45: 56711.78 | AZ45: 49175.51 | BA45: 5135.49 | BB45: 465666.66 | BD45: 46957.78 | BE45: 208782.26 | BF45: 19554.24 | BG45: 15848.46 | BH45: 7106.97 | BI45: 311467.89
A46: Materiais Gerais | B46: 211 | C46: MATERIAL DE MANUT DE VEICULOS | D46: 279172.42 | E46: 889532.71 | F46: 1168705.13 | G46: 1168803.66 | H46: -98.53 | I46: 1108807.82 | J46: 206460.03 | K46: 1315267.85 | L46: 1315267.85 | M46: 0 | N46: 216742.72 | O46: 216742.72 | P46: 0 | Q46: 1726363.1 | R46: 302285.52 | S46: 258903.42 | T46: 1180355.07 | U46: -15180.91 | W46: 0 | X46: 0 | Y46: 0 | Z46: 0 | AA46: 0 | AB46: 195914.73 | AC46: 624660.18 | AD46: 1034475.63 | AE46: 202970.31 | AF46: 126501.86 | AG46: 1097175.86 | AI46: 161265.73 | AJ46: 405574.66 | AK46: 831765.84 | AL46: 144077.48 | AM46: 108305.74 | AN46: 631673.91 | AP46: 178217.45 | AQ46: 280201.04 | AR46: 1439137.78 | AS46: 150689.27 | AT46: 49835.43 | AU46: 1383716.18 | AW46: 263955.8 | AX46: 712987.91 | AY46: 2273363.5 | AZ46: 300767.75 | BA46: 37633.61 | BB46: 2673724.83 | BD46: 134446.68 | BE46: 228735.36 | BF46: 1897988.4 | BG46: 284190.02 | BH46: 16869.05 | BI46: 1739868.98
A47: Materiais Gerais | B47: 212 | C47: COMBUSTIVEIS E LUBRIFICANTES | D47: 954893.95 | E47: 2249167.5 | F47: 3204061.45 | G47: 3204061.45 | H47: 0 | I47: 1021699.57 | J47: 188986.51 | K47: 1210686.08 | L47: 1210686.08 | M47: 0 | N47: 441401.62 | O47: 441401.62 | P47: 0 | Q47: 10097413.53 | R47: 77352 | S47: 791353.61 | T47: 9239153.63 | U47: -10445.71 | W47: 0 | X47: 0 | Y47: 0 | Z47: 0 | AA47: 0 | AB47: 959886.57 | AC47: 2157979.57 | AD47: 1052232.56 | AE47: 181072.23 | AF47: 541900.94 | AG47: 11749253.38 | AI47: 909321.5 | AJ47: 2384657.57 | AK47: 1085113.49 | AL47: 233995.43 | AM47: 790750.86 | AN47: 11810481.88 | AP47: 952367.89 | AQ47: 2480618.16 | AR47: 1049469.67 | AS47: 387640.69 | AT47: 475338.41 | AU47: 9754130.86 | AW47: 1372055.79 | AX47: 3763124.73 | AY47: 1557011.55 | AZ47: 686917.22 | BA47: 659970.46 | BB47: 11733210.68 | BD47: 1349399.77 | BE47: 3477761.71 | BF47: 1638635.13 | BG47: 670201.97 | BH47: 648828.09 | BI47: 10977390.31
A48: Materiais Gerais | B48: 213 | C48: MATERIAL NATUREZA PERMANENTE | D48: 7018.37 | E48: 4335.98 | F48: 11354.35 | G48: 11354.35 | H48: 0 | I48: 58.5 | J48: 652.5 | K48: 711 | L48: 711 | M48: 0 | N48: 14987.96 | O48: 14987.96 | P48: 0 | Q48: 38254.38 | R48: 16933.32 | S48: 12881.21 | T48: 8439.85 | U48: 0 | W48: 0 | X48: 0 | Y48: 0 | Z48: 0 | AA48: 0 | AB48: 12433.34 | AC48: 7239.32 | AD48: 525.3 | AE48: 4115.9 | AF48: 1540.27 | AG48: 22446.36 | AI48: 50109.18 | AJ48: 30152.42 | AK48: 66 | AL48: 6228 | AM48: 3484.67 | AN48: 81887.97 | AP48: 4186.35 | AQ48: 8800.06 | AR48: 221.8 | AS48: 4726.8 | AT48: 5799.8 | AU48: 27803.7 | AW48: 4825 | AX48: 3312.57 | AY48: 98.5 | AZ48: 15604 | BA48: 20509.19 | BB48: 9923.11 | BD48: 2015 | BE48: 1189 | BF48: 607.2 | BG48: 4278.9 | BH48: 1779.3 | BI48: 1094.4
A49: Materiais Gerais | B49: 214 | C49: MAT SEGURANCA PROT E VESTUARIO | D49: 302704.87 | E49: 288868.31 | F49: 591573.18 | G49: 593304.97 | H49: -1731.79 | I49: 14123.75 | J49: 220504.18 | K49: 234627.93 | L49: 234627.93 | M49: 0 | N49: 647949.87 | O49: 647949.87 | P49: 0 | Q49: 1817997.7 | R49: 275447.53 | S49: 234951.33 | T49: 1320815.38 | U49: -13216.54 | W49: 0 | X49: 0 | Y49: 0 | Z49: 0 | AA49: 0 | AB49: 382723.88 | AC49: 910974.78 | AD49: 476213.32 | AE49: 249384.77 | AF49: 115650.79 | AG49: 1895028.47 | AI49: 327362.85 | AJ49: 901905.08 | AK49: 13408.07 | AL49: 262747.32 | AM49: 83585.5 | AN49: 1654668.14 | AP49: 548758.72 | AQ49: 729646.33 | AR49: 23311.73 | AS49: 363177.13 | AT49: 139472.98 | AU49: 2277844.99 | AW49: 253011.44 | AX49: 619053.89 | AY49: 40174.59 | AZ49: 376260.65 | BA49: 51812.02 | BB49: 1571597.54 | BD49: 282266.79 | BE49: 499836.13 | BF49: 15534.3 | BG49: 165126.51 | BH49: 155050.51 | BI49: 1331810.69
A50: Materiais Gerais | B50: 216 | C50: MATERIAL MANUTENCAO DE REDES | D50: 0 | E50: 10014447.48 | F50: 10014447.48 | G50: 10014447.48 | H50: 0 | I50: 3187559.39 | J50: 0 | K50: 3187559.39 | L50: 3187559.39 | M50: 0 | N50: 0 | O50: 0 | P50: 0 | Q50: 0 | R50: 0 | S50: 0 | T50: 0 | U50: 0 | W50: 0 | X50: 0 | Y50: 0 | Z50: 0 | AA50: 0 | AB50: 0 | AC50: 8018434.1 | AD50: 3044242.5 | AE50: 0 | AF50: 0 | AG50: 0 | AI50: 0 | AJ50: 7579161.17 | AK50: 3758121.21 | AL50: 0 | AM50: 0 | AN50: 0 | AP50: 0 | AQ50: 5497037.89 | AR50: 2718221.2 | AS50: 0 | AT50: 0 | AU50: 0 | AX50: 7132066.22 | AY50: 3800420.47 | BE50: 5155626.69 | BF50: 2830654.84
B52: e) Custos com serviços de terceiros; | D52: =SUM(D53:D82) -> 43346054.34 | E52: =SUM(E53:E82) -> 150491510.6 | F52: 193837564.9 | G52: =SUM(G53:G81) -> 194390003.3 | H52: =F52-G52 -> -552438.35 | I52: 45127669.87 | J52: 89755266.45 | K52: 134882936.3 | L52: =SUM(L53:L82) -> 134882936.3 | M52: 0 | N52: =SUM(N53:N82) -> 78292462.66 | O52: =SUM(O53:O82) -> 78292462.66 | P52: 0 | Q52: 133605171.5 | R52: =SUM(R53:R82) -> 12638659.13 | S52: =SUM(S53:S82) -> 54798255.55 | T52: =SUM(T53:T82) -> 66446125.02 | U52: =Q52-R52-S52-T52 -> -277868.17 | V52: 0 | W52: 0 | X52: 0 | Y52: 0 | Z52: 0 | AA52: 0 | AB52: =SUM(AB53:AB82) -> 46447910.01 | AC52: =SUM(AC53:AC82) -> 168635217.4 | AD52: 44076438.9 | AE52: 100617717.9 | AF52: =SUM(AF53:AF82) -> 95401318.43 | AG52: =SUM(AG53:AG82) -> 130127156.1 | AH52: 0 | AI52: =SUM(AI53:AI82) -> 48887515.77 | AJ52: =SUM(AJ53:AJ82) -> 188014117.1 | AK52: 48102553.81 | AL52: 113190002.6 | AM52: =SUM(AM53:AM82) -> 104297275.9 | AN52: =SUM(AN53:AN82) -> 102407274.1 | AO52: 0 | AP52: =SUM(AP53:AP82) -> 56204134.02 | AQ52: =SUM(AQ53:AQ82) -> 177936530.5 | AR52: 48801162.21 | AS52: 131699442.3 | AT52: =SUM(AT53:AT82) -> 111136338.9 | AU52: =SUM(AU53:AU82) -> 104225539.5 | AV52: 0 | AW52: 53644516.94 | AX52: 186245121.1 | AY52: 44678880.54 | AZ52: 121903261.3 | BA52: 116494728 | BB52: 117981648.4 | BC52: 0 | BD52: =SUM(BD53:BD82) -> 43903859.1 | BE52: =SUM(BE53:BE82) -> 144897475.7 | BF52: 31628346.07 | BG52: 105332966.4 | BH52: =SUM(BH53:BH82) -> 92241556.48 | BI52: =SUM(BI53:BI82) -> 96675747.06 | BJ52: 0
A53: Serviços de Terceiros | B53: 301 | C53: SERV OPER MANUT PREDIAL SISTEM | D53: 14144220.02 | E53: 1215282.68 | F53: 15359502.7 | G53: 15654612.42 | H53: =F53-G53 -> -295109.72 | I53: 155444.75 | J53: 11528181.52 | K53: 11683626.27 | L53: 11683626.27 | M53: 0 | N53: 0 | O53: 0 | P53: 0 | Q53: 0 | R53: 0 | S53: 0 | T53: 0 | U53: =Q53-R53-S53-T53 -> 0 | W53: 0 | X53: 0 | Y53: 0 | Z53: 0 | AA53: 0 | AB53: 14984970.17 | AC53: 2556115.51 | AD53: 106263.34 | AE53: 11224914.76 | AF53: 0 | AG53: 0 | AI53: 15801794.17 | AJ53: 4224083.8 | AK53: 48630.39 | AL53: 12056648.34 | AM53: 0 | AN53: 0 | AP53: 18723464.8 | AQ53: 1580521.8 | AR53: 298637.51 | AS53: 11526885.29 | AT53: 0 | AU53: 0 | AW53: 15183365.52 | AX53: 2317145.21 | AY53: 198038.92 | AZ53: 7782443.77 | BD53: 11069184.95 | BE53: 1177067.47 | BF53: 216982.72 | BG53: 7892842.31
A54: Serviços de Terceiros | B54: 302 | C54: SERV CONS E MANUT DE BENS ADM | D54: 0 | E54: 0 | F54: 0 | G54: 0 | H54: 0 | I54: 0 | J54: 0 | K54: 0 | L54: 0 | M54: 0 | N54: 777030.7 | O54: 777030.7 | P54: 0 | Q54: 4843170.24 | R54: 869531.27 | S54: 2789008.83 | T54: 1186030.14 | U54: -1400 | W54: 0 | X54: 0 | Y54: 0 | Z54: 0 | AA54: 0 | AB54: 0 | AC54: 0 | AD54: 0 | AE54: 0 | AF54: 772036.63 | AG54: 5028837.29 | AI54: 0 | AJ54: 0 | AK54: 0 | AL54: 0 | AM54: 825008.59 | AN54: 6846434.26 | AP54: 0 | AQ54: 0 | AR54: 0 | AS54: 0 | AT54: 757613.02 | AU54: 8704117.56 | BA54: 637911.77 | BB54: 8433112.49 | BH54: 673341.92 | BI54: 5814228.55
A55: Serviços de Terceiros | B55: 303 | C55: SERVICOS DE LIMPEZA E HIGIENE | D55: 3691177.8 | E55: 2620495.16 | F55: 6311672.96 | G55: 6415025.27 | H55: -103352.31 | I55: 199865.11 | J55: 1985475.8 | K55: 2185340.91 | L55: 2185340.91 | M55: 0 | N55: 3755324.79 | O55: 3755324.79 | P55: 0 | Q55: 12381383.11 | R55: 2121522.03 | S55: 5175645.6 | T55: 5085564.65 | U55: -1349.17 | W55: 0 | X55: 0 | Y55: 0 | Z55: 0 | AA55: 0 | AB55: 3829132.53 | AC55: 2583638.44 | AD55: 263828.72 | AE55: 2058129.52 | AF55: 4312401.67 | AG55: 13194519.96 | AI55: 3529551.3 | AJ55: 2447895.4 | AK55: 307154.15 | AL55: 2272404.99 | AM55: 4519302.47 | AN55: 13076022.38 | AP55: 4177593.49 | AQ55: 2975774.51 | AR55: 351392.98 | AS55: 2443575.76 | AT55: 5002075.71 | AU55: 12184511.69 | AW55: 4258526.44 | AX55: 3232698.58 | AY55: 389076.02 | AZ55: 2642288.95 | BA55: 5018898.06 | BB55: 12555238.52 | BD55: 3563393.34 | BE55: 2701920.14 | BF55: 293588.35 | BG55: 2150414.98 | BH55: 4021229.14 | BI55: 10679238.68
A56: Serviços de Terceiros | B56: 304 | C56: SERV TECNICOS PROFISSIONAIS | D56: 251429.93 | E56: 129648.17 | F56: 381078.1 | G56: 381563.56 | H56: -485.46 | I56: 283101.27 | J56: 112687.56 | K56: 395788.83 | L56: 395788.83 | M56: 0 | N56: 6230 | O56: 6230 | P56: 0 | Q56: 7450137.09 | R56: 6196967.64 | S56: 1151061.3 | T56: 102108.15 | U56: 1.076841727e-09 | W56: 0 | X56: 0 | Y56: 0 | Z56: 0 | AA56: 0 | AB56: 325416.41 | AC56: 703782.17 | AD56: 143458.29 | AE56: 197460.59 | AF56: 8050 | AG56: 4718645.92 | AI56: 625774.35 | AJ56: 26532.26 | AK56: 152930.6 | AL56: 294159.4 | AM56: 120967.07 | AN56: 4354392.56 | AP56: 2573496.22 | AQ56: 170751.56 | AR56: 3310.78 | AS56: 323814.84 | AT56: 9086.09 | AU56: 14982845.91 | AW56: 3146392.87 | AX56: 670774.61 | AY56: 58674 | AZ56: 222827.19 | BA56: 11060 | BB56: 30977816.03 | BD56: 455829.52 | BE56: 86757.18 | BF56: 24093.4 | BG56: 106202.96 | BH56: 43499.99 | BI56: 23065336.37
A57: Serviços de Terceiros | B57: 305 | C57: SERV DE PROCESSAMENTO DE DADOS | D57: 0 | E57: 0 | F57: 0 | G57: 0 | H57: 0 | I57: 0 | J57: 0 | K57: 0 | L57: 0 | M57: 0 | N57: 0 | O57: 0 | P57: 0 | Q57: 7535875.32 | R57: 0 | S57: 7422706.55 | T57: 113168.77 | U57: -4.511093721e-10 | W57: 0 | X57: 0 | Y57: 0 | Z57: 0 | AA57: 0 | AB57: 0 | AC57: 0 | AD57: 0 | AE57: 0 | AF57: 3261.43 | AG57: 8283187.02 | AI57: 0 | AJ57: 0 | AK57: 0 | AL57: 0 | AM57: 35 | AN57: 9683916.44 | AP57: 0 | AQ57: 0 | AR57: 0 | AS57: 0 | AT57: 27.95 | AU57: 10859919.9 | BB57: 9323127.81 | BH57: 13071.22 | BI57: 7299416.08
A58: Serviços de Terceiros | B58: 306 | C58: SERV DE CADASTRO E FATURAMENTO | D58: 0 | E58: 0 | F58: 0 | G58: 0 | H58: 0 | I58: 0 | J58: 0 | K58: 0 | L58: 0 | M58: 0 | N58: 7554485.65 | O58: 7554485.65 | P58: 0 | Q58: 4688.2 | R58: 0 | S58: 4688.2 | T58: 0 | U58: 0 | W58: 0 | X58: 0 | Y58: 0 | Z58: 0 | AA58: 0 | AB58: 0 | AC58: 0 | AD58: 0 | AE58: 0 | AF58: 12007926.75 | AG58: 6688.52 | AI58: 0 | AJ58: 0 | AK58: 0 | AL58: 0 | AM58: 17768142.61 | AN58: 5690.96 | AP58: 0 | AQ58: 0 | AR58: 0 | AS58: 0 | AT58: 31450358.18 | AU58: 0 | BA58: 35227651.46 | BH58: 30028047.49
A59: Serviços de Terceiros | B59: 308 | C59: SERV COMUNICACAO E TRANS DADOS | D59: 782478.74 | E59: 522051.68 | F59: 1304530.42 | G59: 1304530.42 | H59: 0 | I59: 6774.75 | J59: 29689.08 | K59: 36463.83 | L59: 36463.83 | M59: 0 | N59: 444665.99 | O59: 444665.99 | P59: 0 | Q59: 18948279.05 | R59: 667549.75 | S59: 10712271.42 | T59: 7582813.84 | U59: -14355.96 | W59: 0 | X59: 0 | Y59: 0 | Z59: 0 | AA59: 0 | AB59: 722763.02 | AC59: 509513.23 | AD59: 9205.02 | AE59: 26802.4 | AF59: 375056.16 | AG59: 17825169.41 | AI59: 246833.02 | AJ59: 185037.46 | AK59: 10136.55 | AL59: 11224.66 | AM59: 849236.51 | AN59: 17068270.55 | AP59: 236268.03 | AQ59: 206073.18 | AR59: 18313.75 | AS59: 33245.81 | AT59: 2382432.17 | AU59: 15339316.39 | AW59: 677629.25 | AX59: 480237.24 | AY59: 26356.94 | AZ59: 60222.96 | BA59: 3069381.52 | BB59: 13169927.32 | BD59: 452318.58 | BE59: 316211.87 | BF59: 16024.95 | BG59: 13425.23 | BH59: 2299657.53 | BI59: 8365845.81
A60: Serviços de Terceiros | B60: 309 | C60: SERVICOS DE VIGILANCIA | D60: 16655920.43 | E60: 3001162.34 | F60: 19657082.77 | G60: 19810565.17 | H60: -153482.4 | I60: 244374.06 | J60: 14386731.24 | K60: 14631105.3 | L60: 14631105.3 | M60: 0 | N60: 1401651.73 | O60: 1401651.73 | P60: 0 | Q60: 11051935.7 | R60: 279026.96 | S60: 5391674.79 | T60: 5381233.95 | U60: 0 | W60: 0 | X60: 0 | Y60: 0 | Z60: 0 | AA60: 0 | AB60: 19009816.67 | AC60: 3944777.59 | AD60: 860010.25 | AE60: 16661024.77 | AF60: 1779249.78 | AG60: 12877409.42 | AI60: 19872552.06 | AJ60: 4506660.55 | AK60: 941216.76 | AL60: 18640022.6 | AM60: 1686903.6 | AN60: 14642790.7 | AP60: 21071438.36 | AQ60: 3907974.43 | AR60: 924135.68 | AS60: 19949322.57 | AT60: 1616814.24 | AU60: 13271622.89 | AW60: 21857064.83 | AX60: 4770636.11 | AY60: 1178679.2 | AZ60: 21315888.76 | BA60: 1673467.96 | BB60: 13113619.97 | BD60: 19570472.73 | BE60: 4220916.27 | BF60: 1013212.69 | BG60: 18444231.54 | BH60: 1316517.96 | BI60: 11192909.08
A61: Serviços de Terceiros | B61: 311 | C61: FRETES E CARRETOS | D61: 4338560.65 | E61: 1355617.21 | F61: 5694177.86 | G61: 5694177.86 | H61: 0 | I61: 33270.11 | J61: 721810.08 | K61: 755080.19 | L61: 755080.19 | M61: 0 | N61: 3582.54 | O61: 3582.54 | P61: 0 | Q61: 3262297.78 | R61: 74336.5 | S61: 2989589.97 | T61: 198371.31 | U61: 0 | W61: 0 | X61: 0 | Y61: 0 | Z61: 0 | AA61: 0 | AB61: 2944360.61 | AC61: 1193838.87 | AD61: 35346.92 | AE61: 425670.95 | AF61: 4149.7 | AG61: 4118151.44 | AI61: 3466149.66 | AJ61: 1954529.83 | AK61: 42525.5 | AL61: 655835.22 | AM61: 23203 | AN61: 4792217.72 | AP61: 4725331.44 | AQ61: 5289504.35 | AR61: 50607.5 | AS61: 865969.94 | AT61: 15073.19 | AU61: 4474517.36 | AW61: 4522392.47 | AX61: 6253705.02 | AY61: 56569.97 | AZ61: 952268.98 | BA61: 11240.76 | BB61: 4099254.42 | BD61: 5371509.35 | BE61: 5016426.85 | BF61: 49905.26 | BG61: 629419.43 | BH61: 31372.8 | BI61: 3454643.43
A62: Serviços de Terceiros | B62: 312 | C62: LOCACOES DE BENS MOVEIS | D62: 919178.91 | E62: 1669836.31 | F62: 2589015.22 | G62: 2589015.22 | H62: 0 | I62: 116877.62 | J62: 241621.28 | K62: 358498.9 | L62: 358498.9 | M62: 0 | N62: 162712.73 | O62: 162712.73 | P62: 0 | Q62: 32451357.72 | R62: 228959.78 | S62: 3656476.69 | T62: 28652881.27 | U62: -86960.02 | W62: 0 | X62: 0 | Y62: 0 | Z62: 0 | AA62: 0 | AB62: 1761336.1 | AC62: 5052287.36 | AD62: 506802.24 | AE62: 476202.54 | AF62: 1744739.78 | AG62: 27301167.84 | AI62: 1318277.19 | AJ62: 314421.93 | AK62: 20533.63 | AL62: 246288.73 | AM62: 114757.21 | AN62: 2224406.59 | AP62: 1820208.73 | AQ62: 40500.6 | AR62: 2450 | AS62: 149120.48 | AT62: 111175.37 | AU62: 1719040.2 | AW62: 1707894.96 | AX62: 135803.09 | AY62: 35263.66 | AZ62: 286446.89 | BA62: 1134363.56 | BB62: 2203204.89 | BD62: 1620665.06 | BE62: 44346.29 | BG62: 299278.54 | BH62: 729879.1 | BI62: 1560694.29
A63: Serviços de Terceiros | B63: 313 | C63: ANUNCIOS E EDITAIS | D63: 0 | E63: 0 | F63: 0 | G63: 0 | H63: 0 | I63: 0 | J63: 0 | K63: 0 | L63: 0 | M63: 0 | N63: 0 | O63: 0 | P63: 0 | Q63: 2554621.95 | R63: 0 | S63: 2554621.95 | T63: 0 | U63: 0 | W63: 0 | X63: 0 | Y63: 0 | Z63: 0 | AA63: 0 | AB63: 0 | AC63: 0 | AD63: 0 | AE63: 0 | AF63: 0 | AG63: 1806978.33 | AI63: 0 | AJ63: 0 | AK63: 0 | AL63: 0 | AM63: 0 | AN63: 1523404.92 | AP63: 0 | AQ63: 0 | AR63: 0 | AS63: 0 | AT63: 0 | AU63: 1603269.14 | BB63: 1743190.07 | BI63: 1482955.42
A64: Serviços de Terceiros | B64: 314 | C64: ENCARGOS SOCIAIS S/SERV TERC | D64: 667.04 | E64: 0 | F64: 667.04 | G64: 667.04 | H64: 0 | I64: 556.14 | J64: 12909.15 | K64: 13465.29 | L64: 13465.29 | M64: 0 | N64: 0 | O64: 0 | P64: 0 | Q64: 444985.25 | R64: 404005.13 | S64: 2315.8 | T64: 38664.32 | U64: 0 | W64: 0 | X64: 0 | Y64: 0 | Z64: 0 | AA64: 0 | AB64: 0 | AC64: 0 | AD64: 0 | AE64: 0 | AF64: 214 | AG64: 542661.93 | AI64: 0 | AJ64: 390.62 | AK64: 0 | AL64: 0 | AM64: 132.01 | AN64: 260624.85 | AP64: 0 | AQ64: 0 | AR64: 0 | AS64: 0 | AT64: 726 | AU64: 58679.96 | BA64: 7118.74 | BB64: 41666.8 | BD64: 550 | BH64: 2261.47 | BI64: 374768.2
A65: Serviços de Terceiros | B65: 315 | C65: SERVICOS DE COBRANCA | D65: 0 | E65: 0 | F65: 0 | G65: 0 | H65: 0 | I65: 0 | J65: 0 | K65: 0 | L65: 0 | M65: 0 | N65: 37808963.95 | O65: 37808963.95 | P65: 0 | Q65: 760578.64 | R65: 48205.61 | S65: 473009.92 | T65: 239363.11 | U65: 0 | W65: 0 | X65: 0 | Y65: 0 | Z65: 0 | AA65: 0 | AB65: 0 | AC65: 0 | AD65: 0 | AE65: 0 | AF65: 40771813.61 | AG65: 828184.49 | AI65: 0 | AJ65: 0 | AK65: 0 | AL65: 0 | AM65: 43140673.84 | AN65: 536183.03 | AP65: 0 | AQ65: 0 | AR65: 0 | AS65: 0 | AT65: 29041619.42 | AU65: 289313.56 | BA65: 27239226.89 | BH65: 19470155.17
A66: Serviços de Terceiros | B66: 316 | C66: SERVICOS DE LABORATORIOS | D66: 32228.65 | E66: 380 | F66: 32608.65 | G66: 32608.65 | H66: 0 | I66: 199.5 | J66: 121981.47 | K66: 122180.97 | L66: 122180.97 | M66: 0 | N66: 10936.44 | O66: 10936.44 | P66: 0 | Q66: 160031.86 | R66: 16610.48 | S66: 143421.38 | T66: 0 | U66: -2.910383046e-11 | W66: 0 | X66: 0 | Y66: 0 | Z66: 0 | AA66: 0 | AB66: 23674.49 | AC66: 11470.09 | AD66: 0 | AE66: 149718 | AF66: 9820.93 | AG66: 639364.46 | AI66: 106232.09 | AJ66: 221 | AK66: 0 | AL66: 267249.1 | AM66: 16134.7 | AN66: 925488.55 | AP66: 87017.31 | AQ66: 0 | AR66: 160 | AS66: 222668.63 | AT66: 4071.57 | AU66: 1253091.48 | AW66: 72458.92 | AZ66: 120791.86 | BA66: 1941.8 | BB66: 467258.86 | BD66: 63938.2 | BG66: 23534.65 | BI66: 1234804.98
A67: Serviços de Terceiros | B67: 317 | C67: SERV GRAFICOS, COPIAS ENCADERN | D67: 11950.03 | E67: 19024.52 | F67: 30974.55 | G67: 30974.55 | H67: 0 | I67: 10.5 | J67: 7257.91 | K67: 7268.41 | L67: 7268.41 | M67: 0 | N67: 29702.48 | O67: 29702.48 | P67: 0 | Q67: 2175564.79 | R67: 31634.64 | S67: 1905343.57 | T67: 238586.58 | U67: 0 | W67: 0 | X67: 0 | Y67: 0 | Z67: 0 | AA67: 0 | AB67: 32284.64 | AC67: 24969.31 | AD67: 3590.75 | AE67: 19069.33 | AF67: 49001.81 | AG67: 2090582.94 | AI67: 17684.51 | AJ67: 26366.11 | AK67: 509.75 | AL67: 8574.7 | AM67: 44974.93 | AN67: 1897846.98 | AP67: 49597.73 | AQ67: 50530.91 | AR67: 386.74 | AS67: 5863.3 | AT67: 38598.11 | AU67: 1012175.28 | AW67: 45900.43 | AX67: 9696.72 | AY67: 2996.61 | AZ67: 4893.98 | BA67: 70342.87 | BB67: 1024293.03 | BD67: 25160.14 | BE67: 9449.82 | BF67: 779.26 | BG67: 4758.19 | BH67: 134965.01 | BI67: 1068534.49
A68: Serviços de Terceiros | B68: 318 | C68: ESTAGIARIOS E CONTRATADOS | D68: 441022.42 | E68: 447154.98 | F68: 888177.4 | G68: 888177.4 | H68: 0 | I68: 3233.91 | J68: 18435.57 | K68: 21669.48 | L68: 21669.48 | M68: 0 | N68: 698917.54 | O68: 698917.54 | P68: 0 | Q68: 3196746.95 | R68: 690403.59 | S68: 1092057.65 | T68: 1425606.31 | U68: -11320.6 | W68: 0 | X68: 0 | Y68: 0 | Z68: 0 | AA68: 0 | AB68: 410642.8 | AC68: 746591.99 | AD68: 4504.97 | AE68: 22057.24 | AF68: 164160.86 | AG68: 5239196.31 | AI68: 335412.38 | AJ68: 582860.21 | AK68: 10748.53 | AL68: 20840.49 | AM68: 169112.12 | AN68: 5243348.46 | AP68: 482518.09 | AQ68: 474285.47 | AR68: 4633.92 | AS68: 17050.91 | AT68: 213724.24 | AU68: 4688383.48 | AW68: 491701.47 | AX68: 548100.92 | AY68: 24160.49 | AZ68: 15900.59 | BA68: 386120.76 | BB68: 2110213.39 | BD68: 331310.1 | BE68: 321766.46 | BF68: 77412.8 | BG68: 41858.59 | BH68: 1156437.72 | BI68: 2790331.26
A69: Serviços de Terceiros | B69: 319 | C69: ALUGUEL DE IMOVEIS E SERVIDOES | D69: 291884.16 | E69: 231324.71 | F69: 523208.87 | G69: 523208.87 | H69: 0 | I69: 84161.25 | J69: 22021.25 | K69: 106182.5 | L69: 106182.5 | M69: 0 | N69: 1352201.76 | O69: 1352201.76 | P69: 0 | Q69: 10075515.84 | R69: 970922.64 | S69: 4223940.29 | T69: 5042452.65 | U69: -161799.74 | W69: 0 | X69: 0 | Y69: 0 | Z69: 0 | AA69: 0 | AB69: 330986.18 | AC69: 355093.81 | AD69: 47417 | AE69: 22086.53 | AF69: 1486862.47 | AG69: 10432271.66 | AI69: 0 | AJ69: 0 | AK69: 0 | AL69: 0 | AM69: 2844.74 | AN69: 226839.23 | AP69: 0 | AQ69: 0 | AR69: 0 | AS69: 0 | AT69: 13549.09 | AU69: 406244.15 | BA69: 14044.57 | BB69: 321783.11 | BH69: 251.75 | BI69: 222280.12
A70: Serviços de Terceiros | B70: 320 | C70: TARIFAS BANCARIAS | D70: 0 | E70: 0 | F70: =SUM(D70:E70) -> 0 | G70: 0 | H70: 0 | I70: 0 | J70: 0 | K70: =J70+I70 -> 0 | L70: 0 | M70: =K70-L70 -> 0 | N70: 20 | O70: 20 | P70: =N70-O70 -> 0 | Q70: 3728133.62 | R70: 7126.87 | S70: 446682.7 | T70: 3274324.05 | U70: 0 | W70: 0 | X70: 0 | Y70: 0 | Z70: 0 | AA70: =V70-W70-X70-Y70-Z70 -> 0 | AB70: 0 | AC70: 0 | AD70: 0 | AE70: 0 | AF70: 0 | AG70: 500961.38 | AI70: 0 | AJ70: 0 | AK70: 0 | AL70: 0 | AM70: 0 | AN70: 259075.75 | AP70: 0 | AQ70: 0 | AR70: 0 | AS70: 0 | AT70: 156.89 | AU70: 144428.25 | BA70: 43.64 | BB70: 256850.71 | BI70: 1362604.12
A71: Serviços de Terceiros | B71: 321 | C71: SERVICOS DE ARRECADACAO | D71: 0 | E71: 0 | F71: 0 | G71: 0 | H71: 0 | I71: 0 | J71: 0 | K71: 0 | L71: 0 | M71: 0 | N71: 24120665.15 | O71: 24120665.15 | P71: 5.587935448e-08 | Q71: 400 | R71: 0 | S71: 0 | T71: 400 | U71: 0 | W71: 0 | X71: 0 | Y71: 0 | Z71: 0 | AA71: 0 | AB71: 0 | AC71: 0 | AD71: 0 | AE71: 0 | AF71: 31796488.41 | AG71: 7335.74 | AI71: 0 | AJ71: 0 | AK71: 0 | AL71: 0 | AM71: 34895371.17 | AN71: 0 | AP71: 0 | AQ71: 0 | AR71: 0 | AS71: 0 | AT71: 34360825.85 | AU71: 0 | BA71: 34932775.21 | BH71: 26757932.55
A72: Serviços de Terceiros | B72: 322 | C72: SERVICOS MANUT ELETROMECANICA | D72: 0 | E72: 0 | F72: 0 | G72: 0 | H72: 0 | I72: 0 | J72: 0 | K72: 0 | L72: 0 | M72: 0 | N72: 0 | O72: 0 | P72: 0 | Q72: 7080737 | R72: 0 | S72: 0 | T72: 7080737 | U72: 0 | W72: 0 | X72: 0 | Y72: 0 | Z72: 0 | AA72: 0 | AB72: 0 | AC72: 0 | AD72: 0 | AE72: 0 | AF72: 0 | AG72: 8217381.97 | AI72: 0 | AJ72: 0 | AK72: 0 | AL72: 0 | AM72: 0 | AN72: 11336838.37 | AP72: 0 | AQ72: 0 | AR72: 0 | AS72: 0 | AT72: 0 | AU72: 11004628.02 | BB72: 15658290.49 | BI72: 14636171.27
A73: Serviços de Terceiros | B73: 323 | C73: SERVICOS DE MANUT DE VEICULOS | D73: 230295.55 | E73: 625185.59 | F73: 855481.14 | G73: 855489.6 | H73: -8.46 | I73: 560338.56 | J73: 124110.26 | K73: 684448.82 | L73: 684448.82 | M73: 0 | N73: 158201.21 | O73: 158201.21 | P73: 0 | Q73: 919917.21 | R73: 18850.24 | S73: 144055.73 | T73: 757693.92 | U73: -682.68 | W73: 0 | X73: 0 | Y73: 0 | Z73: 0 | AA73: 0 | AB73: 164790.84 | AC73: 465210.65 | AD73: 516370.04 | AE73: 141598.26 | AF73: 113837.34 | AG73: 926248.96 | AI73: 228514.68 | AJ73: 381792.59 | AK73: 507025.53 | AL73: 114325.58 | AM73: 116456.33 | AN73: 948565.75 | AP73: 89694.9 | AQ73: 273228.91 | AR73: 612566.32 | AS73: 112488.26 | AT73: 40974.42 | AU73: 889289.88 | AW73: 190547.87 | AX73: 242045.74 | AY73: 814756.18 | AZ73: 150618.6 | BA73: 34101.75 | BB73: 1227167.02 | BD73: 92923.48 | BE73: 206748.66 | BF73: 674838.8 | BG73: 138019.96 | BH73: 22419.06 | BI73: 1086549.07
A74: Serviços de Terceiros | B74: 324 | C74: SERV MOVIM,CARGA E DESC MAT | D74: 8945 | E74: 11693.8 | F74: 20638.8 | G74: 20638.8 | H74: 0 | I74: 10.5 | J74: 0 | K74: 10.5 | L74: 10.5 | M74: 0 | N74: 0 | O74: 0 | P74: 0 | Q74: 935607.6 | R74: 336 | S74: 929771.6 | T74: 5500 | U74: 0 | W74: 0 | X74: 0 | Y74: 0 | Z74: 0 | AA74: 0 | AB74: 25970 | AC74: 10024 | AD74: 239.1 | AE74: 0 | AF74: 0 | AG74: 973387.64 | AI74: 36690.61 | AJ74: 2471.43 | AK74: 0 | AL74: 0 | AM74: 0 | AN74: 1174846.22 | AP74: 21732.5 | AQ74: 5312.5 | AR74: 0 | AS74: 0 | AT74: 0 | AU74: 1247921.42 | AW74: 27105 | AZ74: 245 | BB74: 1236543.45 | BD74: 20249 | BI74: 984435.84
A75: Serviços de Terceiros | B75: 325 | C75: SERV DESENV MANUT OPERACIONAL | D75: 0 | E75: 0 | F75: 0 | G75: 0 | H75: 0 | I75: 0 | J75: 0 | K75: 0 | L75: 0 | M75: 0 | N75: 0 | O75: 0 | P75: 0 | Q75: 10961 | R75: 10961 | S75: 0 | T75: 0 | U75: 0 | W75: 0 | X75: 0 | Y75: 0 | Z75: 0 | AA75: 0 | AB75: 0 | AC75: 0 | AD75: 0 | AE75: 0 | AF75: 0 | AG75: 21607.14 | AI75: 0 | AJ75: 0 | AK75: 0 | AL75: 0 | AM75: 0 | AN75: 56998 | AP75: 0 | AQ75: 0 | AR75: 0 | AS75: 0 | AT75: 0 | AU75: 70173.02 | BB75: 850
A76: Serviços de Terceiros | B76: 326 | C76: SERVICOS MANUTENCAO DE REDES | D76: 0 | E76: 130356923.3 | F76: 130356923.3 | G76: 130356923.3 | H76: 0 | I76: 38449213.93 | J76: 0 | K76: 38449213.93 | L76: 38449213.93 | M76: 0 | N76: 0 | O76: 0 | P76: 0 | Q76: 0 | R76: 0 | S76: 0 | T76: 0 | U76: 0 | W76: 0 | X76: 0 | Y76: 0 | Z76: 0 | AA76: 0 | AB76: 0 | AC76: 142672340.9 | AD76: 35615131.39 | AE76: 0 | AF76: 0 | AG76: 0 | AI76: 0 | AJ76: 163445193.4 | AK76: 40889342.27 | AL76: 0 | AM76: 0 | AN76: 0 | AP76: 0 | AQ76: 154169888.1 | AR76: 35866976.44 | AS76: 0 | AT76: 0 | AU76: 0 | AX76: 154606585.2 | AY76: 31202864.24 | BE76: 119840687 | BF76: 20347167.92
A77: Serviços de Terceiros | B77: 328 | C77: SERV FOTOG PROD E GRAV AUDIOV | D77: 11703 | E77: 0 | F77: 11703 | G77: 11703 | H77: 0 | I77: 0 | J77: 0 | K77: 0 | L77: 0 | M77: 0 | N77: 7170 | O77: 7170 | P77: 0 | Q77: 121397 | R77: 1709 | S77: 79063 | T77: 40625 | U77: 0 | W77: 0 | X77: 0 | Y77: 0 | Z77: 0 | AA77: 0 | AB77: 6927.8 | AC77: 1271.4 | AD77: 0 | AE77: 1885 | AF77: 2247.1 | AG77: 130877.7 | AI77: 58572.2 | AJ77: 7040 | AK77: 0 | AL77: 0 | AM77: 4020 | AN77: 26332 | AP77: 750 | AQ77: 0 | AR77: 0 | AS77: 640 | AT77: 0 | AU77: 22050 | BB77: 18240
A78: Serviços de Terceiros | B78: 329 | C78: SERVICOS TECNICOS OPERACIONAIS | D78: 0 | E78: 8256210.53 | F78: 8256210.53 | G78: 8256210.53 | H78: 0 | I78: 4990237.91 | J78: 0 | K78: 4990237.91 | L78: 4990237.91 | M78: 0 | N78: 0 | O78: 0 | P78: 0 | Q78: 0 | R78: 0 | S78: 0 | T78: 0 | U78: 0 | W78: 0 | X78: 0 | Y78: 0 | Z78: 0 | AA78: 0 | AB78: 0 | AC78: 7796686.81 | AD78: 5964270.87 | AE78: 0 | AF78: 0 | AG78: 0 | AI78: 0 | AJ78: 9869611 | AK78: 5171800.15 | AL78: 0 | AM78: 0 | AN78: 0 | AP78: 0 | AQ78: 8716265.31 | AR78: 10667590.59 | AS78: 0 | AT78: 0 | AU78: 0 | AW78: 7612 | AX78: 12961152.66 | AY78: 10691444.31 | AZ78: 122738.66 | BD78: 74372.18 | BE78: 10878882.91 | BF78: 8914339.92 | BG78: 41544.42
A79: Serviços de Terceiros | B79: 330 | C79: SERV REMOCAO RESIDUOS ESGOTO | D79: 0 | E79: 0 | F79: 0 | G79: 0 | H79: 0 | I79: 0 | J79: 60442354.28 | K79: 60442354.28 | L79: 60442354.28 | M79: 0 | N79: 0 | O79: 0 | P79: 0 | Q79: 0 | R79: 0 | S79: 0 | T79: 0 | U79: 0 | W79: 0 | X79: 0 | Y79: 0 | Z79: 0 | AA79: 0 | AB79: 0 | AC79: 0 | AD79: 0 | AE79: 69191097.97 | AF79: 0 | AG79: 0 | AI79: 0 | AJ79: 0 | AK79: 0 | AL79: 78602428.81 | AM79: 0 | AN79: 0 | AP79: 0 | AQ79: 0 | AR79: 0 | AS79: 96048796.52 | AT79: 0 | AU79: 0 | AZ79: 88225685.07 | BG79: 75547435.57
A80: Serviços de Terceiros | B80: 331 | C80: SERVICO ATENDIMENTO AO CLIENTE | D80: 0 | E80: 0 | F80: 0 | G80: 0 | H80: 0 | I80: 0 | J80: 0 | K80: 0 | L80: 0 | M80: 0 | N80: 0 | O80: 0 | P80: 0 | Q80: 3510848.61 | R80: 0 | S80: 3510848.61 | T80: 0 | U80: 0 | W80: 0 | X80: 0 | Y80: 0 | Z80: 0 | AA80: 0 | AB80: 0 | AC80: 0 | AD80: 0 | AE80: 0 | AF80: 0 | AG80: 4416338.67 | AI80: 0 | AJ80: 0 | AK80: 0 | AL80: 0 | AM80: 0 | AN80: 5296739.85 | AP80: 0 | AQ80: 0 | AR80: 0 | AS80: 0 | AT80: 6077437.37 | AU80: 0 | BA80: 7025036.69 | BH80: 5540516.6
A81: Serviços de Terceiros | B81: 332 | C81: SERV MANUT UNID OPERAC DE AGUA | D81: 1534392.01 | E81: 29519.6 | F81: 1563911.61 | G81: 1563911.61 | H81: 0 | I81: 0 | J81: 0 | K81: 0 | L81: 0 | M81: 0 | N81: 0 | O81: 0 | P81: 0 | Q81: 0 | R81: 0 | S81: 0 | T81: 0 | U81: 0 | W81: 0 | X81: 0 | Y81: 0 | Z81: 0 | AA81: 0 | AB81: 1874837.75 | AC81: 7605.23 | AD81: 0 | AE81: 0 | AF81: 0 | AG81: 0 | AI81: 3243477.55 | AJ81: 39009.5 | AK81: 0 | AL81: 0 | AM81: 0 | AN81: 0 | AP81: 2145022.42 | AQ81: 75918.91 | AR81: 0 | AS81: 0 | AT81: 0 | AU81: 0 | AW81: 1455924.91 | AX81: 16540 | BD81: 1191982.47 | BE81: 76294.72
A82: Serviços de Terceiros | B82: 333 | C82: SERV TRATAM DESTIN RES SOLIDOS | D82: 0 | E82: 0 | F82: 0 | G82: 0 | H82: 0 | I82: 0 | K82: 0 | L82: 0 | M82: 0 | N82: 0 | O82: 0 | P82: 0 | R82: 0 | S82: 0 | T82: 0 | U82: 0 | W82: 0 | X82: 0 | Y82: 0 | Z82: 0 | AA82: 0
B84: f) Custos com propaganda e marketing; | D84: =SUM(D85:D85) -> 0 | E84: =SUM(E85:E85) -> 0 | F84: 0 | G84: =SUM(G85) -> 0 | H84: =F84-G84 -> 0 | I84: 0 | J84: 0 | K84: 0 | L84: =SUM(L85) -> 0 | M84: 0 | N84: 0 | O84: =SUM(O85) -> 0 | P84: 0 | Q84: 19868771.68 | R84: =SUM(R85) -> 0 | S84: =SUM(S85) -> 19868771.68 | T84: =SUM(T85) -> 0 | U84: =Q84-R84-S84-T84 -> 0 | V84: 0 | W84: =SUM(W85) -> 0 | X84: 0 | Y84: 0 | Z84: 0 | AA84: 0 | AB84: =SUM(AB85:AB85) -> 0 | AC84: =SUM(AC85:AC85) -> 0 | AD84: 0 | AE84: 0 | AF84: 0 | AG84: 16292050.6 | AH84: 0 | AI84: =SUM(AI85:AI85) -> 0 | AJ84: =SUM(AJ85:AJ85) -> 0 | AK84: 0 | AL84: 0 | AM84: 0 | AN84: 7840425.18 | AO84: 0 | AP84: =SUM(AP85:AP85) -> 0 | AQ84: =SUM(AQ85:AQ85) -> 0 | AR84: 0 | AS84: 0 | AT84: 0 | AU84: 9195511.23 | AV84: 0 | AW84: 0 | AX84: 0 | AY84: 0 | AZ84: 0 | BA84: 0 | BB84: 14735190.77 | BC84: 0 | BD84: =SUM(BD85:BD85) -> 0 | BE84: =SUM(BE85:BE85) -> 0 | BF84: 0 | BG84: 0 | BH84: 0 | BI84: 10501462.96 | BJ84: 0
A85: Despesas Gerais | B85: 307 | C85: SERV VEICULACAO, PUBLIC PROPAG | D85: 0 | E85: 0 | F85: 0 | G85: 0 | H85: =F85-G85 -> 0 | J85: 0 | K85: 0 | L85: 0 | M85: 0 | N85: 0 | O85: 0 | P85: 0 | Q85: 19868771.68 | R85: 0 | S85: 19868771.68 | T85: 0 | U85: =Q85-R85-S85-T85 -> 0 | W85: 0 | X85: 0 | Y85: 0 | Z85: 0 | AA85: 0 | AB85: 0 | AC85: 0 | AD85: 0 | AE85: 0 | AF85: 0 | AG85: 16292050.6 | AI85: 0 | AJ85: 0 | AK85: 0 | AL85: 0 | AM85: 0 | AN85: 7840425.18 | AP85: 0 | AQ85: 0 | AR85: 0 | AS85: 0 | AT85: 0 | AU85: 9195511.23 | BB85: 14735190.77 | BI85: 10501462.96
B87: g) Custos com apoio institucional, patrocínios e doações; | D87: =SUM(D88:D90) -> 900 | E87: =SUM(E88:E90) -> 0 | F87: 900 | G87: =SUM(G88:G90) -> 900 | H87: =F87-G87 -> 0 | I87: 0 | J87: 0 | K87: 0 | L87: =SUM(L88:L90) -> 0 | M87: 0 | N87: 15720 | O87: =SUM(O88:O90) -> 15720 | P87: 0 | Q87: 6706424.03 | R87: =SUM(R88:R90) -> 106160.26 | S87: =SUM(S88:S90) -> 6387788.47 | T87: =SUM(T88:T90) -> 212475.3 | U87: =Q87-R87-S87-T87 -> 0 | V87: 0 | W87: 0 | X87: 0 | Y87: 0 | Z87: 0 | AA87: 0 | AB87: =SUM(AB88:AB90) -> 690 | AC87: =SUM(AC88:AC90) -> 0 | AD87: 0 | AE87: 0 | AF87: 0 | AG87: 6316501.68 | AH87: 0 | AI87: =SUM(AI88:AI90) -> 9450 | AJ87: =SUM(AJ88:AJ90) -> 8750 | AK87: 0 | AL87: 0 | AM87: 8750 | AN87: 3006485.33 | AO87: 0 | AP87: =SUM(AP88:AP90) -> 2487.5 | AQ87: =SUM(AQ88:AQ90) -> 2487.5 | AR87: 0 | AS87: 0 | AT87: 2487.5 | AU87: 1303451.13 | AV87: 0 | AW87: 0 | AX87: 0 | AY87: 0 | AZ87: 0 | BA87: 0 | BB87: 2324873.29 | BC87: 0 | BD87: =SUM(BD88:BD90) -> 370 | BE87: =SUM(BE88:BE90) -> 3350 | BF87: 0 | BG87: 0 | BH87: 0 | BI87: 1141868.93 | BJ87: 0
A88: Despesas Gerais | B88: 410 | C88: DOACOES | D88: 0 | E88: 0 | F88: 0 | G88: 0 | H88: 0 | I88: 0 | K88: 0 | L88: 0 | M88: 0 | O88: 0 | P88: 0 | R88: 0 | S88: 0 | T88: 0 | U88: =Q88-R88-S88-T88 -> 0 | W88: 0 | X88: 0 | Y88: 0 | Z88: 0 | AA88: 0 | AB88: 0 | AI88: 0 | AJ88: 0 | AK88: 0 | AL88: 0 | AM88: 0 | AN88: 12441.28 | AU88: 0
A89: Despesas Gerais | B89: 411 | C89: EXPOSICOES, CONGRESSOS EVENTOS | D89: 900 | E89: 0 | F89: 900 | G89: 900 | H89: 0 | I89: 0 | J89: 0 | K89: 0 | L89: 0 | M89: 0 | N89: 15720 | O89: 15720 | P89: 0 | Q89: 6706424.03 | R89: 106160.26 | S89: 6387788.47 | T89: 212475.3 | U89: 0 | W89: 0 | X89: 0 | Y89: 0 | Z89: 0 | AA89: 0 | AB89: 690 | AC89: 0 | AD89: 0 | AE89: 0 | AF89: 0 | AG89: 6316501.68 | AI89: 9450 | AJ89: 8750 | AK89: 0 | AL89: 0 | AM89: 8750 | AN89: 657416.55 | AP89: 2487.5 | AQ89: 2487.5 | AR89: 0 | AS89: 0 | AT89: 2487.5 | AU89: 53944.1 | BB89: 132449.97 | BD89: 370 | BE89: 3350 | BI89: 68354.04
A90: Despesas Gerais | B90: 420 | C90: APOIO INSTIT P DIVULG DA MARCA | D90: 0 | E90: 0 | F90: 0 | G90: 0 | H90: 0 | I90: 0 | K90: 0 | L90: 0 | M90: 0 | O90: 0 | P90: 0 | R90: 0 | S90: 0 | T90: 0 | U90: 0 | W90: 0 | X90: 0 | Y90: 0 | Z90: 0 | AA90: 0 | AB90: 0 | AI90: 0 | AJ90: 0 | AK90: 0 | AL90: 0 | AM90: 0 | AN90: 2336627.5 | AP90: 0 | AQ90: 0 | AR90: 0 | AS90: 0 | AT90: 0 | AU90: 1249507.03 | BB90: 2192423.32 | BI90: 1073514.89
B92: h) custos com seguros; | D92: =SUM(D93) -> 0 | E92: =SUM(E93) -> 0 | F92: 0 | G92: =SUM(G93) -> 0 | H92: =F92-G92 -> 0 | I92: 0 | J92: 0 | K92: 0 | L92: =SUM(L93) -> 0 | M92: 0 | N92: 546.76 | O92: =SUM(O93) -> 546.76 | P92: 0 | Q92: 2076259.82 | R92: =SUM(R93) -> 710338.24 | S92: =SUM(S93) -> 1338057.92 | T92: =SUM(T93) -> 27863.66 | U92: =Q92-R92-S92-T92 -> -8.367351256e-11 | V92: 0 | W92: 0 | X92: 0 | Y92: 0 | Z92: 0 | AA92: 0 | AB92: =SUM(AB93) -> 0 | AC92: =SUM(AC93) -> 0 | AD92: 0 | AE92: 0 | AF92: 940.08 | AG92: 1350841.52 | AH92: 0 | AI92: =SUM(AI93) -> 0 | AJ92: =SUM(AJ93) -> 0 | AK92: 0 | AL92: 0 | AM92: 468.21 | AN92: 1488085.6 | AO92: 0 | AP92: =SUM(AP93) -> 2897.6 | AQ92: =SUM(AQ93) -> 0 | AR92: 0 | AS92: 0 | AT92: 2647.23 | AU92: 1852426 | AV92: 0 | AW92: 2512 | AX92: 0 | AY92: 0 | AZ92: 0 | BA92: 1920.77 | BB92: 1938115.55 | BC92: 0 | BD92: =SUM(BD93) -> 0 | BE92: =SUM(BE93) -> 0 | BF92: 0 | BG92: 34 | BH92: 538.28 | BI92: 971687.74 | BJ92: 0
A93: Despesas Gerais | B93: 401 | C93: PREMIOS DE SEGUROS | D93: 0 | E93: 0 | F93: 0 | G93: 0 | H93: 0 | J93: 0 | K93: 0 | L93: 0 | M93: 0 | N93: 546.76 | O93: 546.76 | P93: 0 | Q93: 2076259.82 | R93: 710338.24 | S93: 1338057.92 | T93: 27863.66 | U93: =Q93-R93-S93-T93 -> -8.367351256e-11 | W93: 0 | X93: 0 | Y93: 0 | Z93: 0 | AA93: 0 | AB93: 0 | AC93: 0 | AE93: 0 | AF93: 940.08 | AG93: 1350841.52 | AI93: 0 | AJ93: 0 | AK93: 0 | AL93: 0 | AM93: 468.21 | AN93: 1488085.6 | AP93: 2897.6 | AQ93: 0 | AR93: 0 | AS93: 0 | AT93: 2647.23 | AU93: 1852426 | AW93: 2512 | BA93: 1920.77 | BB93: 1938115.55 | BG93: 34 | BH93: 538.28 | BI93: 971687.74
B95: i) Custos para uso dos recursos hídricos (outorgas) | D95: =SUM(D96) -> 2742375.48 | E95: =SUM(E96) -> 0 | F95: 2742375.48 | G95: =SUM(G96) -> 2742375.48 | H95: =F95-G95 -> 0 | I95: 0 | J95: 691852.2 | K95: 691852.2 | L95: =SUM(L96) -> 691852.2 | M95: 0 | N95: 0 | O95: =SUM(O96) -> 0 | P95: 0 | Q95: 0 | R95: =SUM(R96) -> 0 | S95: =SUM(S96) -> 0 | T95: =SUM(T96) -> 0 | U95: =Q95-R95-S95-T95 -> 0 | V95: 0 | W95: 0 | X95: 0 | Y95: 0 | Z95: 0 | AA95: 0 | AB95: =SUM(AB96) -> 2753154.79 | AC95: =SUM(AC96) -> 0 | AD95: 0 | AE95: 699633.71 | AF95: 0 | AG95: 0 | AH95: 0 | AI95: =SUM(AI96) -> 0 | AJ95: =SUM(AJ96) -> 0 | AK95: 0 | AL95: 0 | AM95: 0 | AN95: 0 | AO95: 0 | AP95: =SUM(AP96) -> 3043652.54 | AQ95: =SUM(AQ96) -> 0 | AR95: 0 | AS95: 752946.8 | AT95: 0 | AU95: 0 | AV95: 0 | AW95: 3211185.57 | AX95: 0 | AY95: 0 | AZ95: 744711.96 | BA95: 0 | BB95: 0 | BC95: 0 | BD95: =SUM(BD96) -> 2664412.45 | BE95: =SUM(BE96) -> 0 | BF95: 0 | BG95: 549176.76 | BH95: 0 | BI95: 0 | BJ95: 0
A96: Despesas Gerais | B96: 460 | C96: COBRANCA P/USO RECURSO HIDRICO | D96: 2742375.48 | E96: 0 | F96: 2742375.48 | G96: 2742375.48 | H96: 0 | I96: 0 | J96: 691852.2 | K96: 691852.2 | L96: 691852.2 | M96: 0 | N96: 0 | O96: 0 | P96: 0 | Q96: 0 | R96: 0 | S96: 0 | T96: 0 | U96: =Q96-R96-S96-T96 -> 0 | W96: 0 | X96: 0 | Y96: 0 | Z96: 0 | AA96: 0 | AB96: 2753154.79 | AC96: 0 | AD96: 0 | AE96: 699633.71 | AF96: 0 | AG96: 0 | AP96: 3043652.54 | AQ96: 0 | AR96: 0 | AS96: 752946.8 | AT96: 0 | AU96: 0 | AW96: 3211185.57 | AZ96: 744711.96 | BD96: 2664412.45 | BG96: 549176.76
I97: 0
B98: j) Custos tributários, separar PASEP/COFINS, Taxa de Regulação e outros tributos/impostos/taxas; | D98: =SUM(D99:D108) -> 875408.73 | E98: =SUM(E99:E108) -> 903463.96 | F98: 1778872.69 | G98: =SUM(G99:G108) -> 1781200.98 | H98: =F98-G98 -> -2328.29 | I98: =SUM(I99:I108) -> 128012.05 | J98: 168902.02 | K98: 296914.07 | L98: =SUM(L99:L108) -> 296914.07 | M98: 0 | N98: 292757593.7 | O98: =SUM(O99:O108) -> 293360834.6 | P98: -603240.82 | Q98: 23604982.66 | R98: =SUM(R99:R108) -> 19742139.18 | S98: =SUM(S99:S108) -> 1809495.38 | T98: =SUM(T99:T108) -> 2065908.48 | U98: =Q98-R98-S98-T98 -> -12560.38 | V98: 227901411.6 | W98: 0 | X98: 0 | Y98: 0 | Z98: 0 | AA98: 227901411.6 | AB98: =SUM(AB99:AB108) -> 872547.56 | AC98: =SUM(AC99:AC108) -> 913380.35 | AD98: =SUM(AD99:AD108) -> 128153.79 | AE98: =SUM(AE99:AE108) -> 197293.88 | AF98: 314077854.5 | AG98: =SUM(AG99:AG108) -> 28159389.52 | AH98: =SUM(AH99:AH108) -> 272514566.8 | AI98: =SUM(AI99:AI108) -> 685711.28 | AJ98: =SUM(AJ99:AJ108) -> 754678.26 | AK98: =SUM(AK99:AK108) -> 60597.21 | AL98: =SUM(AL99:AL108) -> 87338.82 | AM98: 352475743.7 | AN98: =SUM(AN99:AN108) -> 29157828.05 | AO98: =SUM(AO99:AO108) -> 373850974 | AP98: =SUM(AP99:AP108) -> 770202.72 | AQ98: =SUM(AQ99:AQ108) -> 836934.44 | AR98: =SUM(AR99:AR108) -> 184156.48 | AS98: =SUM(AS99:AS108) -> 51154.06 | AT98: 357888104.9 | AU98: =SUM(AU99:AU108) -> 32182264.28 | AV98: =SUM(AV99:AV108) -> 369412273.6 | AW98: 788150.49 | AX98: 2483848.3 | AY98: 1230458.6 | AZ98: 26779.36 | BA98: 384578728.8 | BB98: 34310615.07 | BC98: 425935491 | BD98: =SUM(BD99:BD108) -> 1026362.33 | BE98: =SUM(BE99:BE108) -> 1427836.95 | BF98: =SUM(BF99:BF108) -> 58906.16 | BG98: =SUM(BG99:BG108) -> 25399.59 | BH98: 310124881.2 | BI98: =SUM(BI99:BI108) -> 34678426.41 | BJ98: =SUM(BJ99:BJ108) -> 315826605.3
A99: Despesas Gerais | B99: 451 | C99: PASEP | D99: 0 | E99: 0 | F99: 0 | G99: 0 | H99: 0 | I99: 0 | J99: 0 | K99: 0 | L99: 0 | M99: 0 | N99: 52170774.95 | O99: 52278380.11 | P99: -107605.16 | Q99: 647168.47 | R99: 509657.3 | S99: 14347.82 | T99: 123529.16 | U99: =Q99-R99-S99-T99 -> -365.81 | W99: 0 | X99: 0 | Y99: 0 | Z99: 0 | AA99: 0 | AB99: 0 | AC99: 0 | AD99: 0 | AE99: 0 | AF99: 55965119.12 | AG99: 435061.22 | AI99: 0 | AJ99: 0 | AK99: 0 | AL99: 0 | AM99: 62853364.69 | AN99: 352836.35 | AP99: 0 | AQ99: 0 | AR99: 0 | AS99: 0 | AT99: 63817666.6 | AU99: 508543.97 | BA99: 68589897.75 | BB99: 725293.05 | BH99: 55314773.41 | BI99: 1302935.03
A100: Despesas Gerais | B100: 452 | C100: COFINS | D100: 0 | E100: 0 | F100: 0 | G100: 0 | H100: 0 | I100: 0 | J100: 0 | K100: 0 | L100: 0 | M100: 0 | N100: 240301747.3 | O100: 240797383 | P100: -495635.66 | Q100: 3827843.15 | R100: 3019089.74 | S100: 85579.6 | T100: 725425.03 | U100: -2251.22 | W100: 0 | X100: 0 | Y100: 0 | Z100: 0 | AA100: 0 | AB100: 0 | AC100: 0 | AD100: 0 | AE100: 0 | AF100: 257778735.6 | AG100: 2507973.48 | AI100: 0 | AJ100: 0 | AK100: 0 | AL100: 0 | AM100: 289506399.5 | AN100: 2046760.67 | AP100: 0 | AQ100: 0 | AR100: 0 | AS100: 0 | AT100: 293948319.9 | AU100: 2800321.97 | BA100: 315931319.6 | BB100: 4244574.15 | BH100: 254784882.9 | BI100: 7901636.09
A101: Despesas Gerais | B101: 454 | C101: IPTU | D101: 563729.09 | E101: 574659.27 | F101: 1138388.36 | G101: 1138388.36 | H101: 0 | I101: 1807.8 | J101: 39819.92 | K101: 41627.72 | L101: 41627.72 | M101: 0 | N101: 18649.92 | O101: 18649.92 | P101: 0 | Q101: 861038.47 | R101: 42398.74 | S101: 638509.17 | T101: 182991.08 | U101: -2860.52 | W101: 0 | X101: 0 | Y101: 0 | Z101: 0 | AA101: 0 | AB101: 567835.48 | AC101: 618668.69 | AD101: 1869.07 | AE101: 41367.89 | AF101: 21611.63 | AG101: 1090514.35 | AI101: 626740.1 | AJ101: 686491.61 | AK101: 2051.03 | AL101: 43078.55 | AM101: 36164.02 | AN101: 974723.83 | AP101: 705313.59 | AQ101: 719816.06 | AR101: 656.48 | AS101: 1312.8 | AT101: 27335.54 | AU101: 997447.44 | AW101: 710264.69 | AX101: 847903.03 | AY101: 679.5 | AZ101: 963.51 | BA101: 24507.35 | BB101: 1487756.47 | BD101: 960800.82 | BE101: 1325015.24 | BF101: 1185.2 | BG101: 3227.73 | BH101: 63.06 | BI101: 1879273.42
A102: Despesas Gerais | B102: 455 | C102: IPVA | D102: 0 | E102: 0 | F102: 0 | G102: 0 | H102: 0 | I102: 0 | J102: 0 | K102: 0 | L102: 0 | M102: 0 | N102: 0 | O102: 0 | P102: 0 | Q102: 373041.57 | R102: 0 | S102: 372844.86 | T102: 196.71 | U102: 2.094679985e-11 | W102: 0 | X102: 0 | Y102: 0 | Z102: 0 | AA102: 0 | AB102: 0 | AC102: 0 | AD102: 0 | AE102: 0 | AF102: 0 | AG102: 509483.9 | AI102: 0 | AJ102: 0 | AK102: 0 | AL102: 0 | AM102: 0 | AN102: 443035.02 | AP102: 17138.56 | AQ102: 55228.2 | AR102: 56331.08 | AS102: 9175.85 | AT102: 29649.39 | AU102: 256962.05 | AX102: 18 | BB102: 328594.73 | BI102: 418077.79
A103: Despesas Gerais | B103: 456 | C103: TAXAS, ALVARAS E LICENCIAMENTO | D103: 84174.72 | E103: 104348.07 | F103: 188522.79 | G103: 188522.79 | H103: 0 | I103: 70189.19 | J103: 39082.72 | K103: 109271.91 | L103: 109271.91 | M103: 0 | N103: 56226.18 | O103: 56226.18 | P103: 0 | Q103: 1204772.36 | R103: 325019.05 | S103: 305583.58 | T103: 574188.69 | U103: -18.96 | W103: 0 | X103: 0 | Y103: 0 | Z103: 0 | AA103: 0 | AB103: 75212.41 | AC103: 67236.04 | AD103: 66417.49 | AE103: 55557.04 | AF103: 72685.9 | AG103: 694703.92 | AI103: 58971.18 | AJ103: 68186.65 | AK103: 58546.18 | AL103: 44260.27 | AM103: 79815.48 | AN103: 901543.71 | AP103: 47750.57 | AQ103: 61890.18 | AR103: 127168.92 | AS103: 40665.41 | AT103: 65133.42 | AU103: 933364.77 | AW103: 77885.8 | AX103: 1635927.27 | AY103: 1229779.1 | AZ103: 25815.85 | BA103: 33004.09 | BB103: 1028534.69 | BD103: 65561.51 | BE103: 102821.71 | BF103: 57720.96 | BG103: 22171.86 | BH103: 25161.89 | BI103: 1301710.12
A104: Despesas Gerais | B104: 457 | C104: CONTRIBUICAO SINDICAL PATRONAL | D104: 227504.92 | E104: 224456.62 | F104: 451961.54 | G104: 454289.83 | H104: -2328.29 | I104: 56015.06 | J104: 89999.38 | K104: 146014.44 | L104: 146014.44 | M104: 0 | N104: 210195.37 | O104: 210195.37 | P104: 0 | Q104: 1050616.78 | R104: 205472.49 | S104: 392630.35 | T104: 459577.81 | U104: -7063.87 | W104: 0 | X104: 0 | Y104: 0 | Z104: 0 | AA104: 0 | AB104: 229499.67 | AC104: 227475.62 | AD104: 59867.23 | AE104: 100368.95 | AF104: 239702.23 | AG104: 1078775.05 | AI104: 0 | AJ104: 0 | AK104: 0 | AL104: 0 | AM104: 0 | AN104: 61428.33 | AP104: 0 | AQ104: 0 | AR104: 0 | AS104: 0 | AT104: 0 | AU104: 65062.73 | BB104: 61428.33 | BI104: 67373.71
A105: Despesas Gerais | B105: 459 | C105: IOF | D105: 0 | E105: 0 | F105: 0 | G105: 0 | H105: 0 | I105: 0 | J105: 0 | K105: 0 | L105: 0 | M105: 0 | N105: 0 | O105: 0 | P105: 0 | Q105: 1381298.7 | R105: 1381298.7 | S105: 0 | T105: 0 | U105: 0 | W105: 0 | X105: 0 | Y105: 0 | Z105: 0 | AA105: 0 | AB105: 0 | AC105: 0 | AD105: 0 | AE105: 0 | AF105: 0 | AG105: 1008813.84 | AI105: 0 | AJ105: 0 | AK105: 0 | AL105: 0 | AM105: 0 | AN105: 1983416.22 | AP105: 0 | AQ105: 0 | AR105: 0 | AS105: 0 | AT105: 0 | AU105: 1247739.25 | BB105: 637792.89 | BI105: 874424.47
A106: Despesas Gerais | B106: 461 | C106: TAXA DE REGULACAO | D106: 0 | E106: 0 | F106: 0 | G106: 0 | H106: 0 | I106: 0 | J106: 0 | K106: 0 | L106: 0 | M106: 0 | N106: 0 | O106: 0 | P106: 0 | Q106: 14259203.16 | R106: 14259203.16 | S106: 0 | T106: 0 | U106: 3.725290298e-09 | W106: 0 | X106: 0 | Y106: 0 | Z106: 0 | AA106: 0 | AB106: 0 | AC106: 0 | AD106: 0 | AE106: 0 | AF106: 0 | AG106: 20834063.76 | AI106: 0 | AJ106: 0 | AK106: 0 | AL106: 0 | AM106: 0 | AN106: 22394083.92 | AP106: 0 | AQ106: 0 | AR106: 0 | AS106: 0 | AT106: 0 | AU106: 25372822.1 | BB106: 25796640.76 | BI106: 20932995.78
A107: Despesas Gerais | B107: IRPJ | C107: IMPOSTO DE RENDA | E107: 0 | F107: 0 | G107: 0 | H107: 0 | I107: 0 | K107: 0 | L107: 0 | M107: 0 | O107: 0 | P107: 0 | R107: 0 | S107: 0 | T107: 0 | U107: 0 | V107: 165089745.1 | W107: 0 | X107: 0 | Y107: 0 | Z107: 0 | AA107: 165089745.1 | AH107: 197543890.8 | AO107: 271346548.4 | AU107: 0 | AV107: 271417964.3 | BC107: 309770642 | BJ107: 229125198.4
A108: Despesas Gerais | B108: CSLL | C108: CONTRIBUIÇÃO SOCIAL | E108: 0 | F108: 0 | G108: 0 | H108: 0 | I108: 0 | K108: 0 | L108: 0 | M108: 0 | O108: 0 | P108: 0 | R108: 0 | S108: 0 | T108: 0 | U108: 0 | V108: 62811666.52 | W108: 0 | X108: 0 | Y108: 0 | Z108: 0 | AA108: 62811666.52 | AH108: 74970675.94 | AO108: 102504425.6 | AV108: 97994309.26 | BC108: 116164848.9 | BJ108: 86701406.84
B110: k) Outros Custos; | D110: =SUM(D111:D133) -> 67284247.17 | E110: =SUM(E111:E133) -> 20596203.27 | F110: 87880450.44 | G110: =SUM(G111:G134) -> 88370540.4 | H110: =F110-G110 -> -490089.96 | I110: 841979.06 | J110: 25428032.2 | K110: 26270011.26 | L110: =SUM(L111:L134) -> 26270011.26 | M110: 0 | N110: 67537405.15 | O110: =SUM(O111:O134) -> 67537405.15 | P110: 0 | Q110: =SUM(Q111:Q133) -> 21526323.93 | R110: =SUM(R111:R134) -> 281742944.4 | S110: =SUM(S111:S134) -> 12967247.14 | T110: =SUM(T111:T134) -> 313631501.6 | U110: =Q110-R110-S110-T110 -> -586815369.2 | V110: 4179053.15 | W110: =SUM(W111:W134) -> 0 | X110: 0 | Y110: 5005393.23 | Z110: 286651403.1 | AA110: -287477743.2 | AB110: =SUM(AB111:AB133) -> 71853826.6 | AC110: =SUM(AC111:AC133) -> 26324892.57 | AD110: 784765.8 | AE110: 31301436.44 | AF110: 71442056.79 | AG110: =SUM(AG111:AG133) -> 27339513.1 | AH110: =SUM(AH111:AH133) -> 3906537.29 | AI110: =SUM(AI111:AI133) -> 75430038.49 | AJ110: =SUM(AJ111:AJ133) -> 33500699.28 | AK110: 885784 | AL110: 41218779.22 | AM110: 85166082.42 | AN110: =SUM(AN111:AN133) -> 22453412.21 | AO110: =SUM(AO111:AO133) -> 53559673.59 | AP110: =SUM(AP111:AP133) -> 65974610.27 | AQ110: =SUM(AQ111:AQ133) -> 23742436.23 | AR110: 506561.56 | AS110: 40332875.84 | AT110: 71026757.57 | AU110: =SUM(AU111:AU133) -> 16585260.48 | AV110: =SUM(AV111:AV133) -> 38041479.23 | AW110: 71763029.95 | AX110: 31224930.86 | AY110: 880951.13 | AZ110: 44920898.19 | BA110: 74106469.17 | BB110: 18969824.03 | BC110: 14377867.15 | BD110: =SUM(BD111:BD133) -> 58433246.48 | BE110: =SUM(BE111:BE133) -> 90252158.92 | BF110: 48699334.96 | BG110: 32021854.39 | BH110: 5487482.64 | BI110: =SUM(BI111:BI133) -> 17726997.08 | BJ110: =SUM(BJ111:BJ133) -> -388958.01
A111: Despesas Gerais | B111: 402 | C111: CONDUCOES, VIAGENS E ESTADAS | D111: 713546.89 | E111: 623053.46 | F111: 1336600.35 | G111: 1336600.35 | H111: 0 | I111: 256479.61 | J111: 377126.14 | K111: 633605.75 | L111: 633605.75 | M111: 0 | N111: 562672.15 | O111: 562672.15 | P111: 0 | Q111: 9041321.14 | R111: 1362936.66 | S111: 2612214.78 | T111: 5248476.67 | U111: =Q111-R111-S111-T111 -> -182306.97 | W111: 0 | X111: 0 | Y111: 0 | Z111: 0 | AA111: 0 | AB111: 806795.51 | AC111: 502992.81 | AD111: 231658.85 | AE111: 473571.21 | AF111: 626949.48 | AG111: 8770774.04 | AI111: 912141.2 | AJ111: 551735.31 | AK111: 245368.16 | AL111: 477931.68 | AM111: 697266.71 | AN111: 7481548.62 | AP111: 535357.31 | AQ111: 341127.99 | AR111: 220301.04 | AS111: 208005.85 | AT111: 495815.11 | AU111: 3610496.43 | AW111: 665159.51 | AX111: 483609.37 | AY111: 316757.03 | AZ111: 277611.07 | BA111: 349720.35 | BB111: 4139008.83 | BD111: 485914.54 | BE111: 302430.7 | BF111: 194632.98 | BG111: 236241.39 | BH111: 315687.24 | BI111: 3812369.1
A112: Despesas Gerais | B112: 403 | C112: LANCHES E REFEICOES | D112: 1338487.43 | E112: 1641235.96 | F112: 2979723.39 | G112: 2990435.03 | H112: -10711.64 | I112: 514193.32 | J112: 612939.85 | K112: 1127133.17 | L112: 1127133.17 | M112: 0 | N112: 1388807.54 | O112: 1388807.54 | P112: 0 | Q112: 3249798.07 | R112: 508400.36 | S112: 847241.2 | T112: 1898475.15 | U112: -4318.64 | W112: 0 | X112: 0 | Y112: 0 | Z112: 0 | AA112: 0 | AB112: 1329837.11 | AC112: 1584916.88 | AD112: 538281.21 | AE112: 661340.76 | AF112: 1457628.06 | AG112: 2982694.94 | AI112: 1019819.49 | AJ112: 1215869.94 | AK112: 491883.02 | AL112: 490821.17 | AM112: 1115433.13 | AN112: 2515336.08 | AP112: 404451.38 | AQ112: 539210.57 | AR112: 267175.33 | AS112: 190885.21 | AT112: 259028.9 | AU112: 1304536.56 | AW112: 480303.36 | AX112: 516982.58 | AY112: 238357.16 | AZ112: 269559.64 | BA112: 183597.75 | BB112: 1245462.22 | BD112: 409431.44 | BE112: 434001.36 | BF112: 168099.41 | BG112: 188087.07 | BH112: 163298.82 | BI112: 1209139.96
A113: Despesas Gerais | B113: 404 | C113: ASSOCIACOES DE CLASSE | D113: 11655.6 | E113: 0 | F113: 11655.6 | G113: 11655.6 | H113: 0 | I113: 0 | J113: 0 | K113: 0 | L113: 0 | M113: 0 | N113: 0 | O113: 0 | P113: 0 | Q113: 310875.11 | R113: 267381.02 | S113: 28710.59 | T113: 14783.5 | U113: 2.546585165e-11 | W113: 0 | X113: 0 | Y113: 0 | Z113: 0 | AA113: 0 | AB113: 16878.69 | AC113: 0 | AD113: 0 | AE113: 0 | AF113: 0 | AG113: 494500.31 | AI113: 9681.41 | AJ113: 0 | AK113: 0 | AL113: 0 | AM113: 0 | AN113: 515549.08 | AP113: 10701.15 | AQ113: 0 | AR113: 0 | AS113: 0 | AT113: 0 | AU113: 571529.46 | AW113: 13691.4 | BB113: 634316.98 | BD113: 13394.38 | BI113: 634389.44
A114: Despesas Gerais | B114: 407 | C114: LIVROS, JORNAIS E REVISTAS | D114: 583.6 | E114: 0 | F114: 583.6 | G114: 583.6 | H114: 0 | I114: 0 | J114: 0 | K114: 0 | L114: 0 | M114: 0 | N114: 150 | O114: 150 | P114: 0 | Q114: 274851.03 | R114: 96528.11 | S114: 166946.77 | T114: 11563.15 | U114: -187 | W114: 0 | X114: 0 | Y114: 0 | Z114: 0 | AA114: 0 | AB114: 150 | AC114: 0 | AD114: 0 | AE114: 0 | AF114: 1261.8 | AG114: 212776.94 | AI114: 0 | AJ114: 322 | AK114: 0 | AL114: 0 | AM114: 300 | AN114: 219229.12 | AP114: 150 | AQ114: 0 | AR114: 0 | AS114: 0 | AT114: 150 | AU114: 166252.15 | AW114: 330 | BA114: 389.06 | BB114: 229034.69 | BD114: 360 | BH114: 3347 | BI114: 152850.8
A115: Despesas Gerais | B115: 408 | C115: CUSTAS LEGAIS E JUDICIAIS | D115: 13661.81 | E115: 3594.6 | F115: 17256.41 | G115: 18496.41 | H115: -1240 | I115: 10173.62 | J115: 2580.1 | K115: 12753.72 | L115: 12753.72 | M115: 0 | N115: 33887.59 | O115: 33887.59 | P115: 0 | Q115: 3052878.68 | R115: 337562.15 | S115: 794574.58 | T115: 1920741.95 | U115: 0 | W115: 0 | X115: 0 | Y115: 0 | Z115: 0 | AA115: 0 | AB115: 30562.88 | AC115: 152858.5 | AD115: 3309.88 | AE115: 65007.72 | AF115: 13772.55 | AG115: 5199038.63 | AI115: 12107.89 | AJ115: 10064.63 | AK115: 11255.06 | AL115: 124408.46 | AM115: 13145.27 | AN115: 2588568.36 | AP115: 50626.15 | AQ115: 17039.49 | AR115: 9353.53 | AS115: 14999.79 | AT115: 9906.05 | AU115: 2597614.8 | AW115: 1835.58 | AX115: 1009.55 | AY115: 1141.28 | AZ115: 963.94 | BA115: 20453.45 | BB115: 3020726.29 | BD115: 16274.26 | BE115: 2251.43 | BF115: 1338.5 | BG115: 18662.93 | BH115: 5822.02 | BI115: 2394730.38
A116: Despesas Gerais | B116: 409 | C116: DESPESAS COM CIPA | D116: 4955.03 | E116: 3498.45 | F116: 8453.48 | G116: 8453.48 | H116: 0 | I116: 932.84 | J116: 82.8 | K116: 1015.64 | L116: 1015.64 | M116: 0 | N116: 6688.52 | O116: 6688.52 | P116: 0 | Q116: 176273.82 | R116: 17260.17 | S116: 9468.8 | T116: 149544.85 | U116: 0 | W116: 0 | X116: 0 | Y116: 0 | Z116: 0 | AA116: 0 | AB116: 6101.9 | AC116: 4489.35 | AD116: 2343.34 | AE116: 1520.87 | AF116: 4898.39 | AG116: 248238.9 | AI116: 6068.47 | AJ116: 7603.41 | AK116: 1397.76 | AL116: 2128.07 | AM116: 9233.76 | AN116: 242875.43 | AP116: 136.88 | AQ116: 875.2 | AR116: 31.66 | AS116: 217.8 | AT116: 788.3 | AU116: 28810.7 | AW116: 90.5 | AX116: 400.22 | AY116: 65.71 | AZ116: 34 | BA116: 261.69 | BB116: 8160.66 | BD116: 320 | BE116: 562.93 | BF116: 79.95 | BG116: 40 | BH116: 250.25 | BI116: 6318.57
A117: Despesas Gerais | B117: 412 | C117: PROTECAO E CONS MANANCIAIS | D117: 564957.7 | E117: 0 | F117: 564957.7 | G117: 564957.7 | H117: 0 | I117: 4300 | J117: 0 | K117: 4300 | L117: 4300 | M117: 0 | N117: 0 | O117: 0 | P117: 0 | Q117: 74182.65 | R117: 29770.39 | S117: 44412.26 | T117: 0 | U117: -7.275957614e-12 | W117: 0 | X117: 0 | Y117: 0 | Z117: 0 | AA117: 0 | AB117: 750000 | AC117: 0 | AD117: 0 | AE117: 0 | AF117: 0 | AG117: 0 | AI117: 0 | AJ117: 0 | AK117: 135880 | AL117: 0 | AM117: 0 | AN117: 327077 | AP117: 1238497.09 | AQ117: 0 | AR117: 9700 | AS117: 0 | AT117: 0 | AU117: 25578.98 | AW117: 6600 | BG117: 82000 | BI117: 29000
A118: Despesas Gerais | B118: 414 | C118: FUNDOS MUN SANEAM E GESTAO AMB | D118: 0 | E118: 0 | F118: 0 | G118: 0 | H118: 0 | I118: 0 | J118: 0 | K118: 0 | L118: 0 | M118: 0 | N118: 28516986.67 | O118: 28516986.67 | P118: 0 | Q118: 0 | R118: 0 | S118: 0 | T118: 0 | U118: 0 | W118: 0 | X118: 0 | Y118: 0 | Z118: 0 | AA118: 0 | AB118: 0 | AC118: 0 | AD118: 0 | AE118: 0 | AF118: 43550994.22 | AG118: 0 | AI118: 0 | AJ118: 0 | AK118: 0 | AL118: 0 | AM118: 63194313.16 | AN118: 0 | AP118: 0 | AQ118: 0 | AR118: 0 | AS118: 0 | AT118: 65926792 | AU118: 0 | BA118: 69271162.64 | BE118: 61584727.02 | BF118: 48335184.12
A119: Despesas Gerais | B119: 415 | C119: REMUNERACAO AGENTES GOVERNANCA | D119: 0 | E119: 0 | F119: 0 | G119: 0 | H119: 0 | I119: 0 | J119: 0 | K119: 0 | L119: 0 | M119: 0 | N119: 0 | O119: 0 | P119: 0 | Q119: 2074129.97 | R119: 2074129.97 | S119: 0 | T119: 0 | U119: 0 | W119: 0 | X119: 0 | Y119: 0 | Z119: 0 | AA119: 0 | AB119: 0 | AC119: 0 | AD119: 0 | AE119: 0 | AF119: 0 | AG119: 2349571.46 | AI119: 0 | AJ119: 0 | AK119: 0 | AL119: 0 | AM119: 0 | AN119: 2268608.45 | AP119: 0 | AQ119: 0 | AR119: 0 | AS119: 0 | AT119: 0 | AU119: 2285460.54 | BB119: 2357447.88 | BI119: 1796935.77
A120: Despesas Gerais | B120: 416 | C120: PROG/CONV SOC,EDUC,AMB E PESQ | D120: 0 | E120: 0 | F120: 0 | G120: 0 | H120: 0 | I120: 0 | J120: 0 | K120: 0 | L120: 0 | M120: 0 | N120: 445320.07 | O120: 445320.07 | P120: 0 | Q120: 2870338.71 | R120: 902000 | S120: 6214295.52 | T120: 0 | U120: -4245956.81 | W120: 0 | X120: 0 | Y120: 0 | Z120: 0 | AA120: 0 | AB120: 0 | AC120: 1002896.73 | AD120: 0 | AE120: 0 | AF120: 571076.36 | AG120: 6834951.58 | AI120: 0 | AJ120: 2432219.22 | AK120: 0 | AL120: 0 | AM120: 676117.4 | AN120: 6086489.08 | AP120: 0 | AQ120: 305689.64 | AR120: 0 | AS120: 0 | AT120: 395614.4 | AU120: 5969084.96 | AX120: 4795329.14 | BA120: 774530.49 | BB120: 7193290.48 | BE120: 2290170.4 | BH120: 1445045.39 | BI120: 7645772.16
A121: Despesas Gerais | B121: 417 | C121: PROGRAMA SANEPAR RURAL | D121: 0 | E121: 0 | F121: 0 | G121: 0 | H121: 0 | I121: 0 | J121: 0 | K121: 0 | L121: 0 | M121: 0 | N121: 9479561.58 | O121: 9479561.58 | P121: 0 | Q121: 0 | R121: 0 | S121: 0 | T121: 0 | U121: 0 | W121: 0 | X121: 0 | Y121: 0 | Z121: 0 | AA121: 0 | AB121: 0 | AC121: 0 | AD121: 0 | AE121: 0 | AF121: 2409867.26 | AG121: 0 | AI121: 0 | AJ121: 0 | AK121: 0 | AL121: 0 | AM121: 2859254.99 | AN121: 0 | AP121: 0 | AQ121: 0 | AR121: 0 | AS121: 0 | AT121: 3938662.81 | AU121: 0 | BA121: 3505953.74 | BH121: 3554031.92
A122: Despesas Gerais | B122: 419 | C122: ORNAMENT, DECORAC E MAT PROMOC | D122: 1740 | E122: 0 | F122: 1740 | G122: 1740 | H122: 0 | I122: 0 | J122: 0 | K122: 0 | L122: 0 | M122: 0 | N122: 196.99 | O122: 196.99 | P122: 0 | Q122: 401674.75 | R122: 89280 | S122: 279283.8 | T122: 33110.95 | U122: 0 | W122: 0 | X122: 0 | Y122: 0 | Z122: 0 | AA122: 0 | AB122: 0 | AC122: 0 | AD122: 0 | AE122: 0 | AF122: 0 | AG122: 246966.3 | AI122: 0 | AJ122: 0 | AK122: 0 | AL122: 650 | AM122: 979 | AN122: 208130.99 | AP122: 0 | AQ122: 560 | AR122: 0 | AS122: 0 | AT122: 0 | AU122: 25895.9 | BA122: 400 | BB122: 142376 | BG122: 3132 | BI122: 45490.9
A123: Despesas Gerais | B123: 421 | C123: REPASSE PELA UTILIZ MANANCIAL | D123: 1313422.94 | E123: 0 | F123: 1313422.94 | G123: 1313422.94 | H123: 0 | I123: 0 | J123: 0 | K123: 0 | L123: 0 | M123: 0 | N123: 0 | O123: 0 | P123: 0 | Q123: 0 | R123: 0 | S123: 0 | T123: 0 | U123: 0 | W123: 0 | X123: 0 | Y123: 2134206.06 | Z123: 0 | AA123: -2134206.06 | AB123: 1248579.54 | AC123: 0 | AD123: 0 | AE123: 0 | AF123: 0 | AG123: 0 | AI123: 1220832.35 | AJ123: 0 | AK123: 0 | AL123: 0 | AM123: 0 | AN123: 0 | AP123: 1409017.23 | AQ123: 0 | AR123: 0 | AS123: 0 | AT123: 0 | AU123: 0 | AW123: 2300697.96 | BD123: 1344912.72
A124: Despesas Gerais | B124: 956 | C124: PERDAS EVENTUAIS OU EXTRAORDIN | D124: 0 | E124: 0 | F124: 0 | G124: 0 | H124: 0 | I124: 0 | J124: 0 | K124: 0 | L124: 0 | M124: 0 | N124: 0 | O124: 0 | P124: 0 | Q124: 0 | R124: 0 | S124: 0 | T124: 0 | U124: 0 | V124: 2134206.06 | W124: 0 | X124: 0 | Y124: 826340.08 | Z124: 0 | AA124: 1307865.98 | AB124: 0 | AC124: 0 | AE124: 0 | AF124: 0 | AG124: 0 | AH124: 77490.91 | AI124: 0 | AJ124: 0 | AK124: 0 | AL124: 0 | AM124: 0 | AN124: 0 | AO124: 28747871.83 | AP124: 0 | AQ124: 0 | AR124: 0 | AS124: 0 | AT124: 0 | AU124: 0 | AV124: 37711486.71 | BC124: 10763652.05 | BJ124: 227598.67
A125: Despesas Gerais | B125: 957 | C125: PERDAS PELA N RECUPERAB ATIVOS | D125: 0 | E125: 0 | F125: 0 | G125: 0 | H125: 0 | I125: 0 | K125: 0 | L125: 0 | M125: 0 | N125: 0 | O125: 0 | P125: 0 | R125: 0 | S125: 0 | T125: 0 | U125: 0 | V125: 0 | W125: 0 | X125: 0 | Y125: 2044847.09 | Z125: 0 | AA125: -2044847.09 | AB125: 0 | AH125: 0 | AI125: 0 | AJ125: 0 | AK125: 0 | AL125: 0 | AM125: 0 | AN125: 0 | AO125: 19153848.04 | AP125: 0 | AQ125: 0 | AR125: 0 | AS125: 0 | AT125: 0 | AU125: 0 | AV125: -3048431.79 | BC125: 656131.56 | BJ125: -2839658.85
A126: Despesas Gerais | B126: 959 | C126: RESULTADO NEG EQUIV PATRIMON | D126: 0 | E126: 0 | F126: 0 | G126: 0 | H126: 0 | I126: 0 | J126: 0 | K126: 0 | L126: 0 | M126: 0 | N126: 0 | O126: 0 | P126: 0 | Q126: 0 | R126: 0 | S126: 0 | T126: 0 | U126: 0 | V126: 2044847.09 | W126: 0 | X126: 0 | Y126: 0 | Z126: 45657211.21 | AA126: -43612364.12 | AB126: 0 | AC126: 0 | AD126: 0 | AE126: 0 | AF126: 0 | AG126: 0 | AH126: 3829046.38 | AI126: 0 | AJ126: 0 | AK126: 0 | AL126: 0 | AM126: 0 | AN126: 0 | AO126: 5657953.72 | AP126: 0 | AQ126: 0 | AR126: 0 | AS126: 0 | AT126: 0 | AU126: 0 | AV126: 3378424.31 | BC126: 2958083.54 | BJ126: 2223102.17
A127: Despesas Gerais | B127: 611 | C127: SERV INTERNO DE ATENDIMENTO AO CLIENTE | D127: 0 | E127: 0 | F127: 0 | G127: 0 | H127: 0 | I127: 0 | J127: 0 | K127: 0 | L127: 0 | M127: 0 | N127: 26960352.04 | O127: 26960352.04 | P127: 0 | Q127: 0 | R127: 2378335.71 | S127: 0 | T127: 16318523.46 | U127: -18696859.17 | W127: 0 | X127: 0 | Y127: 0 | Z127: 0 | AA127: 0 | AB127: 0 | AC127: 0 | AD127: 0 | AE127: 0 | AF127: 22805608.67 | AG127: 0 | AI127: 0 | AJ127: 0 | AK127: 0 | AL127: 0 | AM127: 16600039 | AN127: 0 | AP127: 0 | AQ127: 0 | AR127: 0 | AS127: 0 | AT127: 4.155799593e-09 | AU127: 0
A128: Despesas Gerais | B128: 615 | C128: SERV UNIDADES REGIONAIS | F128: 0 | G128: 0 | H128: 0 | K128: 0 | L128: 0 | M128: 0 | O128: 0 | P128: 0 | R128: 252462988.9 | S128: 0 | T128: 252462988.9 | U128: -504925977.7 | W128: 0 | X128: 0 | Y128: 0 | Z128: 105435149.4 | AA128: -105435149.4 | AB128: 389997.43 | AC128: 0 | AD128: 0 | AE128: 0 | AF128: 0 | AG128: 0 | AI128: 399953.84 | AJ128: 0 | AK128: 0 | AL128: 0 | AM128: 0 | AN128: 0 | AP128: 0 | AQ128: 0 | AR128: 0 | AS128: 0 | AT128: 0
A129: Despesas Gerais | B129: 660 | C129: SERVICOS ELETROMECANICOS | D129: 44488534.41 | E129: 17531640.66 | F129: 62020175.07 | G129: 62498313.39 | H129: -478138.32 | I129: 0 | J129: 21431610.8 | K129: 21431610.8 | L129: 21431610.8 | M129: 0 | N129: 0 | O129: 0 | P129: 0 | Q129: 0 | R129: 4938259.82 | S129: 310418.74 | T129: 9762224.56 | U129: -15010903.12 | W129: 0 | X129: 0 | Y129: 0 | Z129: 5909730.65 | AA129: -5909730.65 | AB129: 49293724.59 | AC129: 22285433.62 | AD129: 0 | AE129: 26961596.38 | AF129: 0 | AI129: 52847539.72 | AJ129: 28318740.66 | AK129: 0 | AL129: 35839308.36 | AM129: 0 | AP129: 37583862.13 | AQ129: 20852289.99 | AR129: 0 | AS129: 34061670.13 | AT129: 0 | AW129: 43299313.34 | AX129: 24238999.63 | AZ129: 35522891.95 | BD129: 33685335.35 | BE129: 24577764.38 | BG129: 24956872.72
A130: Despesas Gerais | B130: 661 | C130: SERV INTERNO DE MANUTENCAO MEDIDORES | F130: 0 | G130: 0 | H130: 0 | J130: 0 | K130: 0 | L130: 0 | M130: 0 | N130: 142782 | O130: 142782 | P130: 0 | Q130: 0 | R130: 4331317.78 | S130: 0 | T130: 1026145.87 | U130: -5357463.65 | W130: 0 | X130: 0 | Y130: 0 | Z130: 34388004.66 | AA130: -34388004.66 | AB130: 0 | AC130: 0 | AD130: 0 | AE130: 0 | AF130: 0 | AM130: 0
A131: Despesas Gerais | B131: 662 | C131: SERVICOS DE LABORATORIOS | D131: 18757013.9 | E131: 743045.66 | F131: 19500059.56 | G131: 19500059.56 | H131: 0 | I131: 0 | J131: 2948044 | K131: 2948044 | L131: 2948044 | M131: 0 | N131: 0 | O131: 0 | P131: 0 | Q131: 0 | R131: 129588.6 | S131: 1580195 | T131: 10188154.5 | U131: -11897938.1 | W131: 0 | X131: 0 | Y131: 0 | Z131: 89299051.34 | AA131: -89299051.34 | AB131: 17898192.27 | AC131: 787060.92 | AD131: 0 | AE131: 3138399.5 | AF131: 0 | AI131: 18888536.77 | AJ131: 964144.11 | AK131: 0 | AL131: 4266562.9 | AM131: 0 | AP131: 24661806.05 | AQ131: 1674602.02 | AR131: 0 | AS131: 5857097.06 | AT131: 0 | AW131: 23761764.92 | AX131: 1188600.37 | AZ131: 7725876.21 | BD131: 20669696.6 | BE131: 1060250.7 | BG131: 5229452.71
A132: Despesas Gerais | B132: 670 | C132: SERVICOS DE PROJETOS E OBRAS | D132: 75687.86 | E132: 50134.48 | F132: 125822.34 | G132: 125822.34 | H132: 0 | I132: 55899.67 | J132: 55648.51 | K132: 111548.18 | L132: 111548.18 | M132: 0 | N132: 0 | O132: 0 | P132: 0 | Q132: 0 | R132: 9874693.78 | S132: 79485.1 | T132: 12553824.05 | U132: -22508002.93 | W132: 0 | X132: 0 | Y132: 0 | Z132: 5962255.89 | AA132: -5962255.89 | AB132: 0 | AC132: 4243.76 | AD132: 9172.52 | AE132: 0 | AF132: 0 | AI132: 0 | AJ132: 0 | AK132: 0 | AL132: 0 | AM132: 0 | AP132: 0 | AQ132: 11041.33 | AR132: 0 | AS132: 0 | AT132: 0 | AW132: 1168593.21 | AY132: 324629.95 | AZ132: 1120934.88 | BD132: 1731608.69 | BG132: 1307365.57
A133: Despesas Gerais | B133: 671 | C133: SERV INTERNOS DE HIDROGEOLOGIA | D133: 0 | E133: 0 | F133: 0 | G133: 0 | H133: 0 | I133: 0 | J133: 0 | K133: 0 | L133: 0 | M133: 0 | N133: 0 | O133: 0 | P133: 0 | Q133: 0 | R133: 1942510.98 | S133: 0 | T133: 2042944.09 | U133: -3985455.07 | W133: 0 | X133: 0 | Y133: 0 | Z133: 0 | AA133: 0 | AB133: 83006.68 | AC133: 0 | AD133: 0 | AE133: 0 | AF133: 0 | AI133: 113357.35 | AJ133: 0 | AK133: 0 | AL133: 16968.58 | AM133: 0 | AP133: 80004.9 | AQ133: 0 | AR133: 0 | AS133: 0 | AT133: 0 | AW133: 64650.17 | AZ133: 3026.5 | BD133: 75998.5
A134: Despesas Gerais | B134: TRA | C134: TRANSFÊRENCIA CUSTOS E DESPESAS COMERCIAIS | F134: =SUM(D134:E134) -> 0 | G134: 0 | H134: 0 | K134: =J134+I134 -> 0 | L134: 0 | M134: =K134-L134 -> 0 | O134: 0 | P134: =N134-O134 -> 0 | Q134: -133240394 | R134: 0 | S134: 0 | T134: 0 | U134: -133240394 | W134: 0 | X134: 0 | Y134: 0 | Z134: 0 | AA134: =V134-W134-X134-Y134-Z134 -> 0 | AG134: -143656436.3 | AN134: -158255151.3 | AU134: -124782373.6 | BB134: -138419281.1 | BI134: -113294345.2
B136: m) Depreciação e amortização (societária - DRE) | D136: =SUM(D137:D144) -> 41099891.31 | E136: =SUM(E137:E144) -> 76468186.76 | F136: 117568078.1 | G136: =SUM(G137:G144) -> 117835652.7 | H136: =F136-G136 -> -267574.66 | I136: 76128798.94 | J136: 29507706.83 | K136: 105636505.8 | L136: =SUM(L137:L144) -> 105636505.8 | M136: 0 | N136: 6268854.27 | O136: =SUM(O137:O144) -> 6276149.05 | P136: -7294.78 | Q136: 17047986.88 | R136: =SUM(R137:R144) -> 260328.38 | S136: =SUM(S137:S144) -> 10605673.55 | T136: =SUM(T137:T144) -> 6228287.8 | U136: =Q136-R136-S136-T136 -> -46302.85 | V136: 0 | W136: 0 | X136: 0 | Y136: 0 | Z136: 0 | AA136: 0 | AB136: =SUM(AB137:AB144) -> 42736470.3 | AC136: =SUM(AC137:AC144) -> 82046462.66 | AD136: 86617421.83 | AE136: 36129168.02 | AF136: 4919296.14 | AG136: 18112978.31 | AH136: 0 | AI136: =SUM(AI137:AI144) -> 44234875.86 | AJ136: =SUM(AJ137:AJ144) -> 93883234.79 | AK136: 94300533.93 | AL136: 38058322.35 | AM136: 11972623.79 | AN136: 53921990.08 | AO136: 0 | AP136: =SUM(AP137:AP144) -> 45396419.62 | AQ136: =SUM(AQ137:AQ144) -> 103902033 | AR136: 100992610.2 | AS136: 44228977.84 | AT136: 11452082.69 | AU136: 54942386.66 | AV136: 0 | AW136: 49936412.59 | AX136: 116780420.6 | AY136: 108944104 | AZ136: 50358580.32 | BA136: 9037703.72 | BB136: 58459535.5 | BC136: 0 | BD136: =SUM(BD137:BD144) -> 42152690.22 | BE136: =SUM(BE137:BE144) -> 93195307.78 | BF136: 84990556.41 | BG136: 42515700.04 | BH136: 5520325.07 | BI136: 50249008.16 | BJ136: 0
A137: Depreciação/Amortização | B137: 501 | C137: DEPRECIACOES | D137: 0 | E137: 0 | F137: 0 | G137: 0 | H137: 0 | I137: 0 | J137: 0 | K137: 0 | L137: 0 | M137: 0 | N137: 2101309.27 | O137: 2102604.05 | P137: -1294.78 | Q137: 12757737.9 | R137: 260283.38 | S137: 6349878.91 | T137: 6193878.46 | U137: =Q137-R137-S137-T137 -> -46302.85 | W137: 0 | X137: 0 | Y137: 0 | Z137: 0 | AA137: 0 | AB137: 0 | AC137: 0 | AD137: 0 | AE137: 0 | AF137: 2089436.54 | AG137: 13118322.87 | AI137: 0 | AJ137: 0 | AK137: 0 | AL137: 0 | AM137: 2070104.01 | AN137: 15247028.5 | AP137: 0 | AQ137: 0 | AR137: 0 | AS137: 0 | AT137: 1884431.07 | AU137: 16840475.83 | BA137: 994845.69 | BB137: 17649910.2 | BH137: 748931.56 | BI137: 14043870.82
A138: Depreciação/Amortização | B138: 503 | C138: AMORTIZACOES DO INTANGIVEL | D138: 37054226.18 | E138: 72468110.21 | F138: 109522336.4 | G138: 109789911 | H138: -267574.66 | I138: 71476631.27 | J138: 27602465.87 | K138: 99079097.14 | L138: 99079097.14 | M138: 0 | N138: 0 | O138: 0 | P138: 0 | Q138: 1091.47 | R138: 0 | S138: 0 | T138: 1091.47 | U138: 0 | W138: 0 | X138: 0 | Y138: 0 | Z138: 0 | AA138: 0 | AB138: 38520607.53 | AC138: 75974617.45 | AD138: 78282712.18 | AE138: 32823490.34 | AF138: 0 | AG138: 0 | AI138: 39255445.75 | AJ138: 80418888.14 | AK138: 82409981.12 | AL138: 33322365.25 | AM138: 2000 | AN138: 0 | AP138: 41003794.45 | AQ138: 88688011.41 | AR138: 87698200.01 | AS138: 39863626.97 | AT138: 0 | AU138: 0 | AW138: 44842010.88 | AX138: 99259979.81 | AY138: 93622727.24 | AZ138: 44842241.94 | BD138: 37219799.88 | BE138: 79139395.94 | BF138: 72647627.39 | BG138: 37321870.13 | BI138: -13
A139: Depreciação/Amortização | B139: 504 | C139: AMORT DIREITO USO ARRENDAMENTO | D139: 0 | E139: 0 | F139: 0 | G139: 0 | H139: 0 | I139: 0 | K139: 0 | L139: 0 | M139: 0 | N139: 0 | O139: 0 | P139: 0 | R139: 0 | S139: 0 | T139: 0 | U139: 0 | W139: 0 | X139: 0 | Y139: 0 | Z139: 0 | AA139: 0 | AB139: 0 | AI139: 1148298.79 | AJ139: 5117637.93 | AK139: 554630.23 | AL139: 353574.88 | AM139: 8025519.78 | AN139: 33050625.11 | AP139: 813928.95 | AQ139: 5460660.65 | AR139: 671488.79 | AS139: 387126.3 | AT139: 7692651.62 | AU139: 30962623.7 | AW139: 966215.08 | AX139: 5670046.54 | AY139: 728417.34 | AZ139: 461005.41 | BA139: 6167471.94 | BB139: 30467610.26 | BD139: 918296.91 | BE139: 4222840.45 | BF139: 547598.75 | BG139: 337870.64 | BH139: 3361668.7 | BI139: 26048372.84
A140: Depreciação/Amortização | B140: 507 | C140: AMORT GASTOS C/INSTALACOES | D140: 3127.57 | E140: 81.24 | F140: 3208.81 | G140: 3208.81 | H140: 0 | I140: 0 | J140: 0 | K140: 0 | L140: 0 | M140: 0 | N140: 0 | O140: 0 | P140: 0 | Q140: 0 | R140: 0 | S140: 0 | T140: 0 | U140: 0 | W140: 0 | X140: 0 | Y140: 0 | Z140: 0 | AA140: 0 | AB140: 2663.83 | AC140: 81.24 | AD140: 0 | AE140: 0 | AF140: 0 | AG140: 0 | AI140: 0 | AJ140: 81.24 | AK140: 0 | AL140: 0 | AM140: 0 | AN140: 0 | AP140: 0 | AQ140: 81.24 | AR140: 0 | AS140: 0 | AT140: 0 | AU140: 0 | AW140: 45313.42 | AX140: 81.24 | BD140: 203910.39 | BE140: 60.93
A141: Depreciação/Amortização | B141: 509 | C141: AMORT GASTOS C/PROGRAMA INFORM | D141: 26734.19 | E141: 26785.56 | F141: 53519.75 | G141: 53519.75 | H141: 0 | I141: 0 | J141: 2341.02 | K141: 2341.02 | L141: 2341.02 | M141: 0 | N141: 882.44 | O141: 882.44 | P141: 0 | Q141: 4289157.51 | R141: 45 | S141: 4255794.64 | T141: 33317.87 | U141: 1.091393642e-10 | W141: 0 | X141: 0 | Y141: 0 | Z141: 0 | AA141: 0 | AB141: 62903.24 | AC141: 18129.54 | AD141: 0 | AE141: 769.17 | AF141: 0.01 | AG141: 4994655.44 | AI141: 65503.44 | AJ141: 0 | AK141: 0 | AL141: 0 | AM141: 0 | AN141: 5624336.47 | AP141: 65503.44 | AQ141: 0 | AR141: 0 | AS141: 5962.11 | AT141: 0 | AU141: 7133287.13 | AW141: 60019.57 | AZ141: 6504.12 | BA141: 386.09 | BB141: 10338515.04 | BD141: 29356.8 | BG141: 4878.09 | BH141: 3474.81 | BI141: 10156777.5
A142: Depreciação/Amortização | B142: 510 | C142: AMORT GASTOS PROT PRES AMBIENT | D142: 2230705.71 | E142: 0 | F142: 2230705.71 | G142: 2230705.71 | H142: 0 | I142: 0 | J142: 124131.34 | K142: 124131.34 | L142: 124131.34 | M142: 0 | N142: 0 | O142: 0 | P142: 0 | Q142: 0 | R142: 0 | S142: 0 | T142: 0 | U142: 0 | W142: 0 | X142: 0 | Y142: 0 | Z142: 0 | AA142: 0 | AB142: 1590890.37 | AC142: 0 | AD142: 0 | AE142: 100735.08 | AF142: 0 | AG142: 0 | AI142: 492667.05 | AJ142: 0 | AK142: 0 | AL142: 69714.62 | AM142: 0 | AN142: 0 | AP142: 81609.65 | AQ142: 0 | AR142: 0 | AS142: 39391.54 | AT142: 0 | AU142: 0 | AW142: 25661.26 | AZ142: 96468.32 | BD142: 27659.33 | BG142: 63728.3
A143: Depreciação/Amortização | B143: 511 | C143: AMORT GASTOS DIR USO OPER SIST | D143: 0 | E143: 0 | F143: 0 | G143: 0 | H143: 0 | I143: 0 | J143: 0 | K143: 0 | L143: 0 | M143: 0 | N143: 4166662.56 | O143: 4172662.56 | P143: -6000 | Q143: 0 | R143: 0 | S143: 0 | T143: 0 | U143: 0 | W143: 0 | X143: 0 | Y143: 0 | Z143: 0 | AA143: 0 | AB143: 0 | AC143: 0 | AD143: 0 | AE143: 0 | AF143: 2829859.59 | AG143: 0 | AI143: 0 | AJ143: 0 | AK143: 0 | AL143: 0 | AM143: 1875000 | AN143: 0 | AP143: 0 | AQ143: 0 | AR143: 0 | AS143: 0 | AT143: 1875000 | AU143: 6000 | BA143: 1875000 | BB143: 3500 | BH143: 1406250
A144: Depreciação/Amortização | B144: 512 | C144: AMORT DO ATIVO FINANCEIRO-AVP | D144: 1785097.66 | E144: 3973209.75 | F144: 5758307.41 | G144: 5758307.41 | H144: 0 | I144: 4652167.67 | J144: 1778768.6 | K144: 6430936.27 | L144: 6430936.27 | M144: 0 | N144: 0 | O144: 0 | P144: 0 | Q144: 0 | R144: 0 | S144: 0 | T144: 0 | U144: 0 | W144: 0 | X144: 0 | Y144: 0 | Z144: 0 | AA144: 0 | AB144: 2559405.33 | AC144: 6053634.43 | AD144: 8334709.65 | AE144: 3204173.43 | AF144: 0 | AG144: 0 | AI144: 3272960.83 | AJ144: 8346627.48 | AK144: 11335922.58 | AL144: 4312667.6 | AM144: 0 | AN144: 0 | AP144: 3431583.13 | AQ144: 9753279.66 | AR144: 12622921.37 | AS144: 3932870.92 | AT144: 0 | AU144: 0 | AW144: 3997192.38 | AX144: 11850313.02 | AY144: 14592959.43 | AZ144: 4952360.53 | BD144: 3753666.91 | BE144: 9833010.46 | BF144: 11795330.27 | BG144: 4787352.88
B146: n) Custos com indenização de terceiros, trabalhistas, ambientais; | D146: =SUM(D147:D148) -> 660518.28 | E146: =SUM(E147:E148) -> 3136648.41 | F146: 3797166.69 | G146: =SUM(G147:G148) -> 3797166.69 | H146: =F146-G146 -> 0 | I146: 1294509.06 | J146: 1816296.93 | K146: 3110805.99 | L146: =SUM(L147:L148) -> 3110805.99 | M146: 0 | N146: 16117558.67 | O146: =SUM(O147:O148) -> 16117558.67 | P146: 0 | Q146: 3935811.52 | R146: =SUM(R147:R148) -> 224602.91 | S146: =SUM(S147:S148) -> 1149331.79 | T146: =SUM(T147:T148) -> 2584388.24 | U146: =Q146-R146-S146-T146 -> -22511.42 | V146: =SUM(V147:V148) -> 0 | W146: =SUM(W147:W148) -> 0 | X146: 0 | Y146: 0 | Z146: 0 | AA146: 0 | AB146: =SUM(AB147:AB148) -> 1761622.69 | AC146: =SUM(AC147:AC148) -> 15677846.82 | AD146: 14039358.3 | AE146: 166635.62 | AF146: 6504731.62 | AG146: 10938132.55 | AH146: =SUM(AH147:AH148) -> 0 | AI146: =SUM(AI147:AI148) -> 2110635.39 | AJ146: =SUM(AJ147:AJ148) -> 3555674.42 | AK146: 2446505.9 | AL146: 3036494.4 | AM146: 3433214.73 | AN146: 3163202.34 | AO146: =SUM(AO147:AO148) -> 0 | AP146: =SUM(AP147:AP148) -> 2614901.64 | AQ146: =SUM(AQ147:AQ148) -> 3269363.04 | AR146: 4022617.28 | AS146: 160854.92 | AT146: 1740981.5 | AU146: 2202634.82 | AV146: 0 | AW146: 566109.62 | AX146: 2236707.54 | AY146: 1289912.78 | AZ146: 348961.3 | BA146: 675294.29 | BB146: 3973844.63 | BC146: 0 | BD146: =SUM(BD147:BD148) -> 363727.23 | BE146: =SUM(BE147:BE148) -> 2401683.27 | BF146: 1308350.87 | BG146: 167109.55 | BH146: 1047083.18 | BI146: 3763120.81 | BJ146: 0
A147: Despesas Gerais | B147: 406 | C147: INDENIZACOES DANOS A TERCEIROS | D147: 632661.85 | E147: 2816717.32 | F147: 3449379.17 | G147: 3449379.17 | H147: 0 | I147: 973567.2 | J147: 1672670.8 | K147: 2646238 | L147: 2646238 | M147: 0 | N147: 15856121.76 | O147: 15856121.76 | P147: 0 | Q147: 719255.14 | R147: 213347.2 | S147: 29625.69 | T147: 476282.25 | U147: =Q147-R147-S147-T147 -> 0 | W147: 0 | X147: 0 | Y147: 0 | Z147: 0 | AA147: 0 | AB147: 1661272.61 | AC147: 15409146.66 | AD147: 13772103.99 | AE147: 166635.62 | AF147: 6145471.82 | AG147: 7495628.08 | AI147: 2037930.28 | AJ147: 3251625.11 | AK147: 2362094.11 | AL147: 2868533.99 | AM147: 3370509.85 | AN147: 1407254.13 | AP147: 2574907.02 | AQ147: 3106029.98 | AR147: 3898439.41 | AS147: 40062.74 | AT147: 1737346.32 | AU147: 1771747.02 | AW147: 566109.62 | AX147: 2236707.54 | AY147: 1283205.17 | AZ147: 173727.61 | BA147: 675260.29 | BB147: 3185832.61 | BD147: 229777.61 | BE147: 2159147.64 | BF147: 1308350.87 | BG147: 70780.27 | BH147: 47664.99 | BI147: 1796568.14
